Workbook

Sheet Introduction
C9: Performance Dashboard
C10: =CurrentMonth -> 2012-01-01
A20: Important: Enable Macros to ensure the best experience while using this dashboard report.
A21: This dashboard is compatible with Excel Versions 2007 and 2010. Prior versions will not function properly.

Sheet Admin
A1: =CurrentMonth -> 2012-01-01 | E1: ADMINISTRATION
A3: Accountability | B3: Last 12 Months | C3: Fiscal Year to Date | D3: FYTD | F3: Human Resources | G3: Last 12 Months | H3: Fiscal Year to Date | I3: FYTD
A4: ='Admin Data'!A5 -> Citizen Request Tracker Cases | D4: ='Admin Data'!I41 -> 19 | F4: ='Admin Data'!A8 -> Emergency Overtime Hours Worked By All Departments | I4: ='Admin Data'!I44 -> 192
A5: ='Admin Data'!A6 -> Quarterly Newsletters Published | D5: ='Admin Data'!I42 -> 3 | F5: ='Admin Data'!A9 -> Planned Overtime Hours Worked By All Departments | I5: ='Admin Data'!I45 -> 3511
A6: ='Admin Data'!A7 -> Public Performance Reports Issued | D6: ='Admin Data'!I43 -> 0 | F6: ='Admin Data'!A10 -> On-call Hours Worked By All Departments | I6: ='Admin Data'!I46 -> 2034.25
F7: ='Admin Data'!A11 -> Sick Leave Hours Used By All Departments | I7: ='Admin Data'!I47 -> 12500.53

Sheet Admin Data
A1: Admin Data
B3: =IF(ISEVEN(YEAR(B4+185)),1,0) -> 0 | C3: =IF(ISEVEN(YEAR(C4+185)),1,0) -> 0 | D3: 0 | E3: 0 | F3: 0 | G3: 0 | H3: 0 | I3: 0 | J3: 0 | K3: 0 | L3: 0 | M3: 0 | N3: 1 | O3: 1 | P3: 1 | Q3: 1 | R3: 1 | S3: 1 | T3: 1 | U3: 1 | V3: 1 | W3: 1 | X3: 1 | Y3: 1 | Z3: 0 | AA3: 0 | AB3: 0 | AC3: 0 | AD3: 0 | AE3: 0 | AF3: 0 | AG3: 0 | AH3: 0 | AI3: 0 | AJ3: 0 | AK3: 0 | AL3: 1 | AM3: 1 | AN3: 1 | AO3: 1 | AP3: 1 | AQ3: 1 | AR3: 1
A4: Measure | B4: 2008-07-01 | C4: 2008-08-01 | D4: 2008-09-01 | E4: 2008-10-01 | F4: 2008-11-01 | G4: 2008-12-01 | H4: 2009-01-01 | I4: 2009-02-01 | J4: 2009-03-01 | K4: 2009-04-01 | L4: 2009-05-01 | M4: 2009-06-01 | N4: 2009-07-01 | O4: 2009-08-01 | P4: 2009-09-01 | Q4: 2009-10-01 | R4: 2009-11-01 | S4: 2009-12-01 | T4: 2010-01-01 | U4: 2010-02-01 | V4: 2010-03-01 | W4: 2010-04-01 | X4: 2010-05-01 | Y4: 2010-06-01 | Z4: 2010-07-01 | AA4: 2010-08-01 | AB4: 2010-09-01 | AC4: 2010-10-01 | AD4: 2010-11-01 | AE4: 2010-12-01 | AF4: 2011-01-01 | AG4: 2011-02-01 | AH4: 2011-03-01 | AI4: 2011-04-01 | AJ4: 2011-05-01 | AK4: 2011-06-01 | AL4: 2011-07-01 | AM4: 2011-08-01 | AN4: 2011-09-01 | AO4: 2011-10-01 | AP4: 2011-11-01 | AQ4: 2011-12-01 | AR4: 2012-01-01
A5: Citizen Request Tracker Cases | N5: 1 | O5: 5 | P5: 9 | Q5: 2 | R5: 2 | S5: 0 | T5: 2 | U5: 4 | V5: 5 | W5: 4 | X5: 22 | Y5: 9 | Z5: 1 | AA5: 1 | AB5: 0 | AC5: 2 | AD5: 0 | AE5: 1 | AF5: 2 | AG5: 0 | AH5: 0 | AI5: 3 | AJ5: 3 | AK5: 3 | AL5: 1 | AM5: 5 | AN5: 7 | AO5: 1 | AP5: 1 | AQ5: 1 | AR5: 3
A6: Quarterly Newsletters Published | B6: 1 | C6: 0 | D6: 0 | E6: 1 | F6: 0 | G6: 0 | H6: 1 | I6: 0 | J6: 0 | K6: 1 | L6: 0 | M6: 0 | N6: 1 | O6: 0 | P6: 0 | Q6: 1 | R6: 0 | S6: 0 | T6: 1 | U6: 0 | V6: 0 | W6: 1 | X6: 0 | Y6: 0 | Z6: 1 | AA6: 0 | AB6: 0 | AC6: 1 | AD6: 0 | AE6: 0 | AF6: 1 | AG6: 0 | AH6: 0 | AI6: 1 | AJ6: 0 | AK6: 0 | AL6: 1 | AM6: 0 | AN6: 0 | AO6: 1 | AP6: 0 | AQ6: 0 | AR6: 1
A7: Public Performance Reports Issued | B7: 0 | C7: 0 | D7: 0 | E7: 0 | F7: 0 | G7: 0 | H7: 0 | I7: 0 | J7: 0 | K7: 0 | L7: 0 | M7: 0 | N7: 0 | O7: 0 | P7: 0 | Q7: 0 | R7: 0 | S7: 0 | T7: 0 | U7: 0 | V7: 0 | W7: 0 | X7: 0 | Y7: 0 | Z7: 0 | AA7: 0 | AB7: 0 | AC7: 0 | AD7: 0 | AE7: 0 | AF7: 0 | AG7: 0 | AH7: 0 | AI7: 0 | AJ7: 0 | AK7: 0 | AL7: 0 | AM7: 0 | AN7: 0 | AO7: 0 | AP7: 0 | AQ7: 0 | AR7: 0
A8: Emergency Overtime Hours Worked By All Departments | N8: 352.75 | O8: 394.25 | P8: 217.5 | Q8: 223.5 | R8: 159.5 | S8: 363 | T8: 247 | U8: 378 | V8: 176.5 | W8: 112.5 | X8: 249 | Y8: 346.5 | Z8: 615 | AA8: 193 | AB8: 388.5 | AC8: 435 | AD8: 370.5 | AE8: 412.75 | AF8: 314.5 | AG8: 219 | AH8: 401.75 | AI8: 574 | AJ8: 490.75 | AK8: 484.25 | AL8: 192 | AM8: 0 | AN8: 0 | AO8: 0 | AP8: 0 | AQ8: 0 | AR8: 0
A9: Planned Overtime Hours Worked By All Departments | N9: 497.25 | O9: 297.25 | P9: 622.25 | Q9: 460.25 | R9: 462.25 | S9: 754.25 | T9: 424.25 | U9: 344.65 | V9: 332.75 | W9: 282.25 | X9: 468.5 | Y9: 408 | Z9: 563.25 | AA9: 396.5 | AB9: 391.25 | AC9: 402 | AD9: 384 | AE9: 792.5 | AF9: 392.5 | AG9: 411 | AH9: 401 | AI9: 535.5 | AJ9: 640.75 | AK9: 657.25 | AL9: 551.75 | AM9: 493.75 | AN9: 574.25 | AO9: 355.25 | AP9: 574.25 | AQ9: 640.75 | AR9: 321
A10: On-call Hours Worked By All Departments | N10: 426.75 | O10: 260.5 | P10: 264 | Q10: 292 | R10: 321.75 | S10: 410 | T10: 354.5 | U10: 303.25 | V10: 296 | W10: 279 | X10: 259 | Y10: 276 | Z10: 450.5 | AA10: 283.5 | AB10: 307.5 | AC10: 279.5 | AD10: 279.25 | AE10: 433.75 | AF10: 321 | AG10: 288 | AH10: 279.5 | AI10: 262 | AJ10: 279.25 | AK10: 398 | AL10: 266.5 | AM10: 253 | AN10: 265 | AO10: 273.5 | AP10: 273.25 | AQ10: 418.5 | AR10: 284.5
A11: Sick Leave Hours Used By All Departments | N11: 2135.09 | O11: 1162.5 | P11: 1130.31 | Q11: 1854.09 | R11: 1157.8 | S11: 1479 | T11: 1238.02 | U11: 1855.29 | V11: 2136.5 | W11: 1941.5 | X11: 1682.75 | Y11: 1538.5 | Z11: 2713.69 | AA11: 1887.5 | AB11: 1534.05 | AC11: 1448.75 | AD11: 1426 | AE11: 2429.4 | AF11: 1525 | AG11: 1580.65 | AH11: 1753.05 | AI11: 1375.25 | AJ11: 1523.75 | AK11: 2334.75 | AL11: 1467.5 | AM11: 1636 | AN11: 1537 | AO11: 1549.15 | AP11: 1971.4 | AQ11: 2902.67 | AR11: 1436.81
A27: HIGHLIGHTS | B27: 2008-07-01 | C27: 2008-08-01 | D27: 2008-09-01 | E27: 2008-10-01 | F27: 2008-11-01 | G27: 2008-12-01 | H27: 2009-01-01 | I27: 2009-02-01 | J27: 2009-03-01 | K27: 2009-04-01 | L27: 2009-05-01 | M27: 2009-06-01 | N27: 2009-07-01 | O27: 2009-08-01 | P27: 2009-09-01 | Q27: 2009-10-01 | R27: 2009-11-01 | S27: 2009-12-01 | T27: 2010-01-01 | U27: 2010-02-01 | V27: 2010-03-01 | W27: 2010-04-01 | X27: 2010-05-01 | Y27: 2010-06-01 | Z27: 2010-07-01 | AA27: 2010-08-01 | AB27: 2010-09-01 | AC27: 2010-10-01 | AD27: 2010-11-01 | AE27: 2010-12-01 | AF27: 2011-01-01 | AG27: 2011-02-01 | AH27: 2011-03-01 | AI27: 2011-04-01 | AJ27: 2011-05-01 | AK27: 2011-06-01 | AL27: 2011-07-01 | AM27: 2011-08-01 | AN27: 2011-09-01 | AO27: 2011-10-01 | AP27: 2011-11-01 | AQ27: 2011-12-01 | AR27: 2012-01-01
A28: Highlight 1 | AL28: 1. We completed demolition of two dilapidated homes in the North Towne area and began constuction of one new Habitat home at 407 Johnson St. | AM28: 1. Construction began on two new Habitat Homes being funded with CDBG funds. | AN28: 1. The City Manager, Assistant City Manager, and Assistant to the City Manager attended the International City/County Management Association (ICMA) annual conference in Milwaukee, WI. The conference offered staff an opportunity to develop skills and keep up with trends in local government. | AO28: The City Manager, Assistant City Manager, and Assistant to the City Manager attended the Georgia City/County Management Association (GCCMA) annual conference in Augusta, GA. The conference offered staff an opportunity to develop skills and keep up with trends in local government. | AP28: Construction was completed on the second Habitat for Humanity home, located at 407 Johnson St. A Dedication Ceremony was held on November 22nd, where the keys were presented to the Shaw Family who worked on, and purchased the home. Additionally, we acquired and cleared a property which will be the location of our fourth Habitat for Humanity Home. The structure on the property, located at 23 Fairview St, had fallen into major disrepair and was the source of regular complaints to Code Enforcement staff. Construction on the new home should begin early in 2012. | AR28: Held Annual Council Visioning Session at the Clarence Brown Convention Center.
A29: Highlight 2 | AL29: 2. Completed the new design for the Monthly Performance Dashboard. Public distribution of the dashboard will begin in late August. | AM29: 2. We have received notification of award for the 2011 CDBG program. $199,807 will be used for housing rehabilitation in the North Towne neighborhood. | AN29: 2. Issued a Request for Bid for Lighting Construction Services for municipal facilities. The Bid is expected to be awarded in early November. | AO29: Hosted, along with the Police and Fire Departments, the groundbreaking ceremony for the new Public Safety Headquarters. | AP29: The City renewed its contract with UMR to provide health insurance for city employees and their families. Costs to the City have increased, but the premiums will remain the same for employees. | AR29: Held two montly Council Meetings.
A30: Highlight 3 | AL30: 3. Use of the Citizen Request Tracker is lower than we would like. Staff will increase efforts to publicize the Tracker to increase usage. | AM30: 3. Completed audit phase of lighting design study for municipal facilities. Request for Bids to implement the recommendations are anticipated to be released in September. | AN30: 3. Citizen Request Tracker cases have been coming in more frequently as we had hoped. | AO30: Hosted employee appreciation lunches for all City employees. Administration staff, alongside several staff members from Public Works, served over 300 city employees. | AP30: Four City employees completed Building Operator Certification courses at Gwinnett Tech. The course presented students with information about the various components of structures, covering subjects such as building envelope, HVAC, lighting, and energy efficiency. The course was paid for using grant funds from the Energy Efficiency and Conservation Block Grant. | AR30: Began lighting retrofit/upgrade project in earnest. Approximately 40% of the project is complete.
A31: Highlight 4 | AL31: 4. Overtime, Sick, and On-call hours are lower than they were at this point last year, at least partly due to the fact that there were two pay periods in July this year, and three in July last year. | AN31: 4. Held two regular council meetings this month. | AP31: At the polls, City voters approved Sunday package sales of alcohol as well as the 2012 SPLOST.
A32: Highlight 5 | AP32: Targeting the Georgia Municipal Association's "Trend Setter" award, City staff delivered a presentation on innovative strategies being employed at the Wastewater Treatment Plant. While not ultimately selected, it was nonetheless an honor to be among the candidates.
A33: Highlight 6 | AP33: Administration staff completed the design of the 2012 City Calendar which residents will be receiving in the coming weeks.
A34: Highlight 7 | AP34: Administration staff continued to prepare for the upcoming Council visioning session to be held in July.
A35: Highlight 8
A36: Highlights Concaetenation | B36: =B28&CHAR(10)&B29&CHAR(10)&B30&CHAR(10)&B31&CHAR(10)&B32&CHAR(10)&B33&CHAR(10)&B34&CHAR(10)&B35 ->  | C36: =C28&CHAR(10)&C29&CHAR(10)&C30&CHAR(10)&C31&CHAR(10)&C32&CHAR(10)&C33&CHAR(10)&C34&CHAR(10)&C35 ->  | AK36: =AK28&CHAR(10)&CHAR(10)&AK29&CHAR(10)&CHAR(10)&AK30&CHAR(10)&CHAR(10)&AK31&CHAR(10)&CHAR(10)&AK32&CHAR(10)&CHAR(10)&AK33&CHAR(10)&CHAR(10)&AK34&CHAR(10)&CHAR(10)&AK35 ->  | AL36: 1. We completed demolition of two dilapidated homes in the North Towne area and began constuction of one new Habitat home at 407 Johnson St. 2. Completed the new design for the Monthly Performance Dashboard. Public distribution of the dashboard will begin in late August. 3. Use of the Citizen Request Tracker is lower than we would like. Staff will increase efforts to publicize the Tracker to increase usage. 4. Overtime, Sick, and On-call hours are lower than they were at this point last year, at least partly due to the fact that there were two pay periods in July this year, and three in July last year. | AM36: 1. Construction began on two new Habitat Homes being funded with CDBG funds. 2. We have received notification of award for the 2011 CDBG program. $199,807 will be used for housing rehabilitation in the North Towne neighborhood. 3. Completed audit phase of lighting design study for municipal facilities. Request for Bids to implement the recommendations are anticipated to be released in September. | AN36: 1. The City Manager, Assistant City Manager, and Assistant to the City Manager attended the International City/County Management Association (ICMA) annual conference in Milwaukee, WI. The conference offered staff an opportunity to develop skills and keep up with trends in local government. 2. Issued a Request for Bid for Lighting Construction Services for municipal facilities. The Bid is expected to be awarded in early November. 3. Citizen Request Tracker cases have been coming in more frequently as we had hoped. 4. Held two regular council meetings this month. | AO36: The City Manager, Assistant City Manager, and Assistant to the City Manager attended the Georgia City/County Management Association (GCCMA) annual conference in Augusta, GA. The conference offered staff an opportunity to develop skills and keep up with trends in local government. Hosted, along with the Police and Fire Departments, the groundbreaking ceremony for the new Public Safety Headquarters. Hosted employee appreciation lunches for all City employees. Administration staff, alongside several staff members from Public Works, served over 300 city employees. | AP36: Construction was completed on the second Habitat for Humanity home, located at 407 Johnson St. A Dedication Ceremony was held on November 22nd, where the keys were presented to the Shaw Family who worked on, and purchased the home. Additionally, we acquired and cleared a property which will be the location of our fourth Habitat for Humanity Home. The structure on the property, located at 23 Fairview St, had fallen into major disrepair and was the source of regular complaints to Code Enforcement staff. Construction on the new home should begin early in 2012. The City renewed its contract with UMR to provide health insurance for city employees and their families. Costs to the City have increased, but the premiums will remain the same for employees. Four City employees completed Building Operator Certification courses at Gwinnett Tech. The course presented students with information about the various components of structures, covering subjects such as building envelope, HVAC, lighting, and energy efficiency. The course was paid for using grant funds from the Energy Efficiency and Conservation Block Grant. At the polls, City voters approved Sunday package sales of alcohol as well as the 2012 SPLOST. Targeting the Georgia Municipal Association's "Trend Setter" award, City staff delivered a presentation on innovative strategies being employed at the Wastewater Treatment Plant. While not ultimately selected, it was nonetheless an honor to be among the candidates. Administration staff completed the design of the 2012 City Calendar which residents will be receiving in the coming weeks. Administration staff continued to prepare for the upcoming Council visioning session to be held in July. | AQ36: =AQ28&CHAR(10)&CHAR(10)&AQ29&CHAR(10)&CHAR(10)&AQ30&CHAR(10)&CHAR(10)&AQ31&CHAR(10)&CHAR(10)&AQ32&CHAR(10)&CHAR(10)&AQ33&CHAR(10)&CHAR(10)&AQ34&CHAR(10)&CHAR(10)&AQ35 ->  | AR36: Held Annual Council Visioning Session at the Clarence Brown Convention Center. Held two montly Council Meetings. Began lighting retrofit/upgrade project in earnest. Approximately 40% of the project is complete.
A40: Bullet Chart Source | B40: Target | C40: What's Better? | D40: Band 1 | E40: Band 2 | F40: YTD Type | G40: Max Scale | H40: Actual 1 | I40: Actual | J40: Actual 3 | K40: Projection 1 | L40: Projection 2 | M40: Projection 3 | N40: First Zone 1 | O40: First Zone 2 | P40: First Zone 3 | Q40: Second Zone 1 | R40: Second Zone 2 | S40: Second Zone 3 | T40: Previous X 1 | U40: Previous X 2 | V40: Previous Y 1 | W40: Previous Y 2
A41: =A5 -> Citizen Request Tracker Cases | B41: 60 | C41: More | D41: 0.85 | E41: 1 | F41: Sum | G41: =ROUNDUP((ROUNDUP(MAX(B41,SUM(I41,L41)),-LEN(EVEN(MAX(B41,SUM(I41,L41))))+2)/5),-LEN(EVEN(ROUNDUP(MAX(B41,SUM(I41,L41)),-LEN(EVEN(MAX(B41,SUM(I41,L41))))+2)/5))+1)*5 -> 100 | H41: 0 | I41: =IF(F41="Sum",SUM(OFFSET(A5,0,YTDBeg,1,YTDWidth)),AVERAGE(OFFSET(A5,0,YTDBeg,1,YTDWidth))) -> 19 | J41: 0 | K41: 0 | L41: =IF(F41="Sum",Projection*(I41/YTDWidth*12-I41),0) -> 0 | M41: 0 | N41: =B41*D41 -> 51 | O41: =((I41+L41<=N41)*(N41-(I41+L41))) -> 32 | P41: =N41 -> 51 | Q41: =(E41-D41)*B41 -> 9 | R41: =((I41+L41<=N41+Q41)*((N41+Q41)-(I41+L41+O41))) -> 9 | S41: =Q41 -> 9 | T41: =IF(F41="Sum",SUM(OFFSET(A5,0,YTDBeg-12,1,YTDWidth)),AVERAGE(OFFSET(A5,0,YTDBeg-12,1,YTDWidth))) -> 7 | U41: =T41 -> 7 | V41: 1 | W41: 2
A42: =A6 -> Quarterly Newsletters Published | B42: 4 | C42: Middle | D42: 0.95 | E42: 1.05 | F42: Sum | G42: =ROUNDUP((ROUNDUP(MAX(B42,SUM(I42,L42)),-LEN(EVEN(MAX(B42,SUM(I42,L42))))+2)/5),-LEN(EVEN(ROUNDUP(MAX(B42,SUM(I42,L42)),-LEN(EVEN(MAX(B42,SUM(I42,L42))))+2)/5))+1)*5 -> 5 | H42: 0 | I42: 3 | J42: 0 | K42: 0 | L42: =(4-I42)*Projection -> 0 | M42: 0 | N42: 3.8 | O42: =((I42+L42<=N42)*(N42-(I42+L42))) -> 0.8 | P42: =N42 -> 3.8 | Q42: 0.4 | R42: =((I42+L42<=N42+Q42)*((N42+Q42)-(I42+L42+O42))) -> 0.4 | S42: =Q42 -> 0.4 | T42: 3 | U42: =T42 -> 3 | V42: 1 | W42: 2
A43: Public Performance Reports Issued | B43: 12 | C43: Middle | D43: 0.95 | E43: 1.05 | F43: Sum | G43: 15 | H43: 0 | I43: 0 | J43: 0 | K43: 0 | L43: =IF(F43="Sum",Projection*(I43/YTDWidth*12-I43),0) -> 0 | M43: 0 | N43: 11.4 | O43: 11.4 | P43: 11.4 | Q43: 1.2 | R43: 1.2 | S43: 1.2 | T43: 0 | U43: 0 | V43: 1 | W43: 2
A44: Emergency Overtime Hours Worked By All Departments | B44: 3800 | C44: Less | D44: 1 | E44: 1.15 | F44: Sum | G44: 4000 | H44: 0 | I44: 192 | J44: 0 | K44: 0 | L44: =IF(F44="Sum",Projection*(I44/YTDWidth*12-I44),0) -> 0 | M44: 0 | N44: 3800 | O44: 3608 | P44: 3800 | Q44: 570 | R44: 570 | S44: 570 | T44: 2729.25 | U44: 2729.25 | V44: 1 | W44: 2
A45: Planned Overtime Hours Worked By All Departments | B45: 5200 | C45: Less | D45: 1 | E45: 1.15 | F45: Sum | G45: 10000 | H45: 0 | I45: 3511 | J45: 0 | K45: 0 | L45: =IF(F45="Sum",Projection*(I45/YTDWidth*12-I45),0) -> 0 | M45: 0 | N45: 5200 | O45: 1689 | P45: 5200 | Q45: 780 | R45: 780 | S45: 780 | T45: 3322 | U45: 3322 | V45: 1 | W45: 2
A46: On-call Hours Worked By All Departments | B46: 3900 | C46: Less | D46: 1 | E46: 1.15 | F46: Sum | G46: 4000 | H46: 0 | I46: 2034.25 | J46: 0 | K46: 0 | L46: =IF(F46="Sum",Projection*(I46/YTDWidth*12-I46),0) -> 0 | M46: 0 | N46: 3900 | O46: 1865.75 | P46: 3900 | Q46: 585 | R46: 585 | S46: 585 | T46: 2355 | U46: 2355 | V46: 1 | W46: 2
A47: Sick Leave Hours Used By All Departments | B47: 16680 | C47: Less | D47: 1 | E47: 1.15 | F47: Sum | G47: 20000 | H47: 0 | I47: 12500.53 | J47: 0 | K47: 0 | L47: =IF(F47="Sum",Projection*(I47/YTDWidth*12-I47),0) -> 0 | M47: 0 | N47: 16680 | O47: 4179.47 | P47: 16680 | Q47: 2502 | R47: 2502 | S47: 2502 | T47: 12964.39 | U47: 12964.39 | V47: 1 | W47: 2
A65: SPARKLINE SOURCE
B66: 11 | C66: 10 | D66: 9 | E66: 8 | F66: 7 | G66: 6 | H66: 5 | I66: 4 | J66: 3 | K66: 2 | L66: 1 | M66: 0
A67: Measure | B67: =OFFSET($A4,0,CurrentMonthCount-B$66,1,1) -> 2011-02-01 | C67: 2011-03-01 | D67: 2011-04-01 | E67: 2011-05-01 | F67: 2011-06-01 | G67: 2011-07-01 | H67: 2011-08-01 | I67: 2011-09-01 | J67: 2011-10-01 | K67: 2011-11-01 | L67: 2011-12-01 | M67: 2012-01-01
A68: =A5 -> Citizen Request Tracker Cases | B68: =OFFSET($A5,0,CurrentMonthCount-B$66,1,1) -> 0 | C68: 0 | D68: 3 | E68: 3 | F68: 3 | G68: 1 | H68: 5 | I68: 7 | J68: 1 | K68: 1 | L68: 1 | M68: 3
A69: =A6 -> Quarterly Newsletters Published | B69: =OFFSET($A6,0,CurrentMonthCount-B$66,1,1) -> 0 | C69: 0 | D69: 1 | E69: 0 | F69: 0 | G69: 1 | H69: 0 | I69: 0 | J69: 1 | K69: 0 | L69: 0 | M69: 1
A70: Public Performance Reports Issued | B70: =OFFSET($A7,0,CurrentMonthCount-B$66,1,1) -> 0 | C70: 0 | D70: 0 | E70: 0 | F70: 0 | G70: 0 | H70: 0 | I70: 0 | J70: 0 | K70: 0 | L70: 0 | M70: 0
A71: Emergency Overtime Hours Worked By All Departments | B71: =OFFSET($A8,0,CurrentMonthCount-B$66,1,1) -> 219 | C71: 401.75 | D71: 574 | E71: 490.75 | F71: 484.25 | G71: 192 | H71: 0 | I71: 0 | J71: 0 | K71: 0 | L71: 0 | M71: 0
A72: Planned Overtime Hours Worked By All Departments | B72: =OFFSET($A9,0,CurrentMonthCount-B$66,1,1) -> 411 | C72: 401 | D72: 535.5 | E72: 640.75 | F72: 657.25 | G72: 551.75 | H72: 493.75 | I72: 574.25 | J72: 355.25 | K72: 574.25 | L72: 640.75 | M72: 321
A73: On-call Hours Worked By All Departments | B73: =OFFSET($A10,0,CurrentMonthCount-B$66,1,1) -> 288 | C73: 279.5 | D73: 262 | E73: 279.25 | F73: 398 | G73: 266.5 | H73: 253 | I73: 265 | J73: 273.5 | K73: 273.25 | L73: 418.5 | M73: 284.5
A74: Sick Leave Hours Used By All Departments | B74: =OFFSET($A11,0,CurrentMonthCount-B$66,1,1) -> 1580.65 | C74: 1753.05 | D74: 1375.25 | E74: 1523.75 | F74: 2334.75 | G74: 1467.5 | H74: 1636 | I74: 1537 | J74: 1549.15 | K74: 1971.4 | L74: 2902.67 | M74: 1436.81
A75: 0 | B75: =OFFSET($A12,0,CurrentMonthCount-B$66,1,1) -> 0 | C75: 0 | D75: 0 | E75: 0 | F75: 0 | G75: 0 | H75: 0 | I75: 0 | J75: 0 | K75: 0 | L75: 0 | M75: 0
A76: 0 | B76: =OFFSET($A13,0,CurrentMonthCount-B$66,1,1) -> 0 | C76: 0 | D76: 0 | E76: 0 | F76: 0 | G76: 0 | H76: 0 | I76: 0 | J76: 0 | K76: 0 | L76: 0 | M76: 0
A77: 0 | B77: =OFFSET($A14,0,CurrentMonthCount-B$66,1,1) -> 0 | C77: 0 | D77: 0 | E77: 0 | F77: 0 | G77: 0 | H77: 0 | I77: 0 | J77: 0 | K77: 0 | L77: 0 | M77: 0
A78: 0 | B78: =OFFSET($A15,0,CurrentMonthCount-B$66,1,1) -> 0 | C78: 0 | D78: 0 | E78: 0 | F78: 0 | G78: 0 | H78: 0 | I78: 0 | J78: 0 | K78: 0 | L78: 0 | M78: 0
A79: 0 | B79: =OFFSET($A16,0,CurrentMonthCount-B$66,1,1) -> 0 | C79: 0 | D79: 0 | E79: 0 | F79: 0 | G79: 0 | H79: 0 | I79: 0 | J79: 0 | K79: 0 | L79: 0 | M79: 0
A80: 0 | B80: =OFFSET($A17,0,CurrentMonthCount-B$66,1,1) -> 0 | C80: 0 | D80: 0 | E80: 0 | F80: 0 | G80: 0 | H80: 0 | I80: 0 | J80: 0 | K80: 0 | L80: 0 | M80: 0
A81: 0 | B81: =OFFSET($A18,0,CurrentMonthCount-B$66,1,1) -> 0 | C81: 0 | D81: 0 | E81: 0 | F81: 0 | G81: 0 | H81: 0 | I81: 0 | J81: 0 | K81: 0 | L81: 0 | M81: 0
A82: 0 | B82: =OFFSET($A19,0,CurrentMonthCount-B$66,1,1) -> 0 | C82: 0 | D82: 0 | E82: 0 | F82: 0 | G82: 0 | H82: 0 | I82: 0 | J82: 0 | K82: 0 | L82: 0 | M82: 0
A83: 0 | B83: =OFFSET($A20,0,CurrentMonthCount-B$66,1,1) -> 0 | C83: 0 | D83: 0 | E83: 0 | F83: 0 | G83: 0 | H83: 0 | I83: 0 | J83: 0 | K83: 0 | L83: 0 | M83: 0
A84: 0 | B84: =OFFSET($A21,0,CurrentMonthCount-B$66,1,1) -> 0 | C84: 0 | D84: 0 | E84: 0 | F84: 0 | G84: 0 | H84: 0 | I84: 0 | J84: 0 | K84: 0 | L84: 0 | M84: 0
A85: 0 | B85: =OFFSET($A22,0,CurrentMonthCount-B$66,1,1) -> 0 | C85: 0 | D85: 0 | E85: 0 | F85: 0 | G85: 0 | H85: 0 | I85: 0 | J85: 0 | K85: 0 | L85: 0 | M85: 0
A86: 0 | B86: =OFFSET($A23,0,CurrentMonthCount-B$66,1,1) -> 0 | C86: 0 | D86: 0 | E86: 0 | F86: 0 | G86: 0 | H86: 0 | I86: 0 | J86: 0 | K86: 0 | L86: 0 | M86: 0
A87: 0 | B87: =OFFSET($A24,0,CurrentMonthCount-B$66,1,1) -> 0 | C87: 0 | D87: 0 | E87: 0 | F87: 0 | G87: 0 | H87: 0 | I87: 0 | J87: 0 | K87: 0 | L87: 0 | M87: 0

Sheet Finance
A1: =CurrentMonth -> 2012-01-01 | E1: FINANCE
A3: Meter Reading | B3: Last 12 Months | C3: Fiscal Year to Date | D3: FYTD | F3: Accounting | G3: Last 12 Months | H3: Fiscal Year to Date | I3: FYTD
A4: ='Finance Data'!A5 -> Meters Read - Electric | D4: ='Finance Data'!I41 -> 59235 | F4: ='Finance Data'!A11 -> Accounts Payable Invoices Processed | I4: ='Finance Data'!I47 -> 4521
A5: ='Finance Data'!A6 -> Meters Read - Gas | D5: ='Finance Data'!I42 -> 77335 | F5: ='Finance Data'!A12 -> Manual Journal Entries | I5: ='Finance Data'!I48 -> 445
A6: ='Finance Data'!A7 -> Meters Read - Water & Sewer | D6: ='Finance Data'!I43 -> 77213
A8: Utility Servicing
A9: ='Finance Data'!A8 -> Service Disconnections | D9: ='Finance Data'!I44 -> 2134
A10: ='Finance Data'!A9 -> Service Connections | D10: ='Finance Data'!I45 -> 3479
A12: Billling
A13: ='Finance Data'!A10 -> Bills Generated | D13: ='Finance Data'!I46 -> 106788

Sheet Finance Data
A1: Finance Data
A4: Measure | B4: 2008-07-01 | C4: 2008-08-01 | D4: 2008-09-01 | E4: 2008-10-01 | F4: 2008-11-01 | G4: 2008-12-01 | H4: 2009-01-01 | I4: 2009-02-01 | J4: 2009-03-01 | K4: 2009-04-01 | L4: 2009-05-01 | M4: 2009-06-01 | N4: 2009-07-01 | O4: 2009-08-01 | P4: 2009-09-01 | Q4: 2009-10-01 | R4: 2009-11-01 | S4: 2009-12-01 | T4: 2010-01-01 | U4: 2010-02-01 | V4: 2010-03-01 | W4: 2010-04-01 | X4: 2010-05-01 | Y4: 2010-06-01 | Z4: 2010-07-01 | AA4: 2010-08-01 | AB4: 2010-09-01 | AC4: 2010-10-01 | AD4: 2010-11-01 | AE4: 2010-12-01 | AF4: 2011-01-01 | AG4: 2011-02-01 | AH4: 2011-03-01 | AI4: 2011-04-01 | AJ4: 2011-05-01 | AK4: 2011-06-01 | AL4: 2011-07-01 | AM4: 2011-08-01 | AN4: 2011-09-01 | AO4: 2011-10-01 | AP4: 2011-11-01 | AQ4: 2011-12-01 | AR4: 2012-01-01
A5: Meters Read - Electric | B5: =NA() ->  | C5: =NA() ->  | D5: =NA() ->  | E5: =NA() ->  | F5: =NA() ->  | G5: =NA() ->  | H5: =NA() ->  | I5: =NA() ->  | J5: =NA() ->  | K5: =NA() ->  | L5: =NA() ->  | M5: =NA() ->  | N5: =NA() ->  | O5: =NA() ->  | P5: =NA() ->  | Q5: =NA() ->  | R5: =NA() ->  | S5: =NA() ->  | T5: =NA() ->  | U5: =NA() ->  | V5: =NA() ->  | W5: =NA() ->  | X5: =NA() ->  | Y5: =NA() ->  | Z5: =NA() ->  | AA5: =NA() ->  | AB5: =NA() ->  | AC5: =NA() ->  | AD5: =NA() ->  | AE5: =NA() ->  | AF5: =NA() ->  | AG5: =NA() ->  | AH5: =NA() ->  | AI5: =NA() ->  | AJ5: =NA() ->  | AK5: =NA() ->  | AL5: 7733 | AM5: 8594 | AN5: 7855 | AO5: 9115 | AP5: 9115 | AQ5: 8401 | AR5: 8422
A6: Meters Read - Gas | B6: =NA() ->  | C6: =NA() ->  | D6: =NA() ->  | E6: =NA() ->  | F6: =NA() ->  | G6: =NA() ->  | H6: =NA() ->  | I6: =NA() ->  | J6: =NA() ->  | K6: =NA() ->  | L6: =NA() ->  | M6: =NA() ->  | N6: =NA() ->  | O6: =NA() ->  | P6: =NA() ->  | Q6: =NA() ->  | R6: =NA() ->  | S6: =NA() ->  | T6: =NA() ->  | U6: =NA() ->  | V6: =NA() ->  | W6: =NA() ->  | X6: =NA() ->  | Y6: =NA() ->  | Z6: =NA() ->  | AA6: =NA() ->  | AB6: =NA() ->  | AC6: =NA() ->  | AD6: =NA() ->  | AE6: =NA() ->  | AF6: =NA() ->  | AG6: =NA() ->  | AH6: =NA() ->  | AI6: =NA() ->  | AJ6: =NA() ->  | AK6: =NA() ->  | AL6: 10586 | AM6: 11143 | AN6: 10694 | AO6: 11361 | AP6: 11361 | AQ6: 11168 | AR6: 11022
A7: Meters Read - Water & Sewer | B7: =NA() ->  | C7: =NA() ->  | D7: =NA() ->  | E7: =NA() ->  | F7: =NA() ->  | G7: =NA() ->  | H7: =NA() ->  | I7: =NA() ->  | J7: =NA() ->  | K7: =NA() ->  | L7: =NA() ->  | M7: =NA() ->  | N7: =NA() ->  | O7: =NA() ->  | P7: =NA() ->  | Q7: =NA() ->  | R7: =NA() ->  | S7: =NA() ->  | T7: =NA() ->  | U7: =NA() ->  | V7: =NA() ->  | W7: =NA() ->  | X7: =NA() ->  | Y7: =NA() ->  | Z7: =NA() ->  | AA7: =NA() ->  | AB7: =NA() ->  | AC7: =NA() ->  | AD7: =NA() ->  | AE7: =NA() ->  | AF7: =NA() ->  | AG7: =NA() ->  | AH7: =NA() ->  | AI7: =NA() ->  | AJ7: =NA() ->  | AK7: =NA() ->  | AL7: 10459 | AM7: 11085 | AN7: 10578 | AO7: 11515 | AP7: 11515 | AQ7: 11063 | AR7: 10998
A8: Service Disconnections | B8: =NA() ->  | C8: =NA() ->  | D8: =NA() ->  | E8: =NA() ->  | F8: =NA() ->  | G8: =NA() ->  | H8: =NA() ->  | I8: =NA() ->  | J8: =NA() ->  | K8: =NA() ->  | L8: =NA() ->  | M8: =NA() ->  | N8: =NA() ->  | O8: =NA() ->  | P8: =NA() ->  | Q8: =NA() ->  | R8: =NA() ->  | S8: =NA() ->  | T8: =NA() ->  | U8: =NA() ->  | V8: =NA() ->  | W8: =NA() ->  | X8: =NA() ->  | Y8: =NA() ->  | Z8: =NA() ->  | AA8: =NA() ->  | AB8: =NA() ->  | AC8: =NA() ->  | AD8: =NA() ->  | AE8: =NA() ->  | AF8: =NA() ->  | AG8: =NA() ->  | AH8: =NA() ->  | AI8: =NA() ->  | AJ8: =NA() ->  | AK8: =NA() ->  | AL8: 276 | AM8: 437 | AN8: 289 | AO8: 218 | AP8: 301 | AQ8: 324 | AR8: 289
A9: Service Connections | B9: =NA() ->  | C9: =NA() ->  | D9: =NA() ->  | E9: =NA() ->  | F9: =NA() ->  | G9: =NA() ->  | H9: =NA() ->  | I9: =NA() ->  | J9: =NA() ->  | K9: =NA() ->  | L9: =NA() ->  | M9: =NA() ->  | N9: =NA() ->  | O9: =NA() ->  | P9: =NA() ->  | Q9: =NA() ->  | R9: =NA() ->  | S9: =NA() ->  | T9: =NA() ->  | U9: =NA() ->  | V9: =NA() ->  | W9: =NA() ->  | X9: =NA() ->  | Y9: =NA() ->  | Z9: =NA() ->  | AA9: =NA() ->  | AB9: =NA() ->  | AC9: =NA() ->  | AD9: =NA() ->  | AE9: =NA() ->  | AF9: =NA() ->  | AG9: =NA() ->  | AH9: =NA() ->  | AI9: =NA() ->  | AJ9: =NA() ->  | AK9: =NA() ->  | AL9: 566 | AM9: 561 | AN9: 483 | AO9: 533 | AP9: 461 | AQ9: 474 | AR9: 401
A10: Bills Generated | B10: =NA() ->  | C10: =NA() ->  | D10: =NA() ->  | E10: =NA() ->  | F10: =NA() ->  | G10: =NA() ->  | H10: =NA() ->  | I10: =NA() ->  | J10: =NA() ->  | K10: =NA() ->  | L10: =NA() ->  | M10: =NA() ->  | N10: =NA() ->  | O10: =NA() ->  | P10: =NA() ->  | Q10: =NA() ->  | R10: =NA() ->  | S10: =NA() ->  | T10: =NA() ->  | U10: =NA() ->  | V10: =NA() ->  | W10: =NA() ->  | X10: =NA() ->  | Y10: =NA() ->  | Z10: =NA() ->  | AA10: =NA() ->  | AB10: =NA() ->  | AC10: =NA() ->  | AD10: =NA() ->  | AE10: =NA() ->  | AF10: =NA() ->  | AG10: =NA() ->  | AH10: =NA() ->  | AI10: =NA() ->  | AJ10: =NA() ->  | AK10: =NA() ->  | AL10: 15237 | AM10: 15335 | AN10: 15294 | AO10: 15239 | AP10: 15239 | AQ10: 15184 | AR10: 15260
A11: Accounts Payable Invoices Processed | AL11: 730 | AM11: 956 | AN11: 688 | AO11: 616 | AP11: 525 | AQ11: 593 | AR11: 413
A12: Manual Journal Entries | AL12: 74 | AM12: 75 | AN12: 62 | AO12: 64 | AP12: 64 | AQ12: 56 | AR12: 50
A27: HIGHLIGHTS | B27: 2008-07-01 | C27: 2008-08-01 | D27: 2008-09-01 | E27: 2008-10-01 | F27: 2008-11-01 | G27: 2008-12-01 | H27: 2009-01-01 | I27: 2009-02-01 | J27: 2009-03-01 | K27: 2009-04-01 | L27: 2009-05-01 | M27: 2009-06-01 | N27: 2009-07-01 | O27: 2009-08-01 | P27: 2009-09-01 | Q27: 2009-10-01 | R27: 2009-11-01 | S27: 2009-12-01 | T27: 2010-01-01 | U27: 2010-02-01 | V27: 2010-03-01 | W27: 2010-04-01 | X27: 2010-05-01 | Y27: 2010-06-01 | Z27: 2010-07-01 | AA27: 2010-08-01 | AB27: 2010-09-01 | AC27: 2010-10-01 | AD27: 2010-11-01 | AE27: 2010-12-01 | AF27: 2011-01-01 | AG27: 2011-02-01 | AH27: 2011-03-01 | AI27: 2011-04-01 | AJ27: 2011-05-01 | AK27: 2011-06-01 | AL27: 2011-07-01 | AM27: 2011-08-01 | AN27: 2011-09-01 | AO27: 2011-10-01 | AP27: 2011-11-01 | AQ27: 2011-12-01 | AR27: 2012-01-01
A28: Highlight 1 | AL28: General Fund is showing a loss of $245,000 for September 2011, while the same time period for 2010 showed a loss of $359,000. Property Tax collections along with Local Option Sales Tax collections are below September 2010 levels. Overall General Fund revenues are down from September 2010 level by $106,000, while expenses for the same time period are down $220,000. Water Fund is showing a profit of $930,000 for September 2011, while September 2010 showed a profit of $745,000. Overall Water Fund revenues are down from September 2010 by $78,000, while expenses are down by $258,000 from September 2010. Gas Fund is showing a loss of $692,000 for September 2011, while the Gas Fund had a loss of $969,000 in September 2010. Gas Fund revenues for September 2011 increased from September 2010 by $81,000, while expenses decreased $195,000 for the same time period. Electric Fund is showing a profit of $1.44 million for September 2011, while September 2010 showed a profit of $1.17 million. Electric Fund revenues have increased for September 2011 by $1.21 million, while expenses increased by $58,000 for September 2011. Stormwater Fund is sowing a profit of $27,000 for September 2011, while September 2010 showed a profit of $49,000. Stormwater revenues have increased for September 2011 by $9,000, while expenses have increased by $31,000, due to the clean out work being performed on the railroad. Solid Waste is showing a profit of $103,000 for September 2011, while September 2010 showed a profit of $120,000. September 2012 revenues decreased by $3,000, while September 2011 expenses increased by $14,000. Fiber Fund is showing a profit for September 2011 of $133,000, while September 2010 showed a profit of $200,000. September 2011 revenues decreased by $111,000 while September 2011 expenses decreased by $44,000. The cash position for September 2011 decreased by $3.8 million from June 30, 2011 cash balances. This is due largely to the decrease in our pension plan portfolio and the stock market. | AM28: 1. General Fund is showing a loss of $245,000 for September 2011, while the same time period for 2010 showed a loss of $359,000. Property Tax collections along with Local Option Sales Tax collections are below September 2010 levels. Overall General Fund revenues are down from September 2010 level by $106,000, while expenses for the same time period are down $220,000. | AN28: General Fund is showing a loss of $245,000 for September 2011, while the same time period for 2010 showed a loss of $359,000. Property Tax collections along with Local Option Sales Tax collections are below September 2010 levels. Overall General Fund revenues are down from September 2010 level by $106,000, while expenses for the same time period are down $220,000. | AO28: Annual audit is underway. Auditors are about 60% complete with field work. | AP28: The annual audit is well underway. Auditors have now completed 100% of the field work. Staff is currently awaiting a draft copy of the financial statements. | AQ28: Annual audit is complete. There were no findings and the city was given a qualified opinion which is the best opinion that can be given by an audit firm. | AR28: The year-to-date financial review shows that the general fund, electric fund, fiber optics fund, solid waste fund, stormwater fund, and water and sewer fund are all showing a net income, while the gas and garage funds are showing a loss. The gas fund always shows a loss until the colder winter months come along and gas usage increases.
A29: Highlight 2 | AM29: 2. Water Fund is showing a profit of $930,000 for September 2011, while September 2010 showed a profit of $745,000. Overall Water Fund revenues are down from September 2010 by $78,000, while expenses are down by $258,000 from September 2010. | AN29: Water Fund is showing a profit of $930,000 for September 2011, while September 2010 showed a profit of $745,000. Overall Water Fund revenues are down from September 2010 by $78,000, while expenses are down by $258,000 from September 2010. | AO29: The year-to-date financial review shows that the general fund, electric fund, fiber optics fund, garage fund, solid waste fund, stormwater fund, and water and sewer fund are all showing a net income, while the gas fund is showing a loss. The gas fund always shows a loss until the colder winter months come along and gas usage increases. | AP29: The year-to-date financial review shows that the general fund, electric fund, fiber optics fund, solid waste fund, stormwater fund, and water and sewer fund are all showing a net income, while the gas and garage funds are showing a loss. The gas fund always shows a loss until the colder winter months come along and gas usage increases. | AQ29: The year-to-date financial review shows that the general fund, electric fund, fiber optics fund, solid waste fund, stormwater fund, and water and sewer fund are all showing a net income, while the gas and garage funds are showing a loss. The gas fund always shows a loss until the colder winter months come along and gas usage increases.
A30: Highlight 3 | AM30: 3. Gas Fund is showing a loss of $692,000 for September 2011, while the Gas Fund had a loss of $969,000 in September 2010. Gas Fund revenues for September 2011 increased from September 2010 by $81,000, while expenses decreased $195,000 for the same time period. | AN30: Gas Fund is showing a loss of $692,000 for September 2011, while the Gas Fund had a loss of $969,000 in September 2010. Gas Fund revenues for September 2011 increased from September 2010 by $81,000, while expenses decreased $195,000 for the same time period.
A31: Highlight 4 | AM31: 4. Electric Fund is showing a profit of $1.44 million for September 2011, while September 2010 showed a profit of $1.17 million. Electric Fund revenues have increased for September 2011 by $1.21 million, while expenses increased by $58,000 for September 2011. | AN31: Electric Fund is showing a profit of $1.44 million for September 2011, while September 2010 showed a profit of $1.17 million. Electric Fund revenues have increased for September 2011 by $1.21 million, while expenses increased by $58,000 for September 2011.
A32: Highlight 5 | AM32: 5. Stormwater Fund is sowing a profit of $27,000 for September 2011, while September 2010 showed a profit of $49,000. Stormwater revenues have increased for September 2011 by $9,000, while expenses have increased by $31,000, due to the clean out work being performed on the railroad. | AN32: Stormwater Fund is sowing a profit of $27,000 for September 2011, while September 2010 showed a profit of $49,000. Stormwater revenues have increased for September 2011 by $9,000, while expenses have increased by $31,000, due to the clean out work being performed on the railroad.
A33: Highlight 6 | AM33: 6. Solid Waste is showing a profit of $103,000 for September 2011, while September 2010 showed a profit of $120,000. September 2012 revenues decreased by $3,000, while September 2011 expenses increased by $14,000. | AN33: Solid Waste is showing a profit of $103,000 for September 2011, while September 2010 showed a profit of $120,000. September 2012 revenues decreased by $3,000, while September 2011 expenses increased by $14,000.
A34: Highlight 7 | AM34: 7. Fiber Fund is showing a profit for September 2011 of $133,000, while September 2010 showed a profit of $200,000. September 2011 revenues decreased by $111,000 while September 2011 expenses decreased by $44,000. | AN34: Fiber Fund is showing a profit for September 2011 of $133,000, while September 2010 showed a profit of $200,000. September 2011 revenues decreased by $111,000 while September 2011 expenses decreased by $44,000.
A35: Highlight 8 | AM35: 8. The cash position for September 2011 decreased by $3.8 million from June 30, 2011 cash balances. This is due largely to the decrease in our pension plan portfolio and the stock market. | AN35: The cash position for September 2011 decreased by $3.8 million from June 30, 2011 cash balances. This is due largely to the decrease in our pension plan portfolio and the stock market.
A36: Highlights Concaetenation | B36: =B28&CHAR(10)&CHAR(10)&B29&CHAR(10)&CHAR(10)&B30&CHAR(10)&CHAR(10)&B31&CHAR(10)&CHAR(10)&B32&CHAR(10)&CHAR(10)&B33&CHAR(10)&CHAR(10)&B34&CHAR(10)&CHAR(10)&B35 ->  | AL36: General Fund is showing a loss of $245,000 for September 2011, while the same time period for 2010 showed a loss of $359,000. Property Tax collections along with Local Option Sales Tax collections are below September 2010 levels. Overall General Fund revenues are down from September 2010 level by $106,000, while expenses for the same time period are down $220,000. Water Fund is showing a profit of $930,000 for September 2011, while September 2010 showed a profit of $745,000. Overall Water Fund revenues are down from September 2010 by $78,000, while expenses are down by $258,000 from September 2010. Gas Fund is showing a loss of $692,000 for September 2011, while the Gas Fund had a loss of $969,000 in September 2010. Gas Fund revenues for September 2011 increased from September 2010 by $81,000, while expenses decreased $195,000 for the same time period. Electric Fund is showing a profit of $1.44 million for September 2011, while September 2010 showed a profit of $1.17 million. Electric Fund revenues have increased for September 2011 by $1.21 million, while expenses increased by $58,000 for September 2011. Stormwater Fund is sowing a profit of $27,000 for September 2011, while September 2010 showed a profit of $49,000. Stormwater revenues have increased for September 2011 by $9,000, while expenses have increased by $31,000, due to the clean out work being performed on the railroad. Solid Waste is showing a profit of $103,000 for September 2011, while September 2010 showed a profit of $120,000. September 2012 revenues decreased by $3,000, while September 2011 expenses increased by $14,000. Fiber Fund is showing a profit for September 2011 of $133,000, while September 2010 showed a profit of $200,000. September 2011 revenues decreased by $111,000 while September 2011 expenses decreased by $44,000. The cash position for September 2011 decreased by $3.8 million from June 30, 2011 cash balances. This is due largely to the decrease in our pension plan portfolio and the stock market. | AM36: =AM28&CHAR(10)&CHAR(10)&AM29&CHAR(10)&CHAR(10)&AM30&CHAR(10)&CHAR(10)&AM31&CHAR(10)&CHAR(10)&AM32&CHAR(10)&CHAR(10)&AM33&CHAR(10)&CHAR(10)&AM34&CHAR(10)&CHAR(10)&AM35 -> 1. General Fund is showing a loss of $245,000 for September 2011, while the same time period for 2010 showed a loss of $359,000. Property Tax collections along with Local Option Sales Tax collections are below September 2010 levels. Overall General Fund revenues are down from September 2010 level by $106,000, while expenses for the same time period are down $220,000. 2. Water Fund is showing a profit of $930,000 for September 2011, while September 2010 showed a profit of $745,000. Overall Water Fund revenues are down from September 2010 by $78,000, while expenses are down by $258,000 from September 2010. 3. Gas Fund is showing a loss of $692,000 for September 2011, while the Gas Fund had a loss of $969,000 in September 2010. Gas Fund revenues for September 2011 increased from September 2010 by $81,000, while expenses decreased $195,000 for the same time period. 4. Electric Fund is showing a profit of $1.44 million for September 2011, while September 2010 showed a profit of $1.17 million. Electric Fund revenues have increased for September 2011 by $1.21 million, while expenses increased by $58,000 for September 2011. 5. Stormwater Fund is sowing a profit of $27,000 for September 2011, while September 2010 showed a profit of $49,000. Stormwater revenues have increased for September 2011 by $9,000, while expenses have increased by $31,000, due to the clean out work being performed on the railroad. 6. Solid Waste is showing a profit of $103,000 for September 2011, while September 2010 showed a profit of $120,000. September 2012 revenues decreased by $3,000, while September 2011 expenses increased by $14,000. 7. Fiber Fund is showing a profit for September 2011 of $133,000, while September 2010 showed a profit of $200,000. September 2011 revenues decreased by $111,000 while September 2011 expenses decreased by $44,000. 8. The cash position for September 2011 decreased by $3.8 million from June 30, 2011 cash balances. This is due largely to the decrease in our pension plan portfolio and the stock market. | AN36: General Fund is showing a loss of $245,000 for September 2011, while the same time period for 2010 showed a loss of $359,000. Property Tax collections along with Local Option Sales Tax collections are below September 2010 levels. Overall General Fund revenues are down from September 2010 level by $106,000, while expenses for the same time period are down $220,000. Water Fund is showing a profit of $930,000 for September 2011, while September 2010 showed a profit of $745,000. Overall Water Fund revenues are down from September 2010 by $78,000, while expenses are down by $258,000 from September 2010. Gas Fund is showing a loss of $692,000 for September 2011, while the Gas Fund had a loss of $969,000 in September 2010. Gas Fund revenues for September 2011 increased from September 2010 by $81,000, while expenses decreased $195,000 for the same time period. Electric Fund is showing a profit of $1.44 million for September 2011, while September 2010 showed a profit of $1.17 million. Electric Fund revenues have increased for September 2011 by $1.21 million, while expenses increased by $58,000 for September 2011. Stormwater Fund is sowing a profit of $27,000 for September 2011, while September 2010 showed a profit of $49,000. Stormwater revenues have increased for September 2011 by $9,000, while expenses have increased by $31,000, due to the clean out work being performed on the railroad. Solid Waste is showing a profit of $103,000 for September 2011, while September 2010 showed a profit of $120,000. September 2012 revenues decreased by $3,000, while September 2011 expenses increased by $14,000. Fiber Fund is showing a profit for September 2011 of $133,000, while September 2010 showed a profit of $200,000. September 2011 revenues decreased by $111,000 while September 2011 expenses decreased by $44,000. The cash position for September 2011 decreased by $3.8 million from June 30, 2011 cash balances. This is due largely to the decrease in our pension plan portfolio and the stock market. | AO36: Annual audit is underway. Auditors are about 60% complete with field work. The year-to-date financial review shows that the general fund, electric fund, fiber optics fund, garage fund, solid waste fund, stormwater fund, and water and sewer fund are all showing a net income, while the gas fund is showing a loss. The gas fund always shows a loss until the colder winter months come along and gas usage increases. | AP36: The annual audit is well underway. Auditors have now completed 100% of the field work. Staff is currently awaiting a draft copy of the financial statements. The year-to-date financial review shows that the general fund, electric fund, fiber optics fund, solid waste fund, stormwater fund, and water and sewer fund are all showing a net income, while the gas and garage funds are showing a loss. The gas fund always shows a loss until the colder winter months come along and gas usage increases. | AQ36: Annual audit is complete. There were no findings and the city was given a qualified opinion which is the best opinion that can be given by an audit firm. The year-to-date financial review shows that the general fund, electric fund, fiber optics fund, solid waste fund, stormwater fund, and water and sewer fund are all showing a net income, while the gas and garage funds are showing a loss. The gas fund always shows a loss until the colder winter months come along and gas usage increases. | AR36: The year-to-date financial review shows that the general fund, electric fund, fiber optics fund, solid waste fund, stormwater fund, and water and sewer fund are all showing a net income, while the gas and garage funds are showing a loss. The gas fund always shows a loss until the colder winter months come along and gas usage increases.
A40: Bullet Chart Source | B40: Target | C40: What's Better? | D40: Band 1 | E40: Band 2 | F40: YTD Type | G40: Max Scale | H40: Actual 1 | I40: Actual | J40: Actual 3 | K40: Projection 1 | L40: Projection 2 | M40: Projection 3 | N40: First Zone 1 | O40: First Zone 2 | P40: First Zone 3 | Q40: Second Zone 1 | R40: Second Zone 2 | S40: Second Zone 3 | T40: Previous X 1 | U40: Previous X 2 | V40: Previous Y 1 | W40: Previous Y 2
A41: =A5 -> Meters Read - Electric | B41: 105000 | C41: Middle | D41: 0.93 | E41: 1.07 | F41: Sum | G41: =ROUNDUP((ROUNDUP(MAX(B41,SUM(I41,L41)),-LEN(EVEN(MAX(B41,SUM(I41,L41))))+2)/5),-LEN(EVEN(ROUNDUP(MAX(B41,SUM(I41,L41)),-LEN(EVEN(MAX(B41,SUM(I41,L41))))+2)/5))+1)*5 -> 150000 | H41: 0 | I41: =IF(F41="Sum",SUM(OFFSET(A5,0,YTDBeg,1,YTDWidth)),AVERAGE(OFFSET(A5,0,YTDBeg,1,YTDWidth))) -> 59235 | J41: 0 | K41: 0 | L41: =IF(F41="Sum",Projection*(I41/YTDWidth*12-I41),0) -> 0 | M41: 0 | N41: =B41*D41 -> 97650 | O41: =((I41+L41<=N41)*(N41-(I41+L41))) -> 38415 | P41: =N41 -> 97650 | Q41: =(E41-D41)*B41 -> 14700 | R41: =((I41+L41<=N41+Q41)*((N41+Q41)-(I41+L41+O41))) -> 14700 | S41: =Q41 -> 14700 | T41: =IF(F41="Sum",SUM(OFFSET(A5,0,YTDBeg-12,1,YTDWidth)),AVERAGE(OFFSET(A5,0,YTDBeg-12,1,YTDWidth))) ->  | U41: =T41 ->  | V41: 1 | W41: 2
A42: =A6 -> Meters Read - Gas | B42: 128500 | C42: Middle | D42: 0.93 | E42: 1.07 | F42: Sum | G42: =ROUNDUP((ROUNDUP(MAX(B42,SUM(I42,L42)),-LEN(EVEN(MAX(B42,SUM(I42,L42))))+2)/5),-LEN(EVEN(ROUNDUP(MAX(B42,SUM(I42,L42)),-LEN(EVEN(MAX(B42,SUM(I42,L42))))+2)/5))+1)*5 -> 150000 | H42: 0 | I42: 77335 | J42: 0 | K42: 0 | L42: 0 | M42: 0 | N42: 119505 | O42: =((I42+L42<=N42)*(N42-(I42+L42))) -> 42170 | P42: =N42 -> 119505 | Q42: 17990 | R42: =((I42+L42<=N42+Q42)*((N42+Q42)-(I42+L42+O42))) -> 17990 | S42: =Q42 -> 17990 | U42: =T42 ->  | V42: 1 | W42: 2
A43: Meters Read - Water & Sewer | B43: 131500 | C43: Middle | D43: 0.93 | E43: 1.07 | F43: Sum | G43: 150000 | H43: 0 | I43: 77213 | J43: 0 | K43: 0 | L43: 0 | M43: 0 | N43: 122295 | O43: 45082 | P43: 122295 | Q43: 18410 | R43: 18410 | S43: 18410 | V43: 1 | W43: 2
A44: Service Disconnections | B44: 5100 | C44: Less | D44: 1 | E44: 1.15 | F44: Sum | G44: 10000 | H44: 0 | I44: 2134 | J44: 0 | K44: 0 | L44: 0 | M44: 0 | N44: 5100 | O44: 2966 | P44: 5100 | Q44: 765 | R44: 765 | S44: 765 | V44: 1 | W44: 2
A45: Service Connections | B45: 5000 | C45: More | D45: 0.85 | E45: 1 | F45: Sum | G45: 5000 | H45: 0 | I45: 3479 | J45: 0 | K45: 0 | L45: 0 | M45: 0 | N45: 4250 | O45: 771 | P45: 4250 | Q45: 750 | R45: 750 | S45: 750 | V45: 1 | W45: 2
A46: Bills Generated | B46: 183000 | C46: Middle | D46: 0.93 | E46: 1.07 | F46: Sum | G46: 200000 | H46: 0 | I46: 106788 | J46: 0 | K46: 0 | L46: 0 | M46: 0 | N46: 170190 | O46: 63402 | P46: 170190 | Q46: 25620 | R46: 25620 | S46: 25620 | V46: 1 | W46: 2
A47: Accounts Payable Invoices Processed | B47: 11500 | C47: Middle | D47: 0.93 | E47: 1.07 | F47: Sum | G47: 15000 | H47: 0 | I47: 4521 | J47: 0 | K47: 0 | L47: 0 | M47: 0 | N47: 10695 | O47: 6174 | P47: 10695 | Q47: 1610 | R47: 1610 | S47: 1610 | V47: 1 | W47: 2
A48: Manual Journal Entries | B48: 1110 | C48: Less | D48: 1 | E48: 1.15 | F48: Sum | G48: 1500 | H48: 0 | I48: 445 | J48: 0 | K48: 0 | L48: 0 | M48: 0 | N48: 1110 | O48: 665 | P48: 1110 | Q48: 166.5 | R48: 166.5 | S48: 166.5 | V48: 1 | W48: 2
A65: SPARKLINE SOURCE
B66: 11 | C66: 10 | D66: 9 | E66: 8 | F66: 7 | G66: 6 | H66: 5 | I66: 4 | J66: 3 | K66: 2 | L66: 1 | M66: 0
A67: Measure | B67: =OFFSET($A4,0,CurrentMonthCount-B$66,1,1) -> 2011-02-01 | C67: 2011-03-01 | D67: 2011-04-01 | E67: 2011-05-01 | F67: 2011-06-01 | G67: 2011-07-01 | H67: 2011-08-01 | I67: 2011-09-01 | J67: 2011-10-01 | K67: 2011-11-01 | L67: 2011-12-01 | M67: 2012-01-01
A68: =A5 -> Meters Read - Electric | B68: =OFFSET($A5,0,CurrentMonthCount-B$66,1,1) ->  | G68: 7733 | H68: 8594 | I68: 7855 | J68: 9115 | K68: 9115 | L68: 8401 | M68: 8422
A69: =A6 -> Meters Read - Gas | B69: =OFFSET($A6,0,CurrentMonthCount-B$66,1,1) ->  | G69: 10586 | H69: 11143 | I69: 10694 | J69: 11361 | K69: 11361 | L69: 11168 | M69: 11022
A70: Meters Read - Water & Sewer | B70: =OFFSET($A7,0,CurrentMonthCount-B$66,1,1) ->  | G70: 10459 | H70: 11085 | I70: 10578 | J70: 11515 | K70: 11515 | L70: 11063 | M70: 10998
A71: Service Disconnections | B71: =OFFSET($A8,0,CurrentMonthCount-B$66,1,1) ->  | G71: 276 | H71: 437 | I71: 289 | J71: 218 | K71: 301 | L71: 324 | M71: 289
A72: Service Connections | B72: =OFFSET($A9,0,CurrentMonthCount-B$66,1,1) ->  | G72: 566 | H72: 561 | I72: 483 | J72: 533 | K72: 461 | L72: 474 | M72: 401
A73: Bills Generated | B73: =OFFSET($A10,0,CurrentMonthCount-B$66,1,1) ->  | G73: 15237 | H73: 15335 | I73: 15294 | J73: 15239 | K73: 15239 | L73: 15184 | M73: 15260
A74: Accounts Payable Invoices Processed | B74: =OFFSET($A11,0,CurrentMonthCount-B$66,1,1) ->  | G74: 730 | H74: 956 | I74: 688 | J74: 616 | K74: 525 | L74: 593 | M74: 413
A75: Manual Journal Entries | B75: =OFFSET($A12,0,CurrentMonthCount-B$66,1,1) ->  | G75: 74 | H75: 75 | I75: 62 | J75: 64 | K75: 64 | L75: 56 | M75: 50
A76: 0 | B76: =OFFSET($A13,0,CurrentMonthCount-B$66,1,1) -> 0 | C76: 0 | D76: 0 | E76: 0 | F76: 0 | G76: 0 | H76: 0 | I76: 0 | J76: 0 | K76: 0 | L76: 0 | M76: 0
A77: 0 | B77: =OFFSET($A14,0,CurrentMonthCount-B$66,1,1) -> 0 | C77: 0 | D77: 0 | E77: 0 | F77: 0 | G77: 0 | H77: 0 | I77: 0 | J77: 0 | K77: 0 | L77: 0 | M77: 0
A78: 0 | B78: =OFFSET($A15,0,CurrentMonthCount-B$66,1,1) -> 0 | C78: 0 | D78: 0 | E78: 0 | F78: 0 | G78: 0 | H78: 0 | I78: 0 | J78: 0 | K78: 0 | L78: 0 | M78: 0
A79: 0 | B79: =OFFSET($A16,0,CurrentMonthCount-B$66,1,1) -> 0 | C79: 0 | D79: 0 | E79: 0 | F79: 0 | G79: 0 | H79: 0 | I79: 0 | J79: 0 | K79: 0 | L79: 0 | M79: 0
A80: 0 | B80: =OFFSET($A17,0,CurrentMonthCount-B$66,1,1) -> 0 | C80: 0 | D80: 0 | E80: 0 | F80: 0 | G80: 0 | H80: 0 | I80: 0 | J80: 0 | K80: 0 | L80: 0 | M80: 0
A81: 0 | B81: =OFFSET($A18,0,CurrentMonthCount-B$66,1,1) -> 0 | C81: 0 | D81: 0 | E81: 0 | F81: 0 | G81: 0 | H81: 0 | I81: 0 | J81: 0 | K81: 0 | L81: 0 | M81: 0
A82: 0 | B82: =OFFSET($A19,0,CurrentMonthCount-B$66,1,1) -> 0 | C82: 0 | D82: 0 | E82: 0 | F82: 0 | G82: 0 | H82: 0 | I82: 0 | J82: 0 | K82: 0 | L82: 0 | M82: 0
A83: 0 | B83: =OFFSET($A20,0,CurrentMonthCount-B$66,1,1) -> 0 | C83: 0 | D83: 0 | E83: 0 | F83: 0 | G83: 0 | H83: 0 | I83: 0 | J83: 0 | K83: 0 | L83: 0 | M83: 0
A84: 0 | B84: =OFFSET($A21,0,CurrentMonthCount-B$66,1,1) -> 0 | C84: 0 | D84: 0 | E84: 0 | F84: 0 | G84: 0 | H84: 0 | I84: 0 | J84: 0 | K84: 0 | L84: 0 | M84: 0
A85: 0 | B85: =OFFSET($A22,0,CurrentMonthCount-B$66,1,1) -> 0 | C85: 0 | D85: 0 | E85: 0 | F85: 0 | G85: 0 | H85: 0 | I85: 0 | J85: 0 | K85: 0 | L85: 0 | M85: 0
A86: 0 | B86: =OFFSET($A23,0,CurrentMonthCount-B$66,1,1) -> 0 | C86: 0 | D86: 0 | E86: 0 | F86: 0 | G86: 0 | H86: 0 | I86: 0 | J86: 0 | K86: 0 | L86: 0 | M86: 0
A87: 0 | B87: =OFFSET($A24,0,CurrentMonthCount-B$66,1,1) -> 0 | C87: 0 | D87: 0 | E87: 0 | F87: 0 | G87: 0 | H87: 0 | I87: 0 | J87: 0 | K87: 0 | L87: 0 | M87: 0

Sheet CustServ
A1: =CurrentMonth -> 2012-01-01 | E1: CUSTOMER SERVICE
A3: Transactions | B3: Last 12 Months | C3: Fiscal Year to Date | D3: FYTD | F3: Customer Service | G3: Last 12 Months | H3: Fiscal Year to Date | I3: FYTD
A4: ='CustServ Data'!A7 -> Payments - Walk-in and Drive-thru | D4: ='CustServ Data'!I43 -> 51382 | F4: ='CustServ Data'!A5 -> Complaints Against Customer Service Reps | I4: ='CustServ Data'!I41 -> 7
A5: ='CustServ Data'!A8 -> Payments - Webpay | D5: ='CustServ Data'!I44 -> 14375 | F5: ='CustServ Data'!A6 -> Pro-Corp Calls (after hours) - Talk Time in Minutes | I5: ='CustServ Data'!I42 -> 11272
A6: ='CustServ Data'!A9 -> Payments - Bank Bill Pay | D6: ='CustServ Data'!I45 -> 9136
A7: ='CustServ Data'!A10 -> Payments - Drop Box (after hours) | D7: ='CustServ Data'!I46 -> 7388
A8: ='CustServ Data'!A11 -> Payments - Mail | D8: ='CustServ Data'!I47 -> 25900
A9: ='CustServ Data'!A12 -> Payments - Wired Cash | D9: ='CustServ Data'!I48 -> 222
A10: ='CustServ Data'!A13 -> Payments - Auto Bank Draft | D10: ='CustServ Data'!I49 -> 5795
A11: ='CustServ Data'!A14 -> Billing Errors | D11: ='CustServ Data'!I50 -> 46
A12: ='CustServ Data'!A15 -> Cash Drawer Over-Under | D12: ='CustServ Data'!I51 -> -20.96
A13: ='CustServ Data'!A16 -> Service Disconnections (Transactions) | D13: ='CustServ Data'!I52 -> 2134
A14: ='CustServ Data'!A17 -> Service Connections (Transactions) | D14: ='CustServ Data'!I53 -> 3479

Sheet CustServ Data
A1: CustServ Data
A4: Measure | B4: 2008-07-01 | C4: 2008-08-01 | D4: 2008-09-01 | E4: 2008-10-01 | F4: 2008-11-01 | G4: 2008-12-01 | H4: 2009-01-01 | I4: 2009-02-01 | J4: 2009-03-01 | K4: 2009-04-01 | L4: 2009-05-01 | M4: 2009-06-01 | N4: 2009-07-01 | O4: 2009-08-01 | P4: 2009-09-01 | Q4: 2009-10-01 | R4: 2009-11-01 | S4: 2009-12-01 | T4: 2010-01-01 | U4: 2010-02-01 | V4: 2010-03-01 | W4: 2010-04-01 | X4: 2010-05-01 | Y4: 2010-06-01 | Z4: 2010-07-01 | AA4: 2010-08-01 | AB4: 2010-09-01 | AC4: 2010-10-01 | AD4: 2010-11-01 | AE4: 2010-12-01 | AF4: 2011-01-01 | AG4: 2011-02-01 | AH4: 2011-03-01 | AI4: 2011-04-01 | AJ4: 2011-05-01 | AK4: 2011-06-01 | AL4: 2011-07-01 | AM4: 2011-08-01 | AN4: 2011-09-01 | AO4: 2011-10-01 | AP4: 2011-11-01 | AQ4: 2011-12-01 | AR4: 2012-01-01
A5: Complaints Against Customer Service Reps | AL5: 2 | AM5: 1 | AN5: 0 | AO5: 0 | AP5: 1 | AQ5: 2 | AR5: 1
A6: Pro-Corp Calls (after hours) - Talk Time in Minutes | AL6: 2263 | AM6: 1673 | AN6: 1508 | AO6: 1364 | AP6: 1356 | AQ6: 1543 | AR6: 1565
A7: Payments - Walk-in and Drive-thru | AL7: 7222 | AM7: 7576 | AN7: 7119 | AO7: 7182 | AP7: 6892 | AQ7: 7324 | AR7: 8067
A8: Payments - Webpay | AH8: 2056 | AI8: 1904 | AJ8: 2028 | AK8: 1389 | AL8: 2104 | AM8: 1943 | AN8: 2057 | AO8: 1866 | AP8: 2085 | AQ8: 2281 | AR8: 2039
A9: Payments - Bank Bill Pay | AL9: 1262 | AM9: 1431 | AN9: 1200 | AO9: 1283 | AP9: 1428 | AQ9: 1323 | AR9: 1209
A10: Payments - Drop Box (after hours) | AL10: 801 | AM10: 1175 | AN10: 812 | AO10: 1137 | AP10: 1219 | AQ10: 1033 | AR10: 1211
A11: Payments - Mail | AL11: 3401 | AM11: 3802 | AN11: 3883 | AO11: 3613 | AP11: 3581 | AQ11: 3973 | AR11: 3647
A12: Payments - Wired Cash | AL12: 37 | AM12: 18 | AN12: 35 | AO12: 30 | AP12: 29 | AQ12: 42 | AR12: 31
A13: Payments - Auto Bank Draft | AL13: 604 | AM13: 878 | AN13: 885 | AO13: 946 | AP13: 720 | AQ13: 880 | AR13: 882
A14: Billing Errors | T14: 8 | U14: 10 | V14: 11 | W14: 4 | X14: 2 | Y14: 3 | Z14: 3 | AA14: 3 | AB14: 0 | AC14: 0 | AD14: 0 | AE14: 0 | AF14: 0 | AG14: 0 | AH14: 0 | AI14: 0 | AJ14: 0 | AK14: 0 | AL14: 0 | AM14: 4 | AN14: 10 | AO14: 4 | AP14: 5 | AQ14: 14 | AR14: 9
A15: Cash Drawer Over-Under | T15: -42.12 | U15: -79 | V15: -19.06 | W15: -42.47 | X15: 0 | Y15: -44 | Z15: 64.81 | AA15: -80.24 | AB15: -55.14 | AC15: 0 | AD15: 0 | AE15: 18.86 | AF15: -40.11 | AG15: 60 | AH15: -59.57 | AI15: 26 | AJ15: -2.25 | AK15: 1.95 | AL15: -16.58 | AM15: -45.45 | AN15: 0 | AO15: 15.94 | AP15: -7.87 | AQ15: 0 | AR15: 33
A16: Service Disconnections (Transactions) | AH16: 329 | AI16: 293 | AJ16: 289 | AK16: 324 | AL16: 276 | AM16: 437 | AN16: 289 | AO16: 218 | AP16: 301 | AQ16: 324 | AR16: 289
A17: Service Connections (Transactions) | AH17: 731 | AI17: 566 | AJ17: 513 | AK17: 509 | AL17: 566 | AM17: 561 | AN17: 483 | AO17: 533 | AP17: 461 | AQ17: 474 | AR17: 401
A27: HIGHLIGHTS | B27: 2008-07-01 | C27: 2008-08-01 | D27: 2008-09-01 | E27: 2008-10-01 | F27: 2008-11-01 | G27: 2008-12-01 | H27: 2009-01-01 | I27: 2009-02-01 | J27: 2009-03-01 | K27: 2009-04-01 | L27: 2009-05-01 | M27: 2009-06-01 | N27: 2009-07-01 | O27: 2009-08-01 | P27: 2009-09-01 | Q27: 2009-10-01 | R27: 2009-11-01 | S27: 2009-12-01 | T27: 2010-01-01 | U27: 2010-02-01 | V27: 2010-03-01 | W27: 2010-04-01 | X27: 2010-05-01 | Y27: 2010-06-01 | Z27: 2010-07-01 | AA27: 2010-08-01 | AB27: 2010-09-01 | AC27: 2010-10-01 | AD27: 2010-11-01 | AE27: 2010-12-01 | AF27: 2011-01-01 | AG27: 2011-02-01 | AH27: 2011-03-01 | AI27: 2011-04-01 | AJ27: 2011-05-01 | AK27: 2011-06-01 | AL27: 2011-07-01 | AM27: 2011-08-01 | AN27: 2011-09-01 | AO27: 2011-10-01 | AP27: 2011-11-01 | AQ27: 2011-12-01 | AR27: 2012-01-01
A28: Highlight 1 | AN28: 1. Repaired drive-thru tube system that had malfunctioned.
A29: Highlight 2
A30: Highlight 3
A31: Highlight 4
A32: Highlight 5
A33: Highlight 6
A34: Highlight 7
A35: Highlight 8
A36: Highlights Concaetenation | B36: =B28&CHAR(10)&B29&CHAR(10)&B30&CHAR(10)&B31&CHAR(10)&B32&CHAR(10)&B33&CHAR(10)&B34&CHAR(10)&B35 ->  | C36: =C28&CHAR(10)&C29&CHAR(10)&C30&CHAR(10)&C31&CHAR(10)&C32&CHAR(10)&C33&CHAR(10)&C34&CHAR(10)&C35 ->  | AK36: =AK28&CHAR(10)&CHAR(10)&AK29&CHAR(10)&CHAR(10)&AK30&CHAR(10)&CHAR(10)&AK31&CHAR(10)&CHAR(10)&AK32&CHAR(10)&CHAR(10)&AK33&CHAR(10)&CHAR(10)&AK34&CHAR(10)&CHAR(10)&AK35 ->  | AL36: =AL28&CHAR(10)&CHAR(10)&AL29&CHAR(10)&CHAR(10)&AL30&CHAR(10)&CHAR(10)&AL31&CHAR(10)&CHAR(10)&AL32&CHAR(10)&CHAR(10)&AL33&CHAR(10)&CHAR(10)&AL34&CHAR(10)&CHAR(10)&AL35 ->  | AM36: =AM28&CHAR(10)&CHAR(10)&AM29&CHAR(10)&CHAR(10)&AM30&CHAR(10)&CHAR(10)&AM31&CHAR(10)&CHAR(10)&AM32&CHAR(10)&CHAR(10)&AM33&CHAR(10)&CHAR(10)&AM34&CHAR(10)&CHAR(10)&AM35 ->  | AN36: =AN28&CHAR(10)&CHAR(10)&AN29&CHAR(10)&CHAR(10)&AN30&CHAR(10)&CHAR(10)&AN31&CHAR(10)&CHAR(10)&AN32&CHAR(10)&CHAR(10)&AN33&CHAR(10)&CHAR(10)&AN34&CHAR(10)&CHAR(10)&AN35 -> 1. Repaired drive-thru tube system that had malfunctioned. | AO36: =AO28&CHAR(10)&CHAR(10)&AO29&CHAR(10)&CHAR(10)&AO30&CHAR(10)&CHAR(10)&AO31&CHAR(10)&CHAR(10)&AO32&CHAR(10)&CHAR(10)&AO33&CHAR(10)&CHAR(10)&AO34&CHAR(10)&CHAR(10)&AO35 ->  | AP36: =AP28&CHAR(10)&CHAR(10)&AP29&CHAR(10)&CHAR(10)&AP30&CHAR(10)&CHAR(10)&AP31&CHAR(10)&CHAR(10)&AP32&CHAR(10)&CHAR(10)&AP33&CHAR(10)&CHAR(10)&AP34&CHAR(10)&CHAR(10)&AP35 -> 
A40: Bullet Chart Source | B40: Target | C40: What's Better? | D40: Band 1 | E40: Band 2 | F40: YTD Type | G40: Max Scale | H40: Actual 1 | I40: Actual | J40: Actual 3 | K40: Projection 1 | L40: Projection 2 | M40: Projection 3 | N40: First Zone 1 | O40: First Zone 2 | P40: First Zone 3 | Q40: Second Zone 1 | R40: Second Zone 2 | S40: Second Zone 3 | T40: Previous X 1 | U40: Previous X 2 | V40: Previous Y 1 | W40: Previous Y 2
A41: =A5 -> Complaints Against Customer Service Reps | B41: 10 | C41: Less | D41: 1 | E41: 1.15 | F41: Sum | G41: =ROUNDUP((ROUNDUP(MAX(B41,SUM(I41,L41)),-LEN(EVEN(MAX(B41,SUM(I41,L41))))+2)/5),-LEN(EVEN(ROUNDUP(MAX(B41,SUM(I41,L41)),-LEN(EVEN(MAX(B41,SUM(I41,L41))))+2)/5))+1)*5 -> 10 | H41: 0 | I41: =IF(F41="Sum",SUM(OFFSET(A5,0,YTDBeg,1,YTDWidth)),AVERAGE(OFFSET(A5,0,YTDBeg,1,YTDWidth))) -> 7 | J41: 0 | K41: 0 | L41: =IF(F41="Sum",Projection*(I41/YTDWidth*12-I41),0) -> 0 | M41: 0 | N41: =B41*D41 -> 10 | O41: =((I41+L41<=N41)*(N41-(I41+L41))) -> 3 | P41: =N41 -> 10 | Q41: =(E41-D41)*B41 -> 1.5 | R41: =((I41+L41<=N41+Q41)*((N41+Q41)-(I41+L41+O41))) -> 1.5 | S41: =Q41 -> 1.5 | T41: =IF(F41="Sum",SUM(OFFSET(A5,0,YTDBeg-12,1,YTDWidth)),AVERAGE(OFFSET(A5,0,YTDBeg-12,1,YTDWidth))) ->  | U41: =T41 ->  | V41: 1 | W41: 2
A42: =A6 -> Pro-Corp Calls (after hours) - Talk Time in Minutes | B42: 20000 | C42: Less | D42: 1 | E42: 1.15 | F42: Sum | G42: =ROUNDUP((ROUNDUP(MAX(B42,SUM(I42,L42)),-LEN(EVEN(MAX(B42,SUM(I42,L42))))+2)/5),-LEN(EVEN(ROUNDUP(MAX(B42,SUM(I42,L42)),-LEN(EVEN(MAX(B42,SUM(I42,L42))))+2)/5))+1)*5 -> 20000 | H42: 0 | I42: 11272 | J42: 0 | K42: 0 | L42: 0 | M42: 0 | N42: 20000 | O42: =((I42+L42<=N42)*(N42-(I42+L42))) -> 8728 | P42: =N42 -> 20000 | Q42: 3000 | R42: =((I42+L42<=N42+Q42)*((N42+Q42)-(I42+L42+O42))) -> 3000 | S42: =Q42 -> 3000 | U42: =T42 ->  | V42: 1 | W42: 2
A43: Payments - Walk-in and Drive-thru | B43: 80000 | C43: Less | D43: 1 | E43: 1.15 | F43: Sum | G43: 100000 | H43: 0 | I43: 51382 | J43: 0 | K43: 0 | L43: 0 | M43: 0 | N43: 80000 | O43: 28618 | P43: 80000 | Q43: 12000 | R43: 12000 | S43: 12000 | V43: 1 | W43: 2
A44: Payments - Webpay | B44: 23000 | C44: More | D44: 0.85 | E44: 1 | F44: Sum | G44: 25000 | H44: 0 | I44: 14375 | J44: 0 | K44: 0 | L44: 0 | M44: 0 | N44: 19550 | O44: 5175 | P44: 19550 | Q44: 3450 | R44: 3450 | S44: 3450 | V44: 1 | W44: 2
A45: Payments - Bank Bill Pay | B45: 16000 | C45: More | D45: 1 | E45: 1.15 | F45: Sum | G45: 20000 | H45: 0 | I45: 9136 | J45: 0 | K45: 0 | L45: 0 | M45: 0 | N45: 16000 | O45: 6864 | P45: 16000 | Q45: 2400 | R45: 2400 | S45: 2400 | V45: 1 | W45: 2
A46: Payments - Drop Box (after hours) | B46: 35000 | C46: More | D46: 1 | E46: 1.15 | F46: Sum | G46: 35000 | H46: 0 | I46: 7388 | J46: 0 | K46: 0 | L46: 0 | M46: 0 | N46: 35000 | O46: 27612 | P46: 35000 | Q46: 5250 | R46: 5250 | S46: 5250 | V46: 1 | W46: 2
A47: Payments - Mail | B47: 25000 | C47: More | D47: 1 | E47: 1.15 | F47: Sum | G47: 30000 | H47: 0 | I47: 25900 | J47: 0 | K47: 0 | L47: 0 | M47: 0 | N47: 25000 | O47: 0 | P47: 25000 | Q47: 3750 | R47: 2850 | S47: 3750 | V47: 1 | W47: 2
A48: Payments - Wired Cash | B48: 200 | C48: Less | D48: 0.85 | E48: 1 | F48: Sum | G48: 250 | H48: 0 | I48: 222 | J48: 0 | K48: 0 | L48: 0 | M48: 0 | N48: 170 | O48: 0 | P48: 170 | Q48: 30 | R48: 0 | S48: 30 | V48: 1 | W48: 2
A49: Payments - Auto Bank Draft | B49: 12000 | C49: More | D49: 0.85 | E49: 1 | F49: Sum | G49: 15000 | H49: 0 | I49: 5795 | J49: 0 | K49: 0 | L49: 0 | M49: 0 | N49: 10200 | O49: 4405 | P49: 10200 | Q49: 1800 | R49: 1800 | S49: 1800 | V49: 1 | W49: 2
A50: Billing Errors | B50: 40 | C50: Less | D50: 1 | E50: 1.15 | F50: Sum | G50: 50 | H50: 0 | I50: 46 | J50: 0 | K50: 0 | L50: 0 | M50: 0 | N50: 40 | O50: 0 | P50: 40 | Q50: 6 | R50: 0 | S50: 6 | T50: 6 | U50: 6 | V50: 1 | W50: 2
A51: Cash Drawer Over-Under | B51: -100 | C51: Middle | D51: 0.85 | E51: 1.15 | F51: Sum | G51: -50 | H51: 0 | I51: -20.96 | J51: 0 | K51: 0 | L51: 0 | M51: 0 | N51: -85 | O51: 0 | P51: -85 | Q51: -30 | R51: 0 | S51: -30 | T51: -91.82 | U51: -91.82 | V51: 1 | W51: 2
A52: Service Disconnections (Transactions) | B52: 5000 | C52: Less | D52: 1 | E52: 1.15 | F52: Sum | G52: 5000 | H52: 0 | I52: 2134 | J52: 0 | K52: 0 | L52: 0 | M52: 0 | N52: 5000 | O52: 2866 | P52: 5000 | Q52: 750 | R52: 750 | S52: 750 | V52: 1 | W52: 2
A53: Service Connections (Transactions) | B53: 5200 | C53: More | D53: 0.85 | E53: 1 | F53: Sum | G53: =ROUNDUP((ROUNDUP(MAX(B53,SUM(I53,L53)),-LEN(EVEN(MAX(B53,SUM(I53,L53))))+2)/5),-LEN(EVEN(ROUNDUP(MAX(B53,SUM(I53,L53)),-LEN(EVEN(MAX(B53,SUM(I53,L53))))+2)/5))+1)*5 -> 10000 | H53: 0 | I53: =IF(F53="Sum",SUM(OFFSET(A17,0,YTDBeg,1,YTDWidth)),AVERAGE(OFFSET(A17,0,YTDBeg,1,YTDWidth))) -> 3479 | J53: 0 | K53: 0 | L53: =IF(F53="Sum",Projection*(I53/YTDWidth*12-I53),0) -> 0 | M53: 0 | N53: =B53*D53 -> 4420 | O53: =((I53+L53<=N53)*(N53-(I53+L53))) -> 941 | P53: =N53 -> 4420 | Q53: =(E53-D53)*B53 -> 780 | R53: =((I53+L53<=N53+Q53)*((N53+Q53)-(I53+L53+O53))) -> 780 | S53: =Q53 -> 780 | T53: =IF(F53="Sum",SUM(OFFSET(A17,0,YTDBeg-12,1,YTDWidth)),AVERAGE(OFFSET(A17,0,YTDBeg-12,1,YTDWidth))) ->  | U53: =T53 ->  | V53: 1 | W53: 2
A65: SPARKLINE SOURCE
B66: 11 | C66: 10 | D66: 9 | E66: 8 | F66: 7 | G66: 6 | H66: 5 | I66: 4 | J66: 3 | K66: 2 | L66: 1 | M66: 0
A67: Measure | B67: =OFFSET($A4,0,CurrentMonthCount-B$66,1,1) -> 2011-02-01 | C67: 2011-03-01 | D67: 2011-04-01 | E67: 2011-05-01 | F67: 2011-06-01 | G67: 2011-07-01 | H67: 2011-08-01 | I67: 2011-09-01 | J67: 2011-10-01 | K67: 2011-11-01 | L67: 2011-12-01 | M67: 2012-01-01
A68: =A5 -> Complaints Against Customer Service Reps | B68: =OFFSET($A5,0,CurrentMonthCount-B$66,1,1) ->  | G68: 2 | H68: 1 | I68: 0 | J68: 0 | K68: 1 | L68: 2 | M68: 1
A69: =A6 -> Pro-Corp Calls (after hours) - Talk Time in Minutes | B69: =OFFSET($A6,0,CurrentMonthCount-B$66,1,1) ->  | G69: 2263 | H69: 1673 | I69: 1508 | J69: 1364 | K69: 1356 | L69: 1543 | M69: 1565
A70: Payments - Walk-in and Drive-thru | B70: =OFFSET($A7,0,CurrentMonthCount-B$66,1,1) ->  | G70: 7222 | H70: 7576 | I70: 7119 | J70: 7182 | K70: 6892 | L70: 7324 | M70: 8067
A71: Payments - Webpay | B71: =OFFSET($A8,0,CurrentMonthCount-B$66,1,1) ->  | C71: 2056 | D71: 1904 | E71: 2028 | F71: 1389 | G71: 2104 | H71: 1943 | I71: 2057 | J71: 1866 | K71: 2085 | L71: 2281 | M71: 2039
A72: Payments - Bank Bill Pay | B72: =OFFSET($A9,0,CurrentMonthCount-B$66,1,1) ->  | G72: 1262 | H72: 1431 | I72: 1200 | J72: 1283 | K72: 1428 | L72: 1323 | M72: 1209
A73: Payments - Drop Box (after hours) | B73: =OFFSET($A10,0,CurrentMonthCount-B$66,1,1) ->  | G73: 801 | H73: 1175 | I73: 812 | J73: 1137 | K73: 1219 | L73: 1033 | M73: 1211
A74: Payments - Mail | B74: =OFFSET($A11,0,CurrentMonthCount-B$66,1,1) ->  | G74: 3401 | H74: 3802 | I74: 3883 | J74: 3613 | K74: 3581 | L74: 3973 | M74: 3647
A75: Payments - Wired Cash | B75: =OFFSET($A12,0,CurrentMonthCount-B$66,1,1) ->  | G75: 37 | H75: 18 | I75: 35 | J75: 30 | K75: 29 | L75: 42 | M75: 31
A76: Payments - Auto Bank Draft | B76: =OFFSET($A13,0,CurrentMonthCount-B$66,1,1) ->  | G76: 604 | H76: 878 | I76: 885 | J76: 946 | K76: 720 | L76: 880 | M76: 882
A77: Billing Errors | B77: =OFFSET($A14,0,CurrentMonthCount-B$66,1,1) -> 0 | C77: 0 | D77: 0 | E77: 0 | F77: 0 | G77: 0 | H77: 4 | I77: 10 | J77: 4 | K77: 5 | L77: 14 | M77: 9
A78: Cash Drawer Over-Under | B78: =OFFSET($A15,0,CurrentMonthCount-B$66,1,1) -> 60 | C78: -59.57 | D78: 26 | E78: -2.25 | F78: 1.95 | G78: -16.58 | H78: -45.45 | I78: 0 | J78: 15.94 | K78: -7.87 | L78: 0 | M78: 33
A79: Service Disconnections (Transactions) | B79: =OFFSET($A16,0,CurrentMonthCount-B$66,1,1) ->  | C79: 329 | D79: 293 | E79: 289 | F79: 324 | G79: 276 | H79: 437 | I79: 289 | J79: 218 | K79: 301 | L79: 324 | M79: 289
A80: Service Connections (Transactions) | B80: =OFFSET($A17,0,CurrentMonthCount-B$66,1,1) ->  | C80: 731 | D80: 566 | E80: 513 | F80: 509 | G80: 566 | H80: 561 | I80: 483 | J80: 533 | K80: 461 | L80: 474 | M80: 401
A81: 0 | B81: =OFFSET($A18,0,CurrentMonthCount-B$66,1,1) -> 0 | C81: 0 | D81: 0 | E81: 0 | F81: 0 | G81: 0 | H81: 0 | I81: 0 | J81: 0 | K81: 0 | L81: 0 | M81: 0
A82: 0 | B82: =OFFSET($A19,0,CurrentMonthCount-B$66,1,1) -> 0 | C82: 0 | D82: 0 | E82: 0 | F82: 0 | G82: 0 | H82: 0 | I82: 0 | J82: 0 | K82: 0 | L82: 0 | M82: 0
A83: 0 | B83: =OFFSET($A20,0,CurrentMonthCount-B$66,1,1) -> 0 | C83: 0 | D83: 0 | E83: 0 | F83: 0 | G83: 0 | H83: 0 | I83: 0 | J83: 0 | K83: 0 | L83: 0 | M83: 0
A84: 0 | B84: =OFFSET($A21,0,CurrentMonthCount-B$66,1,1) -> 0 | C84: 0 | D84: 0 | E84: 0 | F84: 0 | G84: 0 | H84: 0 | I84: 0 | J84: 0 | K84: 0 | L84: 0 | M84: 0
A85: 0 | B85: =OFFSET($A22,0,CurrentMonthCount-B$66,1,1) -> 0 | C85: 0 | D85: 0 | E85: 0 | F85: 0 | G85: 0 | H85: 0 | I85: 0 | J85: 0 | K85: 0 | L85: 0 | M85: 0
A86: 0 | B86: =OFFSET($A23,0,CurrentMonthCount-B$66,1,1) -> 0 | C86: 0 | D86: 0 | E86: 0 | F86: 0 | G86: 0 | H86: 0 | I86: 0 | J86: 0 | K86: 0 | L86: 0 | M86: 0
A87: 0 | B87: =OFFSET($A24,0,CurrentMonthCount-B$66,1,1) -> 0 | C87: 0 | D87: 0 | E87: 0 | F87: 0 | G87: 0 | H87: 0 | I87: 0 | J87: 0 | K87: 0 | L87: 0 | M87: 0
A101: Cash Drawer Over/Under | B101: -100 | C101: 0 | D101: 100
B102: =IF(I51>0,-100,IF(I51<-100,0,-100-I51)) -> -79.04 | C102: =I51 -> -20.96 | D102: =IF(I51<0,100,IF(I51>100,0,100-I51)) -> 100
B103: -100 | C103: 0 | D103: 100

Sheet Police
A1: =CurrentMonth -> 2012-01-01 | E1: POLICE
A3: Crimes | B3: Last 12 Months | C3: Fiscal Year to Date | D3: FYTD | F3: Response | G3: Last 12 Months | H3: Fiscal Year to Date | I3: FYTD
A4: ='Police Data'!A5 -> UCR Part I Violent Crimes | D4: ='Police Data'!I41 -> 38 | F4: ='Police Data'!A9 -> Incidents Requiring a Response (Police) | I4: ='Police Data'!I45 -> 18045
A5: ='Police Data'!A6 -> UCR Part I Property Crimes | D5: ='Police Data'!I42 -> 688 | F5: ='Police Data'!A10 -> Bartow 911 Response Time (call entry to dispatch - top priority calls, secs) | I5: ='Police Data'!I46 -> 186.4285714
A6: ='Police Data'!A7 -> UCR Part II Drug Offenses | D6: ='Police Data'!I43 -> 103 | F6: ='Police Data'!A11 -> CPD Response Time (dispatch to arrival - top priority calls, secs) | I6: ='Police Data'!I47 -> 269.4285714
A7: ='Police Data'!A8 -> Crime Clearance Rate | D7: ='Police Data'!I44 -> 0.5962142857 | F7: ='Police Data'!A12 -> % of Top Priority Calls with Response Time < 5 Minutes (CPD dispatch to arrival) | I7: ='Police Data'!I48 -> 0.7171428571
A9: Traffic | F9: Human Resources
A10: ='Police Data'!A13 -> Traffic Citations Issued (Excluding DUI) | D10: ='Police Data'!I49 -> 2303 | F10: ='Police Data'!A16 -> Staff Injuries (Police) | I10: ='Police Data'!I52 -> 4
A11: ='Police Data'!A14 -> Traffic Accidents Reported | D11: ='Police Data'!I50 -> 779 | F11: ='Police Data'!A17 -> Training Hours Received (Police) | I11: ='Police Data'!I53 -> 1794
A12: ='Police Data'!A15 -> DUI Arrests | D12: ='Police Data'!I51 -> 56 | F12: ='Police Data'!A18 -> Officer Complaints | I12: ='Police Data'!I54 -> 20
F13: ='Police Data'!A19 -> Officer Complaints Sustained | I13: ='Police Data'!I55 -> 1

Sheet Police Data
A1: Police Data
A4: Measure | B4: Jul 08 | C4: 2008-08-01 | D4: 2008-09-01 | E4: 2008-10-01 | F4: 2008-11-01 | G4: 2008-12-01 | H4: 2009-01-01 | I4: 2009-02-01 | J4: 2009-03-01 | K4: 2009-04-01 | L4: 2009-05-01 | M4: 2009-06-01 | N4: 2009-07-01 | O4: 2009-08-01 | P4: 2009-09-01 | Q4: 2009-10-01 | R4: 2009-11-01 | S4: 2009-12-01 | T4: 2010-01-01 | U4: 2010-02-01 | V4: 2010-03-01 | W4: 2010-04-01 | X4: 2010-05-01 | Y4: 2010-06-01 | Z4: 2010-07-01 | AA4: 2010-08-01 | AB4: 2010-09-01 | AC4: 2010-10-01 | AD4: 2010-11-01 | AE4: 2010-12-01 | AF4: 2011-01-01 | AG4: 2011-02-01 | AH4: 2011-03-01 | AI4: 2011-04-01 | AJ4: 2011-05-01 | AK4: 2011-06-01 | AL4: 2011-07-01 | AM4: 2011-08-01 | AN4: 2011-09-01 | AO4: 2011-10-01 | AP4: 2011-11-01 | AQ4: 2011-12-01 | AR4: 2012-01-01
A5: UCR Part I Violent Crimes | T5: 4 | U5: 3 | V5: 4 | W5: 1 | X5: 2 | Y5: 3 | Z5: 3 | AA5: 5 | AB5: 8 | AC5: 6 | AD5: 3 | AE5: 0 | AF5: 3 | AG5: 6 | AH5: 6 | AI5: 6 | AJ5: 8 | AK5: 7 | AL5: 14 | AM5: 4 | AN5: 6 | AO5: 4 | AP5: 7 | AQ5: 0 | AR5: 3
A6: UCR Part I Property Crimes | T6: 94 | U6: 77 | V6: 70 | W6: 76 | X6: 77 | Y6: 72 | Z6: 80 | AA6: 87 | AB6: 76 | AC6: 77 | AD6: 87 | AE6: 91 | AF6: 63 | AG6: 66 | AH6: 99 | AI6: 85 | AJ6: 107 | AK6: 101 | AL6: 106 | AM6: 103 | AN6: 81 | AO6: 115 | AP6: 73 | AQ6: 117 | AR6: 93
A7: UCR Part II Drug Offenses | T7: 13 | U7: 7 | V7: 7 | W7: 13 | X7: 14 | Y7: 11 | Z7: 12 | AA7: 14 | AB7: 17 | AC7: 11 | AD7: 20 | AE7: 19 | AF7: 22 | AG7: 13 | AH7: 18 | AI7: 21 | AJ7: 19 | AK7: 21 | AL7: 13 | AM7: 12 | AN7: 13 | AO7: 14 | AP7: 19 | AQ7: 15 | AR7: 17
A8: Crime Clearance Rate | T8: 0.68 | U8: 0.5 | V8: 0.42 | W8: 0.88 | X8: 0.64 | Y8: 0.379 | Z8: 0.27 | AA8: 0.35 | AB8: 0.47 | AC8: 0.42 | AD8: 0.5049 | AE8: 0.3 | AF8: 0.35 | AG8: 0.3 | AH8: 0.65 | AI8: 0.54 | AJ8: 0.65 | AK8: 0.47 | AL8: 0.4 | AM8: 0.61 | AN8: 0.82 | AO8: 0.5035 | AP8: 0.63 | AQ8: 0.69 | AR8: 0.52
A9: Incidents Requiring a Response (Police) | T9: 2000 | U9: 1969 | V9: 2016 | W9: 2161 | X9: 2574 | Y9: 2503 | Z9: 2521 | AA9: 2348 | AB9: 2360 | AC9: 2880 | AD9: 2551 | AE9: 2432 | AF9: 2671 | AG9: 2405 | AH9: 2508 | AI9: 2526 | AJ9: 2550 | AK9: 2493 | AL9: 2573 | AM9: 2414 | AN9: 2368 | AO9: 2769 | AP9: 2791 | AQ9: 2745 | AR9: 2385
A10: Bartow 911 Response Time (call entry to dispatch - top priority calls, secs) | AL10: 177 | AM10: 208 | AN10: 205 | AO10: 185 | AP10: 164 | AQ10: 185 | AR10: 181
A11: CPD Response Time (dispatch to arrival - top priority calls, secs) | AL11: 294 | AM11: 292 | AN11: 265 | AO11: 244 | AP11: 243 | AQ11: 258 | AR11: 290
A12: % of Top Priority Calls with Response Time < 5 Minutes (CPD dispatch to arrival) | AL12: 0.61 | AM12: 0.76 | AN12: 0.72 | AO12: 0.75 | AP12: 0.7 | AQ12: 0.75 | AR12: 0.73
A13: Traffic Citations Issued (Excluding DUI) | T13: 127 | U13: 320 | V13: 328 | W13: 345 | X13: 517 | Y13: 556 | Z13: 526 | AA13: 519 | AB13: 534 | AC13: 642 | AD13: 552 | AE13: 446 | AF13: 536 | AG13: 418 | AH13: 395 | AI13: 425 | AJ13: 408 | AK13: 390 | AL13: 360 | AM13: 258 | AN13: 225 | AO13: 309 | AP13: 454 | AQ13: 402 | AR13: 295
A14: Traffic Accidents Reported | T14: 142 | U14: 107 | V14: 114 | W14: 140 | X14: 122 | Y14: 110 | Z14: 114 | AA14: 123 | AB14: 119 | AC14: 116 | AD14: 115 | AE14: 116 | AF14: 103 | AG14: 105 | AH14: 134 | AI14: 103 | AJ14: 93 | AK14: 126 | AL14: 102 | AM14: 129 | AN14: 110 | AO14: 100 | AP14: 115 | AQ14: 115 | AR14: 108
A15: DUI Arrests | T15: 4 | U15: 6 | V15: 13 | W15: 4 | X15: 2 | Y15: 3 | Z15: 14 | AA15: 12 | AB15: 8 | AC15: 11 | AD15: 10 | AE15: 9 | AF15: 5 | AG15: 13 | AH15: 8 | AI15: 9 | AJ15: 8 | AK15: 7 | AL15: 14 | AM15: 9 | AN15: 4 | AO15: 6 | AP15: 12 | AQ15: 6 | AR15: 5
A16: Staff Injuries (Police) | T16: 0 | U16: 1 | V16: 0 | W16: 0 | X16: 0 | Y16: 0 | Z16: 2 | AA16: 0 | AB16: 3 | AC16: 0 | AD16: 1 | AE16: 2 | AF16: 2 | AG16: 1 | AH16: 0 | AI16: 0 | AJ16: 0 | AK16: 0 | AL16: 3 | AM16: 0 | AN16: 0 | AO16: 0 | AP16: 0 | AQ16: 1 | AR16: 0
A17: Training Hours Received (Police) | AK17: 256 | AL17: 126 | AM17: 387 | AN17: 200 | AO17: 532 | AP17: 160 | AQ17: 176 | AR17: 213
A18: Officer Complaints | T18: 4 | U18: 7 | V18: 5 | W18: 1 | X18: 2 | Y18: 2 | Z18: 0 | AA18: 7 | AB18: 7 | AC18: 1 | AD18: 2 | AE18: 7 | AF18: 4 | AG18: 3 | AH18: 7 | AI18: 30 | AJ18: 13 | AK18: 4 | AL18: 4 | AM18: 2 | AN18: 0 | AO18: 1 | AP18: 2 | AQ18: 4 | AR18: 7
A19: Officer Complaints Sustained | AL19: 0 | AM19: 0 | AN19: 0 | AO19: 0 | AP19: 0 | AQ19: 0 | AR19: 1
A27: HIGHLIGHTS | B27: Jul 08 | C27: 2008-08-01 | D27: 2008-09-01 | E27: 2008-10-01 | F27: 2008-11-01 | G27: 2008-12-01 | H27: 2009-01-01 | I27: 2009-02-01 | J27: 2009-03-01 | K27: 2009-04-01 | L27: 2009-05-01 | M27: 2009-06-01 | N27: 2009-07-01 | O27: 2009-08-01 | P27: 2009-09-01 | Q27: 2009-10-01 | R27: 2009-11-01 | S27: 2009-12-01 | T27: 2010-01-01 | U27: 2010-02-01 | V27: 2010-03-01 | W27: 2010-04-01 | X27: 2010-05-01 | Y27: 2010-06-01 | Z27: 2010-07-01 | AA27: 2010-08-01 | AB27: 2010-09-01 | AC27: 2010-10-01 | AD27: 2010-11-01 | AE27: 2010-12-01 | AF27: 2011-01-01 | AG27: 2011-02-01 | AH27: 2011-03-01 | AI27: 2011-04-01 | AJ27: 2011-05-01 | AK27: 2011-06-01 | AL27: 2011-07-01 | AM27: 2011-08-01 | AN27: 2011-09-01 | AO27: 2011-10-01 | AP27: 2011-11-01 | AQ27: 2011-12-01 | AR27: 2012-01-01
A28: Highlight 1 | AL28: 1. There was an abnormally high number of UCR Part I violent crimes in July, including 8 incidents of sexual assult. | AN28: 1. Reported crime rates are higher than last year. We speculate that this increase in crime may be related to the struggling economy. | AO28: A presentation was conducted for the Chamber of Commerce on shoplifting prevention | AP28: The Cartersville Police Department stepped up efforts to promote safe driving during the Thanksgiving holiday period. Efforts included increased traffic enforcement to curb speeding, as well as four sobriety check points to protect citizens from intoxicated motorists. | AQ28: Participated in "Bell Ringing" campaign for the Salvation Army. | AR28: Hired Tawanda Hill in Administrative Services
A29: Highlight 2 | AN29: 2. The current crime clearance rate is exceeding our goal. | AO29: Participated in the 3rd annual "Pill Take" Collected 43 lbs. of assorted drugs | AP29: Participated in the "Bell Ringing" campaign during the Thanksgiving holiday for the Salvation Army. | AQ29: Concentrated traffic enforcement (Speeding) | AR29: Submitted Pill Mill Ordinance to City Council
A30: Highlight 3 | AO30: Broke ground on new Public Safety Facility | AP30: Progress continues to be made on the construction of the new Public Safety Headquarters. | AQ30: Used "Bait Car" in Cherokee Place to apprehend entering auto perpotrators | AR30: Reestablished department Honor Guard
A31: Highlight 4 | AO31: GACP confirmed our State Certification Renewal | AP31: One new officer graduated from the Police Academy. | AQ31: Juan Mesa graduated from North Central Police Academy | AR31: Hosted Emergency Response Council Meeting and Breakfast
A32: Highlight 5 | AO32: Established a new Neighborhood Watch on North Erwin Street | AP32: Three CPD officers obtained advanced certification.
A33: Highlight 6 | AO33: Bank Robbery Suspect apprehended in less than 30 minutes after crime | AP33: The CPD received its third consecutive State Certification. The CPD has been state certified for the past 11 years, certifying every 5 years.
A34: Highlight 7 | AO34: 21 cases cleared by CID | AP34: Construction of the new Public Safety Headquarters is progressing on schedule. All infrastructure is in place, and the old gas line running through the property has been relocated. Footings for the structure are now 90% complete.
A35: Highlight 8 | AO35: Total departmental training hours was 532
A36: Highlights Concaetenation | B36: =B28&CHAR(10)&B29&CHAR(10)&B30&CHAR(10)&B31&CHAR(10)&B32&CHAR(10)&B33&CHAR(10)&B34&CHAR(10)&B35 ->  | C36: =C28&CHAR(10)&C29&CHAR(10)&C30&CHAR(10)&C31&CHAR(10)&C32&CHAR(10)&C33&CHAR(10)&C34&CHAR(10)&C35 ->  | AK36: =AK28&CHAR(10)&CHAR(10)&AK29&CHAR(10)&CHAR(10)&AK30&CHAR(10)&CHAR(10)&AK31&CHAR(10)&CHAR(10)&AK32&CHAR(10)&CHAR(10)&AK33&CHAR(10)&CHAR(10)&AK34&CHAR(10)&CHAR(10)&AK35 ->  | AL36: 1. There was an abnormally high number of UCR Part I violent crimes in July, including 8 incidents of sexual assult. | AN36: 1. Reported crime rates are higher than last year. We speculate that this increase in crime may be related to the struggling economy. 2. The current crime clearance rate is exceeding our goal. | AO36: A presentation was conducted for the Chamber of Commerce on shoplifting prevention Participated in the 3rd annual "Pill Take" Collected 43 lbs. of assorted drugs Broke ground on new Public Safety Facility GACP confirmed our State Certification Renewal Established a new Neighborhood Watch on North Erwin Street Bank Robbery Suspect apprehended in less than 30 minutes after crime 21 cases cleared by CID Total departmental training hours was 532 | AP36: The Cartersville Police Department stepped up efforts to promote safe driving during the Thanksgiving holiday period. Efforts included increased traffic enforcement to curb speeding, as well as four sobriety check points to protect citizens from intoxicated motorists. Participated in the "Bell Ringing" campaign during the Thanksgiving holiday for the Salvation Army. Progress continues to be made on the construction of the new Public Safety Headquarters. One new officer graduated from the Police Academy. Three CPD officers obtained advanced certification. The CPD received its third consecutive State Certification. The CPD has been state certified for the past 11 years, certifying every 5 years. Construction of the new Public Safety Headquarters is progressing on schedule. All infrastructure is in place, and the old gas line running through the property has been relocated. Footings for the structure are now 90% complete. | AQ36: Participated in "Bell Ringing" campaign for the Salvation Army. Concentrated traffic enforcement (Speeding) Used "Bait Car" in Cherokee Place to apprehend entering auto perpotrators Juan Mesa graduated from North Central Police Academy | AR36: Hired Tawanda Hill in Administrative Services Submitted Pill Mill Ordinance to City Council Reestablished department Honor Guard Hosted Emergency Response Council Meeting and Breakfast
A40: Bullet Chart Source | B40: Target | C40: What's Better? | D40: Band 1 | E40: Band 2 | F40: YTD Type | G40: Max Scale | H40: Actual 1 | I40: Actual | J40: Actual 3 | K40: Projection 1 | L40: Projection 2 | M40: Projection 3 | N40: First Zone 1 | O40: First Zone 2 | P40: First Zone 3 | Q40: Second Zone 1 | R40: Second Zone 2 | S40: Second Zone 3 | T40: Previous X 1 | U40: Previous X 2 | V40: Previous Y 1 | W40: Previous Y 2
A41: =A5 -> UCR Part I Violent Crimes | B41: 42 | C41: Less | D41: 1 | E41: 1.15 | F41: Sum | G41: =ROUNDUP((ROUNDUP(MAX(B41,SUM(I41,L41)),-LEN(EVEN(MAX(B41,SUM(I41,L41))))+2)/5),-LEN(EVEN(ROUNDUP(MAX(B41,SUM(I41,L41)),-LEN(EVEN(MAX(B41,SUM(I41,L41))))+2)/5))+1)*5 -> 50 | H41: 0 | I41: =IF(F41="Sum",SUM(OFFSET(A5,0,YTDBeg,1,YTDWidth)),AVERAGE(OFFSET(A5,0,YTDBeg,1,YTDWidth))) -> 38 | J41: 0 | K41: 0 | L41: =IF(F41="Sum",Projection*(I41/YTDWidth*12-I41),0) -> 0 | M41: 0 | N41: =B41*D41 -> 42 | O41: =((I41+L41<=N41)*(N41-(I41+L41))) -> 4 | P41: =N41 -> 42 | Q41: =(E41-D41)*B41 -> 6.3 | R41: =((I41+L41<=N41+Q41)*((N41+Q41)-(I41+L41+O41))) -> 6.3 | S41: =Q41 -> 6.3 | T41: =IF(F41="Sum",SUM(OFFSET(A5,0,YTDBeg-12,1,YTDWidth)),AVERAGE(OFFSET(A5,0,YTDBeg-12,1,YTDWidth))) -> 28 | U41: =T41 -> 28 | V41: 1 | W41: 2
A42: =A6 -> UCR Part I Property Crimes | B42: 964 | C42: Less | D42: 1 | E42: 1.15 | F42: Sum | G42: =ROUNDUP((ROUNDUP(MAX(B42,SUM(I42,L42)),-LEN(EVEN(MAX(B42,SUM(I42,L42))))+2)/5),-LEN(EVEN(ROUNDUP(MAX(B42,SUM(I42,L42)),-LEN(EVEN(MAX(B42,SUM(I42,L42))))+2)/5))+1)*5 -> 1000 | H42: 0 | I42: 688 | J42: 0 | K42: 0 | L42: 0 | M42: 0 | N42: 964 | O42: =((I42+L42<=N42)*(N42-(I42+L42))) -> 276 | P42: =N42 -> 964 | Q42: 144.6 | R42: =((I42+L42<=N42+Q42)*((N42+Q42)-(I42+L42+O42))) -> 144.6 | S42: =Q42 -> 144.6 | T42: 561 | U42: =T42 -> 561 | V42: 1 | W42: 2
A43: UCR Part II Drug Offenses | B43: 158 | C43: Less | D43: 1 | E43: 1.15 | F43: Sum | G43: 200 | H43: 0 | I43: 103 | J43: 0 | K43: 0 | L43: 0 | M43: 0 | N43: 158 | O43: 55 | P43: 158 | Q43: 23.7 | R43: 23.7 | S43: 23.7 | T43: 115 | U43: 115 | V43: 1 | W43: 2
A44: Crime Clearance Rate | B44: 0.48 | C44: More | D44: 0.85 | E44: 1 | F44: Average | G44: 1 | H44: 0 | I44: 0.5962142857 | J44: 0 | K44: 0 | L44: 0 | M44: 0 | N44: 0.408 | O44: 0 | P44: 0.408 | Q44: 0.072 | R44: 0 | S44: 0.072 | T44: 0.3807 | U44: 0.3807 | V44: 1 | W44: 2
A45: Incidents Requiring a Response (Police) | B45: 28315 | C45: Less | D45: 1 | E45: 1.15 | F45: Sum | G45: 30000 | H45: 0 | I45: 18045 | J45: 0 | K45: 0 | L45: 0 | M45: 0 | N45: 28315 | O45: 10270 | P45: 28315 | Q45: 4247.25 | R45: 4247.25 | S45: 4247.25 | T45: 17763 | U45: 17763 | V45: 1 | W45: 2
A46: Bartow 911 Response Time (call entry to dispatch - top priority calls, secs) | B46: 191 | C46: Less | D46: 1 | E46: 1.15 | F46: Average | G46: 200 | H46: 0 | I46: 186.4285714 | J46: 0 | K46: 0 | L46: 0 | M46: 0 | N46: 191 | O46: 4.571428571 | P46: 191 | Q46: 28.65 | R46: 28.65 | S46: 28.65 | V46: 1 | W46: 2
A47: CPD Response Time (dispatch to arrival - top priority calls, secs) | B47: 258 | C47: Less | D47: 1 | E47: 1.15 | F47: Average | G47: 300 | H47: 0 | I47: 269.4285714 | J47: 0 | K47: 0 | L47: 0 | M47: 0 | N47: 258 | O47: 0 | P47: 258 | Q47: 38.7 | R47: 27.27142857 | S47: 38.7 | V47: 1 | W47: 2
A48: % of Top Priority Calls with Response Time < 5 Minutes (CPD dispatch to arrival) | B48: 0.655 | C48: More | D48: 0.85 | E48: 1 | F48: Average | G48: 1 | H48: 0 | I48: 0.7171428571 | J48: 0 | K48: 0 | L48: 0 | M48: 0 | N48: 0.55675 | O48: 0 | P48: 0.55675 | Q48: 0.09825 | R48: 0 | S48: 0.09825 | V48: 1 | W48: 2
A49: Traffic Citations Issued (Excluding DUI) | B49: 5412 | C49: Middle | D49: 0.93 | E49: 1.07 | F49: Sum | G49: 10000 | H49: 0 | I49: 2303 | J49: 0 | K49: 0 | L49: 0 | M49: 0 | N49: 5033.16 | O49: 2730.16 | P49: 5033.16 | Q49: 757.68 | R49: 757.68 | S49: 757.68 | T49: 3755 | U49: 3755 | V49: 1 | W49: 2
A50: Traffic Accidents Reported | B50: 1438 | C50: Less | D50: 1 | E50: 1.15 | F50: Sum | G50: 1500 | H50: 0 | I50: 779 | J50: 0 | K50: 0 | L50: 0 | M50: 0 | N50: 1438 | O50: 659 | P50: 1438 | Q50: 215.7 | R50: 215.7 | S50: 215.7 | T50: 806 | U50: 806 | V50: 1 | W50: 2
A51: DUI Arrests | B51: 96 | C51: Less | D51: 1 | E51: 1.15 | F51: Sum | G51: 100 | H51: 0 | I51: 56 | J51: 0 | K51: 0 | L51: 0 | M51: 0 | N51: 96 | O51: 40 | P51: 96 | Q51: 14.4 | R51: 14.4 | S51: 14.4 | T51: 69 | U51: 69 | V51: 1 | W51: 2
A52: Staff Injuries (Police) | B52: 8 | C52: Less | D52: 1 | E52: 1.15 | F52: Sum | G52: 10 | H52: 0 | I52: 4 | J52: 0 | K52: 0 | L52: 0 | M52: 0 | N52: 8 | O52: 4 | P52: 8 | Q52: 1.2 | R52: 1.2 | S52: 1.2 | T52: 10 | U52: 10 | V52: 1 | W52: 2
A53: Training Hours Received (Police) | B53: 4183 | C53: Middle | D53: 0.93 | E53: 1.07 | F53: Sum | G53: 4500 | H53: 0 | I53: 1794 | J53: 0 | K53: 0 | L53: 0 | M53: 0 | N53: 3890.19 | O53: 2096.19 | P53: 3890.19 | Q53: 585.62 | R53: 585.62 | S53: 585.62 | V53: 1 | W53: 2
A54: Officer Complaints | B54: 55 | C54: Less | D54: 1 | E54: 1.15 | F54: Sum | G54: 100 | H54: 0 | I54: 20 | J54: 0 | K54: 0 | L54: 0 | M54: 0 | N54: 55 | O54: 35 | P54: 55 | Q54: 8.25 | R54: 8.25 | S54: 8.25 | T54: 28 | U54: 28 | V54: 1 | W54: 2
A55: Officer Complaints Sustained | B55: 9 | C55: Less | D55: 1 | E55: 1.15 | F55: Sum | G55: 10 | H55: 0 | I55: 1 | J55: 0 | K55: 0 | L55: 0 | M55: 0 | N55: 9 | O55: 8 | P55: 9 | Q55: 1.35 | R55: 1.35 | S55: 1.35 | V55: 1 | W55: 2
A65: SPARKLINE SOURCE
B66: 11 | C66: 10 | D66: 9 | E66: 8 | F66: 7 | G66: 6 | H66: 5 | I66: 4 | J66: 3 | K66: 2 | L66: 1 | M66: 0
A67: Measure | B67: =OFFSET($A4,0,CurrentMonthCount-B$66,1,1) -> 2011-02-01 | C67: 2011-03-01 | D67: 2011-04-01 | E67: 2011-05-01 | F67: 2011-06-01 | G67: 2011-07-01 | H67: 2011-08-01 | I67: 2011-09-01 | J67: 2011-10-01 | K67: 2011-11-01 | L67: 2011-12-01 | M67: 2012-01-01
A68: =A5 -> UCR Part I Violent Crimes | B68: =OFFSET($A5,0,CurrentMonthCount-B$66,1,1) -> 6 | C68: 6 | D68: 6 | E68: 8 | F68: 7 | G68: 14 | H68: 4 | I68: 6 | J68: 4 | K68: 7 | L68: 0 | M68: 3
A69: =A6 -> UCR Part I Property Crimes | B69: =OFFSET($A6,0,CurrentMonthCount-B$66,1,1) -> 66 | C69: 99 | D69: 85 | E69: 107 | F69: 101 | G69: 106 | H69: 103 | I69: 81 | J69: 115 | K69: 73 | L69: 117 | M69: 93
A70: UCR Part II Drug Offenses | B70: =OFFSET($A7,0,CurrentMonthCount-B$66,1,1) -> 13 | C70: 18 | D70: 21 | E70: 19 | F70: 21 | G70: 13 | H70: 12 | I70: 13 | J70: 14 | K70: 19 | L70: 15 | M70: 17
A71: Crime Clearance Rate | B71: =OFFSET($A8,0,CurrentMonthCount-B$66,1,1) -> 0.3 | C71: 0.65 | D71: 0.54 | E71: 0.65 | F71: 0.47 | G71: 0.4 | H71: 0.61 | I71: 0.82 | J71: 0.5035 | K71: 0.63 | L71: 0.69 | M71: 0.52
A72: Incidents Requiring a Response (Police) | B72: =OFFSET($A9,0,CurrentMonthCount-B$66,1,1) -> 2405 | C72: 2508 | D72: 2526 | E72: 2550 | F72: 2493 | G72: 2573 | H72: 2414 | I72: 2368 | J72: 2769 | K72: 2791 | L72: 2745 | M72: 2385
A73: Bartow 911 Response Time (call entry to dispatch - top priority calls, secs) | B73: =OFFSET($A10,0,CurrentMonthCount-B$66,1,1) ->  | G73: 177 | H73: 208 | I73: 205 | J73: 185 | K73: 164 | L73: 185 | M73: 181
A74: CPD Response Time (dispatch to arrival - top priority calls, secs) | B74: =OFFSET($A11,0,CurrentMonthCount-B$66,1,1) ->  | G74: 294 | H74: 292 | I74: 265 | J74: 244 | K74: 243 | L74: 258 | M74: 290
A75: % of Top Priority Calls with Response Time < 5 Minutes (CPD dispatch to arrival) | B75: =OFFSET($A12,0,CurrentMonthCount-B$66,1,1) ->  | G75: 0.61 | H75: 0.76 | I75: 0.72 | J75: 0.75 | K75: 0.7 | L75: 0.75 | M75: 0.73
A76: Traffic Citations Issued (Excluding DUI) | B76: =OFFSET($A13,0,CurrentMonthCount-B$66,1,1) -> 418 | C76: 395 | D76: 425 | E76: 408 | F76: 390 | G76: 360 | H76: 258 | I76: 225 | J76: 309 | K76: 454 | L76: 402 | M76: 295
A77: Traffic Accidents Reported | B77: =OFFSET($A14,0,CurrentMonthCount-B$66,1,1) -> 105 | C77: 134 | D77: 103 | E77: 93 | F77: 126 | G77: 102 | H77: 129 | I77: 110 | J77: 100 | K77: 115 | L77: 115 | M77: 108
A78: DUI Arrests | B78: =OFFSET($A15,0,CurrentMonthCount-B$66,1,1) -> 13 | C78: 8 | D78: 9 | E78: 8 | F78: 7 | G78: 14 | H78: 9 | I78: 4 | J78: 6 | K78: 12 | L78: 6 | M78: 5
A79: Staff Injuries (Police) | B79: =OFFSET($A16,0,CurrentMonthCount-B$66,1,1) -> 1 | C79: 0 | D79: 0 | E79: 0 | F79: 0 | G79: 3 | H79: 0 | I79: 0 | J79: 0 | K79: 0 | L79: 1 | M79: 0
A80: Training Hours Received (Police) | B80: =OFFSET($A17,0,CurrentMonthCount-B$66,1,1) ->  | F80: 256 | G80: 126 | H80: 387 | I80: 200 | J80: 532 | K80: 160 | L80: 176 | M80: 213
A81: Officer Complaints | B81: =OFFSET($A18,0,CurrentMonthCount-B$66,1,1) -> 3 | C81: 7 | D81: 30 | E81: 13 | F81: 4 | G81: 4 | H81: 2 | I81: 0 | J81: 1 | K81: 2 | L81: 4 | M81: 7
A82: Officer Complaints Sustained | B82: =OFFSET($A19,0,CurrentMonthCount-B$66,1,1) ->  | G82: 0 | H82: 0 | I82: 0 | J82: 0 | K82: 0 | L82: 0 | M82: 1
A83: 0 | B83: =OFFSET($A20,0,CurrentMonthCount-B$66,1,1) -> 0 | C83: 0 | D83: 0 | E83: 0 | F83: 0 | G83: 0 | H83: 0 | I83: 0 | J83: 0 | K83: 0 | L83: 0 | M83: 0
A84: 0 | B84: =OFFSET($A21,0,CurrentMonthCount-B$66,1,1) -> 0 | C84: 0 | D84: 0 | E84: 0 | F84: 0 | G84: 0 | H84: 0 | I84: 0 | J84: 0 | K84: 0 | L84: 0 | M84: 0
A85: 0 | B85: =OFFSET($A22,0,CurrentMonthCount-B$66,1,1) -> 0 | C85: 0 | D85: 0 | E85: 0 | F85: 0 | G85: 0 | H85: 0 | I85: 0 | J85: 0 | K85: 0 | L85: 0 | M85: 0
A86: 0 | B86: =OFFSET($A23,0,CurrentMonthCount-B$66,1,1) -> 0 | C86: 0 | D86: 0 | E86: 0 | F86: 0 | G86: 0 | H86: 0 | I86: 0 | J86: 0 | K86: 0 | L86: 0 | M86: 0
A87: 0 | B87: =OFFSET($A24,0,CurrentMonthCount-B$66,1,1) -> 0 | C87: 0 | D87: 0 | E87: 0 | F87: 0 | G87: 0 | H87: 0 | I87: 0 | J87: 0 | K87: 0 | L87: 0 | M87: 0

Sheet Fire
A1: =CurrentMonth -> 2012-01-01 | E1: FIRE
A3: Fire Prevention | B3: Last 12 Months | C3: Fiscal Year to Date | D3: FYTD | F3: Response | G3: Last 12 Months | H3: Fiscal Year to Date | I3: FYTD
A4: ='Fire Data'!A5 -> Inspections Performed | D4: ='Fire Data'!I41 -> 1243 | F4: ='Fire Data'!A10 -> Incidents Requiring a Response | I4: ='Fire Data'!I46 -> 1821
A5: ='Fire Data'!A6 -> Reinspections/Follow-ups | D5: ='Fire Data'!I42 -> 6 | F5: ='Fire Data'!A11 -> Structure Fire Incidents | I5: ='Fire Data'!I47 -> 20
A6: ='Fire Data'!A7 -> Public Education Sessions Provided | D6: ='Fire Data'!I43 -> 29 | F6: ='Fire Data'!A12 -> Fire Incidents (Non-structure) | I6: ='Fire Data'!I48 -> 72
A7: ='Fire Data'!A8 -> Public Education Citizen Contacts | D7: ='Fire Data'!I44 -> 2941 | F7: ='Fire Data'!A13 -> Medical Assists | I7: ='Fire Data'!I49 -> 1212
A8: ='Fire Data'!A9 -> Smoke Detectors Provided to Public | D8: ='Fire Data'!I45 -> 35 | F8: ='Fire Data'!A14 -> False Alarms | I8: ='Fire Data'!I50 -> 101
F9: ='Fire Data'!A15 -> Other Calls | I9: ='Fire Data'!I51 -> 416
A10: Human Resources | F10: ='Fire Data'!A16 -> Mutual/Automatic Aid Given | I10: ='Fire Data'!I52 -> 137
A11: ='Fire Data'!A25 -> Training Hours Received | D11: ='Fire Data'!I61 -> 9531.5 | F11: ='Fire Data'!A17 -> Mutual/Automatic Aid Received | I11: ='Fire Data'!I53 -> 18
A12: ='Fire Data'!A26 -> Staff Injuries | D12: ='Fire Data'!I62 -> 1 | F12: ='Fire Data'!A18 -> Bartow 911 Response Time (PSAP, Top Priority Calls) | I12: ='Fire Data'!I54 -> 152.7142857
F13: ='Fire Data'!A19 -> Turnout Time (Top Priority Calls) | I13: ='Fire Data'!I55 -> 63.42857143
F14: ='Fire Data'!A20 -> Response Time (Top Priority Calls) | I14: ='Fire Data'!I56 -> 225.8571429
F15: ='Fire Data'!A21 -> % of Top Priority Calls with Response Time of < 5 Mins | I15: ='Fire Data'!I57 -> 0.681
F16: ='Fire Data'!A22 -> Structure Fires Contained to Room of Origin | I16: ='Fire Data'!I58 -> 16
F17: ='Fire Data'!A23 -> Dollar Amount of Fire Damage Loss | I17: ='Fire Data'!I59 -> 275470
F18: ='Fire Data'!A24 -> Dollar Amount of Fire Damage Saved | I18: ='Fire Data'!I60 -> 4650552

Sheet Fire Data
A1: Fire Data
A4: Measure | B4: Jul 08 | C4: 2008-08-01 | D4: 2008-09-01 | E4: 2008-10-01 | F4: 2008-11-01 | G4: 2008-12-01 | H4: 2009-01-01 | I4: 2009-02-01 | J4: 2009-03-01 | K4: 2009-04-01 | L4: 2009-05-01 | M4: 2009-06-01 | N4: 2009-07-01 | O4: 2009-08-01 | P4: 2009-09-01 | Q4: 2009-10-01 | R4: 2009-11-01 | S4: 2009-12-01 | T4: 2010-01-01 | U4: 2010-02-01 | V4: 2010-03-01 | W4: 2010-04-01 | X4: 2010-05-01 | Y4: 2010-06-01 | Z4: 2010-07-01 | AA4: 2010-08-01 | AB4: 2010-09-01 | AC4: 2010-10-01 | AD4: 2010-11-01 | AE4: 2010-12-01 | AF4: 2011-01-01 | AG4: 2011-02-01 | AH4: 2011-03-01 | AI4: 2011-04-01 | AJ4: 2011-05-01 | AK4: 2011-06-01 | AL4: 2011-07-01 | AM4: 2011-08-01 | AN4: 2011-09-01 | AO4: 2011-10-01 | AP4: 2011-11-01 | AQ4: 2011-12-01 | AR4: 2012-01-01
A5: Inspections Performed | T5: 218 | U5: 183 | V5: 265 | W5: 223 | X5: 98 | Y5: 229 | Z5: 197 | AA5: 228 | AB5: 241 | AC5: 207 | AD5: 95 | AE5: 70 | AF5: 212 | AG5: 232 | AH5: 212 | AI5: 202 | AJ5: 198 | AK5: 255 | AL5: 256 | AM5: 253 | AN5: 203 | AO5: 175 | AP5: 92 | AQ5: 62 | AR5: 202
A6: Reinspections/Follow-ups | AL6: 1 | AM6: 2 | AN6: 3 | AO6: 0 | AP6: 0 | AQ6: 0 | AR6: 0
A7: Public Education Sessions Provided | T7: 3 | U7: 1 | V7: 4 | W7: 3 | X7: 5 | Y7: 2 | Z7: 1 | AA7: 0 | AB7: 10 | AC7: 18 | AD7: 1 | AE7: 0 | AF7: 0 | AG7: 2 | AH7: 7 | AI7: 3 | AJ7: 6 | AK7: 5 | AL7: 1 | AM7: 1 | AN7: 12 | AO7: 11 | AP7: 2 | AQ7: 2 | AR7: 0
A8: Public Education Citizen Contacts | AH8: 188 | AI8: 142 | AJ8: 1284 | AK8: 260 | AL8: 50 | AM8: 8 | AN8: 701 | AO8: 1988 | AP8: 132 | AQ8: 62 | AR8: 0
A9: Smoke Detectors Provided to Public | AL9: 2 | AM9: 2 | AN9: 10 | AO9: 9 | AP9: 0 | AQ9: 12 | AR9: 0
A10: Incidents Requiring a Response | T10: 277 | U10: 211 | V10: 249 | W10: 273 | X10: 235 | Y10: 267 | Z10: 241 | AA10: 274 | AB10: 237 | AC10: 268 | AD10: 288 | AE10: 247 | AF10: 276 | AG10: 267 | AH10: 282 | AI10: 243 | AJ10: 277 | AK10: 265 | AL10: 273 | AM10: 290 | AN10: 256 | AO10: 255 | AP10: 249 | AQ10: 261 | AR10: 237
A11: Structure Fire Incidents | AH11: 4 | AI11: 3 | AJ11: 1 | AK11: 1 | AL11: 1 | AM11: 3 | AN11: 1 | AO11: 1 | AP11: 4 | AQ11: 10 | AR11: 0
A12: Fire Incidents (Non-structure) | AH12: 11 | AI12: 15 | AJ12: 9 | AK12: 6 | AL12: 5 | AM12: 15 | AN12: 13 | AO12: 11 | AP12: 13 | AQ12: 9 | AR12: 6
A13: Medical Assists | T13: 175 | U13: 144 | V13: 181 | W13: 188 | X13: 168 | Y13: 171 | Z13: 157 | AA13: 169 | AB13: 172 | AC13: 175 | AD13: 187 | AE13: 161 | AF13: 186 | AG13: 169 | AH13: 190 | AI13: 165 | AJ13: 208 | AK13: 163 | AL13: 165 | AM13: 181 | AN13: 168 | AO13: 187 | AP13: 160 | AQ13: 187 | AR13: 164
A14: False Alarms | T14: 26 | U14: 12 | V14: 12 | W14: 11 | X14: 12 | Y14: 18 | Z14: 12 | AA14: 19 | AB14: 14 | AC14: 23 | AD14: 24 | AE14: 14 | AF14: 8 | AG14: 15 | AH14: 14 | AI14: 11 | AJ14: 11 | AK14: 16 | AL14: 22 | AM14: 19 | AN14: 13 | AO14: 7 | AP14: 13 | AQ14: 10 | AR14: 17
A15: Other Calls | T15: 61 | U15: 45 | V15: 40 | W15: 52 | X15: 47 | Y15: 74 | Z15: 60 | AA15: 79 | AB15: 41 | AC15: 53 | AD15: 63 | AE15: 54 | AF15: 63 | AG15: 52 | AH15: 63 | AI15: 49 | AJ15: 48 | AK15: 78 | AL15: 80 | AM15: 72 | AN15: 61 | AO15: 49 | AP15: 59 | AQ15: 45 | AR15: 50
A16: Mutual/Automatic Aid Given | T16: 27 | U16: 18 | V16: 28 | W16: 27 | X16: 22 | Y16: 27 | Z16: 20 | AA16: 24 | AB16: 22 | AC16: 22 | AD16: 33 | AE16: 18 | AF16: 21 | AG16: 27 | AH16: 26 | AI16: 19 | AJ16: 28 | AK16: 26 | AL16: 22 | AM16: 17 | AN16: 20 | AO16: 19 | AP16: 19 | AQ16: 22 | AR16: 18
A17: Mutual/Automatic Aid Received | T17: 5 | U17: 3 | V17: 3 | W17: 3 | X17: 1 | Y17: 3 | Z17: 2 | AA17: 4 | AB17: 2 | AC17: 5 | AD17: 2 | AE17: 5 | AF17: 0 | AG17: 10 | AH17: 2 | AI17: 4 | AJ17: 1 | AK17: 2 | AL17: 2 | AM17: 5 | AN17: 2 | AO17: 1 | AP17: 3 | AQ17: 2 | AR17: 3
A18: Bartow 911 Response Time (PSAP, Top Priority Calls) | AL18: 147 | AM18: 148 | AN18: 151 | AO18: 161 | AP18: 152 | AQ18: 159 | AR18: 151
A19: Turnout Time (Top Priority Calls) | AL19: 56 | AM19: 74 | AN19: 57 | AO19: 71 | AP19: 61 | AQ19: 69 | AR19: 56
A20: Response Time (Top Priority Calls) | AL20: 200 | AM20: 228 | AN20: 247 | AO20: 213 | AP20: 217 | AQ20: 241 | AR20: 235
A21: % of Top Priority Calls with Response Time of < 5 Mins | T21: 0.68 | U21: 0.63 | V21: 0.63 | W21: 0.7 | X21: 0.77 | Y21: 0.71 | Z21: 0.68 | AA21: 0.74 | AB21: 0.685 | AC21: 0.69 | AD21: 0.58 | AE21: 0.623 | AF21: 0.64 | AG21: 0.66 | AH21: 0.66 | AI21: 0.69 | AJ21: 0.7 | AK21: 0.9 | AL21: 0.742 | AM21: 0.662 | AN21: 0.679 | AO21: 0.68 | AP21: 0.6 | AQ21: 0.704 | AR21: 0.7
A22: Structure Fires Contained to Room of Origin | AH22: 3 | AI22: 2 | AJ22: 1 | AK22: 1 | AL22: 1 | AM22: 3 | AN22: 1 | AO22: 1 | AP22: 3 | AQ22: 7 | AR22: 0
A23: Dollar Amount of Fire Damage Loss | T23: 45000 | U23: 3800 | V23: 114350 | W23: 135209 | X23: 5010 | Y23: 2600 | Z23: 23500 | AA23: 52770 | AB23: 25700 | AC23: 6500 | AD23: 20500 | AE23: 14700 | AF23: 71300 | AG23: 15000 | AH23: 320175 | AI23: 54150 | AJ23: 3000 | AK23: 500 | AL23: 25000 | AM23: 40600 | AN23: 9700 | AO23: 2250 | AP23: 46000 | AQ23: 146820 | AR23: 5100
A24: Dollar Amount of Fire Damage Saved | AH24: 713500 | AI24: 403000 | AL24: 325000 | AM24: 288800 | AN24: 2550 | AO24: 219000 | AP24: 846600 | AQ24: 2206102 | AR24: 762500
A25: Training Hours Received | T25: 1387.5 | U25: 1995 | V25: 2034.5 | W25: 1526 | X25: 1576 | Y25: 1418 | Z25: 1394.5 | AA25: 1581 | AB25: 2102 | AC25: 1407 | AD25: 1289 | AE25: 737 | AF25: 2076 | AG25: 1927 | AH25: 2135 | AI25: 1539 | AJ25: 1311 | AK25: 1574 | AL25: 1589 | AM25: 1943.5 | AN25: 1266.5 | AO25: 1628.5 | AP25: 944 | AQ25: 485 | AR25: 1675
A26: Staff Injuries | T26: 0 | U26: 0 | V26: 1 | W26: 0 | X26: 0 | Y26: 2 | Z26: 0 | AA26: 0 | AB26: 1 | AC26: 1 | AD26: 1 | AE26: 0 | AF26: 0 | AG26: 1 | AH26: 0 | AI26: 1 | AJ26: 0 | AK26: 0 | AL26: 1 | AM26: 0 | AN26: 0 | AO26: 0 | AP26: 0 | AQ26: 0 | AR26: 0
A27: HIGHLIGHTS | B27: Jul 08 | C27: 2008-08-01 | D27: 2008-09-01 | E27: 2008-10-01 | F27: 2008-11-01 | G27: 2008-12-01 | H27: 2009-01-01 | I27: 2009-02-01 | J27: 2009-03-01 | K27: 2009-04-01 | L27: 2009-05-01 | M27: 2009-06-01 | N27: 2009-07-01 | O27: 2009-08-01 | P27: 2009-09-01 | Q27: 2009-10-01 | R27: 2009-11-01 | S27: 2009-12-01 | T27: 2010-01-01 | U27: 2010-02-01 | V27: 2010-03-01 | W27: 2010-04-01 | X27: 2010-05-01 | Y27: 2010-06-01 | Z27: 2010-07-01 | AA27: 2010-08-01 | AB27: 2010-09-01 | AC27: 2010-10-01 | AD27: 2010-11-01 | AE27: 2010-12-01 | AF27: 2011-01-01 | AG27: 2011-02-01 | AH27: 2011-03-01 | AI27: 2011-04-01 | AJ27: 2011-05-01 | AK27: 2011-06-01 | AL27: 2011-07-01 | AM27: 2011-08-01 | AN27: 2011-09-01 | AO27: 2011-10-01 | AP27: 2011-11-01 | AQ27: 2011-12-01 | AR27: 2012-01-01
A28: Highlight 1 | AL28: 1. On July 10th, the Cartersville Fire Department responded to a fire in an apartment above the historic Legion Theater. The Fire Department was successful in containing the fire to the room of origin, saving this valuable historic landmark. | AM28: 1. One civilian fire fatality in motor vehicle crash / vehicle fire | AN28: 1. Technical swift water Rescue training conducted on the Etowah River. | AO28: Heavy push for community outreach during Fire Prevention Month | AP28: During November there was one fire related civilian injury caused by smoke inhalation. | AQ28: 1 Civilian injury on structure fire 12/26/2011. Minor Burn | AR28: No Structure Fires for Month / 2 cooking fires confined to stove / No Structure Damage.
A29: Highlight 2 | AM29: 2. Large open land fire in Carter Grove subdivision, we were assisted by Bartow County and Ga. Forestry | AN29: 2. Georgia Fire Conference held in Columbus. Chief Carter began 2nd year as State President of Georgia Firefighters. | AO29: Held 3rd annual open house at Station #1 | AP29: A structure fire in an apartment was contained to the room of origin, due to the activcation of the apartment's sprinkler system. | AQ29: Downtown fire on 12/03/2011 extensive damage to one structure, fire contained 5 connecting business/offices saved | AR29: Conducted meeting with Major Pruitt from Bartow 911 to address dispatch time.
A30: Highlight 3 | AN30: 3. Staff visited construction site of two new fire apparatus to inspect trucks. Trucks are currently in Forsyth, being outfitted with sirens and other equipment. (See Picture) | AO30: Overtime higher than normal due to high public education push and extra instruction for new hires | AP30: All required ISO and State training and drills have been completed for the year of 2011.
A31: Highlight 4 | AP31: Construction of the new Public Safety Headquarters is progressing on schedule. All infrastructure is in place, and the old gas line running through the property has been relocated. Footings for the structure are now 90% complete.
A32: Highlight 5 | AP32: Demolition of Old Firestation #2 is complete. New Firestation on MLK is scheduled to begin construction in January.
A33: Highlight 6
A34: Highlight 7
A35: Highlight 8
A36: Highlights Concaetenation | B36: =B28&CHAR(10)&B29&CHAR(10)&B30&CHAR(10)&B31&CHAR(10)&B32&CHAR(10)&B33&CHAR(10)&B34&CHAR(10)&B35 ->  | C36: =C28&CHAR(10)&C29&CHAR(10)&C30&CHAR(10)&C31&CHAR(10)&C32&CHAR(10)&C33&CHAR(10)&C34&CHAR(10)&C35 ->  | AK36: =AK28&CHAR(10)&CHAR(10)&AK29&CHAR(10)&CHAR(10)&AK30&CHAR(10)&CHAR(10)&AK31&CHAR(10)&CHAR(10)&AK32&CHAR(10)&CHAR(10)&AK33&CHAR(10)&CHAR(10)&AK34&CHAR(10)&CHAR(10)&AK35 ->  | AL36: =AL28&CHAR(10)&CHAR(10)&AL29&CHAR(10)&CHAR(10)&AL30&CHAR(10)&CHAR(10)&AL31&CHAR(10)&CHAR(10)&AL32&CHAR(10)&CHAR(10)&AL33&CHAR(10)&CHAR(10)&AL34&CHAR(10)&CHAR(10)&AL35 -> 1. On July 10th, the Cartersville Fire Department responded to a fire in an apartment above the historic Legion Theater. The Fire Department was successful in containing the fire to the room of origin, saving this valuable historic landmark. | AM36: =AM28&CHAR(10)&CHAR(10)&AM29&CHAR(10)&CHAR(10)&AM30&CHAR(10)&CHAR(10)&AM31&CHAR(10)&CHAR(10)&AM32&CHAR(10)&CHAR(10)&AM33&CHAR(10)&CHAR(10)&AM34&CHAR(10)&CHAR(10)&AM35 -> 1. One civilian fire fatality in motor vehicle crash / vehicle fire 2. Large open land fire in Carter Grove subdivision, we were assisted by Bartow County and Ga. Forestry | AN36: =AN28&CHAR(10)&CHAR(10)&AN29&CHAR(10)&CHAR(10)&AN30&CHAR(10)&CHAR(10)&AN31&CHAR(10)&CHAR(10)&AN32&CHAR(10)&CHAR(10)&AN33&CHAR(10)&CHAR(10)&AN34&CHAR(10)&CHAR(10)&AN35 -> 1. Technical swift water Rescue training conducted on the Etowah River. 2. Georgia Fire Conference held in Columbus. Chief Carter began 2nd year as State President of Georgia Firefighters. 3. Staff visited construction site of two new fire apparatus to inspect trucks. Trucks are currently in Forsyth, being outfitted with sirens and other equipment. (See Picture) | AO36: =AO28&CHAR(10)&CHAR(10)&AO29&CHAR(10)&CHAR(10)&AO30&CHAR(10)&CHAR(10)&AO31&CHAR(10)&CHAR(10)&AO32&CHAR(10)&CHAR(10)&AO33&CHAR(10)&CHAR(10)&AO34&CHAR(10)&CHAR(10)&AO35 -> Heavy push for community outreach during Fire Prevention Month Held 3rd annual open house at Station #1 Overtime higher than normal due to high public education push and extra instruction for new hires | AP36: =AP28&CHAR(10)&CHAR(10)&AP29&CHAR(10)&CHAR(10)&AP30&CHAR(10)&CHAR(10)&AP31&CHAR(10)&CHAR(10)&AP32&CHAR(10)&CHAR(10)&AP33&CHAR(10)&CHAR(10)&AP34&CHAR(10)&CHAR(10)&AP35 -> During November there was one fire related civilian injury caused by smoke inhalation. A structure fire in an apartment was contained to the room of origin, due to the activcation of the apartment's sprinkler system. All required ISO and State training and drills have been completed for the year of 2011. Construction of the new Public Safety Headquarters is progressing on schedule. All infrastructure is in place, and the old gas line running through the property has been relocated. Footings for the structure are now 90% complete. Demolition of Old Firestation #2 is complete. New Firestation on MLK is scheduled to begin construction in January. | AQ36: =AQ28&CHAR(10)&CHAR(10)&AQ29&CHAR(10)&CHAR(10)&AQ30&CHAR(10)&CHAR(10)&AQ31&CHAR(10)&CHAR(10)&AQ32&CHAR(10)&CHAR(10)&AQ33&CHAR(10)&CHAR(10)&AQ34&CHAR(10)&CHAR(10)&AQ35 -> 1 Civilian injury on structure fire 12/26/2011. Minor Burn Downtown fire on 12/03/2011 extensive damage to one structure, fire contained 5 connecting business/offices saved | AR36: =AR28&CHAR(10)&CHAR(10)&AR29&CHAR(10)&CHAR(10)&AR30&CHAR(10)&CHAR(10)&AR31&CHAR(10)&CHAR(10)&AR32&CHAR(10)&CHAR(10)&AR33&CHAR(10)&CHAR(10)&AR34&CHAR(10)&CHAR(10)&AR35 -> No Structure Fires for Month / 2 cooking fires confined to stove / No Structure Damage. Conducted meeting with Major Pruitt from Bartow 911 to address dispatch time.
A40: Bullet Chart Source | B40: Target | C40: What's Better? | D40: Band 1 | E40: Band 2 | F40: YTD Type | G40: Max Scale | H40: Actual 1 | I40: Actual | J40: Actual 3 | K40: Projection 1 | L40: Projection 2 | M40: Projection 3 | N40: First Zone 1 | O40: First Zone 2 | P40: First Zone 3 | Q40: Second Zone 1 | R40: Second Zone 2 | S40: Second Zone 3 | T40: Previous X 1 | U40: Previous X 2 | V40: Previous Y 1 | W40: Previous Y 2
A41: =A5 -> Inspections Performed | B41: 2367 | C41: More | D41: 0.85 | E41: 1 | F41: Sum | G41: =ROUNDUP((ROUNDUP(MAX(B41,SUM(I41,L41)),-LEN(EVEN(MAX(B41,SUM(I41,L41))))+2)/5),-LEN(EVEN(ROUNDUP(MAX(B41,SUM(I41,L41)),-LEN(EVEN(MAX(B41,SUM(I41,L41))))+2)/5))+1)*5 -> 2500 | H41: 0 | I41: =IF(F41="Sum",SUM(OFFSET(A5,0,YTDBeg,1,YTDWidth)),AVERAGE(OFFSET(A5,0,YTDBeg,1,YTDWidth))) -> 1243 | J41: 0 | K41: 0 | L41: =IF(F41="Sum",Projection*(I41/YTDWidth*12-I41),0) -> 0 | M41: 0 | N41: =B41*D41 -> 2011.95 | O41: =((I41+L41<=N41)*(N41-(I41+L41))) -> 768.95 | P41: =N41 -> 2011.95 | Q41: =(E41-D41)*B41 -> 355.05 | R41: =((I41+L41<=N41+Q41)*((N41+Q41)-(I41+L41+O41))) -> 355.05 | S41: =Q41 -> 355.05 | T41: =IF(F41="Sum",SUM(OFFSET(A5,0,YTDBeg-12,1,YTDWidth)),AVERAGE(OFFSET(A5,0,YTDBeg-12,1,YTDWidth))) -> 1250 | U41: =T41 -> 1250 | V41: 1 | W41: 2
A42: =A6 -> Reinspections/Follow-ups | B42: 100 | C42: Less | D42: 1 | E42: 1.15 | F42: Sum | G42: =ROUNDUP((ROUNDUP(MAX(B42,SUM(I42,L42)),-LEN(EVEN(MAX(B42,SUM(I42,L42))))+2)/5),-LEN(EVEN(ROUNDUP(MAX(B42,SUM(I42,L42)),-LEN(EVEN(MAX(B42,SUM(I42,L42))))+2)/5))+1)*5 -> 100 | H42: 0 | I42: 6 | J42: 0 | K42: 0 | L42: 0 | M42: 0 | N42: 100 | O42: =((I42+L42<=N42)*(N42-(I42+L42))) -> 94 | P42: =N42 -> 100 | Q42: 15 | R42: =((I42+L42<=N42+Q42)*((N42+Q42)-(I42+L42+O42))) -> 15 | S42: =Q42 -> 15 | U42: =T42 ->  | V42: 1 | W42: 2
A43: Public Education Sessions Provided | B43: 50 | C43: More | D43: 0.85 | E43: 1 | F43: Sum | G43: 50 | H43: 0 | I43: 29 | J43: 0 | K43: 0 | L43: 0 | M43: 0 | N43: 42.5 | O43: 13.5 | P43: 42.5 | Q43: 7.5 | R43: 7.5 | S43: 7.5 | T43: 30 | U43: 30 | V43: 1 | W43: 2
A44: Public Education Citizen Contacts | B44: 3361 | C44: More | D44: 0.85 | E44: 1 | F44: Sum | G44: 3500 | H44: 0 | I44: 2941 | J44: 0 | K44: 0 | L44: 0 | M44: 0 | N44: 2856.85 | O44: 0 | P44: 2856.85 | Q44: 504.15 | R44: 420 | S44: 504.15 | V44: 1 | W44: 2
A45: Smoke Detectors Provided to Public | B45: 108 | C45: More | D45: 0.85 | E45: 1 | F45: Sum | G45: 150 | H45: 0 | I45: 35 | J45: 0 | K45: 0 | L45: 0 | M45: 0 | N45: 91.8 | O45: 56.8 | P45: 91.8 | Q45: 16.2 | R45: 16.2 | S45: 16.2 | V45: 1 | W45: 2
A46: Incidents Requiring a Response | B46: 3067 | C46: Less | D46: 1 | E46: 1.15 | F46: Sum | G46: 3500 | H46: 0 | I46: 1821 | J46: 0 | K46: 0 | L46: 0 | M46: 0 | N46: 3067 | O46: 1246 | P46: 3067 | Q46: 460.05 | R46: 460.05 | S46: 460.05 | T46: 1831 | U46: 1831 | V46: 1 | W46: 2
A47: Structure Fire Incidents | B47: 44 | C47: Less | D47: 1 | E47: 1.15 | F47: Sum | G47: 50 | H47: 0 | I47: 20 | J47: 0 | K47: 0 | L47: 0 | M47: 0 | N47: 44 | O47: 24 | P47: 44 | Q47: 6.6 | R47: 6.6 | S47: 6.6 | V47: 1 | W47: 2
A48: Fire Incidents (Non-structure) | B48: 104 | C48: Less | D48: 1 | E48: 1.15 | F48: Sum | G48: 150 | H48: 0 | I48: 72 | J48: 0 | K48: 0 | L48: 0 | M48: 0 | N48: 104 | O48: 32 | P48: 104 | Q48: 15.6 | R48: 15.6 | S48: 15.6 | V48: 1 | W48: 2
A49: Medical Assists | B49: 2048 | C49: Less | D49: 1 | E49: 1.15 | F49: Sum | G49: 2500 | H49: 0 | I49: 1212 | J49: 0 | K49: 0 | L49: 0 | M49: 0 | N49: 2048 | O49: 836 | P49: 2048 | Q49: 307.2 | R49: 307.2 | S49: 307.2 | T49: 1207 | U49: 1207 | V49: 1 | W49: 2
A50: False Alarms | B50: 197 | C50: Less | D50: 1 | E50: 1.15 | F50: Sum | G50: 200 | H50: 0 | I50: 101 | J50: 0 | K50: 0 | L50: 0 | M50: 0 | N50: 197 | O50: 96 | P50: 197 | Q50: 29.55 | R50: 29.55 | S50: 29.55 | T50: 114 | U50: 114 | V50: 1 | W50: 2
A51: Other Calls | B51: 669 | C51: Less | D51: 1 | E51: 1.15 | F51: Sum | G51: 1000 | H51: 0 | I51: 416 | J51: 0 | K51: 0 | L51: 0 | M51: 0 | N51: 669 | O51: 253 | P51: 669 | Q51: 100.35 | R51: 100.35 | S51: 100.35 | T51: 413 | U51: 413 | V51: 1 | W51: 2
A52: Mutual/Automatic Aid Given | B52: 288 | C52: Less | D52: 1 | E52: 1.15 | F52: Sum | G52: 300 | H52: 0 | I52: 137 | J52: 0 | K52: 0 | L52: 0 | M52: 0 | N52: 288 | O52: 151 | P52: 288 | Q52: 43.2 | R52: 43.2 | S52: 43.2 | T52: 160 | U52: 160 | V52: 1 | W52: 2
A53: Mutual/Automatic Aid Received | B53: 38 | C53: Less | D53: 1 | E53: 1.15 | F53: Sum | G53: 40 | H53: 0 | I53: 18 | J53: 0 | K53: 0 | L53: 0 | M53: 0 | N53: 38 | O53: 20 | P53: 38 | Q53: 5.7 | R53: 5.7 | S53: 5.7 | T53: 20 | U53: 20 | V53: 1 | W53: 2
A54: Bartow 911 Response Time (PSAP, Top Priority Calls) | B54: 120 | C54: Less | D54: 1 | E54: 1.15 | F54: Average | G54: 200 | H54: 0 | I54: 152.7142857 | J54: 0 | K54: 0 | L54: 0 | M54: 0 | N54: 120 | O54: 0 | P54: 120 | Q54: 18 | R54: 0 | S54: 18 | V54: 1 | W54: 2
A55: Turnout Time (Top Priority Calls) | B55: 60 | C55: Less | D55: 1 | E55: 1.15 | F55: Average | G55: 100 | H55: 0 | I55: 63.42857143 | J55: 0 | K55: 0 | L55: 0 | M55: 0 | N55: 60 | O55: 0 | P55: 60 | Q55: 9 | R55: 5.571428571 | S55: 9 | V55: 1 | W55: 2
A56: Response Time (Top Priority Calls) | B56: 300 | C56: Less | D56: 1 | E56: 1.15 | F56: Average | G56: 300 | H56: 0 | I56: 225.8571429 | J56: 0 | K56: 0 | L56: 0 | M56: 0 | N56: =B56*D56 -> 300 | O56: =((I56+L56<=N56)*(N56-(I56+L56))) -> 74.14285714 | P56: =N56 -> 300 | Q56: =(E56-D56)*B56 -> 45 | R56: =((I56+L56<=N56+Q56)*((N56+Q56)-(I56+L56+O56))) -> 45 | S56: =Q56 -> 45 | V56: 1 | W56: 2
A57: % of Top Priority Calls with Response Time of < 5 Mins | B57: 0.68 | C57: More | D57: 0.85 | E57: 1 | F57: Average | G57: 1 | H57: 0 | I57: 0.681 | J57: 0 | K57: 0 | L57: 0 | M57: 0 | N57: 0.578 | O57: 0 | P57: 0.578 | Q57: 0.102 | R57: 0 | S57: 0.102 | T57: 0.6625714286 | U57: 0.6625714286 | V57: 1 | W57: 2
A58: Structure Fires Contained to Room of Origin | B58: =0.9*I47 -> 18 | C58: More | D58: 0.85 | E58: 1 | F58: Sum | G58: 20 | H58: 0 | I58: 16 | J58: 0 | K58: 0 | L58: 0 | M58: 0 | N58: 15.3 | O58: 0 | P58: 15.3 | Q58: 2.7 | R58: 2 | S58: 2.7 | V58: 1 | W58: 2
A59: Dollar Amount of Fire Damage Loss | B59: 449639 | C59: Less | D59: 1 | E59: 1.15 | F59: Sum | G59: 450000 | H59: 0 | I59: 275470 | J59: 0 | K59: 0 | L59: 0 | M59: 0 | N59: 449639 | O59: 174169 | P59: 449639 | Q59: 67445.85 | R59: 67445.85 | S59: 67445.85 | T59: 214970 | U59: 214970 | V59: 1 | W59: 2
A60: Dollar Amount of Fire Damage Saved | B60: 5580900 | C60: More | D60: 0.85 | E60: 1 | F60: Sum | G60: =ROUNDUP((ROUNDUP(MAX(B60,SUM(I60,L60)),-LEN(EVEN(MAX(B60,SUM(I60,L60))))+2)/5),-LEN(EVEN(ROUNDUP(MAX(B60,SUM(I60,L60)),-LEN(EVEN(MAX(B60,SUM(I60,L60))))+2)/5))+1)*5 -> 10000000 | H60: 0 | I60: =IF(F60="Sum",SUM(OFFSET(A24,0,YTDBeg,1,YTDWidth)),AVERAGE(OFFSET(A24,0,YTDBeg,1,YTDWidth))) -> 4650552 | J60: 0 | K60: 0 | L60: =IF(F60="Sum",Projection*(I60/YTDWidth*12-I60),0) -> 0 | M60: 0 | N60: =B60*D60 -> 4743765 | O60: =((I60+L60<=N60)*(N60-(I60+L60))) -> 93213 | P60: =N60 -> 4743765 | Q60: =(E60-D60)*B60 -> 837135 | R60: =((I60+L60<=N60+Q60)*((N60+Q60)-(I60+L60+O60))) -> 837135 | S60: =Q60 -> 837135 | T60: =IF(F60="Sum",SUM(OFFSET(A24,0,YTDBeg-12,1,YTDWidth)),AVERAGE(OFFSET(A24,0,YTDBeg-12,1,YTDWidth))) ->  | U60: =T60 ->  | V60: 1 | W60: 2
A61: Training Hours Received | B61: 18910 | C61: More | D61: 0.85 | E61: 1 | F61: Sum | G61: 20000 | H61: 0 | I61: 9531.5 | J61: 0 | K61: 0 | L61: 0 | M61: 0 | N61: 16073.5 | O61: 6542 | P61: 16073.5 | Q61: 2836.5 | R61: 2836.5 | S61: 2836.5 | T61: 10586.5 | U61: 10586.5 | V61: 1 | W61: 2
A62: Staff Injuries | B62: 4 | C62: Less | D62: 1 | E62: 1.15 | F62: Sum | G62: 5 | H62: 0 | I62: 1 | J62: 0 | K62: 0 | L62: 0 | M62: 0 | N62: 4 | O62: 3 | P62: 4 | Q62: 0.6 | R62: 0.6 | S62: 0.6 | T62: 3 | U62: 3 | V62: 1 | W62: 2
A65: SPARKLINE SOURCE
B66: 11 | C66: 10 | D66: 9 | E66: 8 | F66: 7 | G66: 6 | H66: 5 | I66: 4 | J66: 3 | K66: 2 | L66: 1 | M66: 0
A67: Measure | B67: =OFFSET($A4,0,CurrentMonthCount-B$66,1,1) -> 2011-02-01 | C67: 2011-03-01 | D67: 2011-04-01 | E67: 2011-05-01 | F67: 2011-06-01 | G67: 2011-07-01 | H67: 2011-08-01 | I67: 2011-09-01 | J67: 2011-10-01 | K67: 2011-11-01 | L67: 2011-12-01 | M67: 2012-01-01
A68: =A5 -> Inspections Performed | B68: =OFFSET($A5,0,CurrentMonthCount-B$66,1,1) -> 232 | C68: 212 | D68: 202 | E68: 198 | F68: 255 | G68: 256 | H68: 253 | I68: 203 | J68: 175 | K68: 92 | L68: 62 | M68: 202
A69: =A6 -> Reinspections/Follow-ups | B69: =OFFSET($A6,0,CurrentMonthCount-B$66,1,1) ->  | G69: 1 | H69: 2 | I69: 3 | J69: 0 | K69: 0 | L69: 0 | M69: 0
A70: Public Education Sessions Provided | B70: =OFFSET($A7,0,CurrentMonthCount-B$66,1,1) -> 2 | C70: 7 | D70: 3 | E70: 6 | F70: 5 | G70: 1 | H70: 1 | I70: 12 | J70: 11 | K70: 2 | L70: 2 | M70: 0
A71: Public Education Citizen Contacts | B71: =OFFSET($A8,0,CurrentMonthCount-B$66,1,1) ->  | C71: 188 | D71: 142 | E71: 1284 | F71: 260 | G71: 50 | H71: 8 | I71: 701 | J71: 1988 | K71: 132 | L71: 62 | M71: 0
A72: Smoke Detectors Provided to Public | B72: =OFFSET($A9,0,CurrentMonthCount-B$66,1,1) ->  | G72: 2 | H72: 2 | I72: 10 | J72: 9 | K72: 0 | L72: 12 | M72: 0
A73: Incidents Requiring a Response | B73: =OFFSET($A10,0,CurrentMonthCount-B$66,1,1) -> 267 | C73: 282 | D73: 243 | E73: 277 | F73: 265 | G73: 273 | H73: 290 | I73: 256 | J73: 255 | K73: 249 | L73: 261 | M73: 237
A74: Structure Fire Incidents | B74: =OFFSET($A11,0,CurrentMonthCount-B$66,1,1) ->  | C74: 4 | D74: 3 | E74: 1 | F74: 1 | G74: 1 | H74: 3 | I74: 1 | J74: 1 | K74: 4 | L74: 10 | M74: 0
A75: Fire Incidents (Non-structure) | B75: =OFFSET($A12,0,CurrentMonthCount-B$66,1,1) ->  | C75: 11 | D75: 15 | E75: 9 | F75: 6 | G75: 5 | H75: 15 | I75: 13 | J75: 11 | K75: 13 | L75: 9 | M75: 6
A76: Medical Assists | B76: =OFFSET($A13,0,CurrentMonthCount-B$66,1,1) -> 169 | C76: 190 | D76: 165 | E76: 208 | F76: 163 | G76: 165 | H76: 181 | I76: 168 | J76: 187 | K76: 160 | L76: 187 | M76: 164
A77: False Alarms | B77: =OFFSET($A14,0,CurrentMonthCount-B$66,1,1) -> 15 | C77: 14 | D77: 11 | E77: 11 | F77: 16 | G77: 22 | H77: 19 | I77: 13 | J77: 7 | K77: 13 | L77: 10 | M77: 17
A78: Other Calls | B78: =OFFSET($A15,0,CurrentMonthCount-B$66,1,1) -> 52 | C78: 63 | D78: 49 | E78: 48 | F78: 78 | G78: 80 | H78: 72 | I78: 61 | J78: 49 | K78: 59 | L78: 45 | M78: 50
A79: Mutual/Automatic Aid Given | B79: =OFFSET($A16,0,CurrentMonthCount-B$66,1,1) -> 27 | C79: 26 | D79: 19 | E79: 28 | F79: 26 | G79: 22 | H79: 17 | I79: 20 | J79: 19 | K79: 19 | L79: 22 | M79: 18
A80: Mutual/Automatic Aid Received | B80: =OFFSET($A17,0,CurrentMonthCount-B$66,1,1) -> 10 | C80: 2 | D80: 4 | E80: 1 | F80: 2 | G80: 2 | H80: 5 | I80: 2 | J80: 1 | K80: 3 | L80: 2 | M80: 3
A81: Bartow 911 Response Time (PSAP, Top Priority Calls) | B81: =OFFSET($A18,0,CurrentMonthCount-B$66,1,1) ->  | G81: 147 | H81: 148 | I81: 151 | J81: 161 | K81: 152 | L81: 159 | M81: 151
A82: Turnout Time (Top Priority Calls) | B82: =OFFSET($A19,0,CurrentMonthCount-B$66,1,1) ->  | G82: 56 | H82: 74 | I82: 57 | J82: 71 | K82: 61 | L82: 69 | M82: 56
A83: Response Time (Top Priority Calls) | B83: =OFFSET($A20,0,CurrentMonthCount-B$66,1,1) ->  | G83: 200 | H83: 228 | I83: 247 | J83: 213 | K83: 217 | L83: 241 | M83: 235
A84: % of Top Priority Calls with Response Time of < 5 Mins | B84: =OFFSET($A21,0,CurrentMonthCount-B$66,1,1) -> 0.66 | C84: 0.66 | D84: 0.69 | E84: 0.7 | F84: 0.9 | G84: 0.742 | H84: 0.662 | I84: 0.679 | J84: 0.68 | K84: 0.6 | L84: 0.704 | M84: 0.7
A85: Structure Fires Contained to Room of Origin | B85: =OFFSET($A22,0,CurrentMonthCount-B$66,1,1) ->  | C85: 3 | D85: 2 | E85: 1 | F85: 1 | G85: 1 | H85: 3 | I85: 1 | J85: 1 | K85: 3 | L85: 7 | M85: 0
A86: Dollar Amount of Fire Damage Loss | B86: =OFFSET($A23,0,CurrentMonthCount-B$66,1,1) -> 15000 | C86: 320175 | D86: 54150 | E86: 3000 | F86: 500 | G86: 25000 | H86: 40600 | I86: 9700 | J86: 2250 | K86: 46000 | L86: 146820 | M86: 5100
A87: Dollar Amount of Fire Damage Saved | B87: =OFFSET($A24,0,CurrentMonthCount-B$66,1,1) ->  | C87: 713500 | D87: 403000 | G87: 325000 | H87: 288800 | I87: 2550 | J87: 219000 | K87: 846600 | L87: 2206102 | M87: 762500
A88: Training Hours Received | B88: =OFFSET($A25,0,CurrentMonthCount-B$66,1,1) -> 1927 | C88: 2135 | D88: 1539 | E88: 1311 | F88: 1574 | G88: 1589 | H88: 1943.5 | I88: 1266.5 | J88: 1628.5 | K88: 944 | L88: 485 | M88: 1675
A89: Staff Injuries | B89: =OFFSET($A26,0,CurrentMonthCount-B$66,1,1) -> 1 | C89: 0 | D89: 1 | E89: 0 | F89: 0 | G89: 1 | H89: 0 | I89: 0 | J89: 0 | K89: 0 | L89: 0 | M89: 0
A100: Pictures
A103: Santa pays a visit to Fire Station #1 during the Fire Station Open House event held in December.
A120: The Fire Department responded to a strucuture fire in downtown Cartersville.

Sheet Parks
A1: =CurrentMonth -> 2012-01-01 | E1: PARKS & RECREATION
A3: Participation | B3: Last 12 Months | C3: Fiscal Year to Date | D3: FYTD | F3: Funding | G3: Last 12 Months | H3: Fiscal Year to Date | I3: FYTD
A4: ='Parks Data'!A8 -> Registered Program Participants (Youth) | D4: ='Parks Data'!I44 -> 1237 | F4: ='Parks Data'!A42 -> Grants Awarded | I4: ='Parks Data'!I42 -> 0
A5: ='Parks Data'!A9 -> Registered Program Participants (Adult) | D5: ='Parks Data'!I45 -> 731
A6: ='Parks Data'!A10 -> Hours of Program Participation (Youth) | D6: ='Parks Data'!I46 -> 67009 | F6: Safety
A7: ='Parks Data'!A11 -> Hours of Program Participation (Adult) | D7: ='Parks Data'!I47 -> 17895.5 | F7: ='Parks Data'!A49 -> Staff Injuries (Parks) | I7: ='Parks Data'!I49 -> 0
A8: ='Parks Data'!A12 -> Volunteer Hours Worked | D8: ='Parks Data'!I48 -> 5995.25 | F8: ='Parks Data'!A50 -> Crimes Reported on Park Property | I8: ='Parks Data'!I50 -> 12
F9: ='Parks Data'!A51 -> Documented Participant Injuries | I9: ='Parks Data'!I51 -> 37
A10: Events and Rentals
A11: ='Parks Data'!A5 -> Special Events Conducted/ Hosted/Sponsored | D11: ='Parks Data'!I41 -> 27
A12: ='Parks Data'!A7 -> Facility Rentals | D12: ='Parks Data'!I43 -> 262

Sheet Parks Data
A1: Parks Data
A4: Measure | B4: 2008-07-01 | C4: 2008-08-01 | D4: 2008-09-01 | E4: 2008-10-01 | F4: 2008-11-01 | G4: 2008-12-01 | H4: 2009-01-01 | I4: 2009-02-01 | J4: 2009-03-01 | K4: 2009-04-01 | L4: 2009-05-01 | M4: 2009-06-01 | N4: 2009-07-01 | O4: 2009-08-01 | P4: 2009-09-01 | Q4: 2009-10-01 | R4: 2009-11-01 | S4: 2009-12-01 | T4: 2010-01-01 | U4: 2010-02-01 | V4: 2010-03-01 | W4: 2010-04-01 | X4: 2010-05-01 | Y4: 2010-06-01 | Z4: 2010-07-01 | AA4: 2010-08-01 | AB4: 2010-09-01 | AC4: 2010-10-01 | AD4: 2010-11-01 | AE4: 2010-12-01 | AF4: 2011-01-01 | AG4: 2011-02-01 | AH4: 2011-03-01 | AI4: 2011-04-01 | AJ4: 2011-05-01 | AK4: 2011-06-01 | AL4: 2011-07-01 | AM4: 2011-08-01 | AN4: 2011-09-01 | AO4: 2011-10-01 | AP4: 2011-11-01 | AQ4: 2011-12-01 | AR4: 2012-01-01
A5: Special Events Conducted/ Hosted/Sponsored | T5: 0 | U5: 2 | V5: 0 | W5: 5 | X5: 2 | Y5: 1 | Z5: 5 | AA5: 3 | AB5: 6 | AC5: 2 | AD5: 2 | AE5: 3 | AF5: 0 | AG5: 4 | AH5: 2 | AI5: 8 | AJ5: 7 | AK5: 6 | AL5: 6 | AM5: 1 | AN5: 2 | AO5: 9 | AP5: 6 | AQ5: 2 | AR5: 1
A6: Grants Awarded | AL6: 0 | AM6: 0 | AN6: 0 | AO6: 0 | AP6: 0 | AQ6: 0 | AR6: 0
A7: Facility Rentals | AL7: 44 | AM7: 52 | AN7: 54 | AO7: 42 | AP7: 27 | AQ7: 21 | AR7: 22
A8: Registered Program Participants (Youth) | AL8: 529 | AM8: 293 | AN8: 46 | AO8: 76 | AP8: 245 | AQ8: 16 | AR8: 32
A9: Registered Program Participants (Adult) | AL9: 144 | AM9: 132 | AN9: 225 | AO9: 41 | AP9: 0 | AQ9: 170 | AR9: 19
A10: Hours of Program Participation (Youth) | T10: 7170 | U10: 4468.75 | W10: 14666.5 | X10: 6520 | Y10: 15516.25 | Z10: 17375 | AA10: 8675 | AB10: 20884.75 | AC10: 11156.25 | AD10: 11156.25 | AE10: 6364.25 | AF10: 3832.75 | AG10: 5817.25 | AH10: 4450 | AI10: 4626.5 | AJ10: 4744 | AK10: 4331.25 | AL10: 5006.25 | AM10: 7410 | AN10: 14251.5 | AO10: 11831.75 | AP10: 11487.25 | AQ10: 7591.25 | AR10: 9431
A11: Hours of Program Participation (Adult) | T11: 2518 | U11: 212 | W11: 4350 | X11: 5334.5 | Y11: 1284 | Z11: 708 | AA11: 2736.5 | AB11: 1441.5 | AC11: 2472.5 | AD11: 2472.5 | AE11: 489 | AF11: 1231 | AG11: 1450 | AH11: 2593 | AI11: 3737 | AJ11: 4122 | AK11: 1741 | AL11: 1286.5 | AM11: 1532 | AN11: 3701 | AO11: 3872 | AP11: 2855 | AQ11: 2628 | AR11: 2021
A12: Volunteer Hours Worked | T12: 840 | U12: 365 | V12: 1022.5 | W12: 787.25 | X12: 776 | Y12: 818 | Z12: 449 | AA12: 1421.5 | AB12: 1599.25 | AC12: 1228.25 | AD12: 1228.25 | AE12: 823 | AF12: 684.25 | AG12: 427.25 | AH12: 855.25 | AI12: 4803 | AJ12: 478.5 | AK12: 645 | AL12: 435.5 | AM12: 620.25 | AN12: 1295.5 | AO12: 1030 | AP12: 1111.5 | AQ12: 818.5 | AR12: 684
A13: Staff Injuries (Parks) | T13: 1 | U13: 2 | V13: 0 | W13: 0 | X13: 0 | Y13: 4 | Z13: 0 | AA13: 0 | AB13: 0 | AC13: 0 | AD13: 0 | AE13: 0 | AF13: 0 | AG13: 0 | AH13: 0 | AI13: 0 | AJ13: 0 | AK13: 1 | AL13: 0 | AM13: 0 | AN13: 0 | AO13: 0 | AP13: 0 | AQ13: 0 | AR13: 0
A14: Crimes Reported on Park Property | T14: 0 | U14: 2 | V14: 1 | W14: 0 | X14: 0 | Y14: 3 | Z14: 0 | AA14: 0 | AB14: 2 | AC14: 3 | AD14: 3 | AE14: 2 | AF14: 1 | AG14: 0 | AH14: 7 | AI14: 2 | AJ14: 5 | AK14: 3 | AL14: 0 | AM14: 0 | AN14: 2 | AO14: 8 | AP14: 2 | AQ14: 0 | AR14: 0
A15: Documented Participant Injuries | T15: 2 | U15: 0 | V15: 0 | W15: 3 | X15: 5 | Y15: 28 | Z15: 13 | AA15: 1 | AB15: 4 | AC15: 1 | AD15: 1 | AE15: 2 | AF15: 0 | AG15: 0 | AH15: 1 | AI15: 2 | AJ15: 11 | AK15: 27 | AL15: 19 | AM15: 10 | AN15: 2 | AO15: 4 | AP15: 1 | AQ15: 0 | AR15: 1
A27: HIGHLIGHTS | B27: 2008-07-01 | C27: 2008-08-01 | D27: 2008-09-01 | E27: 2008-10-01 | F27: 2008-11-01 | G27: 2008-12-01 | H27: 2009-01-01 | I27: 2009-02-01 | J27: 2009-03-01 | K27: 2009-04-01 | L27: 2009-05-01 | M27: 2009-06-01 | N27: 2009-07-01 | O27: 2009-08-01 | P27: 2009-09-01 | Q27: 2009-10-01 | R27: 2009-11-01 | S27: 2009-12-01 | T27: 2010-01-01 | U27: 2010-02-01 | V27: 2010-03-01 | W27: 2010-04-01 | X27: 2010-05-01 | Y27: 2010-06-01 | Z27: 2010-07-01 | AA27: 2010-08-01 | AB27: 2010-09-01 | AC27: 2010-10-01 | AD27: 2010-11-01 | AE27: 2010-12-01 | AF27: 2011-01-01 | AG27: 2011-02-01 | AH27: 2011-03-01 | AI27: 2011-04-01 | AJ27: 2011-05-01 | AK27: 2011-06-01 | AL27: 2011-07-01 | AM27: 2011-08-01 | AN27: 2011-09-01 | AO27: 2011-10-01 | AP27: 2011-11-01 | AQ27: 2011-12-01 | AR27: 2012-01-01
A28: Highlight 1 | AM28: 1. Set a new record for attendance of the monthly "Moonlight Hike" with over 100 participants. | AN28: 1. Hosted Pioneer Days from September 2nd through the 5th (3rd Year). Attendance was good on Friday and Saturday, however, Sunday's attendance was lower than expected. Due to rain, fireworks and activities on Monday were cancelled. | AO28: Hosted several special events including Football Youth Night at Cartersville High School, Outdoor Movie Night, October Moonlight Hike, Gymnastics Exhibition and Open Lessons at the Library, Girl Scout Party, and the 8u, 10u, and 12u Football Challenge. | AP28: Hosted the Halloween Festival on October 29th, with approximately 1,500 in attendance. | AQ28: December 3-4: hosted Boys Gymnastics Meet approx 200 participants | AR28: SAC was closed Dec 31 - Jan 2, Jan 16, closed early Jan 23 & 28 (weather). 1,078 sign-ins at the SAC of those 1,020 participated in classes
A29: Highlight 2 | AM29: 2. Andre Fluellen Football Camp held in partnership with the Cartersville Parks and Recreation Department. | AN29: 2. Hosted another successful Moonlight Hike on Pine Mountain on September 12th. | AO29: Registered 76 youth participants for basketball. | AP29: Held the Nifty November Gymnastics Meet from November 4th - 6th, with 310 participants attending. | AQ29: December 10: Youth Basketball season began with 11 games in, program consist of 30 teams | AR29: Adult Basketball Season began
A30: Highlight 3 | AN30: 3. Hosted a fishing event at Dellinger Park Lake for National Hunting and Fishing Day on September 24th. | AO30: There were seven "smash and grab" robberies on park property during the month of October. | AP30: During the week of November 14th through 19th, CPRD hosted the GRPA 5th District Youth Football Tournament. | AQ30: December 10: Pine Mountain Moonlight hike | AR30: ="Gymnastics competed in 5 meets:"&CHAR(10)&" Level 3 girls: 1st place team, 4 all around & 14 individual event champions" & CHAR(10) & " Level 4-10 boys: Level 4: 2nd place team, 1 all around & 10 individual event champions" & CHAR(10) & " Level 7-10 girls: Level 8: 1st place team, Level 7: 3rd place team, 7 individual event champions" & CHAR(10) & " Level 5-10 boys: Level 5: 1st place team, 3 all around, 12 individula event champions" -> Gymnastics competed in 5 meets: Level 3 girls: 1st place team, 4 all around & 14 individual event champions Level 4-10 boys: Level 4: 2nd place team, 1 all around & 10 individual event champions Level 7-10 girls: Level 8: 1st place team, Level 7: 3rd place team, 7 individual event champions Level 5-10 boys: Level 5: 1st place team, 3 all around, 12 individula event champions
A31: Highlight 4 | AN31: 4. Started Fall Football and Cheerleading programs. | AP31: On November 19th, Sam Smith Park hosted the United Way for Bartow County "Turkey Trot" Road Race with 295 runners participating. | AQ31: December 21: Pine Mountain Winter Solstice Hikes: 3 participants for the morning/evening hikes (weather was rainy & cold) | AR31: Tennis: Cartersville High School, Cartersville Middle School & Excel Christian Academy started practice during January in addition to EVTA & CPRD classes leaving 2 courts available to the public during prime afternoon/evening hours
A32: Highlight 5 | AN32: 5. Began construction on Phase II of the Pettit Creek Trail. | AP32: The Youth Basketball Program began the week of November 14th. | AR32: Cartersville Little League & Cartersville-Bartow Youth Soccer Association (CBYSA) began registration; soccer takes all their registrations online
A33: Highlight 6 | AP33: The Cartersville Civic Center hosted two Feed the Community meals: "Feed the Community," sponsored by New Frontier Club on November 19th and "Feed the Hungry," sponsored by Creekside Fellowship on November 23rd. | AR33: CPRD hosted the Georgia Recreation & Parks Association (GRPA) 5th District Athletic Meeting
A34: Highlight 7 | AR34: Challenger Basketball (3 teams & 1 cheer) began in January for special needs children (ages 4-12). This is the first time in several years that this program has been offered.
A35: Highlight 8
A36: Highlights Concaetenation | B36: =B28&CHAR(10)&CHAR(10)&B29&CHAR(10)&CHAR(10)&B30&CHAR(10)&CHAR(10)&B31&CHAR(10)&CHAR(10)&B32&CHAR(10)&CHAR(10)&B33&CHAR(10)&CHAR(10)&B34&CHAR(10)&CHAR(10)&B35 ->  | AM36: 1. Set a new record for attendance of the monthly "Moonlight Hike" with over 100 participants. 2. Andre Fluellen Football Camp held in partnership with the Cartersville Parks and Recreation Department. | AN36: =AN28&CHAR(10)&CHAR(10)&AN29&CHAR(10)&CHAR(10)&AN30&CHAR(10)&CHAR(10)&AN31&CHAR(10)&CHAR(10)&AN32&CHAR(10)&CHAR(10)&AN33&CHAR(10)&CHAR(10)&AN34&CHAR(10)&CHAR(10)&AN35 -> 1. Hosted Pioneer Days from September 2nd through the 5th (3rd Year). Attendance was good on Friday and Saturday, however, Sunday's attendance was lower than expected. Due to rain, fireworks and activities on Monday were cancelled. 2. Hosted another successful Moonlight Hike on Pine Mountain on September 12th. 3. Hosted a fishing event at Dellinger Park Lake for National Hunting and Fishing Day on September 24th. 4. Started Fall Football and Cheerleading programs. 5. Began construction on Phase II of the Pettit Creek Trail. | AO36: =AO28&CHAR(10)&CHAR(10)&AO29&CHAR(10)&CHAR(10)&AO30&CHAR(10)&CHAR(10)&AO31&CHAR(10)&CHAR(10)&AO32&CHAR(10)&CHAR(10)&AO33&CHAR(10)&CHAR(10)&AO34&CHAR(10)&CHAR(10)&AO35 -> Hosted several special events including Football Youth Night at Cartersville High School, Outdoor Movie Night, October Moonlight Hike, Gymnastics Exhibition and Open Lessons at the Library, Girl Scout Party, and the 8u, 10u, and 12u Football Challenge. Registered 76 youth participants for basketball. There were seven "smash and grab" robberies on park property during the month of October. | AP36: Hosted the Halloween Festival on October 29th, with approximately 1,500 in attendance. Held the Nifty November Gymnastics Meet from November 4th - 6th, with 310 participants attending. During the week of November 14th through 19th, CPRD hosted the GRPA 5th District Youth Football Tournament. On November 19th, Sam Smith Park hosted the United Way for Bartow County "Turkey Trot" Road Race with 295 runners participating. The Youth Basketball Program began the week of November 14th. The Cartersville Civic Center hosted two Feed the Community meals: "Feed the Community," sponsored by New Frontier Club on November 19th and "Feed the Hungry," sponsored by Creekside Fellowship on November 23rd. | AQ36: December 3-4: hosted Boys Gymnastics Meet approx 200 participants December 10: Youth Basketball season began with 11 games in, program consist of 30 teams December 10: Pine Mountain Moonlight hike December 21: Pine Mountain Winter Solstice Hikes: 3 participants for the morning/evening hikes (weather was rainy & cold) | AR36: SAC was closed Dec 31 - Jan 2, Jan 16, closed early Jan 23 & 28 (weather). 1,078 sign-ins at the SAC of those 1,020 participated in classes Adult Basketball Season began Gymnastics competed in 5 meets: Level 3 girls: 1st place team, 4 all around & 14 individual event champions Level 4-10 boys: Level 4: 2nd place team, 1 all around & 10 individual event champions Level 7-10 girls: Level 8: 1st place team, Level 7: 3rd place team, 7 individual event champions Level 5-10 boys: Level 5: 1st place team, 3 all around, 12 individula event champions Tennis: Cartersville High School, Cartersville Middle School & Excel Christian Academy started practice during January in addition to EVTA & CPRD classes leaving 2 courts available to the public during prime afternoon/evening hours Cartersville Little League & Cartersville-Bartow Youth Soccer Association (CBYSA) began registration; soccer takes all their registrations online CPRD hosted the Georgia Recreation & Parks Association (GRPA) 5th District Athletic Meeting Challenger Basketball (3 teams & 1 cheer) began in January for special needs children (ages 4-12). This is the first time in several years that this program has been offered.
A40: Bullet Chart Source | B40: Target | C40: What's Better? | D40: Band 1 | E40: Band 2 | F40: YTD Type | G40: Max Scale | H40: Actual 1 | I40: Actual | J40: Actual 3 | K40: Projection 1 | L40: Projection 2 | M40: Projection 3 | N40: First Zone 1 | O40: First Zone 2 | P40: First Zone 3 | Q40: Second Zone 1 | R40: Second Zone 2 | S40: Second Zone 3 | T40: Previous X 1 | U40: Previous X 2 | V40: Previous Y 1 | W40: Previous Y 2
A41: =A5 -> Special Events Conducted/ Hosted/Sponsored | B41: 78 | C41: More | D41: 0.85 | E41: 1 | F41: Sum | G41: =ROUNDUP((ROUNDUP(MAX(B41,SUM(I41,L41)),-LEN(EVEN(MAX(B41,SUM(I41,L41))))+2)/5),-LEN(EVEN(ROUNDUP(MAX(B41,SUM(I41,L41)),-LEN(EVEN(MAX(B41,SUM(I41,L41))))+2)/5))+1)*5 -> 100 | H41: 0 | I41: =IF(F41="Sum",SUM(OFFSET(A5,0,YTDBeg,1,YTDWidth)),AVERAGE(OFFSET(A5,0,YTDBeg,1,YTDWidth))) -> 27 | J41: 0 | K41: 0 | L41: =IF(F41="Sum",Projection*(I41/YTDWidth*12-I41),0) -> 0 | M41: 0 | N41: =B41*D41 -> 66.3 | O41: =((I41+L41<=N41)*(N41-(I41+L41))) -> 39.3 | P41: =N41 -> 66.3 | Q41: =(E41-D41)*B41 -> 11.7 | R41: =((I41+L41<=N41+Q41)*((N41+Q41)-(I41+L41+O41))) -> 11.7 | S41: =Q41 -> 11.7 | T41: =IF(F41="Sum",SUM(OFFSET(A5,0,YTDBeg-12,1,YTDWidth)),AVERAGE(OFFSET(A5,0,YTDBeg-12,1,YTDWidth))) -> 21 | U41: =T41 -> 21 | V41: 1 | W41: 2
A42: =A6 -> Grants Awarded | B42: 2 | C42: More | D42: 0.85 | E42: 1 | F42: Sum | G42: =ROUNDUP((ROUNDUP(MAX(B42,SUM(I42,L42)),-LEN(EVEN(MAX(B42,SUM(I42,L42))))+2)/5),-LEN(EVEN(ROUNDUP(MAX(B42,SUM(I42,L42)),-LEN(EVEN(MAX(B42,SUM(I42,L42))))+2)/5))+1)*5 -> 5 | H42: 0 | I42: 0 | J42: 0 | K42: 0 | L42: 0 | M42: 0 | N42: 1.7 | O42: =((I42+L42<=N42)*(N42-(I42+L42))) -> 1.7 | P42: =N42 -> 1.7 | Q42: 0.3 | R42: =((I42+L42<=N42+Q42)*((N42+Q42)-(I42+L42+O42))) -> 0.3 | S42: =Q42 -> 0.3 | U42: =T42 ->  | V42: 1 | W42: 2
A43: Facility Rentals | B43: 1150 | C43: More | D43: 0.85 | E43: 1 | F43: Sum | G43: =ROUNDUP((ROUNDUP(MAX(B43,SUM(I43,L43)),-LEN(EVEN(MAX(B43,SUM(I43,L43))))+2)/5),-LEN(EVEN(ROUNDUP(MAX(B43,SUM(I43,L43)),-LEN(EVEN(MAX(B43,SUM(I43,L43))))+2)/5))+1)*5 -> 1500 | H43: 0 | I43: 262 | J43: 0 | K43: 0 | L43: 0 | M43: 0 | N43: 977.5 | O43: 715.5 | P43: 977.5 | Q43: 172.5 | R43: 172.5 | S43: 172.5 | V43: 1 | W43: 2
A44: Registered Program Participants (Youth) | B44: 2700 | C44: More | D44: 0.85 | E44: 1 | F44: Sum | G44: 3000 | H44: 0 | I44: 1237 | J44: 0 | K44: 0 | L44: 0 | M44: 0 | N44: 2295 | O44: 1058 | P44: 2295 | Q44: 405 | R44: 405 | S44: 405 | V44: 1 | W44: 2
A45: Registered Program Participants (Adult) | B45: 1200 | C45: More | D45: 0.85 | E45: 1 | F45: Sum | G45: 1500 | H45: 0 | I45: 731 | J45: 0 | K45: 0 | L45: 0 | M45: 0 | N45: 1020 | O45: 289 | P45: 1020 | Q45: 180 | R45: 180 | S45: 180 | V45: 1 | W45: 2
A46: Hours of Program Participation (Youth) | B46: 135500 | C46: More | D46: 0.85 | E46: 1 | F46: Sum | G46: 150000 | H46: 0 | I46: 67009 | J46: 0 | K46: 0 | L46: 0 | M46: 0 | N46: 115175 | O46: 48166 | P46: 115175 | Q46: 20325 | R46: 20325 | S46: 20325 | T46: 79444.25 | U46: 79444.25 | V46: 1 | W46: 2
A47: Hours of Program Participation (Adult) | B47: 26500 | C47: More | D47: 0.85 | E47: 1 | F47: Sum | G47: 30000 | H47: 0 | I47: 17895.5 | J47: 0 | K47: 0 | L47: 0 | M47: 0 | N47: 22525 | O47: 4629.5 | P47: 22525 | Q47: 3975 | R47: 3975 | S47: 3975 | T47: 11551 | U47: 11551 | V47: 1 | W47: 2
A48: Volunteer Hours Worked | B48: 11500 | C48: More | D48: 0.85 | E48: 1 | F48: Sum | G48: 15000 | H48: 0 | I48: 5995.25 | J48: 0 | K48: 0 | L48: 0 | M48: 0 | N48: 9775 | O48: 3779.75 | P48: 9775 | Q48: 1725 | R48: 1725 | S48: 1725 | T48: 7433.5 | U48: 7433.5 | V48: 1 | W48: 2
A49: Staff Injuries (Parks) | B49: 0 | C49: Less | D49: 1 | E49: 1.15 | F49: Sum | G49: 0 | H49: 0 | I49: 0 | J49: 0 | K49: 0 | L49: 0 | M49: 0 | N49: 0 | O49: 0 | P49: 0 | Q49: 0 | R49: 0 | S49: 0 | T49: 0 | U49: 0 | V49: 1 | W49: 2
A50: Crimes Reported on Park Property | B50: 10 | C50: Less | D50: 1 | E50: 1.15 | F50: Sum | G50: 15 | H50: 0 | I50: 12 | J50: 0 | K50: 0 | L50: 0 | M50: 0 | N50: 10 | O50: 0 | P50: 10 | Q50: 1.5 | R50: 0 | S50: 1.5 | T50: 11 | U50: 11 | V50: 1 | W50: 2
A51: Documented Participant Injuries | B51: 10 | C51: Less | D51: 1 | E51: 1.15 | F51: Sum | G51: 40 | H51: 0 | I51: 37 | J51: 0 | K51: 0 | L51: 0 | M51: 0 | N51: 10 | O51: 0 | P51: 10 | Q51: 1.5 | R51: 0 | S51: 1.5 | T51: 22 | U51: 22 | V51: 1 | W51: 2
A65: SPARKLINE SOURCE
B66: 11 | C66: 10 | D66: 9 | E66: 8 | F66: 7 | G66: 6 | H66: 5 | I66: 4 | J66: 3 | K66: 2 | L66: 1 | M66: 0
A67: Measure | B67: =OFFSET($A4,0,CurrentMonthCount-B$66,1,1) -> 2011-02-01 | C67: 2011-03-01 | D67: 2011-04-01 | E67: 2011-05-01 | F67: 2011-06-01 | G67: 2011-07-01 | H67: 2011-08-01 | I67: 2011-09-01 | J67: 2011-10-01 | K67: 2011-11-01 | L67: 2011-12-01 | M67: 2012-01-01
A68: =A5 -> Special Events Conducted/ Hosted/Sponsored | B68: =OFFSET($A5,0,CurrentMonthCount-B$66,1,1) -> 4 | C68: 2 | D68: 8 | E68: 7 | F68: 6 | G68: 6 | H68: 1 | I68: 2 | J68: 9 | K68: 6 | L68: 2 | M68: 1
A69: =A6 -> Grants Awarded | B69: =OFFSET($A6,0,CurrentMonthCount-B$66,1,1) ->  | G69: 0 | H69: 0 | I69: 0 | J69: 0 | K69: 0 | L69: 0 | M69: 0
A70: Facility Rentals | B70: =OFFSET($A7,0,CurrentMonthCount-B$66,1,1) ->  | G70: 44 | H70: 52 | I70: 54 | J70: 42 | K70: 27 | L70: 21 | M70: 22
A71: Registered Program Participants (Youth) | B71: =OFFSET($A8,0,CurrentMonthCount-B$66,1,1) ->  | G71: 529 | H71: 293 | I71: 46 | J71: 76 | K71: 245 | L71: 16 | M71: 32
A72: Registered Program Participants (Adult) | B72: =OFFSET($A9,0,CurrentMonthCount-B$66,1,1) ->  | G72: 144 | H72: 132 | I72: 225 | J72: 41 | K72: 0 | L72: 170 | M72: 19
A73: Hours of Program Participation (Youth) | B73: =OFFSET($A10,0,CurrentMonthCount-B$66,1,1) -> 5817.25 | C73: 4450 | D73: 4626.5 | E73: 4744 | F73: 4331.25 | G73: 5006.25 | H73: 7410 | I73: 14251.5 | J73: 11831.75 | K73: 11487.25 | L73: 7591.25 | M73: 9431
A74: Hours of Program Participation (Adult) | B74: =OFFSET($A11,0,CurrentMonthCount-B$66,1,1) -> 1450 | C74: 2593 | D74: 3737 | E74: 4122 | F74: 1741 | G74: 1286.5 | H74: 1532 | I74: 3701 | J74: 3872 | K74: 2855 | L74: 2628 | M74: 2021
A75: Volunteer Hours Worked | B75: =OFFSET($A12,0,CurrentMonthCount-B$66,1,1) -> 427.25 | C75: 855.25 | D75: 4803 | E75: 478.5 | F75: 645 | G75: 435.5 | H75: 620.25 | I75: 1295.5 | J75: 1030 | K75: 1111.5 | L75: 818.5 | M75: 684
A76: Staff Injuries (Parks) | B76: =OFFSET($A13,0,CurrentMonthCount-B$66,1,1) -> 0 | C76: 0 | D76: 0 | E76: 0 | F76: 1 | G76: 0 | H76: 0 | I76: 0 | J76: 0 | K76: 0 | L76: 0 | M76: 0
A77: Crimes Reported on Park Property | B77: =OFFSET($A14,0,CurrentMonthCount-B$66,1,1) -> 0 | C77: 7 | D77: 2 | E77: 5 | F77: 3 | G77: 0 | H77: 0 | I77: 2 | J77: 8 | K77: 2 | L77: 0 | M77: 0
A78: Documented Participant Injuries | B78: =OFFSET($A15,0,CurrentMonthCount-B$66,1,1) -> 0 | C78: 1 | D78: 2 | E78: 11 | F78: 27 | G78: 19 | H78: 10 | I78: 2 | J78: 4 | K78: 1 | L78: 0 | M78: 1
A79: 0 | B79: =OFFSET($A16,0,CurrentMonthCount-B$66,1,1) -> 0 | C79: 0 | D79: 0 | E79: 0 | F79: 0 | G79: 0 | H79: 0 | I79: 0 | J79: 0 | K79: 0 | L79: 0 | M79: 0
A80: 0 | B80: =OFFSET($A17,0,CurrentMonthCount-B$66,1,1) -> 0 | C80: 0 | D80: 0 | E80: 0 | F80: 0 | G80: 0 | H80: 0 | I80: 0 | J80: 0 | K80: 0 | L80: 0 | M80: 0
A81: 0 | B81: =OFFSET($A18,0,CurrentMonthCount-B$66,1,1) -> 0 | C81: 0 | D81: 0 | E81: 0 | F81: 0 | G81: 0 | H81: 0 | I81: 0 | J81: 0 | K81: 0 | L81: 0 | M81: 0
A82: 0 | B82: =OFFSET($A19,0,CurrentMonthCount-B$66,1,1) -> 0 | C82: 0 | D82: 0 | E82: 0 | F82: 0 | G82: 0 | H82: 0 | I82: 0 | J82: 0 | K82: 0 | L82: 0 | M82: 0
A83: 0 | B83: =OFFSET($A20,0,CurrentMonthCount-B$66,1,1) -> 0 | C83: 0 | D83: 0 | E83: 0 | F83: 0 | G83: 0 | H83: 0 | I83: 0 | J83: 0 | K83: 0 | L83: 0 | M83: 0
A84: 0 | B84: =OFFSET($A21,0,CurrentMonthCount-B$66,1,1) -> 0 | C84: 0 | D84: 0 | E84: 0 | F84: 0 | G84: 0 | H84: 0 | I84: 0 | J84: 0 | K84: 0 | L84: 0 | M84: 0
A85: 0 | B85: =OFFSET($A22,0,CurrentMonthCount-B$66,1,1) -> 0 | C85: 0 | D85: 0 | E85: 0 | F85: 0 | G85: 0 | H85: 0 | I85: 0 | J85: 0 | K85: 0 | L85: 0 | M85: 0
A86: 0 | B86: =OFFSET($A23,0,CurrentMonthCount-B$66,1,1) -> 0 | C86: 0 | D86: 0 | E86: 0 | F86: 0 | G86: 0 | H86: 0 | I86: 0 | J86: 0 | K86: 0 | L86: 0 | M86: 0
A87: 0 | B87: =OFFSET($A24,0,CurrentMonthCount-B$66,1,1) -> 0 | C87: 0 | D87: 0 | E87: 0 | F87: 0 | G87: 0 | H87: 0 | I87: 0 | J87: 0 | K87: 0 | L87: 0 | M87: 0
A95: Boys basketball.
A110: Girls basketball.

Sheet Public
A1: =CurrentMonth -> 2012-01-01 | E1: PUBLIC WORKS
A3: Roads/Sidewalks | B3: Last 12 Months | C3: Fiscal Year to Date | D3: FYTD | F3: Facilities | G3: Last 12 Months | H3: Fiscal Year to Date | I3: FYTD
A4: ='Public Data'!A5 -> Road Maintenance Work Orders Completed | D4: ='Public Data'!I41 -> 304 | F4: ='Public Data'!A12 -> Tree Trimming Work Orders Completed | I4: ='Public Data'!I48 -> 79
A5: ='Public Data'!A6 -> Pot Holes Repaired | D5: ='Public Data'!I42 -> 68 | F5: ='Public Data'!A13 -> Landscaping Work Orders Completed | I5: ='Public Data'!I49 -> 20
A6: ='Public Data'!A7 -> Tons of Asphalt Spread | D6: ='Public Data'!I43 -> 107 | F6: ='Public Data'!A14 -> Facility Maintenance Work Orders Completed | I6: ='Public Data'!I50 -> 40
A7: ='Public Data'!A8 -> Utility Cuts Repaired | D7: ='Public Data'!I44 -> 186
A8: ='Public Data'!A9 -> Square Feet of Sidewalk Repaired | D8: ='Public Data'!I45 -> 15635 | F8: Human Resources
A9: ='Public Data'!A10 -> Roadside Mowing (Lane Miles) | D9: ='Public Data'!I46 -> 458.9 | F9: ='Public Data'!A15 -> Staff Injuries (Public Works) | I9: ='Public Data'!I51 -> 1
A10: ='Public Data'!A11 -> Complaints Received About Road Conditions | D10: ='Public Data'!I47 -> 63

Sheet Public Data (hidden)
A1: Public Data
A4: Measure | B4: 2008-07-01 | C4: 2008-08-01 | D4: 2008-09-01 | E4: 2008-10-01 | F4: 2008-11-01 | G4: 2008-12-01 | H4: 2009-01-01 | I4: 2009-02-01 | J4: 2009-03-01 | K4: 2009-04-01 | L4: 2009-05-01 | M4: 2009-06-01 | N4: 2009-07-01 | O4: 2009-08-01 | P4: 2009-09-01 | Q4: 2009-10-01 | R4: 2009-11-01 | S4: 2009-12-01 | T4: 2010-01-01 | U4: 2010-02-01 | V4: 2010-03-01 | W4: 2010-04-01 | X4: 2010-05-01 | Y4: 2010-06-01 | Z4: 2010-07-01 | AA4: 2010-08-01 | AB4: 2010-09-01 | AC4: 2010-10-01 | AD4: 2010-11-01 | AE4: 2010-12-01 | AF4: 2011-01-01 | AG4: 2011-02-01 | AH4: 2011-03-01 | AI4: 2011-04-01 | AJ4: 2011-05-01 | AK4: 2011-06-01 | AL4: 2011-07-01 | AM4: 2011-08-01 | AN4: 2011-09-01 | AO4: 2011-10-01 | AP4: 2011-11-01 | AQ4: 2011-12-01 | AR4: 2012-01-01
A5: Road Maintenance Work Orders Completed | S5: 18 | T5: 19 | U5: 10 | V5: 29 | W5: 24 | X5: 31 | Y5: 36 | Z5: 23 | AA5: 25 | AB5: 37 | AC5: 79 | AD5: 58 | AE5: 42 | AF5: 50 | AG5: 53 | AH5: 90 | AI5: 72 | AJ5: 45 | AK5: 43 | AL5: 68 | AM5: 54 | AN5: 32 | AO5: 54 | AP5: 17 | AQ5: 38 | AR5: 41
A6: Pot Holes Repaired | S6: 2 | T6: 9 | U6: 58 | V6: 24 | W6: 15 | X6: 22 | Y6: 18 | Z6: 5 | AA6: 8 | AB6: 10 | AC6: 17 | AD6: 3 | AE6: 4 | AF6: 0 | AG6: 40 | AH6: 28 | AI6: 21 | AJ6: 5 | AK6: 9 | AL6: 15 | AM6: 10 | AN6: 5 | AO6: 8 | AP6: 3 | AQ6: 14 | AR6: 13
A7: Tons of Asphalt Spread | S7: 10 | T7: 17 | U7: 52 | V7: 31 | W7: 34 | X7: 17 | Y7: 17 | Z7: 27 | AA7: 13 | AB7: 47 | AC7: 18 | AD7: 7.08 | AE7: 15 | AF7: 13 | AG7: 28 | AH7: 39 | AI7: 24 | AJ7: 5 | AK7: 9 | AL7: 16 | AM7: 15 | AN7: 21 | AO7: 20 | AP7: 8 | AQ7: 9 | AR7: 18
A8: Utility Cuts Repaired | S8: 17 | T8: 34 | U8: 16 | V8: 34 | W8: 39 | X8: 49 | Y8: 40 | Z8: 15 | AA8: 30 | AB8: 48 | AC8: 48 | AD8: 23 | AE8: 7 | AF8: 16 | AG8: 64 | AH8: 65 | AI8: 22 | AJ8: 5 | AK8: 20 | AL8: 39 | AM8: 30 | AN8: 24 | AO8: 31 | AP8: 17 | AQ8: 8 | AR8: 37
A9: Square Feet of Sidewalk Repaired | S9: 12 | T9: 12 | U9: 395 | V9: 225 | W9: 1633 | X9: 1589 | Y9: 490 | Z9: 325 | AA9: 32 | AB9: 435 | AC9: 1188 | AD9: 954 | AE9: 0 | AF9: 1000 | AG9: 1400 | AH9: 3090 | AI9: 4002 | AJ9: 1690 | AK9: 2995 | AL9: 3852 | AM9: 3268 | AN9: 2882 | AO9: 3412 | AP9: 0 | AQ9: 1595 | AR9: 626
A10: Roadside Mowing (Lane Miles) | AL10: 113.6 | AM10: 108 | AN10: 119.3 | AO10: 118 | AP10: 0 | AQ10: 0 | AR10: 0
A11: Complaints Received About Road Conditions | S11: 2 | T11: 4 | U11: 10 | V11: 4 | W11: 11 | X11: 13 | Y11: 7 | Z11: 8 | AA11: 8 | AB11: 5 | AC11: 5 | AD11: 11 | AE11: 8 | AF11: 2 | AG11: 8 | AH11: 6 | AI11: 11 | AJ11: 12 | AK11: 7 | AL11: 13 | AM11: 12 | AN11: 12 | AO11: 11 | AP11: 4 | AQ11: 3 | AR11: 8
A12: Tree Trimming Work Orders Completed | S12: 5 | T12: 5 | U12: 10 | V12: 6 | W12: 12 | X12: 13 | Y12: 15 | Z12: 15 | AA12: 16 | AB12: 21 | AC12: 9 | AD12: 9 | AE12: 11 | AF12: 13 | AG12: 9 | AH12: 5 | AI12: 6 | AJ12: 10 | AK12: 15 | AL12: 7 | AM12: 21 | AN12: 13 | AO12: 8 | AP12: 5 | AQ12: 12 | AR12: 13
A13: Landscaping Work Orders Completed | S13: 2 | T13: 2 | U13: 6 | V13: 6 | W13: 2 | X13: 2 | Y13: 6 | Z13: 0 | AA13: 4 | AB13: 3 | AC13: 11 | AD13: 0 | AE13: 0 | AF13: 1 | AG13: 4 | AH13: 6 | AI13: 8 | AJ13: 6 | AK13: 1 | AL13: 2 | AM13: 1 | AN13: 3 | AO13: 4 | AP13: 6 | AQ13: 2 | AR13: 2
A14: Facility Maintenance Work Orders Completed | S14: 13 | T14: 10 | U14: 10 | V14: 10 | W14: 10 | X14: 14 | Y14: 8 | Z14: 9 | AA14: 7 | AB14: 7 | AC14: 9 | AD14: 2 | AE14: 6 | AF14: 3 | AG14: 4 | AH14: 3 | AI14: 10 | AJ14: 7 | AK14: 1 | AL14: 4 | AM14: 7 | AN14: 4 | AO14: 8 | AP14: 7 | AQ14: 5 | AR14: 5
A15: Staff Injuries (Public Works) | S15: 0 | T15: 0 | U15: 0 | V15: 0 | W15: 0 | X15: 0 | Y15: 0 | Z15: 0 | AA15: 0 | AB15: 0 | AC15: 0 | AD15: 0 | AE15: 0 | AF15: 0 | AG15: 0 | AH15: 0 | AI15: 0 | AJ15: 0 | AK15: 0 | AL15: 1 | AM15: 0 | AN15: 0 | AO15: 0 | AP15: 0 | AQ15: 0
A27: HIGHLIGHTS | B27: 2008-07-01 | C27: 2008-08-01 | D27: 2008-09-01 | E27: 2008-10-01 | F27: 2008-11-01 | G27: 2008-12-01 | H27: 2009-01-01 | I27: 2009-02-01 | J27: 2009-03-01 | K27: 2009-04-01 | L27: 2009-05-01 | M27: 2009-06-01 | N27: 2009-07-01 | O27: 2009-08-01 | P27: 2009-09-01 | Q27: 2009-10-01 | R27: 2009-11-01 | S27: 2009-12-01 | T27: 2010-01-01 | U27: 2010-02-01 | V27: 2010-03-01 | W27: 2010-04-01 | X27: 2010-05-01 | Y27: 2010-06-01 | Z27: 2010-07-01 | AA27: 2010-08-01 | AB27: 2010-09-01 | AC27: 2010-10-01 | AD27: 2010-11-01 | AE27: 2010-12-01 | AF27: 2011-01-01 | AG27: 2011-02-01 | AH27: 2011-03-01 | AI27: 2011-04-01 | AJ27: 2011-05-01 | AK27: 2011-06-01 | AL27: 2011-07-01 | AM27: 2011-08-01 | AN27: 2011-09-01 | AO27: 2011-10-01 | AP27: 2011-11-01 | AQ27: 2011-12-01 | AR27: 2012-01-01
A28: Highlight 1 | AN28: 1. Completed a paint job on the runway and taxi way at the Airport, saving the Airport Authority significant money. | AQ28: West Avenue sidewalk repairs completed.
A29: Highlight 2
A30: Highlight 3
A31: Highlight 4
A32: Highlight 5
A33: Highlight 6
A34: Highlight 7
A35: Highlight 8
A36: Highlights Concaetenation | B36: =B28&CHAR(10)&B29&CHAR(10)&B30&CHAR(10)&B31&CHAR(10)&B32&CHAR(10)&B33&CHAR(10)&B34&CHAR(10)&B35 ->  | C36: =C28&CHAR(10)&C29&CHAR(10)&C30&CHAR(10)&C31&CHAR(10)&C32&CHAR(10)&C33&CHAR(10)&C34&CHAR(10)&C35 ->  | AK36: =AK28&CHAR(10)&CHAR(10)&AK29&CHAR(10)&CHAR(10)&AK30&CHAR(10)&CHAR(10)&AK31&CHAR(10)&CHAR(10)&AK32&CHAR(10)&CHAR(10)&AK33&CHAR(10)&CHAR(10)&AK34&CHAR(10)&CHAR(10)&AK35 ->  | AM36: =AM28&CHAR(10)&CHAR(10)&AM29&CHAR(10)&CHAR(10)&AM30&CHAR(10)&CHAR(10)&AM31&CHAR(10)&CHAR(10)&AM32&CHAR(10)&CHAR(10)&AM33&CHAR(10)&CHAR(10)&AM34&CHAR(10)&CHAR(10)&AM35 ->  | AN36: 1. Completed a paint job on the runway and taxi way at the Airport, saving the Airport Authority significant money. | AQ36: West Avenue sidewalk repairs completed.
A40: Bullet Chart Source | B40: Target | C40: What's Better? | D40: Band 1 | E40: Band 2 | F40: YTD Type | G40: Max Scale | H40: Actual 1 | I40: Actual | J40: Actual 3 | K40: Projection 1 | L40: Projection 2 | M40: Projection 3 | N40: First Zone 1 | O40: First Zone 2 | P40: First Zone 3 | Q40: Second Zone 1 | R40: Second Zone 2 | S40: Second Zone 3 | T40: Previous X 1 | U40: Previous X 2 | V40: Previous Y 1 | W40: Previous Y 2
A41: =A5 -> Road Maintenance Work Orders Completed | B41: 413 | C41: Middle | D41: 0.93 | E41: 1.07 | F41: Sum | G41: =ROUNDUP((ROUNDUP(MAX(B41,SUM(I41,L41)),-LEN(EVEN(MAX(B41,SUM(I41,L41))))+2)/5),-LEN(EVEN(ROUNDUP(MAX(B41,SUM(I41,L41)),-LEN(EVEN(MAX(B41,SUM(I41,L41))))+2)/5))+1)*5 -> 450 | H41: 0 | I41: =IF(F41="Sum",SUM(OFFSET(A5,0,YTDBeg,1,YTDWidth)),AVERAGE(OFFSET(A5,0,YTDBeg,1,YTDWidth))) -> 304 | J41: 0 | K41: 0 | L41: =IF(F41="Sum",Projection*(I41/YTDWidth*12-I41),0) -> 0 | M41: 0 | N41: =B41*D41 -> 384.09 | O41: =((I41+L41<=N41)*(N41-(I41+L41))) -> 80.09 | P41: =N41 -> 384.09 | Q41: =(E41-D41)*B41 -> 57.82 | R41: =((I41+L41<=N41+Q41)*((N41+Q41)-(I41+L41+O41))) -> 57.82 | S41: =Q41 -> 57.82 | T41: =IF(F41="Sum",SUM(OFFSET(A5,0,YTDBeg-12,1,YTDWidth)),AVERAGE(OFFSET(A5,0,YTDBeg-12,1,YTDWidth))) -> 314 | U41: =T41 -> 314 | V41: 1 | W41: 2
A42: =A6 -> Pot Holes Repaired | B42: 193 | C42: Middle | D42: 0.93 | E42: 1.07 | F42: Sum | G42: =ROUNDUP((ROUNDUP(MAX(B42,SUM(I42,L42)),-LEN(EVEN(MAX(B42,SUM(I42,L42))))+2)/5),-LEN(EVEN(ROUNDUP(MAX(B42,SUM(I42,L42)),-LEN(EVEN(MAX(B42,SUM(I42,L42))))+2)/5))+1)*5 -> 200 | H42: 0 | I42: 68 | J42: 0 | K42: 0 | L42: 0 | M42: 0 | N42: 179.49 | O42: =((I42+L42<=N42)*(N42-(I42+L42))) -> 111.49 | P42: =N42 -> 179.49 | Q42: 27.02 | R42: =((I42+L42<=N42+Q42)*((N42+Q42)-(I42+L42+O42))) -> 27.02 | S42: =Q42 -> 27.02 | T42: 47 | U42: =T42 -> 47 | V42: 1 | W42: 2
A43: Tons of Asphalt Spread | B43: 295 | C43: Middle | D43: 0.93 | E43: 1.07 | F43: Sum | G43: 300 | H43: 0 | I43: 107 | J43: 0 | K43: 0 | L43: 0 | M43: 0 | N43: 274.35 | O43: 167.35 | P43: 274.35 | Q43: 41.3 | R43: 41.3 | S43: 41.3 | T43: 140.08 | U43: 140.08 | V43: 1 | W43: 2
A44: Utility Cuts Repaired | B44: 383 | C44: Middle | D44: 0.93 | E44: 1.07 | F44: Sum | G44: 400 | H44: 0 | I44: 186 | J44: 0 | K44: 0 | L44: 0 | M44: 0 | N44: 356.19 | O44: 170.19 | P44: 356.19 | Q44: 53.62 | R44: 53.62 | S44: 53.62 | T44: 187 | U44: 187 | V44: 1 | W44: 2
A45: Square Feet of Sidewalk Repaired | B45: 7278 | C45: More | D45: 0.85 | E45: 1 | F45: Sum | G45: 20000 | H45: 0 | I45: 15635 | J45: 0 | K45: 0 | L45: 0 | M45: 0 | N45: 6186.3 | O45: 0 | P45: 6186.3 | Q45: 1091.7 | R45: 0 | S45: 1091.7 | T45: 3934 | U45: 3934 | V45: 1 | W45: 2
A46: Roadside Mowing (Lane Miles) | B46: 1747 | C46: Middle | D46: 0.93 | E46: 1.07 | F46: Sum | G46: 2000 | H46: 0 | I46: 458.9 | J46: 0 | K46: 0 | L46: 0 | M46: 0 | N46: 1624.71 | O46: 1165.81 | P46: 1624.71 | Q46: 244.58 | R46: 244.58 | S46: 244.58 | V46: 1 | W46: 2
A47: Complaints Received About Road Conditions | B47: 94 | C47: Less | D47: 1 | E47: 1.15 | F47: Sum | G47: 100 | H47: 0 | I47: 63 | J47: 0 | K47: 0 | L47: 0 | M47: 0 | N47: 94 | O47: 31 | P47: 94 | Q47: 14.1 | R47: 14.1 | S47: 14.1 | T47: 47 | U47: 47 | V47: 1 | W47: 2
A48: Tree Trimming Work Orders Completed | B48: 142 | C48: Middle | D48: 0.93 | E48: 1.07 | F48: Sum | G48: 150 | H48: 0 | I48: 79 | J48: 0 | K48: 0 | L48: 0 | M48: 0 | N48: 132.06 | O48: 53.06 | P48: 132.06 | Q48: 19.88 | R48: 19.88 | S48: 19.88 | T48: 94 | U48: 94 | V48: 1 | W48: 2
A49: Landscaping Work Orders Completed | B49: 42 | C49: Middle | D49: 0.93 | E49: 1.07 | F49: Sum | G49: 50 | H49: 0 | I49: 20 | J49: 0 | K49: 0 | L49: 0 | M49: 0 | N49: 39.06 | O49: 19.06 | P49: 39.06 | Q49: 5.88 | R49: 5.88 | S49: 5.88 | T49: 19 | U49: 19 | V49: 1 | W49: 2
A50: Facility Maintenance Work Orders Completed | B50: 102 | C50: Less | D50: 1 | E50: 1.15 | F50: Sum | G50: 150 | H50: 0 | I50: 40 | J50: 0 | K50: 0 | L50: 0 | M50: 0 | N50: 102 | O50: 62 | P50: 102 | Q50: 15.3 | R50: 15.3 | S50: 15.3 | T50: 43 | U50: 43 | V50: 1 | W50: 2
A51: Staff Injuries (Public Works) | B51: 0 | C51: Less | D51: 1 | E51: 1.15 | F51: Sum | G51: 5 | H51: 0 | I51: 1 | J51: 0 | K51: 0 | L51: 0 | M51: 0 | N51: 0 | O51: 0 | P51: 0 | Q51: 0 | R51: 0 | S51: 0 | T51: 0 | U51: 0 | V51: 1 | W51: 2
A65: SPARKLINE SOURCE
B66: 11 | C66: 10 | D66: 9 | E66: 8 | F66: 7 | G66: 6 | H66: 5 | I66: 4 | J66: 3 | K66: 2 | L66: 1 | M66: 0
A67: Measure | B67: =OFFSET($A4,0,CurrentMonthCount-B$66,1,1) -> 2011-02-01 | C67: 2011-03-01 | D67: 2011-04-01 | E67: 2011-05-01 | F67: 2011-06-01 | G67: 2011-07-01 | H67: 2011-08-01 | I67: 2011-09-01 | J67: 2011-10-01 | K67: 2011-11-01 | L67: 2011-12-01 | M67: 2012-01-01
A68: =A5 -> Road Maintenance Work Orders Completed | B68: =OFFSET($A5,0,CurrentMonthCount-B$66,1,1) -> 53 | C68: 90 | D68: 72 | E68: 45 | F68: 43 | G68: 68 | H68: 54 | I68: 32 | J68: 54 | K68: 17 | L68: 38 | M68: 41
A69: =A6 -> Pot Holes Repaired | B69: =OFFSET($A6,0,CurrentMonthCount-B$66,1,1) -> 40 | C69: 28 | D69: 21 | E69: 5 | F69: 9 | G69: 15 | H69: 10 | I69: 5 | J69: 8 | K69: 3 | L69: 14 | M69: 13
A70: Tons of Asphalt Spread | B70: =OFFSET($A7,0,CurrentMonthCount-B$66,1,1) -> 28 | C70: 39 | D70: 24 | E70: 5 | F70: 9 | G70: 16 | H70: 15 | I70: 21 | J70: 20 | K70: 8 | L70: 9 | M70: 18
A71: Utility Cuts Repaired | B71: =OFFSET($A8,0,CurrentMonthCount-B$66,1,1) -> 64 | C71: 65 | D71: 22 | E71: 5 | F71: 20 | G71: 39 | H71: 30 | I71: 24 | J71: 31 | K71: 17 | L71: 8 | M71: 37
A72: Square Feet of Sidewalk Repaired | B72: =OFFSET($A9,0,CurrentMonthCount-B$66,1,1) -> 1400 | C72: 3090 | D72: 4002 | E72: 1690 | F72: 2995 | G72: 3852 | H72: 3268 | I72: 2882 | J72: 3412 | K72: 0 | L72: 1595 | M72: 626
A73: Roadside Mowing (Lane Miles) | B73: =OFFSET($A10,0,CurrentMonthCount-B$66,1,1) ->  | G73: 113.6 | H73: 108 | I73: 119.3 | J73: 118 | K73: 0 | L73: 0 | M73: 0
A74: Complaints Received About Road Conditions | B74: =OFFSET($A11,0,CurrentMonthCount-B$66,1,1) -> 8 | C74: 6 | D74: 11 | E74: 12 | F74: 7 | G74: 13 | H74: 12 | I74: 12 | J74: 11 | K74: 4 | L74: 3 | M74: 8
A75: Tree Trimming Work Orders Completed | B75: =OFFSET($A12,0,CurrentMonthCount-B$66,1,1) -> 9 | C75: 5 | D75: 6 | E75: 10 | F75: 15 | G75: 7 | H75: 21 | I75: 13 | J75: 8 | K75: 5 | L75: 12 | M75: 13
A76: Landscaping Work Orders Completed | B76: =OFFSET($A13,0,CurrentMonthCount-B$66,1,1) -> 4 | C76: 6 | D76: 8 | E76: 6 | F76: 1 | G76: 2 | H76: 1 | I76: 3 | J76: 4 | K76: 6 | L76: 2 | M76: 2
A77: Facility Maintenance Work Orders Completed | B77: =OFFSET($A14,0,CurrentMonthCount-B$66,1,1) -> 4 | C77: 3 | D77: 10 | E77: 7 | F77: 1 | G77: 4 | H77: 7 | I77: 4 | J77: 8 | K77: 7 | L77: 5 | M77: 5
A78: Staff Injuries (Public Works) | B78: =OFFSET($A15,0,CurrentMonthCount-B$66,1,1) -> 0 | C78: 0 | D78: 0 | E78: 0 | F78: 0 | G78: 1 | H78: 0 | I78: 0 | J78: 0 | K78: 0 | L78: 0 | M78: 0
A79: 0 | B79: =OFFSET($A16,0,CurrentMonthCount-B$66,1,1) -> 0 | C79: 0 | D79: 0 | E79: 0 | F79: 0 | G79: 0 | H79: 0 | I79: 0 | J79: 0 | K79: 0 | L79: 0 | M79: 0
A80: 0 | B80: =OFFSET($A17,0,CurrentMonthCount-B$66,1,1) -> 0 | C80: 0 | D80: 0 | E80: 0 | F80: 0 | G80: 0 | H80: 0 | I80: 0 | J80: 0 | K80: 0 | L80: 0 | M80: 0
A81: 0 | B81: =OFFSET($A18,0,CurrentMonthCount-B$66,1,1) -> 0 | C81: 0 | D81: 0 | E81: 0 | F81: 0 | G81: 0 | H81: 0 | I81: 0 | J81: 0 | K81: 0 | L81: 0 | M81: 0
A82: 0 | B82: =OFFSET($A19,0,CurrentMonthCount-B$66,1,1) -> 0 | C82: 0 | D82: 0 | E82: 0 | F82: 0 | G82: 0 | H82: 0 | I82: 0 | J82: 0 | K82: 0 | L82: 0 | M82: 0
A83: 0 | B83: =OFFSET($A20,0,CurrentMonthCount-B$66,1,1) -> 0 | C83: 0 | D83: 0 | E83: 0 | F83: 0 | G83: 0 | H83: 0 | I83: 0 | J83: 0 | K83: 0 | L83: 0 | M83: 0
A84: 0 | B84: =OFFSET($A21,0,CurrentMonthCount-B$66,1,1) -> 0 | C84: 0 | D84: 0 | E84: 0 | F84: 0 | G84: 0 | H84: 0 | I84: 0 | J84: 0 | K84: 0 | L84: 0 | M84: 0
A85: 0 | B85: =OFFSET($A22,0,CurrentMonthCount-B$66,1,1) -> 0 | C85: 0 | D85: 0 | E85: 0 | F85: 0 | G85: 0 | H85: 0 | I85: 0 | J85: 0 | K85: 0 | L85: 0 | M85: 0
A86: 0 | B86: =OFFSET($A23,0,CurrentMonthCount-B$66,1,1) -> 0 | C86: 0 | D86: 0 | E86: 0 | F86: 0 | G86: 0 | H86: 0 | I86: 0 | J86: 0 | K86: 0 | L86: 0 | M86: 0
A87: 0 | B87: =OFFSET($A24,0,CurrentMonthCount-B$66,1,1) -> 0 | C87: 0 | D87: 0 | E87: 0 | F87: 0 | G87: 0 | H87: 0 | I87: 0 | J87: 0 | K87: 0 | L87: 0 | M87: 0
A105: Pictures
A107: Public Works crews have been working on repairing sidewalks at various locations around the city. Pictured on the left is a sidewalk repair project on Cherokee St, near the intersection of Cherokee and Tennessee.
A108: A recently repaired sidewalk at the intersection of Cherokee and Erwin, in front of the Gold Dome Courthouse.

Sheet Planning
A1: =CurrentMonth -> 2012-01-01 | E1: PLANNING & DEVELOPMENT
A3: Development | B3: Last 12 Months | C3: Fiscal Year to Date | D3: FYTD | F3: Licenses | G3: Last 12 Months | H3: Fiscal Year to Date | I3: FYTD
A4: ='Planning Data'!A5 -> Residential Building Permits Issued | D4: ='Planning Data'!I41 -> 2 | F4: ='Planning Data'!A16 -> New Business Licenses Issued | I4: ='Planning Data'!I52 -> 127
A5: ='Planning Data'!A6 -> Remodel Permits Issued | D5: ='Planning Data'!I42 -> 31 | F5: ='Planning Data'!A17 -> Business Licenses Renewed | I5: ='Planning Data'!I53 -> 740
A6: ='Planning Data'!A7 -> Non-residential Building Permits Issued | D6: ='Planning Data'!I43 -> 25 | F6: ='Planning Data'!A18 -> New Alcohol Licenses Issued | I6: ='Planning Data'!I54 -> 7
A7: ='Planning Data'!A8 -> Land Disturbance Permits Issued | D7: ='Planning Data'!I44 -> 2 | F7: ='Planning Data'!A19 -> Alcohol Licenses Renewed | I7: ='Planning Data'!I55 -> 161
A8: ='Planning Data'!A9 -> Sign Permits Issued | D8: ='Planning Data'!I45 -> 51
A9: ='Planning Data'!A10 -> Inspections Performed | D9: ='Planning Data'!I46 -> 180 | F9: Neighborhoods
A10: ='Planning Data'!A11 -> Annexation Cases | D10: ='Planning Data'!I47 -> 2 | F10: ='Planning Data'!A20 -> Code Violations | I10: ='Planning Data'!I56 -> 424
A11: ='Planning Data'!A12 -> Zoning Cases | D11: ='Planning Data'!I48 -> 2 | F11: ='Planning Data'!A21 -> Foreclosure Notices | I11: ='Planning Data'!I57 -> 129
A12: ='Planning Data'!A13 -> Historic Preservation Cases | D12: ='Planning Data'!I49 -> 7
A13: ='Planning Data'!A14 -> Variance Cases | D13: ='Planning Data'!I50 -> 11
A14: ='Planning Data'!A15 -> Plan Reviews | D14: ='Planning Data'!I51 -> 20

Sheet Planning Data (hidden)
A1: Planning Data
A4: Measure | B4: 2008-07-01 | C4: 2008-08-01 | D4: 2008-09-01 | E4: 2008-10-01 | F4: 2008-11-01 | G4: 2008-12-01 | H4: 2009-01-01 | I4: 2009-02-01 | J4: 2009-03-01 | K4: 2009-04-01 | L4: 2009-05-01 | M4: 2009-06-01 | N4: 2009-07-01 | O4: 2009-08-01 | P4: 2009-09-01 | Q4: 2009-10-01 | R4: 2009-11-01 | S4: 2009-12-01 | T4: 2010-01-01 | U4: 2010-02-01 | V4: 2010-03-01 | W4: 2010-04-01 | X4: 2010-05-01 | Y4: 2010-06-01 | Z4: 2010-07-01 | AA4: 2010-08-01 | AB4: 2010-09-01 | AC4: 2010-10-01 | AD4: 2010-11-01 | AE4: 2010-12-01 | AF4: 2011-01-01 | AG4: 2011-02-01 | AH4: 2011-03-01 | AI4: 2011-04-01 | AJ4: 2011-05-01 | AK4: 2011-06-01 | AL4: 2011-07-01 | AM4: 2011-08-01 | AN4: 2011-09-01 | AO4: 2011-10-01 | AP4: 2011-11-01 | AQ4: 2011-12-01 | AR4: 2012-01-01
A5: Residential Building Permits Issued | T5: 0 | U5: 2 | V5: 0 | W5: 0 | X5: 0 | Y5: 1 | Z5: 2 | AA5: 5 | AB5: 0 | AC5: 0 | AD5: 0 | AE5: 0 | AF5: 0 | AG5: 0 | AH5: 1 | AI5: 1 | AJ5: 1 | AK5: 0 | AL5: 2 | AM5: 0 | AN5: 0 | AO5: 0 | AP5: 0 | AQ5: 0 | AR5: 0
A6: Remodel Permits Issued | T6: 1 | U6: 3 | V6: 5 | W6: 6 | X6: 5 | Y6: 5 | Z6: 9 | AA6: 6 | AB6: 4 | AC6: 5 | AD6: 2 | AE6: 0 | AF6: 0 | AG6: 3 | AH6: 0 | AI6: 5 | AJ6: 5 | AK6: 7 | AL6: 3 | AM6: 3 | AN6: 5 | AO6: 4 | AP6: 4 | AQ6: 5 | AR6: 7
A7: Non-residential Building Permits Issued | T7: 0 | U7: 1 | V7: 5 | W7: 0 | X7: 1 | Y7: 1 | Z7: 1 | AA7: 2 | AB7: 0 | AC7: 2 | AD7: 0 | AE7: 1 | AF7: 4 | AG7: 2 | AH7: 4 | AI7: 3 | AJ7: 6 | AK7: 10 | AL7: 4 | AM7: 5 | AN7: 5 | AO7: 3 | AP7: 2 | AQ7: 0 | AR7: 6
A8: Land Disturbance Permits Issued | T8: 0 | U8: 0 | V8: 0 | W8: 0 | X8: 0 | Y8: 0 | Z8: 0 | AA8: 0 | AB8: 0 | AC8: 0 | AD8: 0 | AE8: 0 | AF8: 1 | AG8: 0 | AH8: 0 | AI8: 0 | AJ8: 2 | AK8: 0 | AL8: 0 | AM8: 0 | AN8: 0 | AO8: 1 | AP8: 1 | AQ8: 0 | AR8: 0
A9: Sign Permits Issued | T9: 13 | U9: 7 | V9: 16 | W9: 14 | X9: 5 | Y9: 7 | Z9: 11 | AA9: 10 | AB9: 6 | AC9: 8 | AD9: 5 | AE9: 2 | AF9: 8 | AG9: 11 | AH9: 11 | AI9: 16 | AJ9: 7 | AK9: 9 | AL9: 8 | AM9: 9 | AN9: 11 | AO9: 7 | AP9: 3 | AQ9: 5 | AR9: 8
A10: Inspections Performed | T10: 45 | U10: 42 | V10: 48 | W10: 40 | X10: 24 | Y10: 24 | Z10: 24 | AA10: 65 | AB10: 31 | AC10: 36 | AD10: 39 | AE10: 10 | AF10: 11 | AG10: 20 | AH10: 40 | AI10: 21 | AJ10: 22 | AK10: 32 | AL10: 37 | AM10: 30 | AN10: 17 | AO10: 13 | AP10: 18 | AQ10: 27 | AR10: 38
A11: Annexation Cases | T11: 0 | U11: 0 | V11: 0 | W11: 0 | X11: 0 | Y11: 0 | Z11: 0 | AA11: 2 | AB11: 0 | AC11: 1 | AD11: 0 | AE11: 1 | AF11: 0 | AG11: 0 | AH11: 0 | AI11: 1 | AJ11: 0 | AK11: 0 | AL11: 0 | AM11: 0 | AN11: 0 | AO11: 0 | AP11: 0 | AQ11: 0 | AR11: 2
A12: Zoning Cases | T12: 0 | U12: 0 | V12: 0 | W12: 0 | X12: 1 | Y12: 1 | Z12: 0 | AA12: 0 | AB12: 1 | AC12: 1 | AD12: 0 | AE12: 1 | AF12: 0 | AG12: 1 | AH12: 0 | AI12: 1 | AJ12: 0 | AK12: 1 | AL12: 0 | AM12: 0 | AN12: 0 | AO12: 0 | AP12: 1 | AQ12: 1 | AR12: 0
A13: Historic Preservation Cases | T13: 0 | U13: 2 | V13: 0 | W13: 0 | X13: 1 | Y13: 2 | Z13: 2 | AA13: 1 | AB13: 1 | AC13: 0 | AD13: 0 | AE13: 1 | AF13: 1 | AG13: 1 | AH13: 0 | AI13: 3 | AJ13: 2 | AK13: 2 | AL13: 1 | AM13: 2 | AN13: 1 | AO13: 2 | AP13: 1 | AQ13: 0 | AR13: 0
A14: Variance Cases | T14: 1 | U14: 2 | V14: 3 | W14: 0 | X14: 1 | Y14: 4 | Z14: 2 | AA14: 0 | AB14: 0 | AC14: 2 | AD14: 1 | AE14: 0 | AF14: 0 | AG14: 1 | AH14: 2 | AI14: 0 | AJ14: 0 | AK14: 4 | AL14: 1 | AM14: 1 | AN14: 1 | AO14: 3 | AP14: 1 | AQ14: 1 | AR14: 3
A15: Plan Reviews | T15: 3 | U15: 2 | V15: 5 | W15: 0 | X15: 7 | Y15: 5 | Z15: 2 | AA15: 6 | AB15: 2 | AC15: 5 | AD15: 4 | AE15: 4 | AF15: 3 | AG15: 1 | AH15: 5 | AI15: 4 | AJ15: 4 | AK15: 6 | AL15: 1 | AM15: 2 | AN15: 4 | AO15: 7 | AP15: 3 | AQ15: 1 | AR15: 2
A16: New Business Licenses Issued | T16: 14 | U16: 34 | V16: 24 | W16: 31 | X16: 18 | Y16: 31 | Z16: 19 | AA16: 17 | AB16: 18 | AC16: 12 | AD16: 5 | AE16: 9 | AF16: 6 | AG16: 7 | AH16: 12 | AI16: 19 | AJ16: 12 | AK16: 9 | AL16: 22 | AM16: 29 | AN16: 21 | AO16: 13 | AP16: 15 | AQ16: 8 | AR16: 19
A17: Business Licenses Renewed | AL17: 3 | AM17: 6 | AN17: 1 | AO17: 0 | AP17: 3 | AQ17: 147 | AR17: 580
A18: New Alcohol Licenses Issued | T18: 3 | U18: 2 | V18: 1 | W18: 2 | X18: 6 | Y18: 2 | Z18: 3 | AA18: 0 | AB18: 0 | AC18: 3 | AD18: 0 | AE18: 8 | AF18: 1 | AG18: 1 | AH18: 1 | AI18: 3 | AJ18: 3 | AK18: 2 | AL18: 0 | AM18: 1 | AN18: 0 | AO18: 0 | AP18: 0 | AQ18: 6 | AR18: 0
A19: Alcohol Licenses Renewed | AL19: 0 | AM19: 1 | AN19: 0 | AO19: 0 | AP19: 1 | AQ19: 158 | AR19: 1
A20: Code Violations | T20: 51 | U20: 53 | V20: 77 | W20: 96 | X20: 70 | Y20: 68 | Z20: 87 | AA20: 81 | AB20: 57 | AC20: 48 | AD20: 47 | AE20: 55 | AF20: 45 | AG20: 55 | AH20: 58 | AI20: 112 | AJ20: 85 | AK20: 133 | AL20: 71 | AM20: 99 | AN20: 57 | AO20: 56 | AP20: 41 | AQ20: 41 | AR20: 59
A21: Foreclosure Notices | T21: 22 | U21: 35 | V21: 38 | W21: 31 | X21: 23 | Y21: 18 | Z21: 25 | AA21: 39 | AB21: 29 | AC21: 26 | AD21: 32 | AE21: 31 | AF21: 17 | AG21: 22 | AH21: 25 | AI21: 22 | AJ21: 11 | AK21: 14 | AL21: 30 | AM21: 13 | AN21: 10 | AO21: 13 | AP21: 30 | AQ21: 13 | AR21: 20
A27: HIGHLIGHTS | B27: 2008-07-01 | C27: 2008-08-01 | D27: 2008-09-01 | E27: 2008-10-01 | F27: 2008-11-01 | G27: 2008-12-01 | H27: 2009-01-01 | I27: 2009-02-01 | J27: 2009-03-01 | K27: 2009-04-01 | L27: 2009-05-01 | M27: 2009-06-01 | N27: 2009-07-01 | O27: 2009-08-01 | P27: 2009-09-01 | Q27: 2009-10-01 | R27: 2009-11-01 | S27: 2009-12-01 | T27: 2010-01-01 | U27: 2010-02-01 | V27: 2010-03-01 | W27: 2010-04-01 | X27: 2010-05-01 | Y27: 2010-06-01 | Z27: 2010-07-01 | AA27: 2010-08-01 | AB27: 2010-09-01 | AC27: 2010-10-01 | AD27: 2010-11-01 | AE27: 2010-12-01 | AF27: 2011-01-01 | AG27: 2011-02-01 | AH27: 2011-03-01 | AI27: 2011-04-01 | AJ27: 2011-05-01 | AK27: 2011-06-01 | AL27: 2011-07-01 | AM27: 2011-08-01 | AN27: 2011-09-01 | AO27: 2011-10-01 | AP27: 2011-11-01 | AQ27: 2011-12-01 | AR27: 2012-01-01
A28: Highlight 1 | AM28: 1. Planning and Development staff are currently working on updating the sign ordinance. | AN28: 1. Continue to develop the revised sign ordinance. Held work session for Council to review progress and provide input. | AO28: Starting 3rd Quarter Reports for Alcohol Licenses. | AP28: Annual business license renewals have begun in full force. The new requirement for all businesses to complete SAVE documents has proven to be challenging. | AQ28: Alcohol Sunday Sales started the first Sunday in December | AR28: Completed alcohol renewals, in the middle of Ocupational Tax Certifacte renewals, and getting ready to start Insurance renewals.
A29: Highlight 2 | AP29: Sunday package sales of alcohol has begun. | AQ29: Alcohol & Business license renewals are in full swing
A30: Highlight 3 | AQ30: Each year GMA collects deliquent Municipal Insurance license Fees ($75/each) for Georgia cities. Due to continued effort of Catheryn and Connie to clean up the data base and collect deliquent accounts the City has been able to retail approximately $1,425.00 more in 2011 than in previous years.
A31: Highlight 4
A32: Highlight 5
A33: Highlight 6
A34: Highlight 7
A35: Highlight 8
A36: Highlights Concaetenation | B36: =B28&CHAR(10)&B29&CHAR(10)&B30&CHAR(10)&B31&CHAR(10)&B32&CHAR(10)&B33&CHAR(10)&B34&CHAR(10)&B35 ->  | C36: =C28&CHAR(10)&C29&CHAR(10)&C30&CHAR(10)&C31&CHAR(10)&C32&CHAR(10)&C33&CHAR(10)&C34&CHAR(10)&C35 ->  | AK36: =AK28&CHAR(10)&CHAR(10)&AK29&CHAR(10)&CHAR(10)&AK30&CHAR(10)&CHAR(10)&AK31&CHAR(10)&CHAR(10)&AK32&CHAR(10)&CHAR(10)&AK33&CHAR(10)&CHAR(10)&AK34&CHAR(10)&CHAR(10)&AK35 ->  | AM36: 1. Planning and Development staff are currently working on updating the sign ordinance. | AN36: 1. Continue to develop the revised sign ordinance. Held work session for Council to review progress and provide input. | AO36: Starting 3rd Quarter Reports for Alcohol Licenses. | AP36: Annual business license renewals have begun in full force. The new requirement for all businesses to complete SAVE documents has proven to be challenging. Sunday package sales of alcohol has begun. | AQ36: Alcohol Sunday Sales started the first Sunday in December Alcohol & Business license renewals are in full swing Each year GMA collects deliquent Municipal Insurance license Fees ($75/each) for Georgia cities. Due to continued effort of Catheryn and Connie to clean up the data base and collect deliquent accounts the City has been able to retail approximately $1,425.00 more in 2011 than in previous years. | AR36: Completed alcohol renewals, in the middle of Ocupational Tax Certifacte renewals, and getting ready to start Insurance renewals.
A40: Bullet Chart Source | B40: Target | C40: What's Better? | D40: Band 1 | E40: Band 2 | F40: YTD Type | G40: Max Scale | H40: Actual 1 | I40: Actual | J40: Actual 3 | K40: Projection 1 | L40: Projection 2 | M40: Projection 3 | N40: First Zone 1 | O40: First Zone 2 | P40: First Zone 3 | Q40: Second Zone 1 | R40: Second Zone 2 | S40: Second Zone 3 | T40: Previous X 1 | U40: Previous X 2 | V40: Previous Y 1 | W40: Previous Y 2
A41: =A5 -> Residential Building Permits Issued | B41: 10 | C41: More | D41: 0.85 | E41: 1 | F41: Sum | G41: =ROUNDUP((ROUNDUP(MAX(B41,SUM(I41,L41)),-LEN(EVEN(MAX(B41,SUM(I41,L41))))+2)/5),-LEN(EVEN(ROUNDUP(MAX(B41,SUM(I41,L41)),-LEN(EVEN(MAX(B41,SUM(I41,L41))))+2)/5))+1)*5 -> 10 | H41: 0 | I41: =IF(F41="Sum",SUM(OFFSET(A5,0,YTDBeg,1,YTDWidth)),AVERAGE(OFFSET(A5,0,YTDBeg,1,YTDWidth))) -> 2 | J41: 0 | K41: 0 | L41: =IF(F41="Sum",Projection*(I41/YTDWidth*12-I41),0) -> 0 | M41: 0 | N41: =B41*D41 -> 8.5 | O41: =((I41+L41<=N41)*(N41-(I41+L41))) -> 6.5 | P41: =N41 -> 8.5 | Q41: =(E41-D41)*B41 -> 1.5 | R41: =((I41+L41<=N41+Q41)*((N41+Q41)-(I41+L41+O41))) -> 1.5 | S41: =Q41 -> 1.5 | T41: =IF(F41="Sum",SUM(OFFSET(A5,0,YTDBeg-12,1,YTDWidth)),AVERAGE(OFFSET(A5,0,YTDBeg-12,1,YTDWidth))) -> 7 | U41: =T41 -> 7 | V41: 1 | W41: 2
A42: =A6 -> Remodel Permits Issued | B42: 51 | C42: More | D42: 0.85 | E42: 1 | F42: Sum | G42: =ROUNDUP((ROUNDUP(MAX(B42,SUM(I42,L42)),-LEN(EVEN(MAX(B42,SUM(I42,L42))))+2)/5),-LEN(EVEN(ROUNDUP(MAX(B42,SUM(I42,L42)),-LEN(EVEN(MAX(B42,SUM(I42,L42))))+2)/5))+1)*5 -> 100 | H42: 0 | I42: 31 | J42: 0 | K42: 0 | L42: 0 | M42: 0 | N42: 43.35 | O42: =((I42+L42<=N42)*(N42-(I42+L42))) -> 12.35 | P42: =N42 -> 43.35 | Q42: 7.65 | R42: =((I42+L42<=N42+Q42)*((N42+Q42)-(I42+L42+O42))) -> 7.65 | S42: =Q42 -> 7.65 | T42: 26 | U42: =T42 -> 26 | V42: 1 | W42: 2
A43: Non-residential Building Permits Issued | B43: 14 | C43: More | D43: 0.85 | E43: 1 | F43: Sum | G43: 25 | H43: 0 | I43: 25 | J43: 0 | K43: 0 | L43: 0 | M43: 0 | N43: 11.9 | O43: 0 | P43: 11.9 | Q43: 2.1 | R43: 0 | S43: 2.1 | T43: 10 | U43: 10 | V43: 1 | W43: 2
A44: Land Disturbance Permits Issued | B44: 5 | C44: More | D44: 0.85 | E44: 1 | F44: Sum | G44: 5 | H44: 0 | I44: 2 | J44: 0 | K44: 0 | L44: 0 | M44: 0 | N44: 4.25 | O44: 2.25 | P44: 4.25 | Q44: 0.75 | R44: 0.75 | S44: 0.75 | T44: 1 | U44: 1 | V44: 1 | W44: 2
A45: Sign Permits Issued | B45: 100 | C45: More | D45: 0.85 | E45: 1 | F45: Sum | G45: 100 | H45: 0 | I45: 51 | J45: 0 | K45: 0 | L45: 0 | M45: 0 | N45: 85 | O45: 34 | P45: 85 | Q45: 15 | R45: 15 | S45: 15 | T45: 50 | U45: 50 | V45: 1 | W45: 2
A46: Inspections Performed | B46: 428 | C46: More | D46: 0.85 | E46: 1 | F46: Sum | G46: 450 | H46: 0 | I46: 180 | J46: 0 | K46: 0 | L46: 0 | M46: 0 | N46: 363.8 | O46: 183.8 | P46: 363.8 | Q46: 64.2 | R46: 64.2 | S46: 64.2 | T46: 216 | U46: 216 | V46: 1 | W46: 2
A47: Annexation Cases | B47: 4 | C47: More | D47: 0.85 | E47: 1 | F47: Sum | G47: 5 | H47: 0 | I47: 2 | J47: 0 | K47: 0 | L47: 0 | M47: 0 | N47: 3.4 | O47: 1.4 | P47: 3.4 | Q47: 0.6 | R47: 0.6 | S47: 0.6 | T47: 4 | U47: 4 | V47: 1 | W47: 2
A48: Zoning Cases | B48: 8 | C48: More | D48: 0.85 | E48: 1 | F48: Sum | G48: 10 | H48: 0 | I48: 2 | J48: 0 | K48: 0 | L48: 0 | M48: 0 | N48: 6.8 | O48: 4.8 | P48: 6.8 | Q48: 1.2 | R48: 1.2 | S48: 1.2 | T48: 3 | U48: 3 | V48: 1 | W48: 2
A49: Historic Preservation Cases | B49: 10 | C49: More | D49: 0.85 | E49: 1 | F49: Sum | G49: 10 | H49: 0 | I49: 7 | J49: 0 | K49: 0 | L49: 0 | M49: 0 | N49: 8.5 | O49: 1.5 | P49: 8.5 | Q49: 1.5 | R49: 1.5 | S49: 1.5 | T49: 6 | U49: 6 | V49: 1 | W49: 2
A50: Variance Cases | B50: 16 | C50: More | D50: 0.85 | E50: 1 | F50: Sum | G50: 20 | H50: 0 | I50: 11 | J50: 0 | K50: 0 | L50: 0 | M50: 0 | N50: 13.6 | O50: 2.6 | P50: 13.6 | Q50: 2.4 | R50: 2.4 | S50: 2.4 | T50: 5 | U50: 5 | V50: 1 | W50: 2
A51: Plan Reviews | B51: 45 | C51: More | D51: 0.85 | E51: 1 | F51: Sum | G51: 50 | H51: 0 | I51: 20 | J51: 0 | K51: 0 | L51: 0 | M51: 0 | N51: 38.25 | O51: 18.25 | P51: 38.25 | Q51: 6.75 | R51: 6.75 | S51: 6.75 | T51: 26 | U51: 26 | V51: 1 | W51: 2
A52: New Business Licenses Issued | B52: 232 | C52: More | D52: 0.85 | E52: 1 | F52: Sum | G52: 250 | H52: 0 | I52: 127 | J52: 0 | K52: 0 | L52: 0 | M52: 0 | N52: =B52*D52 -> 197.2 | O52: 70.2 | P52: 197.2 | Q52: =(E52-D52)*B52 -> 34.8 | R52: 34.8 | S52: 34.8 | T52: 86 | U52: 86 | V52: 1 | W52: 2
A53: Business Licenses Renewed | B53: 1562 | C53: More | D53: 0.85 | E53: 1 | F53: Sum | G53: 2000 | H53: 0 | I53: 740 | J53: 0 | K53: 0 | L53: 0 | M53: 0 | N53: 1327.7 | O53: 587.7 | P53: 1327.7 | Q53: 234.3 | R53: 234.3 | S53: 234.3 | V53: 1 | W53: 2
A54: New Alcohol Licenses Issued | B54: 30 | C54: More | D54: 0.85 | E54: 1 | F54: Sum | G54: =ROUNDUP((ROUNDUP(MAX(B54,SUM(I54,L54)),-LEN(EVEN(MAX(B54,SUM(I54,L54))))+2)/5),-LEN(EVEN(ROUNDUP(MAX(B54,SUM(I54,L54)),-LEN(EVEN(MAX(B54,SUM(I54,L54))))+2)/5))+1)*5 -> 30 | H54: 0 | I54: 7 | J54: 0 | K54: 0 | L54: 0 | M54: 0 | N54: =B54*D54 -> 25.5 | O54: =((I54+L54<=N54)*(N54-(I54+L54))) -> 18.5 | P54: =N54 -> 25.5 | Q54: =(E54-D54)*B54 -> 4.5 | R54: =((I54+L54<=N54+Q54)*((N54+Q54)-(I54+L54+O54))) -> 4.5 | S54: =Q54 -> 4.5 | T54: 15 | U54: 15 | V54: 1 | W54: 2
A55: Alcohol Licenses Renewed | B55: 76 | C55: More | D55: 0.85 | E55: 1 | F55: Sum | G55: 200 | H55: 0 | I55: 161 | J55: 0 | K55: 0 | L55: 0 | M55: 0 | N55: 64.6 | O55: 0 | P55: 64.6 | Q55: 11.4 | R55: 0 | S55: 11.4 | V55: 1 | W55: 2
A56: Code Violations | B56: 750 | C56: Less | D56: 1 | E56: 1.15 | F56: Sum | G56: 1000 | H56: 0 | I56: 424 | J56: 0 | K56: 0 | L56: 0 | M56: 0 | N56: 750 | O56: 326 | P56: 750 | Q56: 112.5 | R56: 112.5 | S56: 112.5 | T56: 420 | U56: 420 | V56: 1 | W56: 2
A57: Foreclosure Notices | B57: 250 | C57: Less | D57: 1 | E57: 1.15 | F57: Sum | G57: 250 | H57: 0 | I57: 129 | J57: 0 | K57: 0 | L57: 0 | M57: 0 | N57: 250 | O57: 121 | P57: 250 | Q57: 37.5 | R57: 37.5 | S57: 37.5 | T57: 199 | U57: 199 | V57: 1 | W57: 2
A65: SPARKLINE SOURCE
B66: 11 | C66: 10 | D66: 9 | E66: 8 | F66: 7 | G66: 6 | H66: 5 | I66: 4 | J66: 3 | K66: 2 | L66: 1 | M66: 0
A67: Measure | B67: =OFFSET($A4,0,CurrentMonthCount-B$66,1,1) -> 2011-02-01 | C67: 2011-03-01 | D67: 2011-04-01 | E67: 2011-05-01 | F67: 2011-06-01 | G67: 2011-07-01 | H67: 2011-08-01 | I67: 2011-09-01 | J67: 2011-10-01 | K67: 2011-11-01 | L67: 2011-12-01 | M67: 2012-01-01
A68: =A5 -> Residential Building Permits Issued | B68: =OFFSET($A5,0,CurrentMonthCount-B$66,1,1) -> 0 | C68: 1 | D68: 1 | E68: 1 | F68: 0 | G68: 2 | H68: 0 | I68: 0 | J68: 0 | K68: 0 | L68: 0 | M68: 0
A69: =A6 -> Remodel Permits Issued | B69: =OFFSET($A6,0,CurrentMonthCount-B$66,1,1) -> 3 | C69: 0 | D69: 5 | E69: 5 | F69: 7 | G69: 3 | H69: 3 | I69: 5 | J69: 4 | K69: 4 | L69: 5 | M69: 7
A70: Non-residential Building Permits Issued | B70: =OFFSET($A7,0,CurrentMonthCount-B$66,1,1) -> 2 | C70: 4 | D70: 3 | E70: 6 | F70: 10 | G70: 4 | H70: 5 | I70: 5 | J70: 3 | K70: 2 | L70: 0 | M70: 6
A71: Land Disturbance Permits Issued | B71: =OFFSET($A8,0,CurrentMonthCount-B$66,1,1) -> 0 | C71: 0 | D71: 0 | E71: 2 | F71: 0 | G71: 0 | H71: 0 | I71: 0 | J71: 1 | K71: 1 | L71: 0 | M71: 0
A72: Sign Permits Issued | B72: =OFFSET($A9,0,CurrentMonthCount-B$66,1,1) -> 11 | C72: 11 | D72: 16 | E72: 7 | F72: 9 | G72: 8 | H72: 9 | I72: 11 | J72: 7 | K72: 3 | L72: 5 | M72: 8
A73: Inspections Performed | B73: =OFFSET($A10,0,CurrentMonthCount-B$66,1,1) -> 20 | C73: 40 | D73: 21 | E73: 22 | F73: 32 | G73: 37 | H73: 30 | I73: 17 | J73: 13 | K73: 18 | L73: 27 | M73: 38
A74: Annexation Cases | B74: =OFFSET($A11,0,CurrentMonthCount-B$66,1,1) -> 0 | C74: 0 | D74: 1 | E74: 0 | F74: 0 | G74: 0 | H74: 0 | I74: 0 | J74: 0 | K74: 0 | L74: 0 | M74: 2
A75: Zoning Cases | B75: =OFFSET($A12,0,CurrentMonthCount-B$66,1,1) -> 1 | C75: 0 | D75: 1 | E75: 0 | F75: 1 | G75: 0 | H75: 0 | I75: 0 | J75: 0 | K75: 1 | L75: 1 | M75: 0
A76: Historic Preservation Cases | B76: =OFFSET($A13,0,CurrentMonthCount-B$66,1,1) -> 1 | C76: 0 | D76: 3 | E76: 2 | F76: 2 | G76: 1 | H76: 2 | I76: 1 | J76: 2 | K76: 1 | L76: 0 | M76: 0
A77: Variance Cases | B77: =OFFSET($A14,0,CurrentMonthCount-B$66,1,1) -> 1 | C77: 2 | D77: 0 | E77: 0 | F77: 4 | G77: 1 | H77: 1 | I77: 1 | J77: 3 | K77: 1 | L77: 1 | M77: 3
A78: Plan Reviews | B78: =OFFSET($A15,0,CurrentMonthCount-B$66,1,1) -> 1 | C78: 5 | D78: 4 | E78: 4 | F78: 6 | G78: 1 | H78: 2 | I78: 4 | J78: 7 | K78: 3 | L78: 1 | M78: 2
A79: New Business Licenses Issued | B79: =OFFSET($A16,0,CurrentMonthCount-B$66,1,1) -> 7 | C79: 12 | D79: 19 | E79: 12 | F79: 9 | G79: 22 | H79: 29 | I79: 21 | J79: 13 | K79: 15 | L79: 8 | M79: 19
A80: Business Licenses Renewed | B80: =OFFSET($A17,0,CurrentMonthCount-B$66,1,1) ->  | G80: 3 | H80: 6 | I80: 1 | J80: 0 | K80: 3 | L80: 147 | M80: 580
A81: New Alcohol Licenses Issued | B81: =OFFSET($A18,0,CurrentMonthCount-B$66,1,1) -> 1 | C81: 1 | D81: 3 | E81: 3 | F81: 2 | G81: 0 | H81: 1 | I81: 0 | J81: 0 | K81: 0 | L81: 6 | M81: 0
A82: Alcohol Licenses Renewed | B82: =OFFSET($A19,0,CurrentMonthCount-B$66,1,1) ->  | G82: 0 | H82: 1 | I82: 0 | J82: 0 | K82: 1 | L82: 158 | M82: 1
A83: Code Violations | B83: =OFFSET($A20,0,CurrentMonthCount-B$66,1,1) -> 55 | C83: 58 | D83: 112 | E83: 85 | F83: 133 | G83: 71 | H83: 99 | I83: 57 | J83: 56 | K83: 41 | L83: 41 | M83: 59
A84: Foreclosure Notices | B84: =OFFSET($A21,0,CurrentMonthCount-B$66,1,1) -> 22 | C84: 25 | D84: 22 | E84: 11 | F84: 14 | G84: 30 | H84: 13 | I84: 10 | J84: 13 | K84: 30 | L84: 13 | M84: 20
A85: 0 | B85: =OFFSET($A22,0,CurrentMonthCount-B$66,1,1) -> 0 | C85: 0 | D85: 0 | E85: 0 | F85: 0 | G85: 0 | H85: 0 | I85: 0 | J85: 0 | K85: 0 | L85: 0 | M85: 0
A86: 0 | B86: =OFFSET($A23,0,CurrentMonthCount-B$66,1,1) -> 0 | C86: 0 | D86: 0 | E86: 0 | F86: 0 | G86: 0 | H86: 0 | I86: 0 | J86: 0 | K86: 0 | L86: 0 | M86: 0
A87: 0 | B87: =OFFSET($A24,0,CurrentMonthCount-B$66,1,1) -> 0 | C87: 0 | D87: 0 | E87: 0 | F87: 0 | G87: 0 | H87: 0 | I87: 0 | J87: 0 | K87: 0 | L87: 0 | M87: 0

Sheet Garage
A1: =CurrentMonth -> 2012-01-01 | E1: GARAGE
A3: Fleet Maintenance | B3: Last 12 Months | C3: Fiscal Year to Date | D3: FYTD | F3: Fuel Sales | G3: Last 12 Months | H3: Fiscal Year to Date | I3: FYTD
A4: ='Garage Data'!A5 -> Vehicles Serviced (City) | D4: ='Garage Data'!I41 -> 494 | F4: ='Garage Data'!A10 -> Diesel Fuel Sold (City Only) | I4: ='Garage Data'!I46 -> 43413.8
A5: ='Garage Data'!A6 -> Vehicles Serviced (Other) | D5: ='Garage Data'!I42 -> 21 | F5: ='Garage Data'!A11 -> Diesel Fuel Sold (Other) | I5: ='Garage Data'!I47 -> 31589
F6: ='Garage Data'!A12 -> Unleaded Fuel Sold (City Only) | I6: ='Garage Data'!I48 -> 78713.65
A7: Efficiency | F7: ='Garage Data'!A13 -> Unleaded Fuel Sold (Other) | I7: ='Garage Data'!I49 -> 5879.05
A8: ='Garage Data'!A7 -> Billable Hours (City) | D8: ='Garage Data'!I43 -> 1004.85
A9: ='Garage Data'!A8 -> Billable Hours (Other) | D9: ='Garage Data'!I44 -> 39.5
A10: ='Garage Data'!A9 -> Billable Hours/Hours Paid | D10: ='Garage Data'!I45 -> 0.2547703334

Sheet Garage Data (hidden)
A1: Garage Data
A4: Measure | B4: 2008-07-01 | C4: 2008-08-01 | D4: 2008-09-01 | E4: 2008-10-01 | F4: 2008-11-01 | G4: 2008-12-01 | H4: 2009-01-01 | I4: 2009-02-01 | J4: 2009-03-01 | K4: 2009-04-01 | L4: 2009-05-01 | M4: 2009-06-01 | N4: 2009-07-01 | O4: 2009-08-01 | P4: 2009-09-01 | Q4: 2009-10-01 | R4: 2009-11-01 | S4: 2009-12-01 | T4: 2010-01-01 | U4: 2010-02-01 | V4: 2010-03-01 | W4: 2010-04-01 | X4: 2010-05-01 | Y4: 2010-06-01 | Z4: 2010-07-01 | AA4: 2010-08-01 | AB4: 2010-09-01 | AC4: 2010-10-01 | AD4: 2010-11-01 | AE4: 2010-12-01 | AF4: 2011-01-01 | AG4: 2011-02-01 | AH4: 2011-03-01 | AI4: 2011-04-01 | AJ4: 2011-05-01 | AK4: 2011-06-01 | AL4: 2011-07-01 | AM4: 2011-08-01 | AN4: 2011-09-01 | AO4: 2011-10-01 | AP4: 2011-11-01 | AQ4: 2011-12-01 | AR4: 2012-01-01
A5: Vehicles Serviced (City) | T5: 70 | U5: 55 | V5: 83 | W5: 81 | X5: 65 | Y5: 78 | Z5: 72 | AA5: 90 | AB5: 85 | AC5: 88 | AD5: 74 | AE5: 63 | AF5: 77 | AG5: 75 | AH5: 87 | AI5: 81 | AJ5: 73 | AK5: 78 | AL5: 83 | AM5: 69 | AN5: 62 | AO5: 47 | AP5: 87 | AQ5: 76 | AR5: 70
A6: Vehicles Serviced (Other) | T6: 0 | U6: 0 | V6: 1 | W6: 1 | X6: 0 | Y6: 2 | Z6: 1 | AA6: 2 | AB6: 1 | AC6: 2 | AD6: 0 | AE6: 2 | AF6: 0 | AG6: 0 | AH6: 1 | AI6: 1 | AJ6: 0 | AK6: 2 | AL6: 3 | AM6: 2 | AN6: 3 | AO6: 3 | AP6: 1 | AQ6: 4 | AR6: 5
A7: Billable Hours (City) | T7: 149.1 | U7: 120.5 | V7: 146.8 | W7: 137.75 | X7: 137.4 | Y7: 112.05 | Z7: 113.35 | AA7: 141.75 | AB7: 151.5 | AC7: 168.6 | AD7: 151.75 | AE7: 148.55 | AF7: 137.35 | AG7: 145.1 | AH7: 146.8 | AI7: 137.75 | AJ7: 145.4 | AK7: 112.05 | AL7: 153 | AM7: 112.75 | AN7: 125.5 | AO7: 95.2 | AP7: 174 | AQ7: 164 | AR7: 180.4
A8: Billable Hours (Other) | T8: 0 | U8: 0 | V8: 1 | W8: 2 | X8: 0 | Y8: 3 | Z8: 1.5 | AA8: 2 | AB8: 5.5 | AC8: 7 | AD8: 0 | AE8: 5 | AF8: 0 | AG8: 0 | AH8: 1 | AI8: 2 | AJ8: 0 | AK8: 3 | AL8: 6.75 | AM8: 2 | AN8: 3.25 | AO8: 7 | AP8: 1 | AQ8: 6.25 | AR8: 13.25
A9: Billable Hours/Hours Paid | T9: 0.186375 | U9: 0.1500625 | V9: 0.1835 | W9: 0.1747 | X9: 0.1718 | Y9: 0.1400625 | Z9: 0.09445833333 | AA9: 0.1771875 | AB9: 0.189375 | AC9: 0.2157389635 | AD9: 0.1896875 | AE9: 0.1279583333 | AF9: 0.1716875 | AG9: 0.181375 | AH9: 0.18475 | AI9: 0.1746875 | AJ9: 0.18175 | AK9: 0.095875 | AL9: 0.2377232143 | AM9: 0.179296875 | AN9: 0.201171875 | AO9: 0.1596875 | AP9: 0.2734375 | AQ9: 0.1941587026 | AR9: 0.5379166667
A10: Diesel Fuel Sold (City Only) | T10: 5437.5 | U10: 5031.95 | V10: 6332 | W10: 5653.15 | X10: 5584.7 | Y10: 6365.7 | Z10: 6204.45 | AA10: 6947.45 | AB10: 6085.9 | AC10: 5730 | AD10: 5821.5 | AE10: 5941.5 | AF10: 5406.95 | AG10: 5685.7 | AH10: 6873.05 | AI10: 6334.45 | AJ10: 6546.45 | AK10: 7067.2 | AL10: 6868.7 | AM10: 7338.65 | AN10: 6281.25 | AO10: 5979.5 | AP10: 5907.25 | AQ10: 5834.95 | AR10: 5203.5
A11: Diesel Fuel Sold (Other) | T11: 4669.9 | U11: 5122.6 | V11: 6135.65 | W11: 4468.65 | X11: 4381.85 | Y11: 576.95 | Z11: 246.35 | AA11: 4484.8 | AB11: 5681.45 | AC11: 5673.2 | AD11: 5654.5 | AE11: 3767.75 | AF11: 4266.55 | AG11: 6224.7 | AH11: 7082.55 | AI11: 4337.55 | AJ11: 4369.7 | AK11: 926.35 | AL11: 407.8 | AM11: 5211.6 | AN11: 6030.55 | AO11: 5379.8 | AP11: 5090.85 | AQ11: 3552.95 | AR11: 5915.45
A12: Unleaded Fuel Sold (City Only) | T12: 10838.2 | U12: 10338.75 | V12: 11668.7 | W12: 10757.05 | X12: 10568.75 | Y12: 12036.95 | Z12: 12219.05 | AA12: 12511.4 | AB12: 11658.5 | AC12: 11419 | AD12: 10131 | AE12: 10823.8 | AF12: 11008.35 | AG12: 11009.85 | AH12: 12764.1 | AI12: 11212.2 | AJ12: 11667.45 | AK12: 12328.2 | AL12: 11469.75 | AM12: 12650.6 | AN12: 11181.1 | AO12: 11275.05 | AP12: 10587.8 | AQ12: 10533.35 | AR12: 11016
A13: Unleaded Fuel Sold (Other) | T13: 611.7 | U13: 840.4 | V13: 898.6 | W13: 573.4 | X13: 659 | Y13: 722.05 | Z13: 672.45 | AA13: 70.6 | AB13: 760.25 | AC13: 631.5 | AD13: 771.35 | AE13: 661.3 | AF13: 817.35 | AG13: 889.9 | AH13: 983.05 | AI13: 766.7 | AJ13: 871.5 | AK13: 895.1 | AL13: 743.25 | AM13: 1081.7 | AN13: 1011.35 | AO13: 845.7 | AP13: 811.65 | AQ13: 480.6 | AR13: 904.8
A27: HIGHLIGHTS | B27: 2008-07-01 | C27: 2008-08-01 | D27: 2008-09-01 | E27: 2008-10-01 | F27: 2008-11-01 | G27: 2008-12-01 | H27: 2009-01-01 | I27: 2009-02-01 | J27: 2009-03-01 | K27: 2009-04-01 | L27: 2009-05-01 | M27: 2009-06-01 | N27: 2009-07-01 | O27: 2009-08-01 | P27: 2009-09-01 | Q27: 2009-10-01 | R27: 2009-11-01 | S27: 2009-12-01 | T27: 2010-01-01 | U27: 2010-02-01 | V27: 2010-03-01 | W27: 2010-04-01 | X27: 2010-05-01 | Y27: 2010-06-01 | Z27: 2010-07-01 | AA27: 2010-08-01 | AB27: 2010-09-01 | AC27: 2010-10-01 | AD27: 2010-11-01 | AE27: 2010-12-01 | AF27: 2011-01-01 | AG27: 2011-02-01 | AH27: 2011-03-01 | AI27: 2011-04-01 | AJ27: 2011-05-01 | AK27: 2011-06-01 | AL27: 2011-07-01 | AM27: 2011-08-01 | AN27: 2011-09-01 | AO27: 2011-10-01 | AP27: 2011-11-01 | AQ27: 2011-12-01 | AR27: 2012-01-01
A28: Highlight 1 | AN28: 1. We are trying to increase our ratio of billable hours to hours worked. The ratio is increasing in large part due to the retirement of one Garage employee at the end of last fiscal year.
A29: Highlight 2
A30: Highlight 3
A31: Highlight 4
A32: Highlight 5
A33: Highlight 6
A34: Highlight 7
A35: Highlight 8
A36: Highlights Concaetenation | B36: =B28&CHAR(10)&B29&CHAR(10)&B30&CHAR(10)&B31&CHAR(10)&B32&CHAR(10)&B33&CHAR(10)&B34&CHAR(10)&B35 ->  | C36: =C28&CHAR(10)&C29&CHAR(10)&C30&CHAR(10)&C31&CHAR(10)&C32&CHAR(10)&C33&CHAR(10)&C34&CHAR(10)&C35 ->  | AK36: =AK28&CHAR(10)&AK29&CHAR(10)&AK30&CHAR(10)&AK31&CHAR(10)&AK32&CHAR(10)&AK33&CHAR(10)&AK34&CHAR(10)&AK35 ->  | AN36: 1. We are trying to increase our ratio of billable hours to hours worked. The ratio is increasing in large part due to the retirement of one Garage employee at the end of last fiscal year. | AO36: =AO28&CHAR(10)&AO29&CHAR(10)&AO30&CHAR(10)&AO31&CHAR(10)&AO32&CHAR(10)&AO33&CHAR(10)&AO34&CHAR(10)&AO35 ->  | AQ36: =AQ28&CHAR(10)&AQ29&CHAR(10)&AQ30&CHAR(10)&AQ31&CHAR(10)&AQ32&CHAR(10)&AQ33&CHAR(10)&AQ34&CHAR(10)&AQ35 -> 
A40: Bullet Chart Source | B40: Target | C40: What's Better? | D40: Band 1 | E40: Band 2 | F40: YTD Type | G40: Max Scale | H40: Actual 1 | I40: Actual | J40: Actual 3 | K40: Projection 1 | L40: Projection 2 | M40: Projection 3 | N40: First Zone 1 | O40: First Zone 2 | P40: First Zone 3 | Q40: Second Zone 1 | R40: Second Zone 2 | S40: Second Zone 3 | T40: Previous X 1 | U40: Previous X 2 | V40: Previous Y 1 | W40: Previous Y 2
A41: =A5 -> Vehicles Serviced (City) | B41: 900 | C41: Middle | D41: 0.93 | E41: 1.07 | F41: Sum | G41: =ROUNDUP((ROUNDUP(MAX(B41,SUM(I41,L41)),-LEN(EVEN(MAX(B41,SUM(I41,L41))))+2)/5),-LEN(EVEN(ROUNDUP(MAX(B41,SUM(I41,L41)),-LEN(EVEN(MAX(B41,SUM(I41,L41))))+2)/5))+1)*5 -> 1000 | H41: 0 | I41: =IF(F41="Sum",SUM(OFFSET(A5,0,YTDBeg,1,YTDWidth)),AVERAGE(OFFSET(A5,0,YTDBeg,1,YTDWidth))) -> 494 | J41: 0 | K41: 0 | L41: =IF(F41="Sum",Projection*(I41/YTDWidth*12-I41),0) -> 0 | M41: 0 | N41: =B41*D41 -> 837 | O41: =((I41+L41<=N41)*(N41-(I41+L41))) -> 343 | P41: =N41 -> 837 | Q41: =(E41-D41)*B41 -> 126 | R41: =((I41+L41<=N41+Q41)*((N41+Q41)-(I41+L41+O41))) -> 126 | S41: =Q41 -> 126 | T41: =IF(F41="Sum",SUM(OFFSET(A5,0,YTDBeg-12,1,YTDWidth)),AVERAGE(OFFSET(A5,0,YTDBeg-12,1,YTDWidth))) -> 549 | U41: =T41 -> 549 | V41: 1 | W41: 2
A42: =A6 -> Vehicles Serviced (Other) | B42: 10 | C42: More | D42: 0.85 | E42: 1 | F42: Sum | G42: =ROUNDUP((ROUNDUP(MAX(B42,SUM(I42,L42)),-LEN(EVEN(MAX(B42,SUM(I42,L42))))+2)/5),-LEN(EVEN(ROUNDUP(MAX(B42,SUM(I42,L42)),-LEN(EVEN(MAX(B42,SUM(I42,L42))))+2)/5))+1)*5 -> 25 | H42: 0 | I42: 21 | J42: 0 | K42: 0 | L42: 0 | M42: 0 | N42: 8.5 | O42: =((I42+L42<=N42)*(N42-(I42+L42))) -> 0 | P42: =N42 -> 8.5 | Q42: 1.5 | R42: =((I42+L42<=N42+Q42)*((N42+Q42)-(I42+L42+O42))) -> 0 | S42: =Q42 -> 1.5 | T42: 8 | U42: =T42 -> 8 | V42: 1 | W42: 2
A43: Billable Hours (City) | B43: 1700 | C43: Middle | D43: 0.93 | E43: 1.07 | F43: Sum | G43: 2000 | H43: 0 | I43: 1004.85 | J43: 0 | K43: 0 | L43: 0 | M43: 0 | N43: 1581 | O43: 576.15 | P43: 1581 | Q43: 238 | R43: 238 | S43: 238 | T43: 1012.85 | U43: 1012.85 | V43: 1 | W43: 2
A44: Billable Hours (Other) | B44: 25 | C44: More | D44: 0.85 | E44: 1 | F44: Sum | G44: 40 | H44: 0 | I44: 39.5 | J44: 0 | K44: 0 | L44: 0 | M44: 0 | N44: 21.25 | O44: 0 | P44: 21.25 | Q44: 3.75 | R44: 0 | S44: 3.75 | T44: 21 | U44: 21 | V44: 1 | W44: 2
A45: Billable Hours/Hours Paid | B45: 0.25 | C45: More | D45: 0.85 | E45: 1.1 | F45: Average | G45: 1 | H45: 0 | I45: 0.2547703334 | J45: 0 | K45: 0 | L45: 0 | M45: 0 | N45: 0.2125 | O45: 0 | P45: 0.2125 | Q45: 0.0625 | R45: 0.02022966663 | S45: 0.0625 | T45: 0.1665847329 | U45: 0.1665847329 | V45: 1 | W45: 2
A46: Diesel Fuel Sold (City Only) | B46: 70000 | C46: Less | D46: 1 | E46: 1.15 | F46: Sum | G46: 100000 | H46: 0 | I46: 43413.8 | J46: 0 | K46: 0 | L46: 0 | M46: 0 | N46: 70000 | O46: 26586.2 | P46: 70000 | Q46: 10500 | R46: 10500 | S46: 10500 | T46: 42137.75 | U46: 42137.75 | V46: 1 | W46: 2
A47: Diesel Fuel Sold (Other) | B47: 50800 | C47: More | D47: 0.85 | E47: 1 | F47: Sum | G47: 100000 | H47: 0 | I47: 31589 | J47: 0 | K47: 0 | L47: 0 | M47: 0 | N47: 43180 | O47: 11591 | P47: 43180 | Q47: 7620 | R47: 7620 | S47: 7620 | T47: 29774.6 | U47: 29774.6 | V47: 1 | W47: 2
A48: Unleaded Fuel Sold (City Only) | B48: 130000 | C48: Less | D48: 1 | E48: 1.15 | F48: Sum | G48: 150000 | H48: 0 | I48: 78713.65 | J48: 0 | K48: 0 | L48: 0 | M48: 0 | N48: 130000 | O48: 51286.35 | P48: 130000 | Q48: 19500 | R48: 19500 | S48: 19500 | T48: 79771.1 | U48: 79771.1 | V48: 1 | W48: 2
A49: Unleaded Fuel Sold (Other) | B49: 7800 | C49: More | D49: 0.85 | E49: 1 | F49: Sum | G49: 10000 | H49: 0 | I49: 5879.05 | J49: 0 | K49: 0 | L49: 0 | M49: 0 | N49: 6630 | O49: 750.95 | P49: 6630 | Q49: 1170 | R49: 1170 | S49: 1170 | T49: 4384.8 | U49: 4384.8 | V49: 1 | W49: 2
A65: SPARKLINE SOURCE
B66: 11 | C66: 10 | D66: 9 | E66: 8 | F66: 7 | G66: 6 | H66: 5 | I66: 4 | J66: 3 | K66: 2 | L66: 1 | M66: 0
A67: Measure | B67: =OFFSET($A4,0,CurrentMonthCount-B$66,1,1) -> 2011-02-01 | C67: 2011-03-01 | D67: 2011-04-01 | E67: 2011-05-01 | F67: 2011-06-01 | G67: 2011-07-01 | H67: 2011-08-01 | I67: 2011-09-01 | J67: 2011-10-01 | K67: 2011-11-01 | L67: 2011-12-01 | M67: 2012-01-01
A68: =A5 -> Vehicles Serviced (City) | B68: =OFFSET($A5,0,CurrentMonthCount-B$66,1,1) -> 75 | C68: 87 | D68: 81 | E68: 73 | F68: 78 | G68: 83 | H68: 69 | I68: 62 | J68: 47 | K68: 87 | L68: 76 | M68: 70
A69: =A6 -> Vehicles Serviced (Other) | B69: =OFFSET($A6,0,CurrentMonthCount-B$66,1,1) -> 0 | C69: 1 | D69: 1 | E69: 0 | F69: 2 | G69: 3 | H69: 2 | I69: 3 | J69: 3 | K69: 1 | L69: 4 | M69: 5
A70: Billable Hours (City) | B70: =OFFSET($A7,0,CurrentMonthCount-B$66,1,1) -> 145.1 | C70: 146.8 | D70: 137.75 | E70: 145.4 | F70: 112.05 | G70: 153 | H70: 112.75 | I70: 125.5 | J70: 95.2 | K70: 174 | L70: 164 | M70: 180.4
A71: Billable Hours (Other) | B71: =OFFSET($A8,0,CurrentMonthCount-B$66,1,1) -> 0 | C71: 1 | D71: 2 | E71: 0 | F71: 3 | G71: 6.75 | H71: 2 | I71: 3.25 | J71: 7 | K71: 1 | L71: 6.25 | M71: 13.25
A72: Billable Hours/Hours Paid | B72: =OFFSET($A9,0,CurrentMonthCount-B$66,1,1) -> 0.181375 | C72: 0.18475 | D72: 0.1746875 | E72: 0.18175 | F72: 0.095875 | G72: 0.2377232143 | H72: 0.179296875 | I72: 0.201171875 | J72: 0.1596875 | K72: 0.2734375 | L72: 0.1941587026 | M72: 0.5379166667
A73: Diesel Fuel Sold (City Only) | B73: =OFFSET($A10,0,CurrentMonthCount-B$66,1,1) -> 5685.7 | C73: 6873.05 | D73: 6334.45 | E73: 6546.45 | F73: 7067.2 | G73: 6868.7 | H73: 7338.65 | I73: 6281.25 | J73: 5979.5 | K73: 5907.25 | L73: 5834.95 | M73: 5203.5
A74: Diesel Fuel Sold (Other) | B74: =OFFSET($A11,0,CurrentMonthCount-B$66,1,1) -> 6224.7 | C74: 7082.55 | D74: 4337.55 | E74: 4369.7 | F74: 926.35 | G74: 407.8 | H74: 5211.6 | I74: 6030.55 | J74: 5379.8 | K74: 5090.85 | L74: 3552.95 | M74: 5915.45
A75: Unleaded Fuel Sold (City Only) | B75: =OFFSET($A12,0,CurrentMonthCount-B$66,1,1) -> 11009.85 | C75: 12764.1 | D75: 11212.2 | E75: 11667.45 | F75: 12328.2 | G75: 11469.75 | H75: 12650.6 | I75: 11181.1 | J75: 11275.05 | K75: 10587.8 | L75: 10533.35 | M75: 11016
A76: Unleaded Fuel Sold (Other) | B76: =OFFSET($A13,0,CurrentMonthCount-B$66,1,1) -> 889.9 | C76: 983.05 | D76: 766.7 | E76: 871.5 | F76: 895.1 | G76: 743.25 | H76: 1081.7 | I76: 1011.35 | J76: 845.7 | K76: 811.65 | L76: 480.6 | M76: 904.8
A77: 0 | B77: =OFFSET($A14,0,CurrentMonthCount-B$66,1,1) -> 0 | C77: 0 | D77: 0 | E77: 0 | F77: 0 | G77: 0 | H77: 0 | I77: 0 | J77: 0 | K77: 0 | L77: 0 | M77: 0
A78: 0 | B78: =OFFSET($A15,0,CurrentMonthCount-B$66,1,1) -> 0 | C78: 0 | D78: 0 | E78: 0 | F78: 0 | G78: 0 | H78: 0 | I78: 0 | J78: 0 | K78: 0 | L78: 0 | M78: 0
A79: 0 | B79: =OFFSET($A16,0,CurrentMonthCount-B$66,1,1) -> 0 | C79: 0 | D79: 0 | E79: 0 | F79: 0 | G79: 0 | H79: 0 | I79: 0 | J79: 0 | K79: 0 | L79: 0 | M79: 0
A80: 0 | B80: =OFFSET($A17,0,CurrentMonthCount-B$66,1,1) -> 0 | C80: 0 | D80: 0 | E80: 0 | F80: 0 | G80: 0 | H80: 0 | I80: 0 | J80: 0 | K80: 0 | L80: 0 | M80: 0
A81: 0 | B81: =OFFSET($A18,0,CurrentMonthCount-B$66,1,1) -> 0 | C81: 0 | D81: 0 | E81: 0 | F81: 0 | G81: 0 | H81: 0 | I81: 0 | J81: 0 | K81: 0 | L81: 0 | M81: 0
A82: 0 | B82: =OFFSET($A19,0,CurrentMonthCount-B$66,1,1) -> 0 | C82: 0 | D82: 0 | E82: 0 | F82: 0 | G82: 0 | H82: 0 | I82: 0 | J82: 0 | K82: 0 | L82: 0 | M82: 0
A83: 0 | B83: =OFFSET($A20,0,CurrentMonthCount-B$66,1,1) -> 0 | C83: 0 | D83: 0 | E83: 0 | F83: 0 | G83: 0 | H83: 0 | I83: 0 | J83: 0 | K83: 0 | L83: 0 | M83: 0
A84: 0 | B84: =OFFSET($A21,0,CurrentMonthCount-B$66,1,1) -> 0 | C84: 0 | D84: 0 | E84: 0 | F84: 0 | G84: 0 | H84: 0 | I84: 0 | J84: 0 | K84: 0 | L84: 0 | M84: 0
A85: 0 | B85: =OFFSET($A22,0,CurrentMonthCount-B$66,1,1) -> 0 | C85: 0 | D85: 0 | E85: 0 | F85: 0 | G85: 0 | H85: 0 | I85: 0 | J85: 0 | K85: 0 | L85: 0 | M85: 0
A86: 0 | B86: =OFFSET($A23,0,CurrentMonthCount-B$66,1,1) -> 0 | C86: 0 | D86: 0 | E86: 0 | F86: 0 | G86: 0 | H86: 0 | I86: 0 | J86: 0 | K86: 0 | L86: 0 | M86: 0
A87: 0 | B87: =OFFSET($A24,0,CurrentMonthCount-B$66,1,1) -> 0 | C87: 0 | D87: 0 | E87: 0 | F87: 0 | G87: 0 | H87: 0 | I87: 0 | J87: 0 | K87: 0 | L87: 0 | M87: 0

Sheet Electric
A1: =CurrentMonth -> 2012-01-01 | E1: ELECTRIC
A3: Service | B3: Last 12 Months | C3: Fiscal Year to Date | D3: FYTD | F3: Conservation | G3: Last 12 Months | H3: Fiscal Year to Date | I3: FYTD
A4: ='Electric Data'!A5 -> Residential kWh Consumption | D4: ='Electric Data'!I41 -> 46749857 | F4: ='Electric Data'!A13 -> Pole Inspections Completed | I4: ='Electric Data'!I49 -> 248
A5: ='Electric Data'!A6 -> Commercial kWh Consumption | D5: ='Electric Data'!I42 -> 77666920 | F5: ='Electric Data'!A14 -> Walk-thru Energy Audits Performed | I5: ='Electric Data'!I50 -> 0
A6: ='Electric Data'!A7 -> Industrial kWh Consumption | D6: ='Electric Data'!I43 -> 195969660 | F6: ='Electric Data'!A15 -> Home Performance Inspections Performed | I6: ='Electric Data'!I51 -> 3
A7: ='Electric Data'!A8 -> Government kWh Consumption | D7: ='Electric Data'!I44 -> 5909839 | F7: ='Electric Data'!A16 -> Grant Dollars Paid Out | I7: ='Electric Data'!I52 -> 3361.5
A8: ='Electric Data'!A9 -> External Source Service Outages | D8: ='Electric Data'!I45 -> 8.285714286
A9: ='Electric Data'!A10 -> System Failure Service Outages | D9: ='Electric Data'!I46 -> 10
A10: ='Electric Data'!A11 -> Average Residential Rate per kWh (₵/kWh) | D10: ='Electric Data'!I47 -> 10.36571429
A11: ='Electric Data'!A12 -> Georgia Power Residential Rate (₵/kWh) | C11: Data History Not Sufficient at this time to show year to date average. | D11: ='Electric Data'!I48 -> 

Sheet Electric Data (hidden)
A1: Electric Data
A4: Measure | B4: 2008-07-01 | C4: 2008-08-01 | D4: 2008-09-01 | E4: 2008-10-01 | F4: 2008-11-01 | G4: 2008-12-01 | H4: 2009-01-01 | I4: 2009-02-01 | J4: 2009-03-01 | K4: 2009-04-01 | L4: 2009-05-01 | M4: 2009-06-01 | N4: 2009-07-01 | O4: 2009-08-01 | P4: 2009-09-01 | Q4: 2009-10-01 | R4: 2009-11-01 | S4: 2009-12-01 | T4: 2010-01-01 | U4: 2010-02-01 | V4: 2010-03-01 | W4: 2010-04-01 | X4: 2010-05-01 | Y4: 2010-06-01 | Z4: 2010-07-01 | AA4: 2010-08-01 | AB4: 2010-09-01 | AC4: 2010-10-01 | AD4: 2010-11-01 | AE4: 2010-12-01 | AF4: 2011-01-01 | AG4: 2011-02-01 | AH4: 2011-03-01 | AI4: 2011-04-01 | AJ4: 2011-05-01 | AK4: 2011-06-01 | AL4: 2011-07-01 | AM4: 2011-08-01 | AN4: 2011-09-01 | AO4: 2011-10-01 | AP4: 2011-11-01 | AQ4: 2011-12-01 | AR4: 2012-01-01
A5: Residential kWh Consumption | T5: 7318207 | U5: 6578603 | V5: 6306679 | W5: 5054174 | X5: 5021152 | Y5: 7198923 | Z5: 8980221 | AA5: 10043885 | AB5: 8640912 | AC5: 5480721 | AD5: 4245457 | AE5: 6256779 | AF5: 7765875 | AG5: 6247443 | AH5: 4976173 | AI5: 4917322 | AJ5: 4974377 | AK5: 7460630 | AL5: 8679712 | AM5: 9796817 | AN5: 7990180 | AO5: 4737769 | AP5: 4160603 | AQ5: 5205533 | AR5: 6179243
A6: Commercial kWh Consumption | T6: 9774539 | U6: 9783585 | V6: 9419976 | W6: 9402240 | X6: 9542341 | Y6: 11055747 | Z6: 12544575 | AA6: 12990975 | AB6: 12543685 | AC6: 10446406 | AD6: 9283475 | AE6: 9982117 | AF6: 10797628 | AG6: 10069865 | AH6: 9282912 | AI6: 9795992 | AJ6: 10358156 | AK6: 11608316 | AL6: 12647902 | AM6: 13883481 | AN6: 12901070 | AO6: 10263480 | AP6: 9058363 | AQ6: 9044524 | AR6: 9868100
A7: Industrial kWh Consumption | T7: 25725710 | U7: 27448260 | V7: 24697530 | W7: 27729540 | X7: 26731180 | Y7: 29117170 | Z7: 29585500 | AA7: 30082760 | AB7: 30178320 | AC7: 27583620 | AD7: 26192980 | AE7: 24691600 | AF7: 24076160 | AG7: 20292440 | AH7: 22853360 | AI7: 25318560 | AJ7: 27390440 | AK7: 28888900 | AL7: 28863880 | AM7: 28898000 | AN7: 30540260 | AO7: 28906340 | AP7: 28722760 | AQ7: 25307640 | AR7: 24730780
A8: Government kWh Consumption | T8: 945567 | U8: 891949 | V8: 886745 | W8: 805502 | X8: 801436 | Y8: 697917 | Z8: 792606 | AA8: 1070827 | AB8: 1086505 | AC8: 857432 | AD8: 733883 | AE8: 868309 | AF8: 896544 | AG8: 953965 | AH8: 834762 | AI8: 786368 | AJ8: 781724 | AK8: 728534 | AL8: 740015 | AM8: 1035400 | AN8: 1077812 | AO8: 803053 | AP8: 708284 | AQ8: 746077 | AR8: 799198
A9: External Source Service Outages | AL9: 27 | AM9: 15 | AN9: 2 | AO9: 4 | AP9: 5 | AQ9: 3 | AR9: 2
A10: System Failure Service Outages | AL10: 0 | AM10: 2 | AN10: 0 | AO10: 1 | AP10: 1 | AQ10: 4 | AR10: 2
A11: Average Residential Rate per kWh (₵/kWh) | T11: 9.06 | U11: 9.06 | V11: 8.96 | W11: 8.96 | X11: 8.96 | Y11: 9.87 | Z11: 9.96 | AA11: 9.96 | AB11: 9.96 | AC11: 9.05 | AD11: 9.15 | AE11: 9.15 | AF11: 9.37 | AG11: 9.56 | AH11: 9.71 | AI11: 9.85 | AJ11: 10.01 | AK11: 11.12 | AL11: 10.81 | AM11: 10.81 | AN11: 10.81 | AO11: 9.96 | AP11: 10.02 | AQ11: 9.96 | AR11: 10.19
A12: Georgia Power Residential Rate (₵/kWh) | AQ12: 11.73 | AR12: 11.04
A13: Pole Inspections Completed | AL13: 36 | AM13: 29 | AN13: 42 | AO13: 31 | AP13: 64 | AQ13: 0 | AR13: 46
A14: Walk-thru Energy Audits Performed | AL14: 0 | AM14: 0 | AN14: 0 | AO14: 0 | AP14: 0 | AQ14: 0 | AR14: 0
A15: Home Performance Inspections Performed | AL15: 2 | AM15: 0 | AN15: 0 | AO15: 0 | AP15: 0 | AQ15: 1 | AR15: 0
A16: Grant Dollars Paid Out | AL16: 499 | AM16: 0 | AN16: 629.5 | AO16: 1453.5 | AP16: 0 | AQ16: 779.5 | AR16: 0
A27: HIGHLIGHTS | B27: 2008-07-01 | C27: 2008-08-01 | D27: 2008-09-01 | E27: 2008-10-01 | F27: 2008-11-01 | G27: 2008-12-01 | H27: 2009-01-01 | I27: 2009-02-01 | J27: 2009-03-01 | K27: 2009-04-01 | L27: 2009-05-01 | M27: 2009-06-01 | N27: 2009-07-01 | O27: 2009-08-01 | P27: 2009-09-01 | Q27: 2009-10-01 | R27: 2009-11-01 | S27: 2009-12-01 | T27: 2010-01-01 | U27: 2010-02-01 | V27: 2010-03-01 | W27: 2010-04-01 | X27: 2010-05-01 | Y27: 2010-06-01 | Z27: 2010-07-01 | AA27: 2010-08-01 | AB27: 2010-09-01 | AC27: 2010-10-01 | AD27: 2010-11-01 | AE27: 2010-12-01 | AF27: 2011-01-01 | AG27: 2011-02-01 | AH27: 2011-03-01 | AI27: 2011-04-01 | AJ27: 2011-05-01 | AK27: 2011-06-01 | AL27: 2011-07-01 | AM27: 2011-08-01 | AN27: 2011-09-01 | AO27: 2011-10-01 | AP27: 2011-11-01 | AQ27: 2011-12-01 | AR27: 2012-01-01
A28: Highlight 1 | AL28: 1. Heavy lightning storms during the month of July caused several service outages. | AM28: 1. Storm crews were sent to Robersonville, NC to restore power in the aftermath of Hurricane Irene. | AN28: 1. Cost of Service study commenced. When complete, data will be used for rate adjustment. | AO28: Cost of Service study in progress. | AP28: Cost of Service study complete. | AQ28: Georgia Residential Energy Efficiency Grant complete. | AR28: Georgia Highlands College expansion job complete.
A29: Highlight 2 | AM29: 2. Heavy lighting storms caused 15 service outages this month. | AN29: 2. Provided trucks/equipment to Pre-K School for "Transportation Day." | AO29: Recloser installation in progress. | AP29: Recloser installation in progress. | AQ29: Georgia Highlands College expansion job in progress. | AR29: Recloser installation project complete.
A30: Highlight 3 | AN30: 3. Provided trucks/equipment to Primary School for "Community Helpers Day." | AO30: North Erwin Street pole change out project in progress. | AP30: North Erwin Street pole change out project in progress. | AQ30: Public Safety Center job in progress. | AR30: Chemical Products contract job complete.
A31: Highlight 4 | AN31: 4. Recloser installation commenced to minimize number of customers out during an event. | AO31: Pole hardware inspection project in progress. | AP31: Pole hardware inspection project in progress. | AQ31: Recloser installation in progress. | AR31: Linde Gas open records request and COS review in progress.
A32: Highlight 5 | AN32: 5. North Erwin Street pole change out project started due to deteriorated poles, new poles placed behind sidewalk. | AO32: System grounding project complete. | AP32: Pole Treatment contractor complete. | AQ32: North Erwin Street pole change out project in progress. | AR32: Public Safety Center job in progress.
A33: Highlight 6 | AN33: 6. Pole hardware inspection project continues. | AO33: Hurt man/pole top/bucket rescue training completed. | AP33: ECG/State of Georgia Economic Development Bus Tour | AQ33: Pole hardware inspection project in progress. | AR33: North Erwin Street pole change out project in progress.
A34: Highlight 7 | AN34: 7. System grounding project continues. | AO34: Electric Cities of Georgia Safety Award received. | AP34: Decorated Christmas Tree downtown | AR34: Pole hardware inspection project in progress.
A35: Highlight 8 | AN35: 8. Plant Vogtle expansion construction currently on schedule and on budget. | AO35: Pole Treatment contractor commenced (using 4-wheelers) | AR35: Material ordered for Main Street Gateway project.
A36: Highlights Concaetenation | B36: =B28&CHAR(10)&B29&CHAR(10)&B30&CHAR(10)&B31&CHAR(10)&B32&CHAR(10)&B33&CHAR(10)&B34&CHAR(10)&B35 ->  | C36: =C28&CHAR(10)&C29&CHAR(10)&C30&CHAR(10)&C31&CHAR(10)&C32&CHAR(10)&C33&CHAR(10)&C34&CHAR(10)&C35 ->  | AK36: =AK28&CHAR(10)&CHAR(10)&AK29&CHAR(10)&CHAR(10)&AK30&CHAR(10)&CHAR(10)&AK31&CHAR(10)&CHAR(10)&AK32&CHAR(10)&CHAR(10)&AK33&CHAR(10)&CHAR(10)&AK34&CHAR(10)&CHAR(10)&AK35 ->  | AL36: 1. Heavy lightning storms during the month of July caused several service outages. | AM36: 1. Storm crews were sent to Robersonville, NC to restore power in the aftermath of Hurricane Irene. 2. Heavy lighting storms caused 15 service outages this month. | AN36: 1. Cost of Service study commenced. When complete, data will be used for rate adjustment. 2. Provided trucks/equipment to Pre-K School for "Transportation Day." 3. Provided trucks/equipment to Primary School for "Community Helpers Day." 4. Recloser installation commenced to minimize number of customers out during an event. 5. North Erwin Street pole change out project started due to deteriorated poles, new poles placed behind sidewalk. 6. Pole hardware inspection project continues. 7. System grounding project continues. 8. Plant Vogtle expansion construction currently on schedule and on budget. | AO36: Cost of Service study in progress. Recloser installation in progress. North Erwin Street pole change out project in progress. Pole hardware inspection project in progress. System grounding project complete. Hurt man/pole top/bucket rescue training completed. Electric Cities of Georgia Safety Award received. Pole Treatment contractor commenced (using 4-wheelers) | AP36: Cost of Service study complete. Recloser installation in progress. North Erwin Street pole change out project in progress. Pole hardware inspection project in progress. Pole Treatment contractor complete. ECG/State of Georgia Economic Development Bus Tour Decorated Christmas Tree downtown | AQ36: Georgia Residential Energy Efficiency Grant complete. Georgia Highlands College expansion job in progress. Public Safety Center job in progress. Recloser installation in progress. North Erwin Street pole change out project in progress. Pole hardware inspection project in progress. | AR36: Georgia Highlands College expansion job complete. Recloser installation project complete. Chemical Products contract job complete. Linde Gas open records request and COS review in progress. Public Safety Center job in progress. North Erwin Street pole change out project in progress. Pole hardware inspection project in progress. Material ordered for Main Street Gateway project.
A40: Bullet Chart Source | B40: Target | C40: What's Better? | D40: Band 1 | E40: Band 2 | F40: YTD Type | G40: Max Scale | H40: Actual 1 | I40: Actual | J40: Actual 3 | K40: Projection 1 | L40: Projection 2 | M40: Projection 3 | N40: First Zone 1 | O40: First Zone 2 | P40: First Zone 3 | Q40: Second Zone 1 | R40: Second Zone 2 | S40: Second Zone 3 | T40: Previous X 1 | U40: Previous X 2 | V40: Previous Y 1 | W40: Previous Y 2
A41: =A5 -> Residential kWh Consumption | B41: 81125713 | C41: More | D41: 0.85 | E41: 1 | F41: Sum | G41: =ROUNDUP((ROUNDUP(MAX(B41,SUM(I41,L41)),-LEN(EVEN(MAX(B41,SUM(I41,L41))))+2)/5),-LEN(EVEN(ROUNDUP(MAX(B41,SUM(I41,L41)),-LEN(EVEN(MAX(B41,SUM(I41,L41))))+2)/5))+1)*5 -> 100000000 | H41: 0 | I41: =IF(F41="Sum",SUM(OFFSET(A5,0,YTDBeg,1,YTDWidth)),AVERAGE(OFFSET(A5,0,YTDBeg,1,YTDWidth))) -> 46749857 | J41: 0 | K41: 0 | L41: =IF(F41="Sum",Projection*(I41/YTDWidth*12-I41),0) -> 0 | M41: 0 | N41: =B41*D41 -> 68956856.05 | O41: =((I41+L41<=N41)*(N41-(I41+L41))) -> 22206999.05 | P41: =N41 -> 68956856.05 | Q41: =(E41-D41)*B41 -> 12168856.95 | R41: =((I41+L41<=N41+Q41)*((N41+Q41)-(I41+L41+O41))) -> 12168856.95 | S41: =Q41 -> 12168856.95 | T41: =IF(F41="Sum",SUM(OFFSET(A5,0,YTDBeg-12,1,YTDWidth)),AVERAGE(OFFSET(A5,0,YTDBeg-12,1,YTDWidth))) -> 51413850 | U41: =T41 -> 51413850 | V41: 1 | W41: 2
A42: =A6 -> Commercial kWh Consumption | B42: 126769661 | C42: More | D42: 0.85 | E42: 1 | F42: Sum | G42: =ROUNDUP((ROUNDUP(MAX(B42,SUM(I42,L42)),-LEN(EVEN(MAX(B42,SUM(I42,L42))))+2)/5),-LEN(EVEN(ROUNDUP(MAX(B42,SUM(I42,L42)),-LEN(EVEN(MAX(B42,SUM(I42,L42))))+2)/5))+1)*5 -> 150000000 | H42: 0 | I42: 77666920 | J42: 0 | K42: 0 | L42: 0 | M42: 0 | N42: 107754211.8 | O42: =((I42+L42<=N42)*(N42-(I42+L42))) -> 30087291.85 | P42: =N42 -> 107754211.8 | Q42: 19015449.15 | R42: =((I42+L42<=N42+Q42)*((N42+Q42)-(I42+L42+O42))) -> 19015449.15 | S42: =Q42 -> 19015449.15 | T42: 78588861 | U42: =T42 -> 78588861 | V42: 1 | W42: 2
A43: Industrial kWh Consumption | B43: 329764170 | C43: More | D43: 0.85 | E43: 1 | F43: Sum | G43: 350000000 | H43: 0 | I43: 195969660 | J43: 0 | K43: 0 | L43: 0 | M43: 0 | N43: 280299544.5 | O43: 84329884.5 | P43: 280299544.5 | Q43: 49464625.5 | R43: 49464625.5 | S43: 49464625.5 | T43: 192390940 | U43: 192390940 | V43: 1 | W43: 2
A44: Government kWh Consumption | B44: 10436878 | C44: Less | D44: 1 | E44: 1.15 | F44: Sum | G44: 15000000 | H44: 0 | I44: 5909839 | J44: 0 | K44: 0 | L44: 0 | M44: 0 | N44: 10436878 | O44: 4527039 | P44: 10436878 | Q44: 1565531.7 | R44: 1565531.7 | S44: 1565531.7 | T44: 6306106 | U44: 6306106 | V44: 1 | W44: 2
A45: External Source Service Outages | B45: 0 | C45: Less | D45: 1 | E45: 1.15 | F45: Average | G45: 10 | H45: 0 | I45: 8.285714286 | J45: 0 | K45: 0 | L45: 0 | M45: 0 | N45: 0 | O45: 0 | P45: 0 | Q45: 0 | R45: 0 | S45: 0 | V45: 1 | W45: 2
A46: System Failure Service Outages | B46: 0 | C46: Less | D46: 1 | E46: 1.15 | F46: Sum | G46: 10 | H46: 0 | I46: 10 | J46: 0 | K46: 0 | L46: 0 | M46: 0 | N46: 0 | O46: 0 | P46: 0 | Q46: 0 | R46: 0 | S46: 0 | V46: 1 | W46: 2
A47: Average Residential Rate per kWh (₵/kWh) | B47: 9.34 | C47: Less | D47: 1 | E47: 1.15 | F47: Average | G47: 15 | H47: 0 | I47: 10.36571429 | J47: 0 | K47: 0 | L47: 0 | M47: 0 | N47: 9.34 | O47: 0 | P47: 9.34 | Q47: 1.401 | R47: 0.3752857143 | S47: 1.401 | T47: 9.514285714 | U47: 9.514285714 | V47: 1 | W47: 2
A48: Georgia Power Residential Rate (₵/kWh) | B48: =B47 -> 9.34 | C48: More | D48: 0.85 | E48: 1 | F48: Average | H48: 0 | J48: 0 | K48: 0 | L48: 0 | M48: 0 | N48: 7.939 | P48: 7.939 | Q48: 1.401 | S48: 1.401 | V48: 1 | W48: 2
A49: Pole Inspections Completed | B49: 500 | C49: Middle | D49: 0.93 | E49: 1.07 | F49: Sum | G49: 500 | H49: 0 | I49: 248 | J49: 0 | K49: 0 | L49: 0 | M49: 0 | N49: 465 | O49: 217 | P49: 465 | Q49: 70 | R49: 70 | S49: 70 | V49: 1 | W49: 2
A50: Walk-thru Energy Audits Performed | B50: 15 | C50: More | D50: 0.85 | E50: 1 | F50: Sum | G50: =ROUNDUP((ROUNDUP(MAX(B50,SUM(I50,L50)),-LEN(EVEN(MAX(B50,SUM(I50,L50))))+2)/5),-LEN(EVEN(ROUNDUP(MAX(B50,SUM(I50,L50)),-LEN(EVEN(MAX(B50,SUM(I50,L50))))+2)/5))+1)*5 -> 15 | H50: 0 | I50: 0 | J50: 0 | K50: 0 | L50: 0 | M50: 0 | N50: =B50*D50 -> 12.75 | O50: =((I50+L50<=N50)*(N50-(I50+L50))) -> 12.75 | P50: =N50 -> 12.75 | Q50: =(E50-D50)*B50 -> 2.25 | R50: =((I50+L50<=N50+Q50)*((N50+Q50)-(I50+L50+O50))) -> 2.25 | S50: =Q50 -> 2.25 | U50: =T50 ->  | V50: 1 | W50: 2
A51: Home Performance Inspections Performed | B51: 18 | C51: More | D51: 0.85 | E51: 1 | F51: Sum | G51: 20 | H51: 0 | I51: 3 | J51: 0 | K51: 0 | L51: 0 | M51: 0 | N51: 15.3 | O51: 12.3 | P51: 15.3 | Q51: 2.7 | R51: 2.7 | S51: 2.7 | V51: 1 | W51: 2
A52: =A16 -> Grant Dollars Paid Out | B52: 12500 | C52: More | D52: 0.85 | E52: 1 | F52: Sum | G52: 15000 | H52: 0 | I52: =IF(F52="Sum",SUM(OFFSET(A16,0,YTDBeg,1,YTDWidth)),AVERAGE(OFFSET(A16,0,YTDBeg,1,YTDWidth))) -> 3361.5 | J52: 0 | K52: 0 | L52: =IF(F52="Sum",Projection*(I52/YTDWidth*12-I52),0) -> 0 | M52: 0 | N52: =B52*D52 -> 10625 | O52: =((I52+L52<=N52)*(N52-(I52+L52))) -> 7263.5 | P52: =N52 -> 10625 | Q52: =(E52-D52)*B52 -> 1875 | R52: =((I52+L52<=N52+Q52)*((N52+Q52)-(I52+L52+O52))) -> 1875 | S52: =Q52 -> 1875 | T52: =IF(F52="Sum",SUM(OFFSET(A16,0,YTDBeg-12,1,YTDWidth)),AVERAGE(OFFSET(A16,0,YTDBeg-12,1,YTDWidth))) ->  | U52: =T52 ->  | V52: 1 | W52: 2
A65: SPARKLINE SOURCE
B66: 11 | C66: 10 | D66: 9 | E66: 8 | F66: 7 | G66: 6 | H66: 5 | I66: 4 | J66: 3 | K66: 2 | L66: 1 | M66: 0
A67: Measure | B67: =OFFSET($A4,0,CurrentMonthCount-B$66,1,1) -> 2011-02-01 | C67: 2011-03-01 | D67: 2011-04-01 | E67: 2011-05-01 | F67: 2011-06-01 | G67: 2011-07-01 | H67: 2011-08-01 | I67: 2011-09-01 | J67: 2011-10-01 | K67: 2011-11-01 | L67: 2011-12-01 | M67: 2012-01-01
A68: =A5 -> Residential kWh Consumption | B68: =OFFSET($A5,0,CurrentMonthCount-B$66,1,1) -> 6247443 | C68: 4976173 | D68: 4917322 | E68: 4974377 | F68: 7460630 | G68: 8679712 | H68: 9796817 | I68: 7990180 | J68: 4737769 | K68: 4160603 | L68: 5205533 | M68: 6179243
A69: =A6 -> Commercial kWh Consumption | B69: =OFFSET($A6,0,CurrentMonthCount-B$66,1,1) -> 10069865 | C69: 9282912 | D69: 9795992 | E69: 10358156 | F69: 11608316 | G69: 12647902 | H69: 13883481 | I69: 12901070 | J69: 10263480 | K69: 9058363 | L69: 9044524 | M69: 9868100
A70: Industrial kWh Consumption | B70: =OFFSET($A7,0,CurrentMonthCount-B$66,1,1) -> 20292440 | C70: 22853360 | D70: 25318560 | E70: 27390440 | F70: 28888900 | G70: 28863880 | H70: 28898000 | I70: 30540260 | J70: 28906340 | K70: 28722760 | L70: 25307640 | M70: 24730780
A71: Government kWh Consumption | B71: =OFFSET($A8,0,CurrentMonthCount-B$66,1,1) -> 953965 | C71: 834762 | D71: 786368 | E71: 781724 | F71: 728534 | G71: 740015 | H71: 1035400 | I71: 1077812 | J71: 803053 | K71: 708284 | L71: 746077 | M71: 799198
A72: External Source Service Outages | B72: =OFFSET($A9,0,CurrentMonthCount-B$66,1,1) ->  | G72: 27 | H72: 15 | I72: 2 | J72: 4 | K72: 5 | L72: 3 | M72: 2
A73: System Failure Service Outages | B73: =OFFSET($A10,0,CurrentMonthCount-B$66,1,1) ->  | G73: 0 | H73: 2 | I73: 0 | J73: 1 | K73: 1 | L73: 4 | M73: 2
A74: Average Residential Rate per kWh (₵/kWh) | B74: =OFFSET($A11,0,CurrentMonthCount-B$66,1,1) -> 9.56 | C74: 9.71 | D74: 9.85 | E74: 10.01 | F74: 11.12 | G74: 10.81 | H74: 10.81 | I74: 10.81 | J74: 9.96 | K74: 10.02 | L74: 9.96 | M74: 10.19
A75: Georgia Power Residential Rate (₵/kWh) | B75: =OFFSET($A12,0,CurrentMonthCount-B$66,1,1) ->  | L75: 11.73 | M75: 11.04
A76: Pole Inspections Completed | B76: =OFFSET($A13,0,CurrentMonthCount-B$66,1,1) ->  | G76: 36 | H76: 29 | I76: 42 | J76: 31 | K76: 64 | L76: 0 | M76: 46
A77: Walk-thru Energy Audits Performed | B77: =OFFSET($A14,0,CurrentMonthCount-B$66,1,1) ->  | G77: 0 | H77: 0 | I77: 0 | J77: 0 | K77: 0 | L77: 0 | M77: 0
A78: Home Performance Inspections Performed | B78: =OFFSET($A15,0,CurrentMonthCount-B$66,1,1) ->  | G78: 2 | H78: 0 | I78: 0 | J78: 0 | K78: 0 | L78: 1 | M78: 0
A79: Grant Dollars Paid Out | B79: =OFFSET($A16,0,CurrentMonthCount-B$66,1,1) ->  | G79: 499 | H79: 0 | I79: 629.5 | J79: 1453.5 | K79: 0 | L79: 779.5 | M79: 0
A80: 0 | B80: =OFFSET($A17,0,CurrentMonthCount-B$66,1,1) -> 0 | C80: 0 | D80: 0 | E80: 0 | F80: 0 | G80: 0 | H80: 0 | I80: 0 | J80: 0 | K80: 0 | L80: 0 | M80: 0
A81: 0 | B81: =OFFSET($A18,0,CurrentMonthCount-B$66,1,1) -> 0 | C81: 0 | D81: 0 | E81: 0 | F81: 0 | G81: 0 | H81: 0 | I81: 0 | J81: 0 | K81: 0 | L81: 0 | M81: 0
A82: 0 | B82: =OFFSET($A19,0,CurrentMonthCount-B$66,1,1) -> 0 | C82: 0 | D82: 0 | E82: 0 | F82: 0 | G82: 0 | H82: 0 | I82: 0 | J82: 0 | K82: 0 | L82: 0 | M82: 0
A83: 0 | B83: =OFFSET($A20,0,CurrentMonthCount-B$66,1,1) -> 0 | C83: 0 | D83: 0 | E83: 0 | F83: 0 | G83: 0 | H83: 0 | I83: 0 | J83: 0 | K83: 0 | L83: 0 | M83: 0
A84: 0 | B84: =OFFSET($A21,0,CurrentMonthCount-B$66,1,1) -> 0 | C84: 0 | D84: 0 | E84: 0 | F84: 0 | G84: 0 | H84: 0 | I84: 0 | J84: 0 | K84: 0 | L84: 0 | M84: 0
A85: 0 | B85: =OFFSET($A22,0,CurrentMonthCount-B$66,1,1) -> 0 | C85: 0 | D85: 0 | E85: 0 | F85: 0 | G85: 0 | H85: 0 | I85: 0 | J85: 0 | K85: 0 | L85: 0 | M85: 0
A86: 0 | B86: =OFFSET($A23,0,CurrentMonthCount-B$66,1,1) -> 0 | C86: 0 | D86: 0 | E86: 0 | F86: 0 | G86: 0 | H86: 0 | I86: 0 | J86: 0 | K86: 0 | L86: 0 | M86: 0
A87: 0 | B87: =OFFSET($A24,0,CurrentMonthCount-B$66,1,1) -> 0 | C87: 0 | D87: 0 | E87: 0 | F87: 0 | G87: 0 | H87: 0 | I87: 0 | J87: 0 | K87: 0 | L87: 0 | M87: 0
A100: Pictures

Sheet Gas
A1: =CurrentMonth -> 2012-01-01 | E1: GAS
A3: Consumption | B3: Last 12 Months | C3: Fiscal Year to Date | D3: FYTD | F3: Cost | G3: Last 12 Months | H3: Fiscal Year to Date | I3: FYTD
A4: ='Gas Data'!A5 -> Residential MCF Consumption | D4: ='Gas Data'!I41 -> 239927 | F4: ='Gas Data'!A9 -> Price per Therm | I4: ='Gas Data'!I45 -> 1.337142857
A5: ='Gas Data'!A6 -> Commercial MCF Consumption | D5: ='Gas Data'!I42 -> 166713 | F5: ='Gas Data'!A10 -> Lowest AGL Marketer Price per Therm | I5: ='Gas Data'!I46 -> 1.782857143
A6: ='Gas Data'!A7 -> Industrial MCF Consumption | D6: ='Gas Data'!I43 -> 1501048
F7: Maintenance
A8: Reliability | F8: ='Gas Data'!A11 -> Utility Locates Performed | I8: ='Gas Data'!I47 -> 10193
A9: ='Gas Data'!A8 -> Number of Service Outages | D9: ='Gas Data'!I44 -> 0 | F9: ='Gas Data'!A12 -> Linear Miles of Right of Way Mowed | I9: ='Gas Data'!I48 -> 32.16
F10: ='Gas Data'!A13 -> Service Lines Surveyed | I10: ='Gas Data'!I49 -> 1848
F11: ='Gas Data'!A14 -> Linear Miles of Main Surveyed | I11: ='Gas Data'!I50 -> 79.22

Sheet Gas Data
A1: Gas Data
A4: Measure | B4: 2008-07-01 | C4: 2008-08-01 | D4: 2008-09-01 | E4: 2008-10-01 | F4: 2008-11-01 | G4: 2008-12-01 | H4: 2009-01-01 | I4: 2009-02-01 | J4: 2009-03-01 | K4: 2009-04-01 | L4: 2009-05-01 | M4: 2009-06-01 | N4: 2009-07-01 | O4: 2009-08-01 | P4: 2009-09-01 | Q4: 2009-10-01 | R4: 2009-11-01 | S4: 2009-12-01 | T4: 2010-01-01 | U4: 2010-02-01 | V4: 2010-03-01 | W4: 2010-04-01 | X4: 2010-05-01 | Y4: 2010-06-01 | Z4: 2010-07-01 | AA4: 2010-08-01 | AB4: 2010-09-01 | AC4: 2010-10-01 | AD4: 2010-11-01 | AE4: 2010-12-01 | AF4: 2011-01-01 | AG4: 2011-02-01 | AH4: 2011-03-01 | AI4: 2011-04-01 | AJ4: 2011-05-01 | AK4: 2011-06-01 | AL4: 2011-07-01 | AM4: 2011-08-01 | AN4: 2011-09-01 | AO4: 2011-10-01 | AP4: 2011-11-01 | AQ4: 2011-12-01 | AR4: 2012-01-01
A5: Residential MCF Consumption | T5: 97974 | U5: 95247 | V5: 55499 | W5: 17487 | X5: 10603.77 | Y5: 9307 | Z5: 9298 | AA5: 12199 | AB5: 9481 | AC5: 21037 | AD5: 59559 | AE5: 119479 | AF5: 109810 | AG5: 64733 | AH5: 37811 | AI5: 18961 | AJ5: 11447 | AK5: 8803 | AL5: 7924 | AM5: 8204 | AN5: 10455 | AO5: 27319 | AP5: 45490 | AQ5: 69821 | AR5: 70714
A6: Commercial MCF Consumption | T6: 66344 | U6: 53848 | V6: 38066 | W6: 16809 | X6: 12158.89 | Y6: 10960 | Z6: 10949 | AA6: 12567 | AB6: 11484 | AC6: 14254 | AD6: 29293 | AE6: 66372 | AF6: 68804 | AG6: 44278 | AH6: 28119 | AI6: 18693 | AJ6: 14133 | AK6: 12244 | AL6: 12309 | AM6: 11617 | AN6: 13264 | AO6: 17226 | AP6: 27107 | AQ6: 41851 | AR6: 43339
A7: Industrial MCF Consumption | T7: 236458 | U7: 226374 | V7: 237192 | W7: 202995 | X7: 218307.09 | Y7: 229372 | Z7: 183606 | AA7: 208541 | AB7: 187975 | AC7: 210366 | AD7: 205112 | AE7: 211267 | AF7: 235597 | AG7: 236155 | AH7: 238417 | AI7: 224454 | AJ7: 221289 | AK7: 220593 | AL7: 185418 | AM7: 223930 | AN7: 202220 | AO7: 224060 | AP7: 212535 | AQ7: 203568 | AR7: 249317
A8: Number of Service Outages | T8: 0 | U8: 0 | V8: 0 | W8: 1 | X8: 0 | Y8: 0 | Z8: 0 | AA8: 0 | AB8: 0 | AC8: 0 | AD8: 0 | AE8: 0 | AF8: 0 | AG8: 0 | AH8: 0 | AI8: 0 | AJ8: 0 | AK8: 0 | AL8: 0 | AM8: 0 | AN8: 0 | AO8: 0 | AP8: 0 | AQ8: 0 | AR8: 0
A9: Price per Therm | AL9: 1.65 | AM9: 1.65 | AN9: 1.57 | AO9: 1.28 | AP9: 1.12 | AQ9: 1.06 | AR9: 1.03
A10: Lowest AGL Marketer Price per Therm | AL10: 2.47 | AM10: 2.49 | AN10: 2.37 | AO10: 1.56 | AP10: 1.27 | AQ10: 1.16 | AR10: 1.16
A11: Utility Locates Performed | AL11: 1522 | AM11: 1682 | AN11: 1571 | AO11: 1536 | AP11: 1240 | AQ11: 1372 | AR11: 1270
A12: Linear Miles of Right of Way Mowed | AL12: 0 | AM12: 0 | AN12: 32.16 | AO12: 0 | AP12: 0 | AQ12: 0 | AR12: 0
A13: Service Lines Surveyed | AL13: 307 | AM13: 837 | AN13: 353 | AO13: 159 | AP13: 0 | AQ13: 0 | AR13: 192
A14: Linear Miles of Main Surveyed | AL14: 14.9 | AM14: 32.2 | AN14: 17.68 | AO14: 9 | AP14: 0 | AQ14: 0 | AR14: 5.44
A27: HIGHLIGHTS | B27: 2008-07-01 | C27: 2008-08-01 | D27: 2008-09-01 | E27: 2008-10-01 | F27: 2008-11-01 | G27: 2008-12-01 | H27: 2009-01-01 | I27: 2009-02-01 | J27: 2009-03-01 | K27: 2009-04-01 | L27: 2009-05-01 | M27: 2009-06-01 | N27: 2009-07-01 | O27: 2009-08-01 | P27: 2009-09-01 | Q27: 2009-10-01 | R27: 2009-11-01 | S27: 2009-12-01 | T27: 2010-01-01 | U27: 2010-02-01 | V27: 2010-03-01 | W27: 2010-04-01 | X27: 2010-05-01 | Y27: 2010-06-01 | Z27: 2010-07-01 | AA27: 2010-08-01 | AB27: 2010-09-01 | AC27: 2010-10-01 | AD27: 2010-11-01 | AE27: 2010-12-01 | AF27: 2011-01-01 | AG27: 2011-02-01 | AH27: 2011-03-01 | AI27: 2011-04-01 | AJ27: 2011-05-01 | AK27: 2011-06-01 | AL27: 2011-07-01 | AM27: 2011-08-01 | AN27: 2011-09-01 | AO27: 2011-10-01 | AP27: 2011-11-01 | AQ27: 2011-12-01 | AR27: 2012-01-01
A28: Highlight 1 | AN28: 1. Completed gas line improvements associated with the West Avenue Storm Drainage Improvement Project. | AO28: Completed gas main relocation on Sugar Valley rd. | AP28: Completed gas main relocation for the Public Safety Headquarters.
A29: Highlight 2 | AN29: 2. Ongoing project improving gas infrastructure on Highway 61 and Old Alabama Road Extension. | AO29: Completed system improvements on Nelson St. | AP29: Running new service to Georgia Highlands student facility.
A30: Highlight 3 | AN30: 3. Repaired erosion on gas main right-of-way by the Etowah River. | AO30: Began relocation of gas mains for the Public Safety center.
A31: Highlight 4 | AN31: 4. Continue to offer competitive rates to our customers, with rates substantially lower than those of the Atlanta Gas Light marketers. | AO31: Continue Old Alabama/Hwy 61 gas main installation.
A32: Highlight 5
A33: Highlight 6
A34: Highlight 7
A35: Highlight 8
A36: Highlights Concaetenation | B36: =B28&CHAR(10)&CHAR(10)&B29&CHAR(10)&CHAR(10)&B30&CHAR(10)&CHAR(10)&B31&CHAR(10)&CHAR(10)&B32&CHAR(10)&CHAR(10)&B33&CHAR(10)&CHAR(10)&B34&CHAR(10)&CHAR(10)&B35 ->  | AN36: 1. Completed gas line improvements associated with the West Avenue Storm Drainage Improvement Project. 2. Ongoing project improving gas infrastructure on Highway 61 and Old Alabama Road Extension. 3. Repaired erosion on gas main right-of-way by the Etowah River. 4. Continue to offer competitive rates to our customers, with rates substantially lower than those of the Atlanta Gas Light marketers. | AO36: Completed gas main relocation on Sugar Valley rd. Completed system improvements on Nelson St. Began relocation of gas mains for the Public Safety center. Continue Old Alabama/Hwy 61 gas main installation. | AP36: Completed gas main relocation for the Public Safety Headquarters. Running new service to Georgia Highlands student facility. | AR36: =AR28&CHAR(10)&CHAR(10)&AR29&CHAR(10)&CHAR(10)&AR30&CHAR(10)&CHAR(10)&AR31&CHAR(10)&CHAR(10)&AR32&CHAR(10)&CHAR(10)&AR33&CHAR(10)&CHAR(10)&AR34&CHAR(10)&CHAR(10)&AR35 -> 
A40: Bullet Chart Source | B40: Target | C40: What's Better? | D40: Band 1 | E40: Band 2 | F40: YTD Type | G40: Max Scale | H40: Actual 1 | I40: Actual | J40: Actual 3 | K40: Projection 1 | L40: Projection 2 | M40: Projection 3 | N40: First Zone 1 | O40: First Zone 2 | P40: First Zone 3 | Q40: Second Zone 1 | R40: Second Zone 2 | S40: Second Zone 3 | T40: Previous X 1 | U40: Previous X 2 | V40: Previous Y 1 | W40: Previous Y 2
A41: =A5 -> Residential MCF Consumption | B41: 517170 | C41: More | D41: 0.85 | E41: 1 | F41: Sum | G41: =ROUNDUP((ROUNDUP(MAX(B41,SUM(I41,L41)),-LEN(EVEN(MAX(B41,SUM(I41,L41))))+2)/5),-LEN(EVEN(ROUNDUP(MAX(B41,SUM(I41,L41)),-LEN(EVEN(MAX(B41,SUM(I41,L41))))+2)/5))+1)*5 -> 1000000 | H41: 0 | I41: =IF(F41="Sum",SUM(OFFSET(A5,0,YTDBeg,1,YTDWidth)),AVERAGE(OFFSET(A5,0,YTDBeg,1,YTDWidth))) -> 239927 | J41: 0 | K41: 0 | L41: =IF(F41="Sum",Projection*(I41/YTDWidth*12-I41),0) -> 0 | M41: 0 | N41: =B41*D41 -> 439594.5 | O41: =((I41+L41<=N41)*(N41-(I41+L41))) -> 199667.5 | P41: =N41 -> 439594.5 | Q41: =(E41-D41)*B41 -> 77575.5 | R41: =((I41+L41<=N41+Q41)*((N41+Q41)-(I41+L41+O41))) -> 77575.5 | S41: =Q41 -> 77575.5 | T41: =IF(F41="Sum",SUM(OFFSET(A5,0,YTDBeg-12,1,YTDWidth)),AVERAGE(OFFSET(A5,0,YTDBeg-12,1,YTDWidth))) -> 340863 | U41: =T41 -> 340863 | V41: 1 | W41: 2
A42: =A6 -> Commercial MCF Consumption | B42: 343104 | C42: More | D42: 0.85 | E42: 1 | F42: Sum | G42: =ROUNDUP((ROUNDUP(MAX(B42,SUM(I42,L42)),-LEN(EVEN(MAX(B42,SUM(I42,L42))))+2)/5),-LEN(EVEN(ROUNDUP(MAX(B42,SUM(I42,L42)),-LEN(EVEN(MAX(B42,SUM(I42,L42))))+2)/5))+1)*5 -> 350000 | H42: 0 | I42: 166713 | J42: 0 | K42: 0 | L42: 0 | M42: 0 | N42: 291638.4 | O42: =((I42+L42<=N42)*(N42-(I42+L42))) -> 124925.4 | P42: =N42 -> 291638.4 | Q42: 51465.6 | R42: =((I42+L42<=N42+Q42)*((N42+Q42)-(I42+L42+O42))) -> 51465.6 | S42: =Q42 -> 51465.6 | T42: 213723 | U42: =T42 -> 213723 | V42: 1 | W42: 2
A43: Industrial MCF Consumption | B43: 2557565 | C43: More | D43: 0.85 | E43: 1 | F43: Sum | G43: 3000000 | H43: 0 | I43: 1501048 | J43: 0 | K43: 0 | L43: 0 | M43: 0 | N43: 2173930.25 | O43: 672882.25 | P43: 2173930.25 | Q43: 383634.75 | R43: 383634.75 | S43: 383634.75 | T43: 1442464 | U43: 1442464 | V43: 1 | W43: 2
A44: Number of Service Outages | B44: 1 | C44: Less | D44: 1 | E44: 1.15 | F44: Sum | G44: 5 | H44: 0 | I44: 0 | J44: 0 | K44: 0 | L44: 0 | M44: 0 | N44: 1 | O44: 1 | P44: 1 | Q44: 0.15 | R44: 0.15 | S44: 0.15 | T44: 0 | U44: 0 | V44: 1 | W44: 2
A45: Price per Therm | B45: 1.25 | C45: Less | D45: 1 | E45: 1.15 | F45: Average | G45: 5 | H45: 0 | I45: 1.337142857 | J45: 0 | K45: 0 | L45: 0 | M45: 0 | N45: 1.25 | O45: 0 | P45: 1.25 | Q45: 0.1875 | R45: 0.1003571429 | S45: 0.1875 | V45: 1 | W45: 2
A46: Lowest AGL Marketer Price per Therm | B46: 1.42 | C46: More | D46: 0.85 | E46: 1 | F46: Average | G46: 5 | H46: 0 | I46: 1.782857143 | J46: 0 | K46: 0 | L46: 0 | M46: 0 | N46: 1.207 | O46: 0 | P46: 1.207 | Q46: 0.213 | R46: 0 | S46: 0.213 | V46: 1 | W46: 2
A47: Utility Locates Performed | B47: 14173 | C47: Middle | D47: 0.93 | E47: 1.07 | F47: Sum | G47: 15000 | H47: 0 | I47: 10193 | J47: 0 | K47: 0 | L47: 0 | M47: 0 | N47: 13180.89 | O47: 2987.89 | P47: 13180.89 | Q47: 1984.22 | R47: 1984.22 | S47: 1984.22 | V47: 1 | W47: 2
A48: Linear Miles of Right of Way Mowed | B48: 29 | C48: Middle | D48: 0.93 | E48: 1.07 | F48: Sum | G48: 35 | H48: 0 | I48: 32.16 | J48: 0 | K48: 0 | L48: 0 | M48: 0 | N48: 26.97 | O48: 0 | P48: 26.97 | Q48: 4.06 | R48: 0 | S48: 4.06 | V48: 1 | W48: 2
A49: Service Lines Surveyed | B49: 4028 | C49: Middle | D49: 0.93 | E49: 1.07 | F49: Sum | G49: 4500 | H49: 0 | I49: 1848 | J49: 0 | K49: 0 | L49: 0 | M49: 0 | N49: 3746.04 | O49: 1898.04 | P49: 3746.04 | Q49: 563.92 | R49: 563.92 | S49: 563.92 | V49: 1 | W49: 2
A50: Linear Miles of Main Surveyed | B50: 156 | C50: Middle | D50: 0.93 | E50: 1.07 | F50: Sum | G50: 200 | H50: 0 | I50: 79.22 | J50: 0 | K50: 0 | L50: 0 | M50: 0 | N50: 145.08 | O50: 65.86 | P50: 145.08 | Q50: 21.84 | R50: 21.84 | S50: 21.84 | V50: 1 | W50: 2
A65: SPARKLINE SOURCE
B66: 11 | C66: 10 | D66: 9 | E66: 8 | F66: 7 | G66: 6 | H66: 5 | I66: 4 | J66: 3 | K66: 2 | L66: 1 | M66: 0
A67: Measure | B67: =OFFSET($A4,0,CurrentMonthCount-B$66,1,1) -> 2011-02-01 | C67: 2011-03-01 | D67: 2011-04-01 | E67: 2011-05-01 | F67: 2011-06-01 | G67: 2011-07-01 | H67: 2011-08-01 | I67: 2011-09-01 | J67: 2011-10-01 | K67: 2011-11-01 | L67: 2011-12-01 | M67: 2012-01-01
A68: =A5 -> Residential MCF Consumption | B68: =OFFSET($A5,0,CurrentMonthCount-B$66,1,1) -> 64733 | C68: 37811 | D68: 18961 | E68: 11447 | F68: 8803 | G68: 7924 | H68: 8204 | I68: 10455 | J68: 27319 | K68: 45490 | L68: 69821 | M68: 70714
A69: =A6 -> Commercial MCF Consumption | B69: =OFFSET($A6,0,CurrentMonthCount-B$66,1,1) -> 44278 | C69: 28119 | D69: 18693 | E69: 14133 | F69: 12244 | G69: 12309 | H69: 11617 | I69: 13264 | J69: 17226 | K69: 27107 | L69: 41851 | M69: 43339
A70: Industrial MCF Consumption | B70: =OFFSET($A7,0,CurrentMonthCount-B$66,1,1) -> 236155 | C70: 238417 | D70: 224454 | E70: 221289 | F70: 220593 | G70: 185418 | H70: 223930 | I70: 202220 | J70: 224060 | K70: 212535 | L70: 203568 | M70: 249317
A71: Number of Service Outages | B71: =OFFSET($A8,0,CurrentMonthCount-B$66,1,1) -> 0 | C71: 0 | D71: 0 | E71: 0 | F71: 0 | G71: 0 | H71: 0 | I71: 0 | J71: 0 | K71: 0 | L71: 0 | M71: 0
A72: Price per Therm | B72: =OFFSET($A9,0,CurrentMonthCount-B$66,1,1) ->  | G72: 1.65 | H72: 1.65 | I72: 1.57 | J72: 1.28 | K72: 1.12 | L72: 1.06 | M72: 1.03
A73: Lowest AGL Marketer Price per Therm | B73: =OFFSET($A10,0,CurrentMonthCount-B$66,1,1) ->  | G73: 2.47 | H73: 2.49 | I73: 2.37 | J73: 1.56 | K73: 1.27 | L73: 1.16 | M73: 1.16
A74: Utility Locates Performed | B74: =OFFSET($A11,0,CurrentMonthCount-B$66,1,1) ->  | G74: 1522 | H74: 1682 | I74: 1571 | J74: 1536 | K74: 1240 | L74: 1372 | M74: 1270
A75: Linear Miles of Right of Way Mowed | B75: =OFFSET($A12,0,CurrentMonthCount-B$66,1,1) ->  | G75: 0 | H75: 0 | I75: 32.16 | J75: 0 | K75: 0 | L75: 0 | M75: 0
A76: Service Lines Surveyed | B76: =OFFSET($A13,0,CurrentMonthCount-B$66,1,1) ->  | G76: 307 | H76: 837 | I76: 353 | J76: 159 | K76: 0 | L76: 0 | M76: 192
A77: Linear Miles of Main Surveyed | B77: =OFFSET($A14,0,CurrentMonthCount-B$66,1,1) ->  | G77: 14.9 | H77: 32.2 | I77: 17.68 | J77: 9 | K77: 0 | L77: 0 | M77: 5.44
A78: 0 | B78: =OFFSET($A15,0,CurrentMonthCount-B$66,1,1) -> 0 | C78: 0 | D78: 0 | E78: 0 | F78: 0 | G78: 0 | H78: 0 | I78: 0 | J78: 0 | K78: 0 | L78: 0 | M78: 0
A79: 0 | B79: =OFFSET($A16,0,CurrentMonthCount-B$66,1,1) -> 0 | C79: 0 | D79: 0 | E79: 0 | F79: 0 | G79: 0 | H79: 0 | I79: 0 | J79: 0 | K79: 0 | L79: 0 | M79: 0
A80: 0 | B80: =OFFSET($A17,0,CurrentMonthCount-B$66,1,1) -> 0 | C80: 0 | D80: 0 | E80: 0 | F80: 0 | G80: 0 | H80: 0 | I80: 0 | J80: 0 | K80: 0 | L80: 0 | M80: 0
A81: 0 | B81: =OFFSET($A18,0,CurrentMonthCount-B$66,1,1) -> 0 | C81: 0 | D81: 0 | E81: 0 | F81: 0 | G81: 0 | H81: 0 | I81: 0 | J81: 0 | K81: 0 | L81: 0 | M81: 0
A82: 0 | B82: =OFFSET($A19,0,CurrentMonthCount-B$66,1,1) -> 0 | C82: 0 | D82: 0 | E82: 0 | F82: 0 | G82: 0 | H82: 0 | I82: 0 | J82: 0 | K82: 0 | L82: 0 | M82: 0
A83: 0 | B83: =OFFSET($A20,0,CurrentMonthCount-B$66,1,1) -> 0 | C83: 0 | D83: 0 | E83: 0 | F83: 0 | G83: 0 | H83: 0 | I83: 0 | J83: 0 | K83: 0 | L83: 0 | M83: 0
A84: 0 | B84: =OFFSET($A21,0,CurrentMonthCount-B$66,1,1) -> 0 | C84: 0 | D84: 0 | E84: 0 | F84: 0 | G84: 0 | H84: 0 | I84: 0 | J84: 0 | K84: 0 | L84: 0 | M84: 0
A85: 0 | B85: =OFFSET($A22,0,CurrentMonthCount-B$66,1,1) -> 0 | C85: 0 | D85: 0 | E85: 0 | F85: 0 | G85: 0 | H85: 0 | I85: 0 | J85: 0 | K85: 0 | L85: 0 | M85: 0
A86: 0 | B86: =OFFSET($A23,0,CurrentMonthCount-B$66,1,1) -> 0 | C86: 0 | D86: 0 | E86: 0 | F86: 0 | G86: 0 | H86: 0 | I86: 0 | J86: 0 | K86: 0 | L86: 0 | M86: 0
A87: 0 | B87: =OFFSET($A24,0,CurrentMonthCount-B$66,1,1) -> 0 | C87: 0 | D87: 0 | E87: 0 | F87: 0 | G87: 0 | H87: 0 | I87: 0 | J87: 0 | K87: 0 | L87: 0 | M87: 0

Sheet Water
A1: =CurrentMonth -> 2012-01-01 | E1: WATER & SEWER
A3: Service | B3: Last 12 Months | C3: Fiscal Year to Date | D3: FYTD | F3: System | G3: Last 12 Months | H3: Fiscal Year to Date | I3: FYTD
A4: ='Water Data'!A5 -> Residential Water Consumption | D4: ='Water Data'!I41 -> 392802 | F4: ='Water Data'!A8 -> Sanitary Sewer Overflows | I4: ='Water Data'!I44 -> 0
A5: ='Water Data'!A6 -> Commercial Water Consumption | D5: ='Water Data'!I42 -> 229030 | F5: ='Water Data'!A9 -> Permit Violation - Water Treatment | I5: ='Water Data'!I45 -> 0
A6: ='Water Data'!A7 -> Industrial Water Consumption | D6: ='Water Data'!I43 -> 2167154 | F6: ='Water Data'!A10 -> Permit Violation - Wastewater Treatment | I6: ='Water Data'!I46 -> 0
F7: ='Water Data'!A11 -> Water Samples Out of Compliance | I7: ='Water Data'!I47 -> 2
A8: Cost | F8: ='Water Data'!A12 -> Water Compliance Fines | I8: ='Water Data'!I48 -> 0
A9: ='Water Data'!A14 -> Average Cost for 7,500 Gallons/Competitor Average | D9: ='Water Data'!I50 -> 0.7281701898 | F9: ='Water Data'!A13 -> Service Outages | I9: ='Water Data'!I49 -> 0
F10: ='Water Data'!A15 -> Distribution System Water Loss (Rolling Average) | I10: ='Water Data'!I51 -> 0.1046857143

Sheet Water Data (hidden)
A1: Water Data
A4: Measure | B4: 2008-07-01 | C4: 2008-08-01 | D4: 2008-09-01 | E4: 2008-10-01 | F4: 2008-11-01 | G4: 2008-12-01 | H4: 2009-01-01 | I4: 2009-02-01 | J4: 2009-03-01 | K4: 2009-04-01 | L4: 2009-05-01 | M4: 2009-06-01 | N4: 2009-07-01 | O4: 2009-08-01 | P4: 2009-09-01 | Q4: 2009-10-01 | R4: 2009-11-01 | S4: 2009-12-01 | T4: 2010-01-01 | U4: 2010-02-01 | V4: 2010-03-01 | W4: 2010-04-01 | X4: 2010-05-01 | Y4: 2010-06-01 | Z4: 2010-07-01 | AA4: 2010-08-01 | AB4: 2010-09-01 | AC4: 2010-10-01 | AD4: 2010-11-01 | AE4: 2010-12-01 | AF4: 2011-01-01 | AG4: 2011-02-01 | AH4: 2011-03-01 | AI4: 2011-04-01 | AJ4: 2011-05-01 | AK4: 2011-06-01 | AL4: 2011-07-01 | AM4: 2011-08-01 | AN4: 2011-09-01 | AO4: 2011-10-01 | AP4: 2011-11-01 | AQ4: 2011-12-01 | AR4: 2012-01-01
A5: Residential Water Consumption | T5: 48105 | U5: 43821 | V5: 44751 | W5: 50858 | X5: 51515 | Y5: 63906 | Z5: 61413 | AA5: 60441 | AB5: 64879 | AC5: 56633 | AD5: 47621 | AE5: 48948 | AF5: 48296 | AG5: 49148 | AH5: 43738 | AI5: 47898 | AJ5: 55025 | AK5: 68885 | AL5: 71644 | AM5: 65775 | AN5: 64117 | AO5: 51985 | AP5: 45035 | AQ5: 46130 | AR5: 48116
A6: Commercial Water Consumption | T6: 28373 | U6: 31411 | V6: 29243 | W6: 30645 | X6: 30505 | Y6: 31274 | Z6: 35260 | AA6: 36804 | AB6: 39570 | AC6: 35639 | AD6: 32072 | AE6: 31966 | AF6: 29923 | AG6: 31999 | AH6: 28565 | AI6: 29808 | AJ6: 33575 | AK6: 34167 | AL6: 35615 | AM6: 37130 | AN6: 38948 | AO6: 33663 | AP6: 29457 | AQ6: 26842 | AR6: 27375
A7: Industrial Water Consumption | T7: 287823 | U7: 316156 | V7: 277145 | W7: 311522 | X7: 295432 | Y7: 304372 | Z7: 347595 | AA7: 341590 | AB7: 352443 | AC7: 321045 | AD7: 285111 | AE7: 280627 | AF7: 277455 | AG7: 279163 | AH7: 249485 | AI7: 277091 | AJ7: 264090 | AK7: 321549 | AL7: 327116 | AM7: 303249 | AN7: 361300 | AO7: 381666 | AP7: 278211 | AQ7: 262770 | AR7: 252842
A8: Sanitary Sewer Overflows | AL8: 0 | AM8: 0 | AN8: 0 | AO8: 0 | AP8: 0 | AQ8: 0 | AR8: 0
A9: Permit Violation - Water Treatment | AL9: 0 | AM9: 0 | AN9: 0 | AO9: 0 | AP9: 0 | AQ9: 0 | AR9: 0
A10: Permit Violation - Wastewater Treatment | AL10: 0 | AM10: 0 | AN10: 0 | AO10: 0 | AP10: 0 | AQ10: 0 | AR10: 0
A11: Water Samples Out of Compliance | T11: 0 | U11: 0 | V11: 0 | W11: 0 | X11: 0 | Y11: 0 | Z11: 2 | AA11: 0 | AB11: 0 | AC11: 0 | AD11: 0 | AE11: 0 | AF11: 0 | AG11: 0 | AH11: 0 | AI11: 0 | AJ11: 0 | AK11: 0 | AL11: 0 | AM11: 2 | AN11: 0 | AO11: 0 | AP11: 0 | AQ11: 0 | AR11: 0
A12: Water Compliance Fines | T12: 0 | U12: 0 | V12: 0 | W12: 0 | X12: 0 | Y12: 0 | Z12: 0 | AA12: 0 | AB12: 0 | AC12: 0 | AD12: 0 | AE12: 0 | AF12: 0 | AG12: 0 | AH12: 0 | AI12: 0 | AJ12: 0 | AK12: 0 | AL12: 0 | AM12: 0 | AN12: 0 | AO12: 0 | AP12: 0 | AQ12: 0 | AR12: 0
A13: Service Outages | T13: 6 | U13: 0 | V13: 1 | W13: 0 | X13: 0 | Y13: 7 | Z13: 0 | AA13: 0 | AB13: 0 | AC13: 0 | AD13: 0 | AE13: 0 | AF13: 0 | AG13: 0 | AH13: 0 | AI13: 0 | AJ13: 0 | AK13: 0 | AL13: 0 | AM13: 0 | AN13: 0 | AO13: 0 | AP13: 0 | AQ13: 0 | AR13: 0
A14: Average Cost for 7,500 Gallons/Competitor Average | AL14: 0.73 | AM14: 0.73 | AN14: 0.73 | AO14: 0.725730443 | AP14: 0.725730443 | AQ14: 0.725730443 | AR14: 0.73
A15: Distribution System Water Loss (Rolling Average) | T15: 0.0812 | U15: 0.084 | V15: 0.086 | W15: 0.0845 | X15: 0.0817 | Y15: 0.0795 | Z15: 0.0797 | AA15: 0.0828 | AB15: 0.0819 | AC15: 0.0776 | AD15: 0.0773 | AE15: 0.0809 | AF15: 0.0788 | AG15: 0.0802 | AH15: 0.0851 | AI15: 0.0886 | AJ15: 0.0935 | AK15: 0.0991 | AL15: 0.1016 | AM15: 0.1005 | AN15: 0.1002 | AO15: 0.1044 | AP15: 0.1082 | AQ15: 0.1094 | AR15: 0.1085
A27: HIGHLIGHTS | B27: 2008-07-01 | C27: 2008-08-01 | D27: 2008-09-01 | E27: 2008-10-01 | F27: 2008-11-01 | G27: 2008-12-01 | H27: 2009-01-01 | I27: 2009-02-01 | J27: 2009-03-01 | K27: 2009-04-01 | L27: 2009-05-01 | M27: 2009-06-01 | N27: 2009-07-01 | O27: 2009-08-01 | P27: 2009-09-01 | Q27: 2009-10-01 | R27: 2009-11-01 | S27: 2009-12-01 | T27: 2010-01-01 | U27: 2010-02-01 | V27: 2010-03-01 | W27: 2010-04-01 | X27: 2010-05-01 | Y27: 2010-06-01 | Z27: 2010-07-01 | AA27: 2010-08-01 | AB27: 2010-09-01 | AC27: 2010-10-01 | AD27: 2010-11-01 | AE27: 2010-12-01 | AF27: 2011-01-01 | AG27: 2011-02-01 | AH27: 2011-03-01 | AI27: 2011-04-01 | AJ27: 2011-05-01 | AK27: 2011-06-01 | AL27: 2011-07-01 | AM27: 2011-08-01 | AN27: 2011-09-01 | AO27: 2011-10-01 | AP27: 2011-11-01 | AQ27: 2011-12-01 | AR27: 2012-01-01
A28: Highlight 1 | AN28: Completed the sewer extension project on East MLK Blvd., installing 125 feet of 8 inch diameter sewer line. | AQ28: Completion of Indian Mounds Road Water Main Phase I - 3500' 8" DIP | AR28: Begin S. Erwin St. Water main replacement
A29: Highlight 2 | AN29: Completed a water main relocation project on West Avenue, relocating 60 feet of 12 inch diameter water line. | AQ29: Pre-Construction meeting for S. Erwin St 12" Main Replacement held. Notice to proceed date set of 1/9/12 | AR29: Begin Phase II of Indian Mounds Road water main replacement (through Bow&Arrow Mobile Home Park)
A30: Highlight 3 | AR30: Found/repaired significant main leak behind Market Square shopping center
A31: Highlight 4
A32: Highlight 5
A33: Highlight 6
A34: Highlight 7
A35: Highlight 8
A36: Highlights Concaetenation | B36: =B28&CHAR(10)&B29&CHAR(10)&B30&CHAR(10)&B31&CHAR(10)&B32&CHAR(10)&B33&CHAR(10)&B34&CHAR(10)&B35 ->  | C36: =C28&CHAR(10)&C29&CHAR(10)&C30&CHAR(10)&C31&CHAR(10)&C32&CHAR(10)&C33&CHAR(10)&C34&CHAR(10)&C35 ->  | AK36: =AK28&CHAR(10)&AK29&CHAR(10)&AK30&CHAR(10)&AK31&CHAR(10)&AK32&CHAR(10)&AK33&CHAR(10)&AK34&CHAR(10)&AK35 ->  | AM36: =AM28&CHAR(10)&CHAR(10)&AM29&CHAR(10)&CHAR(10)&AM30&CHAR(10)&CHAR(10)&AM31&CHAR(10)&CHAR(10)&AM32&CHAR(10)&CHAR(10)&AM33&CHAR(10)&CHAR(10)&AM34&CHAR(10)&CHAR(10)&AM35 ->  | AN36: Completed the sewer extension project on East MLK Blvd., installing 125 feet of 8 inch diameter sewer line. Completed a water main relocation project on West Avenue, relocating 60 feet of 12 inch diameter water line. | AQ36: Completion of Indian Mounds Road Water Main Phase I - 3500' 8" DIP Pre-Construction meeting for S. Erwin St 12" Main Replacement held. Notice to proceed date set of 1/9/12 | AR36: Begin S. Erwin St. Water main replacement Begin Phase II of Indian Mounds Road water main replacement (through Bow&Arrow Mobile Home Park) Found/repaired significant main leak behind Market Square shopping center
A40: Bullet Chart Source | B40: Target | C40: What's Better? | D40: Band 1 | E40: Band 2 | F40: YTD Type | G40: Max Scale | H40: Actual 1 | I40: Actual | J40: Actual 3 | K40: Projection 1 | L40: Projection 2 | M40: Projection 3 | N40: First Zone 1 | O40: First Zone 2 | P40: First Zone 3 | Q40: Second Zone 1 | R40: Second Zone 2 | S40: Second Zone 3 | T40: Previous X 1 | U40: Previous X 2 | V40: Previous Y 1 | W40: Previous Y 2
A41: =A5 -> Residential Water Consumption | B41: 645000 | C41: More | D41: 0.85 | E41: 1 | F41: Sum | G41: =ROUNDUP((ROUNDUP(MAX(B41,SUM(I41,L41)),-LEN(EVEN(MAX(B41,SUM(I41,L41))))+2)/5),-LEN(EVEN(ROUNDUP(MAX(B41,SUM(I41,L41)),-LEN(EVEN(MAX(B41,SUM(I41,L41))))+2)/5))+1)*5 -> 1000000 | H41: 0 | I41: =IF(F41="Sum",SUM(OFFSET(A5,0,YTDBeg,1,YTDWidth)),AVERAGE(OFFSET(A5,0,YTDBeg,1,YTDWidth))) -> 392802 | J41: 0 | K41: 0 | L41: =IF(F41="Sum",Projection*(I41/YTDWidth*12-I41),0) -> 0 | M41: 0 | N41: =B41*D41 -> 548250 | O41: =((I41+L41<=N41)*(N41-(I41+L41))) -> 155448 | P41: =N41 -> 548250 | Q41: =(E41-D41)*B41 -> 96750 | R41: =((I41+L41<=N41+Q41)*((N41+Q41)-(I41+L41+O41))) -> 96750 | S41: =Q41 -> 96750 | T41: =IF(F41="Sum",SUM(OFFSET(A5,0,YTDBeg-12,1,YTDWidth)),AVERAGE(OFFSET(A5,0,YTDBeg-12,1,YTDWidth))) -> 388231 | U41: =T41 -> 388231 | V41: 1 | W41: 2
A42: =A6 -> Commercial Water Consumption | B42: 390000 | C42: More | D42: 0.85 | E42: 1 | F42: Sum | G42: =ROUNDUP((ROUNDUP(MAX(B42,SUM(I42,L42)),-LEN(EVEN(MAX(B42,SUM(I42,L42))))+2)/5),-LEN(EVEN(ROUNDUP(MAX(B42,SUM(I42,L42)),-LEN(EVEN(MAX(B42,SUM(I42,L42))))+2)/5))+1)*5 -> 400000 | H42: 0 | I42: 229030 | J42: 0 | K42: 0 | L42: 0 | M42: 0 | N42: 331500 | O42: =((I42+L42<=N42)*(N42-(I42+L42))) -> 102470 | P42: =N42 -> 331500 | Q42: 58500 | R42: =((I42+L42<=N42+Q42)*((N42+Q42)-(I42+L42+O42))) -> 58500 | S42: =Q42 -> 58500 | T42: 241234 | U42: =T42 -> 241234 | V42: 1 | W42: 2
A43: Industrial Water Consumption | B43: 3600000 | C43: More | D43: 0.85 | E43: 1 | F43: Sum | G43: 4000000 | H43: 0 | I43: 2167154 | J43: 0 | K43: 0 | L43: 0 | M43: 0 | N43: 3060000 | O43: 892846 | P43: 3060000 | Q43: 540000 | R43: 540000 | S43: 540000 | T43: 2205866 | U43: 2205866 | V43: 1 | W43: 2
A44: Sanitary Sewer Overflows | B44: 0 | C44: Less | D44: 1 | E44: 1.15 | F44: Sum | G44: 0 | H44: 0 | I44: 0 | J44: 0 | K44: 0 | L44: 0 | M44: 0 | N44: 0 | O44: 0 | P44: 0 | Q44: 0 | R44: 0 | S44: 0 | V44: 1 | W44: 2
A45: Permit Violation - Water Treatment | B45: 0 | C45: Less | D45: 1 | E45: 1.15 | F45: Sum | G45: 0 | H45: 0 | I45: 0 | J45: 0 | K45: 0 | L45: 0 | M45: 0 | N45: 0 | O45: 0 | P45: 0 | Q45: 0 | R45: 0 | S45: 0 | V45: 1 | W45: 2
A46: Permit Violation - Wastewater Treatment | B46: 0 | C46: Less | D46: 1 | E46: 1.15 | F46: Sum | G46: 0 | H46: 0 | I46: 0 | J46: 0 | K46: 0 | L46: 0 | M46: 0 | N46: 0 | O46: 0 | P46: 0 | Q46: 0 | R46: 0 | S46: 0 | V46: 1 | W46: 2
A47: Water Samples Out of Compliance | B47: 0 | C47: Less | D47: 1 | E47: 1.15 | F47: Sum | G47: 5 | H47: 0 | I47: 2 | J47: 0 | K47: 0 | L47: 0 | M47: 0 | N47: 0 | O47: 0 | P47: 0 | Q47: 0 | R47: 0 | S47: 0 | T47: 2 | U47: 2 | V47: 1 | W47: 2
A48: Water Compliance Fines | B48: 0 | C48: Less | D48: 1 | E48: 1.15 | F48: Sum | G48: 0 | H48: 0 | I48: 0 | J48: 0 | K48: 0 | L48: 0 | M48: 0 | N48: 0 | O48: 0 | P48: 0 | Q48: 0 | R48: 0 | S48: 0 | T48: 0 | U48: 0 | V48: 1 | W48: 2
A49: Service Outages | B49: 50 | C49: Less | D49: 1 | E49: 1.15 | F49: Sum | G49: 50 | H49: 0 | I49: 0 | J49: 0 | K49: 0 | L49: 0 | M49: 0 | N49: 50 | O49: 50 | P49: 50 | Q49: 7.5 | R49: 7.5 | S49: 7.5 | T49: 0 | U49: 0 | V49: 1 | W49: 2
A50: Average Cost for 7,500 Gallons/Competitor Average | B50: 1 | C50: Less | D50: 1 | E50: 1.15 | F50: Average | G50: 1 | H50: 0 | I50: 0.7281701898 | J50: 0 | K50: 0 | L50: 0 | M50: 0 | N50: 1 | O50: 0.2718298102 | P50: 1 | Q50: 0.15 | R50: 0.15 | S50: 0.15 | V50: 1 | W50: 2
A51: Distribution System Water Loss (Rolling Average) | B51: 0.1 | C51: Less | D51: 1 | E51: 1.15 | F51: Average | G51: 1 | H51: 0 | I51: 0.1046857143 | J51: 0 | K51: 0 | L51: 0 | M51: 0 | N51: =B51*D51 -> 0.1 | O51: =((I51+L51<=N51)*(N51-(I51+L51))) -> 0 | P51: =N51 -> 0.1 | Q51: =(E51-D51)*B51 -> 0.015 | R51: =((I51+L51<=N51+Q51)*((N51+Q51)-(I51+L51+O51))) -> 0.01031428571 | S51: =Q51 -> 0.015 | T51: 0.07985714286 | U51: =T51 -> 0.07985714286 | V51: 1 | W51: 2
A65: SPARKLINE SOURCE
B66: 11 | C66: 10 | D66: 9 | E66: 8 | F66: 7 | G66: 6 | H66: 5 | I66: 4 | J66: 3 | K66: 2 | L66: 1 | M66: 0
A67: Measure | B67: =OFFSET($A4,0,CurrentMonthCount-B$66,1,1) -> 2011-02-01 | C67: 2011-03-01 | D67: 2011-04-01 | E67: 2011-05-01 | F67: 2011-06-01 | G67: 2011-07-01 | H67: 2011-08-01 | I67: 2011-09-01 | J67: 2011-10-01 | K67: 2011-11-01 | L67: 2011-12-01 | M67: 2012-01-01
A68: =A5 -> Residential Water Consumption | B68: =OFFSET($A5,0,CurrentMonthCount-B$66,1,1) -> 49148 | C68: 43738 | D68: 47898 | E68: 55025 | F68: 68885 | G68: 71644 | H68: 65775 | I68: 64117 | J68: 51985 | K68: 45035 | L68: 46130 | M68: 48116
A69: =A6 -> Commercial Water Consumption | B69: =OFFSET($A6,0,CurrentMonthCount-B$66,1,1) -> 31999 | C69: 28565 | D69: 29808 | E69: 33575 | F69: 34167 | G69: 35615 | H69: 37130 | I69: 38948 | J69: 33663 | K69: 29457 | L69: 26842 | M69: 27375
A70: Industrial Water Consumption | B70: =OFFSET($A7,0,CurrentMonthCount-B$66,1,1) -> 279163 | C70: 249485 | D70: 277091 | E70: 264090 | F70: 321549 | G70: 327116 | H70: 303249 | I70: 361300 | J70: 381666 | K70: 278211 | L70: 262770 | M70: 252842
A71: Sanitary Sewer Overflows | B71: =OFFSET($A8,0,CurrentMonthCount-B$66,1,1) ->  | G71: 0 | H71: 0 | I71: 0 | J71: 0 | K71: 0 | L71: 0 | M71: 0
A72: Permit Violation - Water Treatment | B72: =OFFSET($A9,0,CurrentMonthCount-B$66,1,1) ->  | G72: 0 | H72: 0 | I72: 0 | J72: 0 | K72: 0 | L72: 0 | M72: 0
A73: Permit Violation - Wastewater Treatment | B73: =OFFSET($A10,0,CurrentMonthCount-B$66,1,1) ->  | G73: 0 | H73: 0 | I73: 0 | J73: 0 | K73: 0 | L73: 0 | M73: 0
A74: Water Samples Out of Compliance | B74: =OFFSET($A11,0,CurrentMonthCount-B$66,1,1) -> 0 | C74: 0 | D74: 0 | E74: 0 | F74: 0 | G74: 0 | H74: 2 | I74: 0 | J74: 0 | K74: 0 | L74: 0 | M74: 0
A75: Water Compliance Fines | B75: =OFFSET($A12,0,CurrentMonthCount-B$66,1,1) -> 0 | C75: 0 | D75: 0 | E75: 0 | F75: 0 | G75: 0 | H75: 0 | I75: 0 | J75: 0 | K75: 0 | L75: 0 | M75: 0
A76: Service Outages | B76: =OFFSET($A13,0,CurrentMonthCount-B$66,1,1) -> 0 | C76: 0 | D76: 0 | E76: 0 | F76: 0 | G76: 0 | H76: 0 | I76: 0 | J76: 0 | K76: 0 | L76: 0 | M76: 0
A77: Average Cost for 7,500 Gallons/Competitor Average | B77: =OFFSET($A14,0,CurrentMonthCount-B$66,1,1) ->  | G77: 0.73 | H77: 0.73 | I77: 0.73 | J77: 0.725730443 | K77: 0.725730443 | L77: 0.725730443 | M77: 0.73
A78: Distribution System Water Loss (Rolling Average) | B78: =OFFSET($A15,0,CurrentMonthCount-B$66,1,1) -> 0.0802 | C78: 0.0851 | D78: 0.0886 | E78: 0.0935 | F78: 0.0991 | G78: 0.1016 | H78: 0.1005 | I78: 0.1002 | J78: 0.1044 | K78: 0.1082 | L78: 0.1094 | M78: 0.1085
A79: 0 | B79: =OFFSET($A16,0,CurrentMonthCount-B$66,1,1) -> 0 | C79: 0 | D79: 0 | E79: 0 | F79: 0 | G79: 0 | H79: 0 | I79: 0 | J79: 0 | K79: 0 | L79: 0 | M79: 0
A80: 0 | B80: =OFFSET($A17,0,CurrentMonthCount-B$66,1,1) -> 0 | C80: 0 | D80: 0 | E80: 0 | F80: 0 | G80: 0 | H80: 0 | I80: 0 | J80: 0 | K80: 0 | L80: 0 | M80: 0
A81: 0 | B81: =OFFSET($A18,0,CurrentMonthCount-B$66,1,1) -> 0 | C81: 0 | D81: 0 | E81: 0 | F81: 0 | G81: 0 | H81: 0 | I81: 0 | J81: 0 | K81: 0 | L81: 0 | M81: 0
A82: 0 | B82: =OFFSET($A19,0,CurrentMonthCount-B$66,1,1) -> 0 | C82: 0 | D82: 0 | E82: 0 | F82: 0 | G82: 0 | H82: 0 | I82: 0 | J82: 0 | K82: 0 | L82: 0 | M82: 0
A83: 0 | B83: =OFFSET($A20,0,CurrentMonthCount-B$66,1,1) -> 0 | C83: 0 | D83: 0 | E83: 0 | F83: 0 | G83: 0 | H83: 0 | I83: 0 | J83: 0 | K83: 0 | L83: 0 | M83: 0
A84: 0 | B84: =OFFSET($A21,0,CurrentMonthCount-B$66,1,1) -> 0 | C84: 0 | D84: 0 | E84: 0 | F84: 0 | G84: 0 | H84: 0 | I84: 0 | J84: 0 | K84: 0 | L84: 0 | M84: 0
A85: 0 | B85: =OFFSET($A22,0,CurrentMonthCount-B$66,1,1) -> 0 | C85: 0 | D85: 0 | E85: 0 | F85: 0 | G85: 0 | H85: 0 | I85: 0 | J85: 0 | K85: 0 | L85: 0 | M85: 0
A86: 0 | B86: =OFFSET($A23,0,CurrentMonthCount-B$66,1,1) -> 0 | C86: 0 | D86: 0 | E86: 0 | F86: 0 | G86: 0 | H86: 0 | I86: 0 | J86: 0 | K86: 0 | L86: 0 | M86: 0
A87: 0 | B87: =OFFSET($A24,0,CurrentMonthCount-B$66,1,1) -> 0 | C87: 0 | D87: 0 | E87: 0 | F87: 0 | G87: 0 | H87: 0 | I87: 0 | J87: 0 | K87: 0 | L87: 0 | M87: 0

Sheet Solid
A1: =CurrentMonth -> 2012-01-01 | E1: SOLID WASTE
A3: Waste Collection | B3: Last 12 Months | C3: Fiscal Year to Date | D3: FYTD | F3: Waste Cost | G3: Last 12 Months | H3: Fiscal Year to Date | I3: FYTD
A4: ='Solid Data'!A5 -> Residential Solid Waste Collected per Collection Day (Tons) | D4: ='Solid Data'!I41 -> 23.09714286 | F4: ='Solid Data'!A7 -> Landfill Expense per Collection Day - Residential | I4: ='Solid Data'!I43 -> 646.6942857
A5: ='Solid Data'!A6 -> Commercial Solid Waste Collected per Collection Day (Tons) | D5: ='Solid Data'!I42 -> 17.65428571 | F5: ='Solid Data'!A8 -> Landfill Expense per Collection Day - Commercial | I5: ='Solid Data'!I44 -> 494.3371429
A7: Operations | F7: Human Resources
A8: ='Solid Data'!A9 -> Average Number of Receptacles Collected per Route-hour | D8: ='Solid Data'!I45 -> 95.28571429 | F8: ='Solid Data'!A12 -> Staff Injuries (Solid Waste) | I8: ='Solid Data'!I48 -> 3
A9: ='Solid Data'!A10 -> Curbies Missed While Conducting Normal Pick-up | D9: ='Solid Data'!I46 -> 29
A10: ='Solid Data'!A11 -> Complaints Received | D10: ='Solid Data'!I47 -> 28

Sheet Solid Data (hidden)
A1: Solid Data
A4: Measure | B4: 2008-07-01 | C4: 2008-08-01 | D4: 2008-09-01 | E4: 2008-10-01 | F4: 2008-11-01 | G4: 2008-12-01 | H4: 2009-01-01 | I4: 2009-02-01 | J4: 2009-03-01 | K4: 2009-04-01 | L4: 2009-05-01 | M4: 2009-06-01 | N4: 2009-07-01 | O4: 2009-08-01 | P4: 2009-09-01 | Q4: 2009-10-01 | R4: 2009-11-01 | S4: 2009-12-01 | T4: 2010-01-01 | U4: 2010-02-01 | V4: 2010-03-01 | W4: 2010-04-01 | X4: 2010-05-01 | Y4: 2010-06-01 | Z4: 2010-07-01 | AA4: 2010-08-01 | AB4: 2010-09-01 | AC4: 2010-10-01 | AD4: 2010-11-01 | AE4: 2010-12-01 | AF4: 2011-01-01 | AG4: 2011-02-01 | AH4: 2011-03-01 | AI4: 2011-04-01 | AJ4: 2011-05-01 | AK4: 2011-06-01 | AL4: 2011-07-01 | AM4: 2011-08-01 | AN4: 2011-09-01 | AO4: 2011-10-01 | AP4: 2011-11-01 | AQ4: 2011-12-01 | AR4: 2012-01-01
A5: Residential Solid Waste Collected per Collection Day (Tons) | S5: 25.41 | T5: 23.55 | U5: 20.79 | V5: 20.37 | W5: 23.47 | X5: 23.41 | Y5: 24.42 | Z5: 26.29 | AA5: 22.09 | AB5: 22.35 | AC5: 21.62 | AD5: 22.4 | AE5: 25.89 | AF5: 21.9 | AG5: 20.21 | AH5: 21.46 | AI5: 22.15 | AJ5: 22.59 | AK5: 22.87 | AL5: 23.63 | AM5: 23.08 | AN5: 22.96 | AO5: 21.71 | AP5: 21.42 | AQ5: 25.08 | AR5: 23.8
A6: Commercial Solid Waste Collected per Collection Day (Tons) | S6: 20.93 | T6: 19.5 | U6: 19.69 | V6: 20.82 | W6: 21.9 | X6: 21.15 | Y6: 20.9 | Z6: 19.05 | AA6: 20.22 | AB6: 20.49 | AC6: 20.42 | AD6: 18.26 | AE6: 19.97 | AF6: 18.24 | AG6: 19.96 | AH6: 23.67 | AI6: 19.7 | AJ6: 18.52 | AK6: 17.96 | AL6: 17.9 | AM6: 17.63 | AN6: 17.35 | AO6: 18.01 | AP6: 16.31 | AQ6: 17.48 | AR6: 18.9
A7: Landfill Expense per Collection Day - Residential | S7: 711.48 | T7: 659.4 | U7: 582.08 | V7: 570.36 | W7: 657.16 | X7: 655.48 | Y7: 683.76 | Z7: 782.37 | AA7: 618.52 | AB7: 625.69 | AC7: 605.36 | AD7: 627.13 | AE7: 724.92 | AF7: 613.2 | AG7: 565.87 | AH7: 600.93 | AI7: 620.2 | AJ7: 632.52 | AK7: 640.36 | AL7: 661.64 | AM7: 646.24 | AN7: 642.74 | AO7: 607.84 | AP7: 599.76 | AQ7: 702.24 | AR7: 666.4
A8: Landfill Expense per Collection Day - Commercial | S8: 586.04 | T8: 546.13 | U8: 551.32 | V8: 582.96 | W8: 613.2 | X8: 592.2 | Y8: 585.32 | Z8: 533.4 | AA8: 566.16 | AB8: 573.65 | AC8: 571.76 | AD8: 511.4 | AE8: 559.16 | AF8: 510.72 | AG8: 558.88 | AH8: 657.89 | AI8: 551.6 | AJ8: 518.53 | AK8: 502.83 | AL8: 501.31 | AM8: 493.64 | AN8: 485.81 | AO8: 504.32 | AP8: 456.68 | AQ8: 489.4 | AR8: 529.2
A9: Average Number of Receptacles Collected per Route-hour | S9: 101 | T9: 101 | U9: 99 | V9: 101 | W9: 100 | X9: 98 | Y9: 96 | Z9: 98 | AA9: 98 | AB9: 98 | AC9: 98 | AD9: 97 | AE9: 99 | AF9: 99 | AG9: 96 | AH9: 98 | AI9: 97 | AJ9: 96 | AK9: 95 | AL9: 96 | AM9: 95 | AN9: 97 | AO9: 98 | AP9: 96 | AQ9: 94 | AR9: 91
A10: Curbies Missed While Conducting Normal Pick-up | S10: 11 | T10: 9 | U10: 5 | V10: 17 | W10: 9 | X10: 6 | Y10: 14 | Z10: 13 | AA10: 10 | AB10: 17 | AC10: 8 | AD10: 10 | AE10: 10 | AF10: 12 | AG10: 4 | AH10: 10 | AI10: 5 | AJ10: 5 | AK10: 6 | AL10: 8 | AM10: 11 | AN10: 7 | AO10: 3 | AP10: 0 | AQ10: 0 | AR10: 0
A11: Complaints Received | S11: 10 | T11: 11 | U11: 12 | V11: 17 | W11: 9 | X11: 6 | Y11: 14 | Z11: 13 | AA11: 10 | AB11: 17 | AC11: 9 | AD11: 11 | AE11: 12 | AF11: 14 | AG11: 4 | AH11: 10 | AI11: 5 | AJ11: 5 | AK11: 6 | AL11: 7 | AM11: 11 | AN11: 7 | AO11: 3 | AP11: 0 | AQ11: 0 | AR11: 0
A12: Staff Injuries (Solid Waste) | S12: 0 | T12: 1 | U12: 0 | V12: 1 | W12: 0 | X12: 0 | Y12: 0 | Z12: 0 | AA12: 0 | AB12: 0 | AC12: 0 | AD12: 0 | AE12: 0 | AF12: 0 | AG12: 1 | AH12: 0 | AI12: 0 | AJ12: 0 | AK12: 0 | AL12: 0 | AM12: 0 | AN12: 1 | AO12: 0 | AP12: 0 | AQ12: 1 | AR12: 1
A27: HIGHLIGHTS | B27: 2008-07-01 | C27: 2008-08-01 | D27: 2008-09-01 | E27: 2008-10-01 | F27: 2008-11-01 | G27: 2008-12-01 | H27: 2009-01-01 | I27: 2009-02-01 | J27: 2009-03-01 | K27: 2009-04-01 | L27: 2009-05-01 | M27: 2009-06-01 | N27: 2009-07-01 | O27: 2009-08-01 | P27: 2009-09-01 | Q27: 2009-10-01 | R27: 2009-11-01 | S27: 2009-12-01 | T27: 2010-01-01 | U27: 2010-02-01 | V27: 2010-03-01 | W27: 2010-04-01 | X27: 2010-05-01 | Y27: 2010-06-01 | Z27: 2010-07-01 | AA27: 2010-08-01 | AB27: 2010-09-01 | AC27: 2010-10-01 | AD27: 2010-11-01 | AE27: 2010-12-01 | AF27: 2011-01-01 | AG27: 2011-02-01 | AH27: 2011-03-01 | AI27: 2011-04-01 | AJ27: 2011-05-01 | AK27: 2011-06-01 | AL27: 2011-07-01 | AM27: 2011-08-01 | AN27: 2011-09-01 | AO27: 2011-10-01 | AP27: 2011-11-01 | AQ27: 2011-12-01 | AR27: 2012-01-01
A28: Highlight 1 | AM28: 1. Began Pilot Recycling program in August. There are 20 participants and valuable data is being collected. Program is scheduled to extend through October. | AN28: 1. Pilot Recycling program continuing. There are 20 participants and valuable data is being collected. Program is scheduled to extend through October. | AO28: Pilot Recycling program continued through October. | AP28: New Recycling truck is scheduled for delivery the week after Christmas. | AQ28: During the month of December, there were 527 customers to sign up for recycling. | AR28: Began delivering recycling containers to customers who signed up for the recycling program.
A29: Highlight 2 | AM29: 2. Have begun to evaluate recycling vehicles in preparation for Program Startup in January. | AN29: 2. We have received over 150 responses from citizens interested in participating in the upcoming curbside recycling program. The program is actively being promoted through the City Newsletter as well as through social media. | AO29: Bid proposals for a recycling truck were received on October 14, 2011. | AR29: By the end of January, we had 1,015 participants registered for recycling.
A30: Highlight 3 | AN30: 3. Taking bid proposals on a Recycling Truck on October 14, 2011.
A31: Highlight 4
A32: Highlight 5
A33: Highlight 6
A34: Highlight 7
A35: Highlight 8
A36: Highlights Concaetenation | B36: =B28&CHAR(10)&B29&CHAR(10)&B30&CHAR(10)&B31&CHAR(10)&B32&CHAR(10)&B33&CHAR(10)&B34&CHAR(10)&B35 ->  | C36: =C28&CHAR(10)&C29&CHAR(10)&C30&CHAR(10)&C31&CHAR(10)&C32&CHAR(10)&C33&CHAR(10)&C34&CHAR(10)&C35 ->  | AJ36: =AJ28&CHAR(10)&AJ29&CHAR(10)&AJ30&CHAR(10)&AJ31&CHAR(10)&AJ32&CHAR(10)&AJ33&CHAR(10)&AJ34&CHAR(10)&AJ35 ->  | AM36: =AM28&CHAR(10)&CHAR(10)&AM29&CHAR(10)&CHAR(10)&AM30&CHAR(10)&CHAR(10)&AM31&CHAR(10)&CHAR(10)&AM32&CHAR(10)&CHAR(10)&AM33&CHAR(10)&CHAR(10)&AM34&CHAR(10)&CHAR(10)&AM35 -> 1. Began Pilot Recycling program in August. There are 20 participants and valuable data is being collected. Program is scheduled to extend through October. 2. Have begun to evaluate recycling vehicles in preparation for Program Startup in January. | AN36: 1. Pilot Recycling program continuing. There are 20 participants and valuable data is being collected. Program is scheduled to extend through October. 2. We have received over 150 responses from citizens interested in participating in the upcoming curbside recycling program. The program is actively being promoted through the City Newsletter as well as through social media. 3. Taking bid proposals on a Recycling Truck on October 14, 2011. | AO36: Pilot Recycling program continued through October. Bid proposals for a recycling truck were received on October 14, 2011. | AP36: New Recycling truck is scheduled for delivery the week after Christmas. | AQ36: During the month of December, there were 527 customers to sign up for recycling. | AR36: Began delivering recycling containers to customers who signed up for the recycling program. By the end of January, we had 1,015 participants registered for recycling.
A40: Bullet Chart Source | B40: Target | C40: What's Better? | D40: Band 1 | E40: Band 2 | F40: YTD Type | G40: Max Scale | H40: Actual 1 | I40: Actual | J40: Actual 3 | K40: Projection 1 | L40: Projection 2 | M40: Projection 3 | N40: First Zone 1 | O40: First Zone 2 | P40: First Zone 3 | Q40: Second Zone 1 | R40: Second Zone 2 | S40: Second Zone 3 | T40: Previous X 1 | U40: Previous X 2 | V40: Previous Y 1 | W40: Previous Y 2
A41: =A5 -> Residential Solid Waste Collected per Collection Day (Tons) | B41: 23 | C41: Less | D41: 1 | E41: 1.15 | F41: Average | G41: =ROUNDUP((ROUNDUP(MAX(B41,SUM(I41,L41)),-LEN(EVEN(MAX(B41,SUM(I41,L41))))+2)/5),-LEN(EVEN(ROUNDUP(MAX(B41,SUM(I41,L41)),-LEN(EVEN(MAX(B41,SUM(I41,L41))))+2)/5))+1)*5 -> 25 | H41: 0 | I41: =IF(F41="Sum",SUM(OFFSET(A5,0,YTDBeg,1,YTDWidth)),AVERAGE(OFFSET(A5,0,YTDBeg,1,YTDWidth))) -> 23.09714286 | J41: 0 | K41: 0 | L41: =IF(F41="Sum",Projection*(I41/YTDWidth*12-I41),0) -> 0 | M41: 0 | N41: =B41*D41 -> 23 | O41: =((I41+L41<=N41)*(N41-(I41+L41))) -> 0 | P41: =N41 -> 23 | Q41: =(E41-D41)*B41 -> 3.45 | R41: =((I41+L41<=N41+Q41)*((N41+Q41)-(I41+L41+O41))) -> 3.352857143 | S41: =Q41 -> 3.45 | T41: =IF(F41="Sum",SUM(OFFSET(A5,0,YTDBeg-12,1,YTDWidth)),AVERAGE(OFFSET(A5,0,YTDBeg-12,1,YTDWidth))) -> 23.22 | U41: =T41 -> 23.22 | V41: 1 | W41: 2
A42: =A6 -> Commercial Solid Waste Collected per Collection Day (Tons) | B42: 20 | C42: Less | D42: 1 | E42: 1.15 | F42: Average | G42: =ROUNDUP((ROUNDUP(MAX(B42,SUM(I42,L42)),-LEN(EVEN(MAX(B42,SUM(I42,L42))))+2)/5),-LEN(EVEN(ROUNDUP(MAX(B42,SUM(I42,L42)),-LEN(EVEN(MAX(B42,SUM(I42,L42))))+2)/5))+1)*5 -> 20 | H42: 0 | I42: 17.65428571 | J42: 0 | K42: 0 | L42: 0 | M42: 0 | N42: 20 | O42: =((I42+L42<=N42)*(N42-(I42+L42))) -> 2.345714286 | P42: =N42 -> 20 | Q42: 3 | R42: =((I42+L42<=N42+Q42)*((N42+Q42)-(I42+L42+O42))) -> 3 | S42: =Q42 -> 3 | T42: 19.52142857 | U42: =T42 -> 19.52142857 | V42: 1 | W42: 2
A43: Landfill Expense per Collection Day - Residential | B43: 649 | C43: Less | D43: 1 | E43: 1.15 | F43: Average | G43: 1000 | H43: 0 | I43: 646.6942857 | J43: 0 | K43: 0 | L43: 0 | M43: 0 | N43: 649 | O43: 2.305714286 | P43: 649 | Q43: 97.35 | R43: 97.35 | S43: 97.35 | T43: 656.7414286 | U43: 656.7414286 | V43: 1 | W43: 2
A44: Landfill Expense per Collection Day - Commercial | B44: 566 | C44: Less | D44: 1 | E44: 1.15 | F44: Average | G44: 1000 | H44: 0 | I44: 494.3371429 | J44: 0 | K44: 0 | L44: 0 | M44: 0 | N44: 566 | O44: 71.66285714 | P44: 566 | Q44: 84.9 | R44: 84.9 | S44: 84.9 | T44: 546.6071429 | U44: 546.6071429 | V44: 1 | W44: 2
A45: Average Number of Receptacles Collected per Route-hour | B45: 99 | C45: More | D45: 0.85 | E45: 1 | F45: Average | G45: 100 | H45: 0 | I45: 95.28571429 | J45: 0 | K45: 0 | L45: 0 | M45: 0 | N45: 84.15 | O45: 0 | P45: 84.15 | Q45: 14.85 | R45: 3.714285714 | S45: 14.85 | T45: 98.14285714 | U45: 98.14285714 | V45: 1 | W45: 2
A46: Curbies Missed While Conducting Normal Pick-up | B46: 128 | C46: Less | D46: 1 | E46: 1.15 | F46: Sum | G46: 150 | H46: 0 | I46: 29 | J46: 0 | K46: 0 | L46: 0 | M46: 0 | N46: 128 | O46: 99 | P46: 128 | Q46: 19.2 | R46: 19.2 | S46: 19.2 | T46: 80 | U46: 80 | V46: 1 | W46: 2
A47: Complaints Received | B47: 141 | C47: Less | D47: 1 | E47: 1.15 | F47: Sum | G47: 150 | H47: 0 | I47: 28 | J47: 0 | K47: 0 | L47: 0 | M47: 0 | N47: 141 | O47: 113 | P47: 141 | Q47: 21.15 | R47: 21.15 | S47: 21.15 | T47: 86 | U47: 86 | V47: 1 | W47: 2
A48: Staff Injuries (Solid Waste) | B48: 2 | C48: Less | D48: 1 | E48: 1.15 | F48: Sum | G48: 5 | H48: 0 | I48: 3 | J48: 0 | K48: 0 | L48: 0 | M48: 0 | N48: 2 | O48: 0 | P48: 2 | Q48: 0.3 | R48: 0 | S48: 0.3 | T48: 0 | U48: 0 | V48: 1 | W48: 2
A65: SPARKLINE SOURCE
B66: 11 | C66: 10 | D66: 9 | E66: 8 | F66: 7 | G66: 6 | H66: 5 | I66: 4 | J66: 3 | K66: 2 | L66: 1 | M66: 0
A67: Measure | B67: =OFFSET($A4,0,CurrentMonthCount-B$66,1,1) -> 2011-02-01 | C67: 2011-03-01 | D67: 2011-04-01 | E67: 2011-05-01 | F67: 2011-06-01 | G67: 2011-07-01 | H67: 2011-08-01 | I67: 2011-09-01 | J67: 2011-10-01 | K67: 2011-11-01 | L67: 2011-12-01 | M67: 2012-01-01
A68: =A5 -> Residential Solid Waste Collected per Collection Day (Tons) | B68: 20.21 | C68: 21.46 | D68: 22.15 | E68: 22.59 | F68: 22.87 | G68: 23.63 | H68: 23.08 | I68: 22.96 | J68: 21.71 | K68: 21.42 | L68: 25.08 | M68: 23.8
A69: =A6 -> Commercial Solid Waste Collected per Collection Day (Tons) | B69: 19.96 | C69: 23.67 | D69: 19.7 | E69: 18.52 | F69: 17.96 | G69: 17.9 | H69: 17.63 | I69: 17.35 | J69: 18.01 | K69: 16.31 | L69: 17.48 | M69: 18.9
A70: Landfill Expense per Collection Day - Residential | B70: 565.87 | C70: 600.93 | D70: 620.2 | E70: 632.52 | F70: 640.36 | G70: 661.64 | H70: 646.24 | I70: 642.74 | J70: 607.84 | K70: 599.76 | L70: 702.24 | M70: 666.4
A71: Landfill Expense per Collection Day - Commercial | B71: 558.88 | C71: 657.89 | D71: 551.6 | E71: 518.53 | F71: 502.83 | G71: 501.31 | H71: 493.64 | I71: 485.81 | J71: 504.32 | K71: 456.68 | L71: 489.4 | M71: 529.2
A72: Average Number of Receptacles Collected per Route-hour | B72: 96 | C72: 98 | D72: 97 | E72: 96 | F72: 95 | G72: 96 | H72: 95 | I72: 97 | J72: 98 | K72: 96 | L72: 94 | M72: 91
A73: Curbies Missed While Conducting Normal Pick-up | B73: 4 | C73: 10 | D73: 5 | E73: 5 | F73: 6 | G73: 8 | H73: 11 | I73: 7 | J73: 3 | K73: 0 | L73: 0 | M73: 0
A74: Complaints Received | B74: 4 | C74: 10 | D74: 5 | E74: 5 | F74: 6 | G74: 7 | H74: 11 | I74: 7 | J74: 3 | K74: 0 | L74: 0 | M74: 0
A75: Staff Injuries (Solid Waste) | B75: 1 | C75: 0 | D75: 0 | E75: 0 | F75: 0 | G75: 0 | H75: 0 | I75: 1 | J75: 0 | K75: 0 | L75: 1 | M75: 1
A76: 0 | B76: 0 | C76: 0 | D76: 0 | E76: 0 | F76: 0 | G76: 0 | H76: 0 | I76: 0 | J76: 0 | K76: 0 | L76: 0 | M76: 0
A77: 0 | B77: 0 | C77: 0 | D77: 0 | E77: 0 | F77: 0 | G77: 0 | H77: 0 | I77: 0 | J77: 0 | K77: 0 | L77: 0 | M77: 0
A78: 0 | B78: 0 | C78: 0 | D78: 0 | E78: 0 | F78: 0 | G78: 0 | H78: 0 | I78: 0 | J78: 0 | K78: 0 | L78: 0 | M78: 0
A79: 0 | B79: 0 | C79: 0 | D79: 0 | E79: 0 | F79: 0 | G79: 0 | H79: 0 | I79: 0 | J79: 0 | K79: 0 | L79: 0 | M79: 0
A80: 0 | B80: 0 | C80: 0 | D80: 0 | E80: 0 | F80: 0 | G80: 0 | H80: 0 | I80: 0 | J80: 0 | K80: 0 | L80: 0 | M80: 0
A81: 0 | B81: 0 | C81: 0 | D81: 0 | E81: 0 | F81: 0 | G81: 0 | H81: 0 | I81: 0 | J81: 0 | K81: 0 | L81: 0 | M81: 0
A82: 0 | B82: 0 | C82: 0 | D82: 0 | E82: 0 | F82: 0 | G82: 0 | H82: 0 | I82: 0 | J82: 0 | K82: 0 | L82: 0 | M82: 0
A83: 0 | B83: =OFFSET($A20,0,CurrentMonthCount-B$66,1,1) -> 0 | C83: 0 | D83: 0 | E83: 0 | F83: 0 | G83: 0 | H83: 0 | I83: 0 | J83: 0 | K83: 0 | L83: 0 | M83: 0
A84: 0 | B84: 0 | C84: 0 | D84: 0 | E84: 0 | F84: 0 | G84: 0 | H84: 0 | I84: 0 | J84: 0 | K84: 0 | L84: 0 | M84: 0
A85: 0 | B85: 0 | C85: 0 | D85: 0 | E85: 0 | F85: 0 | G85: 0 | H85: 0 | I85: 0 | J85: 0 | K85: 0 | L85: 0 | M85: 0
A86: 0 | B86: 0 | C86: 0 | D86: 0 | E86: 0 | F86: 0 | G86: 0 | H86: 0 | I86: 0 | J86: 0 | K86: 0 | L86: 0 | M86: 0
A87: 0 | B87: 0 | C87: 0 | D87: 0 | E87: 0 | F87: 0 | G87: 0 | H87: 0 | I87: 0 | J87: 0 | K87: 0 | L87: 0 | M87: 0

Sheet Storm
A1: =CurrentMonth -> 2012-01-01 | E1: STORMWATER
A3: Maintenance | B3: Last 12 Months | C3: Fiscal Year to Date | D3: FYTD | F3: Flooding | G3: Last 12 Months | H3: Fiscal Year to Date | I3: FYTD
A4: ='Storm Data'!A5 -> Catch Basins Cleaned | D4: ='Storm Data'!I41 -> 1229 | F4: ='Storm Data'!A9 -> Flooding Occurances Reported | I4: ='Storm Data'!I45 -> 25
A5: ='Storm Data'!A6 -> Storm Pipe Cleaned (Linear Feet) | D5: ='Storm Data'!I42 -> 1735
A6: ='Storm Data'!A7 -> Ditch Cleaned/Dug Out/Mowed | D6: ='Storm Data'!I43 -> 6378
A7: ='Storm Data'!A8 -> Street Sweeping Miles per Day | D7: ='Storm Data'!I44 -> 48.68857143

Sheet Storm Data (hidden)
A1: Storm Data
A4: Measure | B4: 2008-07-01 | C4: 2008-08-01 | D4: 2008-09-01 | E4: 2008-10-01 | F4: 2008-11-01 | G4: 2008-12-01 | H4: 2009-01-01 | I4: 2009-02-01 | J4: 2009-03-01 | K4: 2009-04-01 | L4: 2009-05-01 | M4: 2009-06-01 | N4: 2009-07-01 | O4: 2009-08-01 | P4: 2009-09-01 | Q4: 2009-10-01 | R4: 2009-11-01 | S4: 2009-12-01 | T4: 2010-01-01 | U4: 2010-02-01 | V4: 2010-03-01 | W4: 2010-04-01 | X4: 2010-05-01 | Y4: 2010-06-01 | Z4: 2010-07-01 | AA4: 2010-08-01 | AB4: 2010-09-01 | AC4: 2010-10-01 | AD4: 2010-11-01 | AE4: 2010-12-01 | AF4: 2011-01-01 | AG4: 2011-02-01 | AH4: 2011-03-01 | AI4: 2011-04-01 | AJ4: 2011-05-01 | AK4: 2011-06-01 | AL4: 2011-07-01 | AM4: 2011-08-01 | AN4: 2011-09-01 | AO4: 2011-10-01 | AP4: 2011-11-01 | AQ4: 2011-12-01 | AR4: 2012-01-01
A5: Catch Basins Cleaned | S5: 100 | T5: 801 | U5: 254 | V5: 263 | W5: 106 | X5: 448 | Y5: 167 | Z5: 206 | AA5: 140 | AB5: 201 | AC5: 795 | AD5: 240 | AE5: 254 | AF5: 348 | AG5: 94 | AH5: 382 | AI5: 264 | AJ5: 60 | AK5: 247 | AL5: 6 | AM5: 60 | AN5: 278 | AO5: 61 | AP5: 614 | AQ5: 157 | AR5: 53
A6: Storm Pipe Cleaned (Linear Feet) | S6: 80 | T6: 229 | U6: 20 | V6: 140 | W6: 0 | X6: 1050 | Y6: 30 | Z6: 220 | AA6: 525 | AB6: 0 | AC6: 0 | AD6: 155 | AE6: 0 | AF6: 0 | AG6: 0 | AH6: 1115 | AI6: 0 | AJ6: 0 | AK6: 320 | AL6: 855 | AM6: 0 | AN6: 0 | AO6: 0 | AP6: 125 | AQ6: 125 | AR6: 630
A7: Ditch Cleaned/Dug Out/Mowed | S7: 115 | T7: 1810 | U7: 455 | V7: 290 | W7: 585 | X7: 1390 | Y7: 2365 | Z7: 825 | AA7: 4700 | AB7: 480 | AC7: 150 | AD7: 525 | AE7: 710 | AF7: 75 | AG7: 310 | AH7: 695 | AI7: 545 | AJ7: 100 | AK7: 700 | AL7: 3505 | AM7: 605 | AN7: 623 | AO7: 155 | AP7: 940 | AQ7: 225 | AR7: 325
A8: Street Sweeping Miles per Day | S8: 62.5 | T8: 56.33 | U8: 42.48 | V8: 51.26 | W8: 49.625 | X8: 51.2 | Y8: 46.82 | Z8: 50.81 | AA8: 52.41 | AB8: 47 | AC8: 52.81 | AD8: 45.65 | AE8: 40.85 | AF8: 44.43 | AG8: 53.4 | AH8: 54.04 | AI8: 40.81 | AJ8: 35.5 | AK8: 55.18 | AL8: 44.85 | AM8: 37.74 | AN8: 54.05 | AO8: 36.48 | AP8: 64 | AQ8: 51 | AR8: 52.7
A9: Flooding Occurances Reported | S9: 0 | T9: 0 | U9: 0 | V9: 0 | W9: 0 | X9: 0 | Y9: 0 | Z9: 32 | AA9: 0 | AB9: 0 | AC9: 0 | AD9: 0 | AE9: 0 | AF9: 0 | AG9: 0 | AH9: 0 | AI9: 0 | AJ9: 0 | AK9: 0 | AL9: 25 | AM9: 0 | AN9: 0 | AO9: 0 | AP9: 0 | AQ9: 0 | AR9: 0
A27: HIGHLIGHTS | B27: 2008-07-01 | C27: 2008-08-01 | D27: 2008-09-01 | E27: 2008-10-01 | F27: 2008-11-01 | G27: 2008-12-01 | H27: 2009-01-01 | I27: 2009-02-01 | J27: 2009-03-01 | K27: 2009-04-01 | L27: 2009-05-01 | M27: 2009-06-01 | N27: 2009-07-01 | O27: 2009-08-01 | P27: 2009-09-01 | Q27: 2009-10-01 | R27: 2009-11-01 | S27: 2009-12-01 | T27: 2010-01-01 | U27: 2010-02-01 | V27: 2010-03-01 | W27: 2010-04-01 | X27: 2010-05-01 | Y27: 2010-06-01 | Z27: 2010-07-01 | AA27: 2010-08-01 | AB27: 2010-09-01 | AC27: 2010-10-01 | AD27: 2010-11-01 | AE27: 2010-12-01 | AF27: 2011-01-01 | AG27: 2011-02-01 | AH27: 2011-03-01 | AI27: 2011-04-01 | AJ27: 2011-05-01 | AK27: 2011-06-01 | AL27: 2011-07-01 | AM27: 2011-08-01 | AN27: 2011-09-01 | AO27: 2011-10-01 | AP27: 2011-11-01 | AQ27: 2011-12-01 | AR27: 2012-01-01
A28: Highlight 1 | AM28: 1. Work cleaning the Railroad ditch is proceeding. This work is being done to ease the flooding issues in the Church Street Basin. This work should be completed by the end of September 2011. | AN28: 1. Railroad Ditch Project almost completed. | AO28: Railroad Ditch Project Completed | AQ28: Work has begun on the West Avenue/Etowah Drive Storm drainage box repairs. | AR28: Work continues on the West Ave/Etowah Drive storm drainage box repairs.
A29: Highlight 2 | AM29: 2. Cleaned out two detention ponds on Center Road and one behind the Kmart Shopping Center. The pond outlet structures were throttled back to help downstream flooding issues connected with the Church Street Basin. | AN29: 2. Preparing to begin work at Bob White Trail and at West Avenue and Etowah Drive. | AO29: Bob White Trail Project completed. | AR29: Installed new cross drain pipe across Luckie Street at #1 Valley Drive.
A30: Highlight 3 | AO30: Drainage project at West Avenue and Etowah Drive scheduled.
A31: Highlight 4
A32: Highlight 5
A33: Highlight 6
A34: Highlight 7
A35: Highlight 8
A36: Highlights Concaetenation | B36: =B28&CHAR(10)&B29&CHAR(10)&B30&CHAR(10)&B31&CHAR(10)&B32&CHAR(10)&B33&CHAR(10)&B34&CHAR(10)&B35 ->  | C36: =C28&CHAR(10)&C29&CHAR(10)&C30&CHAR(10)&C31&CHAR(10)&C32&CHAR(10)&C33&CHAR(10)&C34&CHAR(10)&C35 ->  | AI36: =AI28&CHAR(10)&CHAR(10)&AI29&CHAR(10)&CHAR(10)&AI30&CHAR(10)&CHAR(10)&AI31&CHAR(10)&CHAR(10)&AI32&CHAR(10)&CHAR(10)&AI33&CHAR(10)&CHAR(10)&AI34&CHAR(10)&CHAR(10)&AI35 ->  | AM36: 1. Work cleaning the Railroad ditch is proceeding. This work is being done to ease the flooding issues in the Church Street Basin. This work should be completed by the end of September 2011. 2. Cleaned out two detention ponds on Center Road and one behind the Kmart Shopping Center. The pond outlet structures were throttled back to help downstream flooding issues connected with the Church Street Basin. | AN36: =AN28&CHAR(10)&CHAR(10)&AN29&CHAR(10)&CHAR(10)&AN30&CHAR(10)&CHAR(10)&AN31&CHAR(10)&CHAR(10)&AN32&CHAR(10)&CHAR(10)&AN33&CHAR(10)&CHAR(10)&AN34&CHAR(10)&CHAR(10)&AN35 -> 1. Railroad Ditch Project almost completed. 2. Preparing to begin work at Bob White Trail and at West Avenue and Etowah Drive. | AO36: =AO28&CHAR(10)&CHAR(10)&AO29&CHAR(10)&CHAR(10)&AO30&CHAR(10)&CHAR(10)&AO31&CHAR(10)&CHAR(10)&AO32&CHAR(10)&CHAR(10)&AO33&CHAR(10)&CHAR(10)&AO34&CHAR(10)&CHAR(10)&AO35 -> Railroad Ditch Project Completed Bob White Trail Project completed. Drainage project at West Avenue and Etowah Drive scheduled. | AP36: =AP28&CHAR(10)&CHAR(10)&AP29&CHAR(10)&CHAR(10)&AP30&CHAR(10)&CHAR(10)&AP31&CHAR(10)&CHAR(10)&AP32&CHAR(10)&CHAR(10)&AP33&CHAR(10)&CHAR(10)&AP34&CHAR(10)&CHAR(10)&AP35 ->  | AQ36: =AQ28&CHAR(10)&CHAR(10)&AQ29&CHAR(10)&CHAR(10)&AQ30&CHAR(10)&CHAR(10)&AQ31&CHAR(10)&CHAR(10)&AQ32&CHAR(10)&CHAR(10)&AQ33&CHAR(10)&CHAR(10)&AQ34&CHAR(10)&CHAR(10)&AQ35 -> Work has begun on the West Avenue/Etowah Drive Storm drainage box repairs. | AR36: =AR28&CHAR(10)&CHAR(10)&AR29&CHAR(10)&CHAR(10)&AR30&CHAR(10)&CHAR(10)&AR31&CHAR(10)&CHAR(10)&AR32&CHAR(10)&CHAR(10)&AR33&CHAR(10)&CHAR(10)&AR34&CHAR(10)&CHAR(10)&AR35 -> Work continues on the West Ave/Etowah Drive storm drainage box repairs. Installed new cross drain pipe across Luckie Street at #1 Valley Drive.
A40: Bullet Chart Source | B40: Target | C40: What's Better? | D40: Band 1 | E40: Band 2 | F40: YTD Type | G40: Max Scale | H40: Actual 1 | I40: Actual | J40: Actual 3 | K40: Projection 1 | L40: Projection 2 | M40: Projection 3 | N40: First Zone 1 | O40: First Zone 2 | P40: First Zone 3 | Q40: Second Zone 1 | R40: Second Zone 2 | S40: Second Zone 3 | T40: Previous X 1 | U40: Previous X 2 | V40: Previous Y 1 | W40: Previous Y 2
A41: =A5 -> Catch Basins Cleaned | B41: 3875 | C41: More | D41: 0.85 | E41: 1 | F41: Sum | G41: =ROUNDUP((ROUNDUP(MAX(B41,SUM(I41,L41)),-LEN(EVEN(MAX(B41,SUM(I41,L41))))+2)/5),-LEN(EVEN(ROUNDUP(MAX(B41,SUM(I41,L41)),-LEN(EVEN(MAX(B41,SUM(I41,L41))))+2)/5))+1)*5 -> 4000 | H41: 0 | I41: =IF(F41="Sum",SUM(OFFSET(A5,0,YTDBeg,1,YTDWidth)),AVERAGE(OFFSET(A5,0,YTDBeg,1,YTDWidth))) -> 1229 | J41: 0 | K41: 0 | L41: =IF(F41="Sum",Projection*(I41/YTDWidth*12-I41),0) -> 0 | M41: 0 | N41: =B41*D41 -> 3293.75 | O41: =((I41+L41<=N41)*(N41-(I41+L41))) -> 2064.75 | P41: =N41 -> 3293.75 | Q41: =(E41-D41)*B41 -> 581.25 | R41: =((I41+L41<=N41+Q41)*((N41+Q41)-(I41+L41+O41))) -> 581.25 | S41: =Q41 -> 581.25 | T41: =IF(F41="Sum",SUM(OFFSET(A5,0,YTDBeg-12,1,YTDWidth)),AVERAGE(OFFSET(A5,0,YTDBeg-12,1,YTDWidth))) -> 2184 | U41: =T41 -> 2184 | V41: 1 | W41: 2
A42: =A6 -> Storm Pipe Cleaned (Linear Feet) | B42: 2369 | C42: More | D42: 0.85 | E42: 1 | F42: Sum | G42: =ROUNDUP((ROUNDUP(MAX(B42,SUM(I42,L42)),-LEN(EVEN(MAX(B42,SUM(I42,L42))))+2)/5),-LEN(EVEN(ROUNDUP(MAX(B42,SUM(I42,L42)),-LEN(EVEN(MAX(B42,SUM(I42,L42))))+2)/5))+1)*5 -> 2500 | H42: 0 | I42: 1735 | J42: 0 | K42: 0 | L42: 0 | M42: 0 | N42: 2013.65 | O42: =((I42+L42<=N42)*(N42-(I42+L42))) -> 278.65 | P42: =N42 -> 2013.65 | Q42: 355.35 | R42: =((I42+L42<=N42+Q42)*((N42+Q42)-(I42+L42+O42))) -> 355.35 | S42: =Q42 -> 355.35 | T42: 900 | U42: =T42 -> 900 | V42: 1 | W42: 2
A43: Ditch Cleaned/Dug Out/Mowed | B43: 14285 | C43: More | D43: 0.85 | E43: 1 | F43: Sum | G43: 15000 | H43: 0 | I43: 6378 | J43: 0 | K43: 0 | L43: 0 | M43: 0 | N43: 12142.25 | O43: 5764.25 | P43: 12142.25 | Q43: 2142.75 | R43: 2142.75 | S43: 2142.75 | T43: 7465 | U43: 7465 | V43: 1 | W43: 2
A44: Street Sweeping Miles per Day | B44: 49 | C44: More | D44: 0.85 | E44: 1 | F44: Average | G44: 50 | H44: 0 | I44: 48.68857143 | J44: 0 | K44: 0 | L44: 0 | M44: 0 | N44: 41.65 | O44: 0 | P44: 41.65 | Q44: 7.35 | R44: 0.3114285714 | S44: 7.35 | T44: 47.70857143 | U44: 47.70857143 | V44: 1 | W44: 2
A45: Flooding Occurances Reported | B45: 32 | C45: Less | D45: 1 | E45: 1.15 | F45: Sum | G45: 35 | H45: 0 | I45: 25 | J45: 0 | K45: 0 | L45: 0 | M45: 0 | N45: 32 | O45: 7 | P45: 32 | Q45: 4.8 | R45: 4.8 | S45: 4.8 | T45: 32 | U45: 32 | V45: 1 | W45: 2
A65: SPARKLINE SOURCE
B66: 11 | C66: 10 | D66: 9 | E66: 8 | F66: 7 | G66: 6 | H66: 5 | I66: 4 | J66: 3 | K66: 2 | L66: 1 | M66: 0
A67: Measure | B67: =OFFSET($A4,0,CurrentMonthCount-B$66,1,1) -> 2011-02-01 | C67: 2011-03-01 | D67: 2011-04-01 | E67: 2011-05-01 | F67: 2011-06-01 | G67: 2011-07-01 | H67: 2011-08-01 | I67: 2011-09-01 | J67: 2011-10-01 | K67: 2011-11-01 | L67: 2011-12-01 | M67: 2012-01-01
A68: =A5 -> Catch Basins Cleaned | B68: 94 | C68: 382 | D68: 264 | E68: 60 | F68: 247 | G68: 6 | H68: 60 | I68: 278 | J68: 61 | K68: 614 | L68: 157 | M68: 53
A69: =A6 -> Storm Pipe Cleaned (Linear Feet) | B69: 0 | C69: 1115 | D69: 0 | E69: 0 | F69: 320 | G69: 855 | H69: 0 | I69: 0 | J69: 0 | K69: 125 | L69: 125 | M69: 630
A70: Ditch Cleaned/Dug Out/Mowed | B70: 310 | C70: 695 | D70: 545 | E70: 100 | F70: 700 | G70: 3505 | H70: 605 | I70: 623 | J70: 155 | K70: 940 | L70: 225 | M70: 325
A71: Street Sweeping Miles per Day | B71: 53.4 | C71: 54.04 | D71: 40.81 | E71: 35.5 | F71: 55.18 | G71: 44.85 | H71: 37.74 | I71: 54.05 | J71: 36.48 | K71: 64 | L71: 51 | M71: 52.7
A72: Flooding Occurances Reported | B72: 0 | C72: 0 | D72: 0 | E72: 0 | F72: 0 | G72: 25 | H72: 0 | I72: 0 | J72: 0 | K72: 0 | L72: 0 | M72: 0
A73: 0 | B73: 0 | C73: 0 | D73: 0 | E73: 0 | F73: 0 | G73: 0 | H73: 0 | I73: 0 | J73: 0 | K73: 0 | L73: 0 | M73: 0
A74: 0 | B74: 0 | C74: 0 | D74: 0 | E74: 0 | F74: 0 | G74: 0 | H74: 0 | I74: 0 | J74: 0 | K74: 0 | L74: 0 | M74: 0
A75: 0 | B75: 0 | C75: 0 | D75: 0 | E75: 0 | F75: 0 | G75: 0 | H75: 0 | I75: 0 | J75: 0 | K75: 0 | L75: 0 | M75: 0
A76: 0 | B76: 0 | C76: 0 | D76: 0 | E76: 0 | F76: 0 | G76: 0 | H76: 0 | I76: 0 | J76: 0 | K76: 0 | L76: 0 | M76: 0
A77: 0 | B77: 0 | C77: 0 | D77: 0 | E77: 0 | F77: 0 | G77: 0 | H77: 0 | I77: 0 | J77: 0 | K77: 0 | L77: 0 | M77: 0
A78: 0 | B78: 0 | C78: 0 | D78: 0 | E78: 0 | F78: 0 | G78: 0 | H78: 0 | I78: 0 | J78: 0 | K78: 0 | L78: 0 | M78: 0
A79: 0 | B79: 0 | C79: 0 | D79: 0 | E79: 0 | F79: 0 | G79: 0 | H79: 0 | I79: 0 | J79: 0 | K79: 0 | L79: 0 | M79: 0
A80: 0 | B80: 0 | C80: 0 | D80: 0 | E80: 0 | F80: 0 | G80: 0 | H80: 0 | I80: 0 | J80: 0 | K80: 0 | L80: 0 | M80: 0
A81: 0 | B81: 0 | C81: 0 | D81: 0 | E81: 0 | F81: 0 | G81: 0 | H81: 0 | I81: 0 | J81: 0 | K81: 0 | L81: 0 | M81: 0
A82: 0 | B82: 0 | C82: 0 | D82: 0 | E82: 0 | F82: 0 | G82: 0 | H82: 0 | I82: 0 | J82: 0 | K82: 0 | L82: 0 | M82: 0
A83: 0 | B83: =OFFSET($A20,0,CurrentMonthCount-B$66,1,1) -> 0 | C83: 0 | D83: 0 | E83: 0 | F83: 0 | G83: 0 | H83: 0 | I83: 0 | J83: 0 | K83: 0 | L83: 0 | M83: 0
A84: 0 | B84: 0 | C84: 0 | D84: 0 | E84: 0 | F84: 0 | G84: 0 | H84: 0 | I84: 0 | J84: 0 | K84: 0 | L84: 0 | M84: 0
A85: 0 | B85: 0 | C85: 0 | D85: 0 | E85: 0 | F85: 0 | G85: 0 | H85: 0 | I85: 0 | J85: 0 | K85: 0 | L85: 0 | M85: 0
A86: 0 | B86: 0 | C86: 0 | D86: 0 | E86: 0 | F86: 0 | G86: 0 | H86: 0 | I86: 0 | J86: 0 | K86: 0 | L86: 0 | M86: 0
A87: 0 | B87: 0 | C87: 0 | D87: 0 | E87: 0 | F87: 0 | G87: 0 | H87: 0 | I87: 0 | J87: 0 | K87: 0 | L87: 0 | M87: 0
A100: Photos
A104: Stormwater Crews at work cleaning out the storm drainage ditch next to the railroad in Downtown Cartersville. The Ditch Cleaning Project is intended to mitigate the flooding that affects many businesses near the railroad.
A105: The City worked with CSX to gain access to the right-of-way owned by CSX, where the work was performed.
A106: Stormwater crews installed an underground pipe on the East side of the railroad to channel stormwater runoff away from Downtown businesses.
A107: A newly installed catch basin.
A108: New catch basin cover.

Sheet Fiber
A1: =CurrentMonth -> 2012-01-01 | E1: FIBERCOM
A3: Business | B3: Last 12 Months | C3: Fiscal Year to Date | D3: FYTD | F3: Customer Service | G3: Last 12 Months | H3: Fiscal Year to Date | I3: FYTD
A4: ='Fiber Data'!A5 -> Revenue - Enterprise | D4: ='Fiber Data'!I41 -> 371316.6 | F4: ='Fiber Data'!A9 -> Enterprise: Technical Issues Reported | I4: ='Fiber Data'!I45 -> 5
A5: ='Fiber Data'!A6 -> Revenue - City | D5: ='Fiber Data'!I42 -> 535715.26 | F5: ='Fiber Data'!A10 -> Enterprise: Phone Outages Reported | I5: ='Fiber Data'!I46 -> 18
A6: ='Fiber Data'!A7 -> Net Increase/Decrease in Customer Count (Enterprise) | D6: ='Fiber Data'!I43 -> 2 | F6: ='Fiber Data'!A11 -> Enterprise: Internet Outages Reported | I6: ='Fiber Data'!I47 -> 2
A7: ='Fiber Data'!A8 -> Net Increase/Decrease in Contract Value (Enterprise) | D7: ='Fiber Data'!I44 -> 56391 | F7: ='Fiber Data'!A12 -> Enterprise: Billing Errors Reported | I7: ='Fiber Data'!I48 -> 0
F8: ='Fiber Data'!A13 -> Service Change Request: Add Service | I8: ='Fiber Data'!I49 -> 11
A9: City Service | F9: ='Fiber Data'!A14 -> Service Change Request: Remove Service | I9: ='Fiber Data'!I50 -> 6
A10: ='Fiber Data'!A17 -> Total Support Requests (City) | D10: ='Fiber Data'!I53 -> 1398 | F10: ='Fiber Data'!A15 -> Service Change Request: Move Service | I10: ='Fiber Data'!I51 -> 1
A11: ='Fiber Data'!A18 -> Cell Minutes Consumed (City) | D11: ='Fiber Data'!I54 -> 251304 | F11: ='Fiber Data'!A16 -> Total Support Requests (Enterprise) | I11: ='Fiber Data'!I52 -> 43

Sheet Fiber Data (hidden)
A1: Fiber Data
A4: Measure | B4: 2008-07-01 | C4: 2008-08-01 | D4: 2008-09-01 | E4: 2008-10-01 | F4: 2008-11-01 | G4: 2008-12-01 | H4: 2009-01-01 | I4: 2009-02-01 | J4: 2009-03-01 | K4: 2009-04-01 | L4: 2009-05-01 | M4: 2009-06-01 | N4: 2009-07-01 | O4: 2009-08-01 | P4: 2009-09-01 | Q4: 2009-10-01 | R4: 2009-11-01 | S4: 2009-12-01 | T4: 2010-01-01 | U4: 2010-02-01 | V4: 2010-03-01 | W4: 2010-04-01 | X4: 2010-05-01 | Y4: 2010-06-01 | Z4: 2010-07-01 | AA4: 2010-08-01 | AB4: 2010-09-01 | AC4: 2010-10-01 | AD4: 2010-11-01 | AE4: 2010-12-01 | AF4: 2011-01-01 | AG4: 2011-02-01 | AH4: 2011-03-01 | AI4: 2011-04-01 | AJ4: 2011-05-01 | AK4: 2011-06-01 | AL4: 2011-07-01 | AM4: 2011-08-01 | AN4: 2011-09-01 | AO4: 2011-10-01 | AP4: 2011-11-01 | AQ4: 2011-12-01 | AR4: 2012-01-01
A5: Revenue - Enterprise | T5: 0 | U5: 54198 | V5: 55066 | W5: 54990.9 | X5: 290303 | Y5: 203788.51 | Z5: 56652 | AA5: 55837.81 | AB5: 160145 | AC5: 52521.57 | AD5: 88276 | AE5: 60077.97 | AF5: 58202 | AG5: 70340.05 | AH5: 58799 | AI5: 60553 | AJ5: 56544 | AK5: 54492 | AL5: 57350.75 | AM5: 52694.05 | AN5: 52903.07 | AO5: 51800.17 | AP5: 52063 | AQ5: 52665.04 | AR5: 51840.52
A6: Revenue - City | T6: 0 | U6: 28537 | V6: 77934 | W6: 77163.75 | X6: 78790 | Y6: 79501 | Z6: 76828 | AA6: 82577.39 | AB6: 78550 | AC6: 79620 | AD6: 80450.69 | AE6: 79662.01 | AF6: 77155.2 | AG6: 78155.25 | AH6: 79828 | AI6: 76154 | AJ6: 79814 | AK6: 70298 | AL6: 76781.16 | AM6: 76781.16 | AN6: 76750.17 | AO6: 75937.19 | AP6: 76396.18 | AQ6: 75517.54 | AR6: 77551.86
A7: Net Increase/Decrease in Customer Count (Enterprise) | T7: 1 | U7: 0 | V7: 1 | W7: 2 | X7: 4 | Y7: 0 | Z7: 0 | AA7: 0 | AB7: 1 | AC7: 1 | AD7: 1 | AE7: 0 | AF7: -1 | AG7: -2 | AH7: 0 | AI7: 0 | AJ7: -1 | AK7: -1 | AL7: 0 | AM7: -3 | AN7: 2 | AO7: -1 | AP7: 3 | AQ7: 0 | AR7: 1
A8: Net Increase/Decrease in Contract Value (Enterprise) | T8: 14108 | U8: 0 | V8: 18756 | W8: 3465 | X8: 12804 | Y8: 0 | Z8: 33000 | AA8: 1535.4 | AB8: 6041 | AC8: 27844 | AD8: 1059 | AE8: 0 | AF8: -229 | AG8: -135 | AH8: -25 | AI8: 0 | AJ8: -540 | AK8: -720 | AL8: 0 | AM8: 14795 | AN8: 23367 | AO8: 1344 | AP8: 11929 | AQ8: -13440 | AR8: 18396
A9: Enterprise: Technical Issues Reported | AL9: 1 | AM9: 0 | AN9: 2 | AO9: 2 | AP9: 0 | AQ9: 0 | AR9: 0
A10: Enterprise: Phone Outages Reported | AL10: 8 | AM10: 3 | AN10: 1 | AO10: 3 | AP10: 0 | AQ10: 0 | AR10: 3
A11: Enterprise: Internet Outages Reported | AL11: 0 | AM11: 0 | AN11: 0 | AO11: 0 | AP11: 0 | AQ11: 0 | AR11: 2
A12: Enterprise: Billing Errors Reported | AL12: 0 | AM12: 0 | AN12: 0 | AO12: 0 | AP12: 0 | AQ12: 0 | AR12: 0
A13: Service Change Request: Add Service | AL13: 0 | AM13: 2 | AN13: 2 | AO13: 0 | AP13: 3 | AQ13: 2 | AR13: 2
A14: Service Change Request: Remove Service | AL14: 1 | AM14: 1 | AN14: 1 | AO14: 1 | AP14: 0 | AQ14: 1 | AR14: 1
A15: Service Change Request: Move Service | AL15: 0 | AM15: 1 | AN15: 0 | AO15: 0 | AP15: 0 | AQ15: 0 | AR15: 0
A16: Total Support Requests (Enterprise) | AL16: 10 | AM16: 7 | AN16: 6 | AO16: 6 | AP16: 3 | AQ16: 3 | AR16: 8
A17: Total Support Requests (City) | T17: 98 | U17: 103 | V17: 131 | W17: 90 | X17: 93 | Y17: 93 | Z17: 123 | AA17: 83 | AB17: 121 | AC17: 206 | AD17: 129 | AE17: 90 | AF17: 89 | AG17: 130 | AH17: 150 | AI17: 131 | AJ17: 105 | AK17: 202 | AL17: 164 | AM17: 226 | AN17: 250 | AO17: 236 | AP17: 164 | AQ17: 155 | AR17: 203
A18: Cell Minutes Consumed (City) | T18: 21715 | U18: 24427 | V18: 23232 | W18: 25004 | X18: 24674 | Y18: 24674 | Z18: 24192 | AA18: 21794 | AB18: 30085 | AC18: 32931 | AD18: 34938 | AE18: 32991 | AF18: 32795 | AG18: 32795 | AH18: 33169 | AI18: 40672 | AJ18: 39498 | AK18: 35114 | AL18: 36724 | AM18: 38438 | AN18: 37931 | AO18: 36789 | AP18: 36327 | AQ18: 34769 | AR18: 30326
A27: HIGHLIGHTS | B27: 2008-07-01 | C27: 2008-08-01 | D27: 2008-09-01 | E27: 2008-10-01 | F27: 2008-11-01 | G27: 2008-12-01 | H27: 2009-01-01 | I27: 2009-02-01 | J27: 2009-03-01 | K27: 2009-04-01 | L27: 2009-05-01 | M27: 2009-06-01 | N27: 2009-07-01 | O27: 2009-08-01 | P27: 2009-09-01 | Q27: 2009-10-01 | R27: 2009-11-01 | S27: 2009-12-01 | T27: 2010-01-01 | U27: 2010-02-01 | V27: 2010-03-01 | W27: 2010-04-01 | X27: 2010-05-01 | Y27: 2010-06-01 | Z27: 2010-07-01 | AA27: 2010-08-01 | AB27: 2010-09-01 | AC27: 2010-10-01 | AD27: 2010-11-01 | AE27: 2010-12-01 | AF27: 2011-01-01 | AG27: 2011-02-01 | AH27: 2011-03-01 | AI27: 2011-04-01 | AJ27: 2011-05-01 | AK27: 2011-06-01 | AL27: 2011-07-01 | AM27: 2011-08-01 | AN27: 2011-09-01 | AO27: 2011-10-01 | AP27: 2011-11-01 | AQ27: 2011-12-01 | AR27: 2012-01-01
A28: Highlight 1 | AM28: 1. In an effort to provide more value to our customer base, Fibercom has released two new service levels for our internet customers in August. These products provide up to 10 and 15 Mbps of bandwidth speed and in most cases without an increase in the monthly recurring rate. In order to obtain this fabulous new industry leading service, we are encouraging our customers to renew or extend their existing contracts. We are happy to report that as customers are made aware of this new offering, they are just as excited as we are "to get more for their money". | AN28: 1. Fifteen customers renewed contracts and upgraded bandwidth | AP28: Added three new customers (two internet and one phone and internet). | AQ28: One new phone customer/lost one customer | AR28: Added one new customer/existing customer added new service
A29: Highlight 2 | AQ29: Lost customer due to bank failed | AR29: 3 customers reported phone lines with no dial tone
A30: Highlight 3 | AQ30: NewCustomer added phone service/existing customer added additional phone services | AR30: 2 customers reported internet down
A31: Highlight 4 | AQ31: Disconnected internet for bank failure customer | AR31: NewCustomer added phone service/existing customer added additional phone services
A32: Highlight 5 | AR32: Existing customer removed 2 lines from his system
A33: Highlight 6
A34: Highlight 7
A35: Highlight 8
A36: Highlights Concaetenation | B36: =B28&CHAR(10)&B29&CHAR(10)&B30&CHAR(10)&B31&CHAR(10)&B32&CHAR(10)&B33&CHAR(10)&B34&CHAR(10)&B35 ->  | C36: =C28&CHAR(10)&C29&CHAR(10)&C30&CHAR(10)&C31&CHAR(10)&C32&CHAR(10)&C33&CHAR(10)&C34&CHAR(10)&C35 ->  | AJ36: =AJ28&CHAR(10)&AJ29&CHAR(10)&AJ30&CHAR(10)&AJ31&CHAR(10)&AJ32&CHAR(10)&AJ33&CHAR(10)&AJ34&CHAR(10)&AJ35 ->  | AM36: =AM28&CHAR(10)&CHAR(10)&AM29&CHAR(10)&CHAR(10)&AM30&CHAR(10)&CHAR(10)&AM31&CHAR(10)&CHAR(10)&AM32&CHAR(10)&CHAR(10)&AM33&CHAR(10)&CHAR(10)&AM34&CHAR(10)&CHAR(10)&AM35 -> 1. In an effort to provide more value to our customer base, Fibercom has released two new service levels for our internet customers in August. These products provide up to 10 and 15 Mbps of bandwidth speed and in most cases without an increase in the monthly recurring rate. In order to obtain this fabulous new industry leading service, we are encouraging our customers to renew or extend their existing contracts. We are happy to report that as customers are made aware of this new offering, they are just as excited as we are "to get more for their money". | AN36: 1. Fifteen customers renewed contracts and upgraded bandwidth | AP36: Added three new customers (two internet and one phone and internet). | AQ36: One new phone customer/lost one customer Lost customer due to bank failed NewCustomer added phone service/existing customer added additional phone services Disconnected internet for bank failure customer | AR36: Added one new customer/existing customer added new service 3 customers reported phone lines with no dial tone 2 customers reported internet down NewCustomer added phone service/existing customer added additional phone services Existing customer removed 2 lines from his system
A40: Bullet Chart Source | B40: Target | C40: What's Better? | D40: Band 1 | E40: Band 2 | F40: YTD Type | G40: Max Scale | H40: Actual 1 | I40: Actual | J40: Actual 3 | K40: Projection 1 | L40: Projection 2 | M40: Projection 3 | N40: First Zone 1 | O40: First Zone 2 | P40: First Zone 3 | Q40: Second Zone 1 | R40: Second Zone 2 | S40: Second Zone 3 | T40: Previous X 1 | U40: Previous X 2 | V40: Previous Y 1 | W40: Previous Y 2
A41: =A5 -> Revenue - Enterprise | B41: 366635 | C41: More | D41: 0.85 | E41: 1 | F41: Sum | G41: =ROUNDUP((ROUNDUP(MAX(B41,SUM(I41,L41)),-LEN(EVEN(MAX(B41,SUM(I41,L41))))+2)/5),-LEN(EVEN(ROUNDUP(MAX(B41,SUM(I41,L41)),-LEN(EVEN(MAX(B41,SUM(I41,L41))))+2)/5))+1)*5 -> 400000 | H41: 0 | I41: =IF(F41="Sum",SUM(OFFSET(A5,0,YTDBeg,1,YTDWidth)),AVERAGE(OFFSET(A5,0,YTDBeg,1,YTDWidth))) -> 371316.6 | J41: 0 | K41: 0 | L41: =IF(F41="Sum",Projection*(I41/YTDWidth*12-I41),0) -> 0 | M41: 0 | N41: =B41*D41 -> 311639.75 | O41: =((I41+L41<=N41)*(N41-(I41+L41))) -> 0 | P41: =N41 -> 311639.75 | Q41: =(E41-D41)*B41 -> 54995.25 | R41: =((I41+L41<=N41+Q41)*((N41+Q41)-(I41+L41+O41))) -> 0 | S41: =Q41 -> 54995.25 | T41: =IF(F41="Sum",SUM(OFFSET(A5,0,YTDBeg-12,1,YTDWidth)),AVERAGE(OFFSET(A5,0,YTDBeg-12,1,YTDWidth))) -> 531712.35 | U41: =T41 -> 531712.35 | V41: 1 | W41: 2
A42: =A6 -> Revenue - City | B42: 1275665 | C42: Middle | D42: 0.93 | E42: 1.07 | F42: Sum | G42: =ROUNDUP((ROUNDUP(MAX(B42,SUM(I42,L42)),-LEN(EVEN(MAX(B42,SUM(I42,L42))))+2)/5),-LEN(EVEN(ROUNDUP(MAX(B42,SUM(I42,L42)),-LEN(EVEN(MAX(B42,SUM(I42,L42))))+2)/5))+1)*5 -> 1500000 | H42: 0 | I42: 535715.26 | J42: 0 | K42: 0 | L42: 0 | M42: 0 | N42: 1186368.45 | O42: =((I42+L42<=N42)*(N42-(I42+L42))) -> 650653.19 | P42: =N42 -> 1186368.45 | Q42: 178593.1 | R42: =((I42+L42<=N42+Q42)*((N42+Q42)-(I42+L42+O42))) -> 178593.1 | S42: =Q42 -> 178593.1 | T42: 554843.29 | U42: =T42 -> 554843.29 | V42: 1 | W42: 2
A43: Net Increase/Decrease in Customer Count (Enterprise) | B43: 11 | C43: More | D43: 0.85 | E43: 1 | F43: Sum | G43: 15 | H43: 0 | I43: 2 | J43: 0 | K43: 0 | L43: 0 | M43: 0 | N43: 9.35 | O43: 7.35 | P43: 9.35 | Q43: 1.65 | R43: 1.65 | S43: 1.65 | T43: 2 | U43: 2 | V43: 1 | W43: 2
A44: Net Increase/Decrease in Contract Value (Enterprise) | B44: 104733 | C44: More | D44: 0.85 | E44: 1 | F44: Sum | G44: 150000 | H44: 0 | I44: 56391 | J44: 0 | K44: 0 | L44: 0 | M44: 0 | N44: 89023.05 | O44: 32632.05 | P44: 89023.05 | Q44: 15709.95 | R44: 15709.95 | S44: 15709.95 | T44: 69250.4 | U44: 69250.4 | V44: 1 | W44: 2
A45: Enterprise: Technical Issues Reported | B45: 12 | C45: Less | D45: 1 | E45: 1.15 | F45: Sum | G45: 15 | H45: 0 | I45: 5 | J45: 0 | K45: 0 | L45: 0 | M45: 0 | N45: 12 | O45: 7 | P45: 12 | Q45: 1.8 | R45: 1.8 | S45: 1.8 | V45: 1 | W45: 2
A46: Enterprise: Phone Outages Reported | B46: 8 | C46: Less | D46: 1 | E46: 1.15 | F46: Sum | G46: 20 | H46: 0 | I46: 18 | J46: 0 | K46: 0 | L46: 0 | M46: 0 | N46: 8 | O46: 0 | P46: 8 | Q46: 1.2 | R46: 0 | S46: 1.2 | V46: 1 | W46: 2
A47: Enterprise: Internet Outages Reported | B47: 7 | C47: Less | D47: 1 | E47: 1.15 | F47: Sum | G47: 10 | H47: 0 | I47: 2 | J47: 0 | K47: 0 | L47: 0 | M47: 0 | N47: 7 | O47: 5 | P47: 7 | Q47: 1.05 | R47: 1.05 | S47: 1.05 | V47: 1 | W47: 2
A48: Enterprise: Billing Errors Reported | B48: 5 | C48: Less | D48: 1 | E48: 1.15 | F48: Sum | G48: =ROUNDUP((ROUNDUP(MAX(B48,SUM(I48,L48)),-LEN(EVEN(MAX(B48,SUM(I48,L48))))+2)/5),-LEN(EVEN(ROUNDUP(MAX(B48,SUM(I48,L48)),-LEN(EVEN(MAX(B48,SUM(I48,L48))))+2)/5))+1)*5 -> 5 | H48: 0 | I48: 0 | J48: 0 | K48: 0 | L48: 0 | M48: 0 | N48: =B48*D48 -> 5 | O48: =((I48+L48<=N48)*(N48-(I48+L48))) -> 5 | P48: =N48 -> 5 | Q48: =(E48-D48)*B48 -> 0.75 | R48: =((I48+L48<=N48+Q48)*((N48+Q48)-(I48+L48+O48))) -> 0.75 | S48: =Q48 -> 0.75 | U48: =T48 ->  | V48: 1 | W48: 2
A49: Service Change Request: Add Service | B49: 18 | C49: More | D49: 0.85 | E49: 1 | F49: Sum | G49: 20 | H49: 0 | I49: 11 | J49: 0 | K49: 0 | L49: 0 | M49: 0 | N49: 15.3 | O49: 4.3 | P49: 15.3 | Q49: 2.7 | R49: 2.7 | S49: 2.7 | V49: 1 | W49: 2
A50: Service Change Request: Remove Service | B50: 12 | C50: Less | D50: 1 | E50: 1.15 | F50: Sum | G50: 15 | H50: 0 | I50: 6 | J50: 0 | K50: 0 | L50: 0 | M50: 0 | N50: 12 | O50: 6 | P50: 12 | Q50: 1.8 | R50: 1.8 | S50: 1.8 | V50: 1 | W50: 2
A51: Service Change Request: Move Service | B51: 12 | C51: Less | D51: 1 | E51: 1.15 | F51: Sum | G51: 15 | H51: 0 | I51: 1 | J51: 0 | K51: 0 | L51: 0 | M51: 0 | N51: 12 | O51: 11 | P51: 12 | Q51: 1.8 | R51: 1.8 | S51: 1.8 | V51: 1 | W51: 2
A52: Total Support Requests (Enterprise) | B52: 84 | C52: Less | D52: 1 | E52: 1.15 | F52: Sum | G52: 100 | H52: 0 | I52: 43 | J52: 0 | K52: 0 | L52: 0 | M52: 0 | N52: 84 | O52: 41 | P52: 84 | Q52: 12.6 | R52: 12.6 | S52: 12.6 | V52: 1 | W52: 2
A53: Total Support Requests (City) | B53: 1351 | C53: Less | D53: 1 | E53: 1.15 | F53: Sum | G53: =ROUNDUP((ROUNDUP(MAX(B53,SUM(I53,L53)),-LEN(EVEN(MAX(B53,SUM(I53,L53))))+2)/5),-LEN(EVEN(ROUNDUP(MAX(B53,SUM(I53,L53)),-LEN(EVEN(MAX(B53,SUM(I53,L53))))+2)/5))+1)*5 -> 1500 | H53: 0 | I53: =IF(F53="Sum",SUM(OFFSET(A17,0,YTDBeg,1,YTDWidth)),AVERAGE(OFFSET(A17,0,YTDBeg,1,YTDWidth))) -> 1398 | J53: 0 | K53: 0 | L53: =IF(F53="Sum",Projection*(I53/YTDWidth*12-I53),0) -> 0 | M53: 0 | N53: =B53*D53 -> 1351 | O53: =((I53+L53<=N53)*(N53-(I53+L53))) -> 0 | P53: =N53 -> 1351 | Q53: =(E53-D53)*B53 -> 202.65 | R53: =((I53+L53<=N53+Q53)*((N53+Q53)-(I53+L53+O53))) -> 155.65 | S53: =Q53 -> 202.65 | T53: =IF(F53="Sum",SUM(OFFSET(A17,0,YTDBeg-12,1,YTDWidth)),AVERAGE(OFFSET(A17,0,YTDBeg-12,1,YTDWidth))) -> 841 | U53: =T53 -> 841 | V53: 1 | W53: 2
A54: Cell Minutes Consumed (City) | B54: 331737 | C54: Less | D54: 1 | E54: 1.15 | F54: Sum | G54: =ROUNDUP((ROUNDUP(MAX(B54,SUM(I54,L54)),-LEN(EVEN(MAX(B54,SUM(I54,L54))))+2)/5),-LEN(EVEN(ROUNDUP(MAX(B54,SUM(I54,L54)),-LEN(EVEN(MAX(B54,SUM(I54,L54))))+2)/5))+1)*5 -> 350000 | H54: 0 | I54: =IF(F54="Sum",SUM(OFFSET(A18,0,YTDBeg,1,YTDWidth)),AVERAGE(OFFSET(A18,0,YTDBeg,1,YTDWidth))) -> 251304 | J54: 0 | K54: 0 | L54: =IF(F54="Sum",Projection*(I54/YTDWidth*12-I54),0) -> 0 | M54: 0 | N54: =B54*D54 -> 331737 | O54: =((I54+L54<=N54)*(N54-(I54+L54))) -> 80433 | P54: =N54 -> 331737 | Q54: =(E54-D54)*B54 -> 49760.55 | R54: =((I54+L54<=N54+Q54)*((N54+Q54)-(I54+L54+O54))) -> 49760.55 | S54: =Q54 -> 49760.55 | T54: =IF(F54="Sum",SUM(OFFSET(A18,0,YTDBeg-12,1,YTDWidth)),AVERAGE(OFFSET(A18,0,YTDBeg-12,1,YTDWidth))) -> 209726 | U54: =T54 -> 209726 | V54: 1 | W54: 2
A65: SPARKLINE SOURCE
B66: 11 | C66: 10 | D66: 9 | E66: 8 | F66: 7 | G66: 6 | H66: 5 | I66: 4 | J66: 3 | K66: 2 | L66: 1 | M66: 0
A67: Measure | B67: =OFFSET($A4,0,CurrentMonthCount-B$66,1,1) -> 2011-02-01 | C67: 2011-03-01 | D67: 2011-04-01 | E67: 2011-05-01 | F67: 2011-06-01 | G67: 2011-07-01 | H67: 2011-08-01 | I67: 2011-09-01 | J67: 2011-10-01 | K67: 2011-11-01 | L67: 2011-12-01 | M67: 2012-01-01
A68: =A5 -> Revenue - Enterprise | B68: =OFFSET($A5,0,CurrentMonthCount-B$66,1,1) -> 70340.05 | C68: 58799 | D68: 60553 | E68: 56544 | F68: 54492 | G68: 57350.75 | H68: 52694.05 | I68: 52903.07 | J68: 51800.17 | K68: 52063 | L68: 52665.04 | M68: 51840.52
A69: =A6 -> Revenue - City | B69: =OFFSET($A6,0,CurrentMonthCount-B$66,1,1) -> 78155.25 | C69: 79828 | D69: 76154 | E69: 79814 | F69: 70298 | G69: 76781.16 | H69: 76781.16 | I69: 76750.17 | J69: 75937.19 | K69: 76396.18 | L69: 75517.54 | M69: 77551.86
A70: Net Increase/Decrease in Customer Count (Enterprise) | B70: =OFFSET($A7,0,CurrentMonthCount-B$66,1,1) -> -2 | C70: 0 | D70: 0 | E70: -1 | F70: -1 | G70: 0 | H70: -3 | I70: 2 | J70: -1 | K70: 3 | L70: 0 | M70: 1
A71: Net Increase/Decrease in Contract Value (Enterprise) | B71: =OFFSET($A8,0,CurrentMonthCount-B$66,1,1) -> -135 | C71: -25 | D71: 0 | E71: -540 | F71: -720 | G71: 0 | H71: 14795 | I71: 23367 | J71: 1344 | K71: 11929 | L71: -13440 | M71: 18396
A72: Enterprise: Technical Issues Reported | B72: =OFFSET($A9,0,CurrentMonthCount-B$66,1,1) ->  | G72: 1 | H72: 0 | I72: 2 | J72: 2 | K72: 0 | L72: 0 | M72: 0
A73: Enterprise: Phone Outages Reported | B73: =OFFSET($A10,0,CurrentMonthCount-B$66,1,1) ->  | G73: 8 | H73: 3 | I73: 1 | J73: 3 | K73: 0 | L73: 0 | M73: 3
A74: Enterprise: Internet Outages Reported | B74: =OFFSET($A11,0,CurrentMonthCount-B$66,1,1) ->  | G74: 0 | H74: 0 | I74: 0 | J74: 0 | K74: 0 | L74: 0 | M74: 2
A75: Enterprise: Billing Errors Reported | B75: =OFFSET($A12,0,CurrentMonthCount-B$66,1,1) ->  | G75: 0 | H75: 0 | I75: 0 | J75: 0 | K75: 0 | L75: 0 | M75: 0
A76: Service Change Request: Add Service | B76: =OFFSET($A13,0,CurrentMonthCount-B$66,1,1) ->  | G76: 0 | H76: 2 | I76: 2 | J76: 0 | K76: 3 | L76: 2 | M76: 2
A77: Service Change Request: Remove Service | B77: =OFFSET($A14,0,CurrentMonthCount-B$66,1,1) ->  | G77: 1 | H77: 1 | I77: 1 | J77: 1 | K77: 0 | L77: 1 | M77: 1
A78: Service Change Request: Move Service | B78: =OFFSET($A15,0,CurrentMonthCount-B$66,1,1) ->  | G78: 0 | H78: 1 | I78: 0 | J78: 0 | K78: 0 | L78: 0 | M78: 0
A79: Total Support Requests (Enterprise) | B79: =OFFSET($A16,0,CurrentMonthCount-B$66,1,1) ->  | G79: 10 | H79: 7 | I79: 6 | J79: 6 | K79: 3 | L79: 3 | M79: 8
A80: Total Support Requests (City) | B80: =OFFSET($A17,0,CurrentMonthCount-B$66,1,1) -> 130 | C80: 150 | D80: 131 | E80: 105 | F80: 202 | G80: 164 | H80: 226 | I80: 250 | J80: 236 | K80: 164 | L80: 155 | M80: 203
A81: Cell Minutes Consumed (City) | B81: =OFFSET($A18,0,CurrentMonthCount-B$66,1,1) -> 32795 | C81: 33169 | D81: 40672 | E81: 39498 | F81: 35114 | G81: 36724 | H81: 38438 | I81: 37931 | J81: 36789 | K81: 36327 | L81: 34769 | M81: 30326
A82: 0 | B82: =OFFSET($A19,0,CurrentMonthCount-B$66,1,1) -> 0 | C82: 0 | D82: 0 | E82: 0 | F82: 0 | G82: 0 | H82: 0 | I82: 0 | J82: 0 | K82: 0 | L82: 0 | M82: 0
A83: 0 | B83: =OFFSET($A20,0,CurrentMonthCount-B$66,1,1) -> 0 | C83: 0 | D83: 0 | E83: 0 | F83: 0 | G83: 0 | H83: 0 | I83: 0 | J83: 0 | K83: 0 | L83: 0 | M83: 0
A84: 0 | B84: =OFFSET($A21,0,CurrentMonthCount-B$66,1,1) -> 0 | C84: 0 | D84: 0 | E84: 0 | F84: 0 | G84: 0 | H84: 0 | I84: 0 | J84: 0 | K84: 0 | L84: 0 | M84: 0
A85: 0 | B85: =OFFSET($A22,0,CurrentMonthCount-B$66,1,1) -> 0 | C85: 0 | D85: 0 | E85: 0 | F85: 0 | G85: 0 | H85: 0 | I85: 0 | J85: 0 | K85: 0 | L85: 0 | M85: 0
A86: 0 | B86: =OFFSET($A23,0,CurrentMonthCount-B$66,1,1) -> 0 | C86: 0 | D86: 0 | E86: 0 | F86: 0 | G86: 0 | H86: 0 | I86: 0 | J86: 0 | K86: 0 | L86: 0 | M86: 0
A87: 0 | B87: =OFFSET($A24,0,CurrentMonthCount-B$66,1,1) -> 0 | C87: 0 | D87: 0 | E87: 0 | F87: 0 | G87: 0 | H87: 0 | I87: 0 | J87: 0 | K87: 0 | L87: 0 | M87: 0
A101: Cash Drawer Over/Under | B101: -20 | C101: 0 | D101: 11
B102: =IF(I43>0,-20,IF(I43<-20,0,-20-I43)) -> -20 | C102: =I43 -> 2 | D102: =IF(I43<0,11,IF(I43>11,0,11-I43)) -> 9
B103: -20 | C103: 0 | D103: 11

Sheet Controls (hidden)
A3: Current Month | B3: =OFFSET('Admin Data'!$A$4,0,CurrentMonthCount) -> 2012-01-01
A6: Projection | B6: FALSE
A9: Current FY | B9: FY2012
A14: Detail Controls
A15: History | B15: =IF(BackForward<CurrentMonthCount,IF(BackForward<1,1,BackForward),CurrentMonthCount) -> 24

Sheet Measure Descriptions (hidden)
A2: Measure Descriptions
A4: Average Number of Receptacles Collected per Route-hour | B4: =INDEX(A8:F307,MATCH(A4,A8:A307,0),2) -> This measure description is currently unavailable. We are working to include this data as soon as possible. | C4: =INDEX(A8:F307,MATCH(A4,A8:A307,0),3) -> Unavailable | D4: =INDEX(A8:F307,MATCH(A4,A8:A307,0),4) -> 95.28571429 | E4: =INDEX(A8:F307,MATCH(A4,A8:A307,0),5) -> 99 | F4: =INDEX(A8:F3075,MATCH(A4,A8:A307,0),6) -> or More
A7: Measure | B7: Description | C7: Factors | D7: FYTD | E7: Goal | F7: Preference
A8: ='Admin Data'!A41 -> Citizen Request Tracker Cases | B8: The Citizen Request Tracker (CRT) allows citizens to report issues or request services through the City's website, providing citizens with improved access to the City's local government services. The City believes that increased use of the CRT results in greater staff awarness of issues faced in the community, and it's use by citizens is encouraged. | C8: NA | D8: ='Admin Data'!I41 -> 19 | E8: ='Admin Data'!B41 -> 60 | F8: =IF('Admin Data'!C41="More","or More",IF('Admin Data'!C41="Less","or Less","")) -> or More
A9: ='Admin Data'!A42 -> Quarterly Newsletters Published | B9: The Quarterly Newsletter is published four times per year and is used to provide residents with information about the current happenings within the city. | C9: NA | D9: ='Admin Data'!I42 -> 3 | E9: ='Admin Data'!B42 -> 4 | F9: =IF('Admin Data'!C42="More","or More",IF('Admin Data'!C42="Less","or Less","")) -> 
A10: ='Admin Data'!A43 -> Public Performance Reports Issued | B10: The City of Cartersville is dedicated to the principles of transparency and accountability. In an effort to promote and demonstrate these values, the City has begun issuing monthly "Public Performance Reports" which contain information about the performance of the various departments within the City's local government. | C10: NA | D10: ='Admin Data'!I43 -> 0 | E10: ='Admin Data'!B43 -> 12 | F10: =IF('Admin Data'!C43="More","or More",IF('Admin Data'!C43="Less","or Less","")) -> 
A11: ='Admin Data'!A44 -> Emergency Overtime Hours Worked By All Departments | B11: Emergency overtime includes overtime hours that are worked in response to unplanned/emergency events. An example of such an unplanned event would be a severe storm which causes damage to electrical lines. Note: every few months there are three pay periods, instead of two, resulting in occasional spikes in hours which is to be expected. | C11: Severe weather, infrastructure malfunctions (e.x. broken water main), essential staff calling in sick. | D11: ='Admin Data'!I44 -> 192 | E11: ='Admin Data'!B44 -> 3800 | F11: =IF('Admin Data'!C44="More","or More",IF('Admin Data'!C44="Less","or Less","")) -> or Less
A12: ='Admin Data'!A45 -> Planned Overtime Hours Worked By All Departments | B12: Planned overtime includes overtime hours that are worked in response to planned activities which occur outside of regularly scheduled hours. An example would be a water department crew working on infrastructure at a time of day that would limit traffic disruption. Note: every few months there are three pay periods, instead of two, resulting in occasional spikes in hours which is to be expected. | C12: Planned work requiring additional hours by staff. | D12: ='Admin Data'!I45 -> 3511 | E12: ='Admin Data'!B45 -> 5200 | F12: =IF('Admin Data'!C45="More","or More",IF('Admin Data'!C45="Less","or Less","")) -> or Less
A13: ='Admin Data'!A46 -> On-call Hours Worked By All Departments | B13: On-call hours are paid to staff members who are required to be available in case of an unplanned/emergency event. Note: every few months there are three pay periods, instead of two, resulting in occasional spikes in hours which is to be expected. | C13: NA | D13: ='Admin Data'!I46 -> 2034.25 | E13: ='Admin Data'!B46 -> 3900 | F13: =IF('Admin Data'!C46="More","or More",IF('Admin Data'!C46="Less","or Less","")) -> or Less
A14: ='Admin Data'!A47 -> Sick Leave Hours Used By All Departments | B14: Sick leave hours include hours missed by employees due to illness or, in some cases, family illnesses. Note: every few months there are three pay periods, instead of two, resulting in occasional spikes in hours which is to be expected. | C14: Employee wellness, seasonal illnesses. | D14: ='Admin Data'!I47 -> 12500.53 | E14: ='Admin Data'!B47 -> 16680 | F14: =IF('Admin Data'!C47="More","or More",IF('Admin Data'!C47="Less","or Less","")) -> or Less
A15: ='Admin Data'!A48 -> 0 | D15: ='Admin Data'!I48 -> 0 | E15: ='Admin Data'!B48 -> 0 | F15: =IF('Admin Data'!C48="More","or More",IF('Admin Data'!C48="Less","or Less","")) -> 
A16: ='Admin Data'!A49 -> 0 | D16: ='Admin Data'!I49 -> 0 | E16: ='Admin Data'!B49 -> 0 | F16: =IF('Admin Data'!C49="More","or More",IF('Admin Data'!C49="Less","or Less","")) -> 
A17: ='Admin Data'!A50 -> 0 | D17: ='Admin Data'!I50 -> 0 | E17: ='Admin Data'!B50 -> 0 | F17: =IF('Admin Data'!C50="More","or More",IF('Admin Data'!C50="Less","or Less","")) -> 
A18: ='Admin Data'!A51 -> 0 | D18: ='Admin Data'!I51 -> 0 | E18: ='Admin Data'!B51 -> 0 | F18: =IF('Admin Data'!C51="More","or More",IF('Admin Data'!C51="Less","or Less","")) -> 
A19: ='Admin Data'!A52 -> 0 | D19: ='Admin Data'!I52 -> 0 | E19: ='Admin Data'!B52 -> 0 | F19: =IF('Admin Data'!C52="More","or More",IF('Admin Data'!C52="Less","or Less","")) -> 
A20: ='Admin Data'!A53 -> 0 | D20: ='Admin Data'!I53 -> 0 | E20: ='Admin Data'!B53 -> 0 | F20: =IF('Admin Data'!C53="More","or More",IF('Admin Data'!C53="Less","or Less","")) -> 
A21: ='Admin Data'!A54 -> 0 | D21: ='Admin Data'!I54 -> 0 | E21: ='Admin Data'!B54 -> 0 | F21: =IF('Admin Data'!C54="More","or More",IF('Admin Data'!C54="Less","or Less","")) -> 
A22: ='Admin Data'!A55 -> 0 | D22: ='Admin Data'!I55 -> 0 | E22: ='Admin Data'!B55 -> 0 | F22: =IF('Admin Data'!C55="More","or More",IF('Admin Data'!C55="Less","or Less","")) -> 
A23: ='Admin Data'!A56 -> 0 | D23: ='Admin Data'!I56 -> 0 | E23: ='Admin Data'!B56 -> 0 | F23: =IF('Admin Data'!C56="More","or More",IF('Admin Data'!C56="Less","or Less","")) -> 
A24: ='Admin Data'!A57 -> 0 | D24: ='Admin Data'!I57 -> 0 | E24: ='Admin Data'!B57 -> 0 | F24: =IF('Admin Data'!C57="More","or More",IF('Admin Data'!C57="Less","or Less","")) -> 
A25: ='Admin Data'!A58 -> 0 | D25: ='Admin Data'!I58 -> 0 | E25: ='Admin Data'!B58 -> 0 | F25: =IF('Admin Data'!C58="More","or More",IF('Admin Data'!C58="Less","or Less","")) -> 
A26: ='Admin Data'!A59 -> 0 | D26: ='Admin Data'!I59 -> 0 | E26: ='Admin Data'!B59 -> 0 | F26: =IF('Admin Data'!C59="More","or More",IF('Admin Data'!C59="Less","or Less","")) -> 
A27: ='Admin Data'!A60 -> 0 | D27: ='Admin Data'!I60 -> 0 | E27: ='Admin Data'!B60 -> 0 | F27: =IF('Admin Data'!C60="More","or More",IF('Admin Data'!C60="Less","or Less","")) -> 
A28: ='Finance Data'!A41 -> Meters Read - Electric | B28: The number of electric meters read by the meter reading staff. | C28: NA | D28: ='Finance Data'!I41 -> 59235 | E28: ='Finance Data'!B41 -> 105000 | F28: =IF('Finance Data'!C41="More","or More",IF('Finance Data'!C41="Less","or Less","")) -> 
A29: ='Finance Data'!A42 -> Meters Read - Gas | B29: The number of gas meters read by the meter reading staff. | C29: NA | D29: ='Finance Data'!I42 -> 77335 | E29: ='Finance Data'!B42 -> 128500 | F29: =IF('Finance Data'!C42="More","or More",IF('Finance Data'!C42="Less","or Less","")) -> 
A30: ='Finance Data'!A43 -> Meters Read - Water & Sewer | B30: The number of water meters read by the meter reading staff. | C30: NA | D30: ='Finance Data'!I43 -> 77213 | E30: ='Finance Data'!B43 -> 131500 | F30: =IF('Finance Data'!C43="More","or More",IF('Finance Data'!C43="Less","or Less","")) -> 
A31: ='Finance Data'!A44 -> Service Disconnections | B31: The number of service disconnections completed by the meter reading staff. | C31: NA | D31: ='Finance Data'!I44 -> 2134 | E31: ='Finance Data'!B44 -> 5100 | F31: =IF('Finance Data'!C44="More","or More",IF('Finance Data'!C44="Less","or Less","")) -> or Less
A32: ='Finance Data'!A45 -> Service Connections | B32: The number of service connections completed by the meter reading staff. | C32: NA | D32: ='Finance Data'!I45 -> 3479 | E32: ='Finance Data'!B45 -> 5000 | F32: =IF('Finance Data'!C45="More","or More",IF('Finance Data'!C45="Less","or Less","")) -> or More
A33: ='Finance Data'!A46 -> Bills Generated | B33: The number of bills generated by the data processing staff. | C33: NA | D33: ='Finance Data'!I46 -> 106788 | E33: ='Finance Data'!B46 -> 183000 | F33: =IF('Finance Data'!C46="More","or More",IF('Finance Data'!C46="Less","or Less","")) -> 
